{"text_format":"1","workbook":"xlsx","n_sheets":19,"sheets":["Contents","Step 1","Step 2","Step 3","Step 4","Step 5","Step 6","Step 7","Step 8","Step 9","Step 10","Step 11","Calculations","Lists","Pump Rate","Treatment","Pipes","Costs","WSUD Maintenance Constants"],"not_rendered":{"charts":23,"images":3,"macros":1,"external_links":0,"defined_names":27,"comments":3,"pivot_tables":0},"unopened":[],"bounds":{"document_bytes":16777216,"sheet_cells":100000,"rows_first":2000,"rows_last":500,"rows_between":2000,"halvings":0,"cell_chars":16384,"cell_head_chars":4096},"cells_cut":0,"cells_raw":0,"read":"whole","date_system":"1900"}

{"sheet":"Contents","index":0,"n_rows":20,"n_cols":2,"rows_kept":20,"cut":false,"hidden":false,"merged":[[19,0,19,2],[4,0,4,2],[5,1,5,2],[6,1,6,2],[7,1,7,2],[8,1,8,2],[9,1,9,2],[10,1,10,2],[11,1,11,2],[16,0,16,2],[17,0,17,2],[18,0,18,2],[12,1,12,2],[13,1,13,2],[14,1,14,2],[15,1,15,2],[0,0,0,2],[1,0,3,2]]}
["Overview"]
["This spreadsheet was prepared by E2Designlab in 2017 for Darebin City Council. The tool is designed to provide a quick estimate of the treatment performance, reuse performance and cost associated with stormwater treatment and reuse projects. If you require assistance with this tool, contact Council's Environment Officer or E2Designlab at info@e2designlab.com.au or ph: 03 9654 7274. "]
[]
[]
["Contents"]
["Step 1","Site and catchment details"]
["Step 2","Treatment details"]
["Step 3","Treatment performance "]
["Step 4","Stormwater reuse"]
["Step 5","Transfer pipes"]
["Step 6","Review costs "]
["Step 7","Risks and opportunities"]
["Step 8","Review and save results"]
["Step 9","Results for all sites (treatment and economic performance)"]
["Step 10","Results for all sites (risks and opportunities)"]
["Step 11","Individual site summary"]
["Legend"]
["Required user input"]
["Recommended user input"]
["Automatic input (cannot be edited)"]

{"sheet":"Step 1","index":1,"n_rows":10,"n_cols":5,"rows_kept":10,"cut":false,"hidden":false,"merged":[[6,4,7,4],[9,0,9,3],[0,0,0,3],[2,0,2,2],[1,0,1,2],[3,0,3,2],[4,0,7,0],[5,1,5,2],[4,1,4,2],[6,1,7,1]]}
["Step 1: Site and catchment details",null,null,null,"Notes"]
["Site Name",null,null,"IW Dole","-"]
["Site #",null,null,{"$f":"Calculations!F11","v":1069},"Automatically finds the next unique Site #."]
["Suburb",null,null,"Reservoir","-"]
["Catchment","Catchment Location",null,"-","See 'Catchment Map' below."]
[null,"Catchment Area (ha)",null,100,"-"]
[null,"Directly Connected Imperviousness (DCI) %","Default",{"$f":"Calculations!F17","v":0.3},"A user defined value must be entered.MUSIC modelling is required to estimate treatment performance if the directly connected imperviousness of the catchment is not ~30% ."]
[null,null,"User defined",0.3]
[]
["Catchment Map"]

{"sheet":"Step 2","index":2,"n_rows":9,"n_cols":5,"rows_kept":9,"cut":false,"hidden":false,"merged":[[6,0,8,0],[8,1,8,2],[2,1,3,1],[6,1,7,1],[0,0,0,3],[1,0,5,0],[1,1,1,2],[4,1,4,2],[5,1,5,2]]}
["Step 2: Treatment details",null,null,null,"Notes"]
["Treatment Site","Total site area (m2)",null,5800,"Total site area = the area available identified for treatment."]
[null,"Area reduction factor","Default",0.3,"It is assumed that the total area needs to be reduced by 30% to account for batters, access tracks, seating etc. The remaining 70% of the total area is available for treatment."]
[null,null,"User defined",null,"Insert the default input or a unique input. "]
[null,"Area available for treatment (m2)",null,{"$f":"Calculations!F22","v":4060},"Area available for treatment = Total site area x Area reduction factor."]
[null,"Treatment area (m2)",null,{"$f":"Calculations!F24","v":4060},"Treatment area = Minimum of the \"Area available for treatment\" and the \"Area required to treat the catchment to best practice based on the adopted treatment\" (see below).\nNote: MUSIC modelling is required to estimate treatment perfromance if:\n             (a) The bioretention treatment area is >600 m2. \n             (b) The wetland treatment area is >6000 m2. "]
["Treatment Type","Treatment type","Default",{"$f":"Calculations!F18","v":"Wetland or Bioretention"},"Wetlands are typically preferenced if there is sufficient space available, bioretention systems may be more suitable in confined sites and locations where permanent water bodies aren't appropriate (e.g. immediately adjacent to sports grounds). "]
[null,null,"User defined","Wetland","User can choose which treatment is used at the site.  Note: If the area of bioretention required is >600m2 then consider constructing multiple bioretention cells to allow for flow spreading."]
[null,"Area required to treat the catchment to best practice based on the adopted treatment (m2)",null,{"$f":"Calculations!F23","v":"MUSIC modelling is required"},"This is an estimate of the treatment area required to treat the entire catchment to meet best practice pollutant removal targets (80% TSS, 45% TN, 45% TP). This will rarely be achievable or practical in existing urban areas. MUSIC modelling is required to estimate this area if the catchment DCI not ~30% or stormwater harvesting occurs.  "]

{"sheet":"Step 3","index":3,"n_rows":10,"n_cols":6,"rows_kept":10,"cut":false,"hidden":false,"merged":[[2,5,9,5],[3,2,5,2],[0,0,0,4],[6,2,6,3],[7,2,9,2],[2,2,2,3],[2,1,5,1],[6,1,9,1],[1,1,1,3],[1,0,9,0]]}
["Step 3: Treatment performance ",null,null,null,null,"Notes"]
["Treatment Performance","Will there be stormwater reuse from the treatment?",null,null,"Yes","-"]
[null,"Default","Runoff Reduction (ML/yr)",null,{"$f":"Calculations!F25","v":"MUSIC modelling is required"},"Default runoff and pollutant load reductions are estimated using design curves. Note: MUSIC modelling is required to estimate treatment perfromance if:\n             (a) The catchment DCI is not ~30%. \n             (b) The project includes stormwater reuse. \n             (c) The bioretention treatment area is >600 m2. \n             (d) The wetland treatment area is >6000 m2. \nIn these cases a MUSIC model will need to be prepared with the results entered manually in the green 'User defined' boxes. "]
[null,null,"Pollutant Load Reductions (kg/yr)","Total Suspended Solids (TSS)",{"$f":"Calculations!F26","v":"MUSIC modelling is required"}]
[null,null,null,"Total Phosporus (TP)",{"$f":"Calculations!F27","v":"MUSIC modelling is required"}]
[null,null,null,"Total Nitrogen (TN)",{"$f":"Calculations!F28","v":"MUSIC modelling is required"}]
[null,"User defined","Runoff Reduction (ML/yr)"]
[null,null,"Pollutant Load Reductions (kg/yr)","Total Suspended Solids (TSS)"]
[null,null,null,"Total Phosporus (TP)"]
[null,null,null,"Total Nitrogen (TN)"]

{"sheet":"Step 4","index":4,"n_rows":15,"n_cols":5,"rows_kept":15,"cut":false,"hidden":false,"merged":[[12,4,14,4],[8,1,8,2],[11,1,11,2],[12,1,12,2],[11,0,12,0],[13,0,14,0],[1,0,10,0],[13,1,13,2],[14,1,14,2],[0,0,0,3],[2,1,4,1],[5,1,7,1],[9,1,9,2],[10,1,10,2],[1,1,1,2]]}
["Step 4: Stormwater reuse",null,null,null,"Notes"]
["Demand","Demand Name(s)",null,"JC Donath Res and IW Dole","Name of demand(s) to be supplied by stormwater."]
[null,"Active Irrigation","Irrigated area (ha)",null,"-"]
[null,null,"Irrigation rate (ML/ha)",{"$f":"Calculations!F40","v":3.5},"Based on irrigation of Warm Season Turf for \"Medium - Strong Growth\". This rate is based on Darebin's monthly rainfall and evapotranspiration. "]
[null,null,"Volume (ML/yr) ",{"$f":"Calculations!F41","v":0},"Volume = Irrigated area x Irrigation Rate."]
[null,"Passive Irrigation","Irrigated area (ha)",null,"-"]
[null,null,"Irrigation rate (ML/ha)",{"$f":"Calculations!F43","v":1.7},"Based on irrigation of Warm Season Turf for \"Low Maintenance - Just Acceptable Growth\". This rate is based on Darebin's monthly rainfall and evapotranspiration. "]
[null,null,"Volume (ML/yr)",{"$f":"Calculations!F44","v":0},"Volume = Irrigated area x Irrigation Rate."]
[null,"Other seasonal demand (ML/yr)",null,null,"E.g. Lake/pond top up to maintain water level etc."]
[null,"Other constant demand (ML/yr)",null,null,"E.g. Toilet flushing etc."]
[null,"Total demand (ML/yr)",null,{"$f":"Calculations!F48","v":0},"-"]
["Storage","Tank Type",null,"Below ground","-"]
[null,"Volume (kL)",null,2500,"MUSIC modelling is required to generate these inputs. "]
["Perfromance","Reuse Volume (ML/yr)",null,17.5]
[null,"Reuse Reliability (%)",null,0.7]

{"sheet":"Step 5","index":5,"n_rows":10,"n_cols":5,"rows_kept":10,"cut":false,"hidden":false,"merged":[[0,0,0,3],[1,0,9,0],[1,1,3,1],[4,1,6,1],[7,1,9,1]]}
["STEP 5: Transfer pipes",null,null,null,"Notes"]
["Pipes","Stormwater Source to Treatment Inlet","Length (m)",null,"Distance from the stormwater source (i.e. stormwater pit/pipe) to the treatment system inlet. "]
[null,null,"Pipe Diameter (mm)",300,"Default = assume 300mm is sufficient and verify as part of concept design. "]
[null,null,"Pipe Type","Pressured","Typically requires pumping via a pressured pipe, verify as part of concept design."]
[null,"Treatment Outlet to Discharge Point","Length (m)",null,"Distance from the treatment system outlet to the discharge point (e.g. stormwater pit/pipe or waterway)."]
[null,null,"Pipe Diameter (mm)",300,"Default = assume 300mm is sufficient and verify as part of concept design. "]
[null,null,"Pipe Type","Gravity","Typically can be designed to be gravity if an underground tank is used, verify as part of concept design and change to \"Pressured\" if an above ground storage is required. "]
[null,"Treatment to Storage","Length (m)",null,"Distance from the treatment site to any storages (e.g. tanks or ponds) used for stormwater harvesting. "]
[null,null,"Pipe Diameter (mm)",300,"Default = assume 300mm is sufficient and verify as part of concept design. "]
[null,null,"Pipe Type","Gravity","Typically can be designed to be gravity, verify as part of concept design."]

{"sheet":"Step 6","index":6,"n_rows":21,"n_cols":4,"rows_kept":21,"cut":false,"hidden":false,"merged":[[1,3,12,3],[19,0,20,0],[0,0,0,2],[1,0,4,0],[5,0,8,0],[9,0,12,0],[18,0,18,1],[13,0,17,0]]}
["STEP 6: Review costs ",null,null,"Notes"]
["CAPEX","Treatment",{"$f":"Calculations!F97+Calculations!F83","v":710067.46211550373},"Costs cannot be modified and should be reviewed at the concept design stage."]
[null,"Stormwater reuse",{"$f":"Calculations!F104","v":1413020.7629497382}]
[null,"Sub-total (excluding contingencies)",{"$f":"Calculations!F105","v":2123088.225065242}]
[null,"Total (including contingencies)",{"$f":"Calculations!F108","v":3102000}]
["OPEX","Treatment",{"$f":"Calculations!F114+Calculations!F109","v":11313.432525272923}]
[null,"Stormwater reuse",{"$f":"Calculations!F118","v":5603.1560258212094}]
[null,"Sub-total (excluding contingencies)",{"$f":"Calculations!F119","v":16916.588551094133}]
[null,"Total",{"$f":"Calculations!F122","v":20500}]
["Present Value Costs","Capital",{"$f":"Calculations!F108","v":3102000}]
[null,"Operational ",{"$f":"Calculations!F131","v":347096.11696463701}]
[null,"Renewal",{"$f":"Calculations!F132","v":168479.11165423988}]
[null,"Total",{"$f":"Calculations!F134","v":3618000}]
["Present Value Benefits","Nitrogen abatement (kg/yr)",{"$f":"IF('Step 3'!E10<0,\"Error\",IF(NOT('Step 3'!E10=\"\"),'Step 3'!E10,Calculations!F28))","v":"MUSIC modelling is required"},"This cell will select the user defined input from Step 3, if there is no user defined input the default value will be selected."]
[null,"PV of nitrogen abatement ($)",{"$f":"Calculations!F36","v":"MUSIC modelling is required"},"Based on a rate of 11,390 $/kg (i.e. Melbourne Water rate including capex, opex and renewal over 50yrs)"]
[null,"Reuse volume (ML/yr)",{"$f":"Calculations!F50","v":17.5},"-"]
[null,"PV of reuse volume ($)",{"$f":"Calculations!F52","v":781313.50088681595},"Based on 2.80 $/kL (Yara Valley Water)"]
[null,"Total",{"$f":"IFERROR(C15+C17,\"n/a\")","v":"n/a"},"-"]
["Benefit Cost Ratio",null,{"$f":"IFERROR(IF(C13=0,\"n/a\",C18/C13),\"n/a\")","v":"n/a"},"A BCR of 1 indicate that the monetised benefits equal costs, >1 indicates that the monetised benefit exceed costs. "]
["Inputs to Present Value Anlaysis","Time period of analysis (years)",{"$f":"Calculations!F129","v":50},"-"]
[null,"Discount rate (%)",{"$f":"Calculations!F130","v":5.5E-2},"-"]

{"sheet":"Step 7","index":7,"n_rows":11,"n_cols":4,"rows_kept":11,"cut":false,"hidden":false,"merged":[[10,0,10,1],[0,0,0,2],[3,0,9,0],[1,0,1,1],[2,0,2,1]]}
["STEP 7: Risks and opportunities",null,null,"Notes"]
["Site #",null,{"$f":"'Step 1'!$D$3","v":1069},"-"]
["Site Name",null,{"$f":"'Step 1'!$D$2","v":"IW Dole"},"-"]
["Risks","Landfill",null,"Review Council GIS layer \"Landfill_Sites\"."]
[null,"Cultural heritage",null,"Review Council GIS layer \"Dcc_Cultural_Heritage\"."]
[null,"Natural heritage",null,"Review Council GIS layer \"NaturalHeritgaeSignifcance\"."]
[null,"Biodiversity",null,"Review Council GIS layer \"Dcc_Biodiversity_Sites_Data\"."]
[null,"Geological",null,"Review Council GIS layer \"GeologicalSites\"."]
[null,"Flooding",null,"Review Council GIS layers \"1 in 100yr Flood Natural Drain\" and \"1 in 100yr Flood Underground Drain\"."]
[null,"Other",null,"Consider any other risks to project success, e.g. lack of maintenance access, lack of community support, securing funding. "]
["Opportunities",null,null,"Consider opportunities that will increase the likelihood of project success or enhance project outocmes, e.g. opportunitiy for community engagement / education, enhanced amenity, integration with existing site masterplan. "]

{"sheet":"Step 8","index":8,"n_rows":16,"n_cols":25,"rows_kept":16,"cut":false,"hidden":false,"merged":[[0,0,0,5],[14,0,14,5],[6,0,12,0],[13,0,13,1],[2,7,3,7],[13,2,13,11],[12,2,12,11],[11,2,11,11],[10,2,10,11],[9,2,9,11],[8,2,8,11],[7,2,7,11],[6,2,6,11],[5,0,5,11],[1,0,1,3],[2,8,3,8],[1,24,3,24],[1,4,1,5],[1,6,1,11],[1,12,1,15],[1,18,1,19],[1,21,1,22],[2,6,3,6],[2,19,3,19],[2,9,2,11],[2,12,2,13],[2,14,2,15],[2,18,3,18],[1,16,1,17],[2,16,3,16],[2,17,3,17],[15,0,17,1],[15,2,17,5],[2,0,3,0],[2,1,3,1],[2,2,3,2],[2,4,3,4],[2,5,3,5],[2,3,3,3]]}
["STEP 8: Review and save results"]
["Site",null,null,null,"Catchment ",null,"Treatment Performance ",null,null,null,null,null,"Stormwater Reuse",null,null,null,"Storage",null,"Costs",null,"CLASS","BENEFIT",null,"COST","Benefit Cost Ratio (BCR)"]
["#","Name","Suburb","Catchment Location","Total Area (ha)","Directly Connected Imperviousness (DCI)","Type","Area (m2)","Runoff Reduction (ML/yr)","Pollutant Load Reductions (kg/yr)",null,null,"Demand",null,"Supply",null,"Tank Type","Volume (kL)","Capital ($)","Annual Maintenance ($)","OBJECTIVE","Improved stormwater quality ","Increased alternative water use","Cost effective investment"]
[null,null,null,null,null,null,null,null,null,"TSS","TP","TN","Name","Volume (ML/yr)","Volume (ML/yr)","Reliability",null,null,null,null,"MEASURE","Value of nitrogen abatement ($ NPV, 50yrs, 6% discount rate)","Value of potable saving  ($ NPV, 50yrs, 6% discount rate)","Life cycle cost  ($ NPV, 50yrs, 6% discount rate)"]
[{"$f":"'Step 1'!D3","v":1069},{"$f":"'Step 1'!D2","v":"IW Dole"},{"$f":"'Step 1'!D4","v":"Reservoir"},{"$f":"'Step 1'!D5","v":"-"},{"$f":"'Step 1'!D6","v":100},{"$f":"IF('Step 1'!D8<=0,'Step 1'!D7,'Step 1'!D8)","v":0.3},{"$f":"IF('Step 2'!D8=\"-\",'Step 2'!D7,'Step 2'!D8)","v":"Wetland"},{"$f":"'Step 2'!D6","v":4060},{"$f":"IF('Step 3'!$E7>=0,'Step 3'!$E7,'Step 3'!$E3)","v":0},{"$f":"IF('Step 3'!$E8>=0,'Step 3'!$E8,'Step 3'!$E4)","v":0},{"$f":"IF('Step 3'!$E9>=0,'Step 3'!$E9,'Step 3'!$E5)","v":0},{"$f":"IF('Step 3'!$E10>=0,'Step 3'!$E10,'Step 3'!$E6)","v":0},{"$f":"'Step 4'!D2","v":"JC Donath Res and IW Dole"},{"$f":"'Step 4'!D11","v":0},{"$f":"'Step 4'!D14","v":17.5},{"$f":"'Step 4'!D15","v":0.7},{"$f":"'Step 4'!D12","v":"Below ground"},{"$f":"'Step 4'!D13","v":2500},{"$f":"'Step 6'!C5","v":3102000},{"$f":"'Step 6'!C9","v":20500},null,{"$f":"'Step 6'!C15","v":"MUSIC modelling is required"},{"$f":"'Step 6'!C17","v":781313.50088681595},{"$f":"'Step 6'!C13","v":3618000},{"$f":"'Step 6'!C19","v":"n/a"}]
["Risks and opportunities"]
["Risks","Landfill",{"$f":"'Step 7'!C4","v":0}]
[null,"Cultural heritage",{"$f":"'Step 7'!C5","v":0}]
[null,"Natural heritage",{"$f":"'Step 7'!C6","v":0}]
[null,"Biodiversity",{"$f":"'Step 7'!C7","v":0}]
[null,"Geological",{"$f":"'Step 7'!C8","v":0}]
[null,"Flooding",{"$f":"'Step 7'!C9","v":0}]
[null,"Other",{"$f":"'Step 7'!C10","v":0}]
["Opportunities",null,{"$f":"'Step 7'!C11","v":0}]
["Save results"]
["To save the results and compare them to other Water Sensitive Projects that have previously been identified click the \"SAVE RESULTS\" button in red to automatically add this site to the results presented in  to Step 9 and Step 10. "]

{"sheet":"Step 9","index":9,"n_rows":1228,"n_cols":28,"rows_kept":1228,"cut":false,"hidden":false,"merged":[[3,5,4,5],[3,6,4,6],[3,7,4,7],[3,8,4,8],[3,3,4,3],[3,25,4,25],[3,19,4,19],[3,17,4,17],[3,16,4,16],[3,9,3,11],[3,12,3,13],[3,14,3,15],[3,18,4,18],[2,24,4,24],[2,0,2,3],[3,0,4,0],[3,1,4,1],[3,2,4,2],[3,4,4,4],[0,0,1,1],[1,20,1,23],[2,4,2,5],[2,12,2,15],[2,18,2,19],[2,21,2,22],[2,6,2,11],[2,16,2,17]]}
["STEP 9: Results for all sites \n(treatment and economic performance)"]
[null,null,null,null,null,null,null,null,null,null,null,null,null,null,null,null,null,null,null,null,"Economic Assessment ($ NPV, 50yrs, 6% discount rate)"]
["Site",null,null,null,"Catchment ",null,"Treatment Performance ",null,null,null,null,null,"Stormwater Reuse",null,null,null,"Storage",null,"Costs",null,"CLASS","BENEFIT",null,"COST","Benefit Cost Ratio (BCR)","Rank"]
["#","Name","Suburb","Catchment Location","Total Area (ha)","Directly Connected Imperviousness (DCI)","Type","Area (m2)","Runoff Reduction (ML/yr)","Pollutant Load Reductions (kg/yr)",null,null,"Demand",null,"Supply",null,"Tank Type","Volume (kL)","Capital ($)","Annual Maintenance ($)","OBJECTIVE","Improved stormwater quality ","Increased alternative water use","Cost effective investment",null,{"$f":"CONCATENATE(\"(1st = best of the total \",COUNTIF(Z6:Z1228,\">0\"),\" sites assessed)\")","v":"(1st = best of the total 68 sites assessed)"}]
[null,null,null,null,null,null,null,null,null,"TSS","TP","TN","Name","Volume (ML/yr)","Volume (ML/yr)","Reliability",null,null,null,null,"MEASURE","Value of nitrogen abatement ","Value of potable saving  ","Life cycle cost ",null,null,"BCR","#"]
[1001,"40 Orchard Ave","Reservoir","Merri Creek - Upper",360,0.38040769162922933,"Bioretention",360,0.70000000000000284,6710,9.9999999999999982,52,"-",0,0,0,"-",0,561000,6700,null,592280,0,727000,0.81469050894085282,{"$f":"_xlfn.IFNA(VLOOKUP(Y6,AA$1:AB$1228,2,FALSE),\"\")","v":16},{"$f":"IF(Y6=\"\",\"\",LARGE(Y$1:Y$1228,AB6))","v":1.364700460829493},1]
[1002,"35 Radford Rd","Reservoir","Merri Creek - Upper",420,0.50294923891617371,"Bioretention",420,0.79999999999999716,7460,11.200000000000001,59,"-",0,0,0,"-",0,695000,7900,null,672010,0,888000,0.75676801801801796,21,1.2912521150592216,{"$f":"IF(Y7=\"\",\"\",AB6+1)","v":2}]
[1003,"Keon Park Childrens Hub","Reservoir","Merri Creek - Upper",4060,0.32943864269429723,"Wetland",4060,32,12500,22.000000000000007,131,"JC Donath Res and IW Dole Res",34,27.5,0.80779999999999996,"Below ground",3400,3731000,21200,null,1492090,1228000,4258000,0.6388186942226397,29,1.2380434782608696,3]
[1004,"J C Donath Reserve","Reservoir","Merri Creek - Upper",3770,0.32943864269429723,"Wetland",3770,32,11600,20.400000000000006,124,"JC Donath Res and IW Dole Res",34,27,0.79330000000000001,"Below ground",3400,3593000,20400,null,1412360,1205000,4096000,0.63900390625000003,28,1.220980091883614,4]
[1005,"3A Carson St","Reservoir","Merri Creek - Upper",950,0.44229275230108284,"Wetland",950,1,2220,3.83,17.899999999999999,"-",0,0,0,"-",0,398000,6800,null,203880.99999999997,0,558000,0.3653781362007168,62,1.2093086419753087,5]
[1006,"2 Ovay St","Reservoir","Merri Creek - Upper",120,0.36154716888557281,"Bioretention",120,0.19999999999999929,2240,3.3400000000000003,17.200000000000003,"-",0,0,0,"-",0,336000,4200,null,195908.00000000003,0,432000,0.45349074074074081,41,1.1982344632768362,6]
[1007,"Wilsons Blvd Reserve","Reservoir","Merri Creek - Upper",110,0.27193430922312795,"Bioretention",110,0.19999999999999929,2030,2.9799999999999995,15.399999999999999,"-",0,0,0,"-",0,328000,4100,null,175405.99999999997,0,420000,0.41763333333333325,51,1.1436043956043955,7]
[1008,"102 Broadhurst Ave","Reservoir","Merri Creek - Upper",110,0.24066307352279859,"Bioretention",110,0.19999999999999929,2040,3.0600000000000005,15.899999999999999,"-",0,0,0,"-",0,331000,4100,null,181100.99999999997,0,423000,0.42813475177304955,47,1.139,8]
[1009,"Edwardes Lake Park","Reservoir","Merri Creek - Upper",460,0.33822773477190499,"Bioretention",460,0.89999999999999147,8580,12.8,67,"-",0,0,0,"-",0,444000,5000,null,763130,0,591000,1.2912521150592216,2,1.0608099438652767,9]
[1010,"J E Moore Park","Reservoir","Merri Creek - Upper",450,0.33907504982053083,"Bioretention",450,0.79999999999999716,8580,13,67,"-",0,0,0,"-",0,693000,8000,null,763130,0,890000,0.85744943820224717,15,0.9705482303955586,10]
[1011,"Fyfe St Reserve","Reservoir","Merri Creek - Upper",250,0.24980107044865901,"Bioretention",250,0.5,5860,8.7999999999999972,44,"-",0,0,0,"-",0,407000,5000,null,501160,0,533000,0.94026266416510318,11,0.94026266416510318,11]
[1012,"T W Andrews Reserve (small)","Reservoir","Darebin Creek - Upper",90,0.24462629577351369,"Bioretention",90,0.20000000000000107,1607,2.4499999999999997,12.600000000000001,"-",0,0,0,"-",0,316000,3800,null,143514.00000000003,0,401000,0.35789027431421455,63,0.92451298701298701,12]
[1013,"T W Andrews Reserve (large)","Reservoir","Darebin Creek - Upper",560,0.24662591130288261,"Bioretention",560,1,14000,21,104,"-",0,0,0,"-",0,662000,7900,null,1184560,0,868000,1.364700460829493,1,0.89230290456431538,13]
[1014,"Bundoora Park Golf Course","Bundoora","Darebin Creek - Upper",1340,0.44503184325147055,"Wetland",1340,7.1000000000000014,4000,6.8000000000000007,36,"Bundoora Park",7.0640000000000001,5.66,0.80370000000000008,"Below ground",420,661000,12100,null,410040,253000,866000,0.76563510392609702,20,0.86961910519951635,14]
[1015,"Arch Gibson Reserve","Reservoir","Darebin Creek - Upper",4510,0.25052341096306091,"Wetland",4510,8,12700,21.299999999999997,100,"CW Kirkwood Res",4.3906855209873017,3.03,0.81310000000000004,"Below ground",150,1363000,15200,null,1139000,135000,1806000,0.70542635658914732,23,0.85744943820224717,15]
[1016,"HP Zwar Park","Preston","Merri Creek - Middle",1270,0.30242634064029966,"Wetland",1270,8,3000,7,30,"HP Zwar Park",8.6595701888063736,6.79,0.78139999999999998,"Below ground",610,1407000,11300,null,341700,303000,1657000,0.38907664453832225,58,0.81469050894085282,16]
[1017,"McDonnell Park West","Northcote","Yarra River - Lower",450,0.27317204674359075,"Bioretention",450,5,13000,20.200000000000003,97,"McDonnell Park",6,4.88,0.81299999999999994,"Below ground",290,1033000,9000,null,1104830,218000,1247000,1.0608099438652767,9,0.80583859649122802,17]
[1018,"Northcote Golf Course","Thornbury","Merri Creek - Middle",10690,0.33268327599504743,"Wetland",10690,20,29000,48,230,"Mayer Park",7.0640000000000001,5.76,0.81769999999999998,"Below ground",250,2539000,21500,null,2619700,257000,3308000,0.86961910519951635,14,0.80211267605633807,18]
[1019,"58 Chifley Drive","Preston","Darebin Creek - Middle",290,0.39377048958102051,"Bioretention",290,1,8000,13,60,"-",0,0,0,"-",0,420000,5100,null,683400,0,552000,1.2380434782608696,3,0.77321148825065278,19]
[1020,"Penders Park","Thornbury","Merri Creek - Lower",810,0.26466669942203902,"Wetland",810,0.90000000000000213,2090,3.5700000000000003,16.599999999999994,"-",0,0,0,"-",0,356000,6200,null,189073.99999999994,0,500000,0.37814799999999987,61,0.76563510392609702,20]
[1021,"Preston City Oval","Preston","Merri Creek - Middle",150,0.37640265542303813,"Bioretention",150,5,4400,6.8999999999999986,37,"Preston City Oval",6.1103879668156615,4.93,0.8075,"Below ground",370,905000,6600,null,421430,220000,1045000,0.61380861244019136,32,0.75676801801801796,21]
[1022,"Ray Bramham Gardens","Preston","Merri Creek - Middle",950,0.32649930112195147,"Wetland",950,1,2000,4,20,"-",0,0,0,"-",0,369000,6300,null,227800,0,521000,0.43723608445297507,44,0.72170254403131118,22]
[1023,"3 Newman St","Preston","Merri Creek - Middle",370,0.327576731431168,"Bioretention",370,0,10000,16,70,"-",0,0,0,"-",0,499000,5900,null,797300,0,653000,1.220980091883614,4,0.70542635658914732,23]
[1024,"NARC Option East","Northcote","Yarra River - Lower",730,0.28382067396069316,"Wetland",730,6,2100,4,22,"McDonnell Park",6,4.7300000000000004,0.78760000000000008,"Below ground",600,1138000,9200,null,250580,211000,1330000,0.34705263157894739,64,0.68306636155606404,24]
[1025,"LW Williams Reserve","Preston","Merri Creek - Middle",510,0.27582104868145951,"Bioretention",510,1,11100,16.699999999999996,86,"-",0,0,0,"-",0,616000,7500,null,979540,0,810000,1.2093086419753087,5,0.65856872037914693,25]
[1026,"29 Cygna Street","Preston","Darebin Creek - Middle",770,0.2729347116494919,"Wetland",770,1,2000,3.5,16,"-",0,0,0,"-",0,314000,5800,null,182240,0,450000,0.40497777777777777,55,0.64756230529595016,26]
[1027,"Larkins Reserve","Preston","Merri Creek - Middle",1150,0.31120609627378643,"Wetland",1150,1.1999999999999957,3040,5.0999999999999979,24,"-",0,0,0,"-",0,454000,7200,null,273360,0,630000,0.4339047619047619,45,0.64238946845504219,27]
[1028,"Roberts Reserve","Thornbury","Merri Creek - Lower",60,0.26456789498883942,"Bioretention",60,0.10000000000000142,1590,2.5,12,"-",0,0,0,"-",0,211000,2900,null,136680,0,275000,0.4970181818181818,39,0.63900390625000003,28]
[1029,"Batman Park","Northcote","Merri Creek - Lower",260,0.25621614366020912,"Bioretention",260,0.5,4630,7.02,36.5,"-",0,0,0,"-",0,500000,5900,null,415735,0,642000,0.64756230529595016,26,0.6388186942226397,29]
[1030,"Johnson Park","Northcote","Merri Creek - Lower",1800,0.26540399720392344,"Wetland",1800,2,4200,7.29,33.599999999999994,"-",0,0,0,"-",0,656000,9600,null,382703.99999999994,0,899000,0.42569966629588424,48,0.62107468123861564,30]
[1031,"AH Capp Reserve","Preston","Merri Creek - Middle",140,0.31572736439644006,"Bioretention",140,3.6000000000000014,2670,4.29,23.4,"Capp & Robinson Res ",4,3.25,0.81230000000000002,"Below ground",280,847000,6700,null,266526,145000,988000,0.41652429149797571,52,0.61663043478260871,31]
[1032,"Egans Reserve","Thornbury","Merri Creek - Middle",570,0.16809215111835388,"Wetland",570,0.69999999999999929,1243,2.1500000000000004,10.3,"-",0,0,0,"-",0,275000,4800,null,117317.00000000001,0,385000,0.30471948051948056,67,0.61380861244019136,32]
[1033,"Bill Lawry Oval","Northcote","Merri Creek - Lower",540,0.26435333012242102,"Bioretention",540,6,11500,17.899999999999999,93,"Bill Lawry Oval, Yarra Bend Park",6.404821397147292,5.18,0.8076000000000001,"Below ground",320,1198000,10500,null,1059270,231000,1446000,0.89230290456431538,13,0.59872507122507124,33]
[1034,"NARC Option West","Northcote","Yarra River - Lower",510,0.28382067396069316,"Bioretention",510,6,13700,20.200000000000003,104,"McDonnell Park",6,4.8,0.79949999999999999,"Below ground",270,1201000,10200,null,1184560,214000,1441000,0.9705482303955586,10,0.58927464195450707,34]
[1035,"Merri Park","Northcote","Merri Creek - Lower",600,0.33167835918672445,"Bioretention",600,6,16200,24,130,"Merri Park",6,4.84,0.80559999999999998,"Below ground",270,1164000,10400,null,1480700,216000,1416000,1.1982344632768362,6,0.54260760551608855,35]
[1036,"McDonnell Park South (Wetland)","Northcote","Yarra River - Lower",1430,0.27317204674359075,"Wetland",1430,6,3800,6,34,"McDonnell Park",6,4.75,0.79069999999999996,"Below ground",310,961000,9900,null,387260,212000,1194000,0.50189279731993297,38,0.51801705565529621,36]
[1037,"26 Linaker Drive","Macleod","Darebin Creek - Upper",2950,0.31122632686253043,"Wetland",2950,4,7900,13.5,61,"-",0,0,0,"-",0,746000,10800,null,694790,0,1055000,0.65856872037914693,25,0.5036572029442693,37]
[1038,"Rubie Thomson Reserve","Fairfield","Yarra River - Lower",800,0.27898902544862614,"Wetland",800,6,2200,4,30,"McDonnell Park",7.207827506662035,5.42,0.75069999999999992,"Below ground",720,1256000,9700,null,341700,242000,1459000,0.40006854009595616,57,0.50189279731993297,38]
[1039,"HLT Oulton Park","Preston","Darebin Creek - Middle",510,0.25601798144380483,"Bioretention",510,5,11200,16.899999999999999,88,"HLT Oulton Park",4,3.28,0.81900000000000006,"Below ground",200,1183000,10300,null,1002320,146000,1425000,0.80583859649122802,17,0.4970181818181818,39]
[1040,"T H Westfield Reserve","Northcote","Merri Creek - Lower",6190,0.26435333012242102,"Wetland",6190,6,14090,24.2,114,"-",0,0,0,"-",0,1823000,19100,null,1298460,0,2393000,0.54260760551608855,35,0.47796378091872793,40]
[1041,"8 Grand Ave","Macleod","Darebin Creek - Upper",350,0.11355883316951429,"Wetland",350,3.169999999999999,839,1.6300000000000001,10.600000000000001,"Ernest Jones Drive Res & surrounds",4.1245859253197636,2.78,0.67519999999999991,"Below ground",490,985000,8000,null,120734.00000000001,124000,1139000,0.21486742756804214,68,0.45349074074074081,41]
[1042,"Darebin Parklands","Alphington","Darebin Creek - Lower",1920,0.25772068066377363,"Wetland",1920,4.8999999999999986,4380,7.12,36.700000000000003,"Darebin Parklands - North",3.4588459386534041,2.78,0.80449999999999999,"Below ground",160,1043000,11700,null,418013.00000000006,124000,1326000,0.40875791855203619,54,0.44185344827586209,42]
[1043,"Beenak Wetland Expansion","Reservoir","Darebin Creek - Upper",2040,0.25624484641619127,"Wetland",2040,6,5700,9.2999999999999972,46,"John Hall Res",4.3906855209873017,3.55,0.80730000000000002,"Below ground",180,843000,9700,null,523940,158000,1098000,0.62107468123861564,30,0.43762788550323178,43]
[1044,"John Cain Park East","Thornbury","Darebin Creek - Lower",810,0.36655890526935947,"Wetland",810,1,2200,3.7999999999999972,18,"-",0,0,0,"-",0,325000,5900,null,205020,0,464000,0.44185344827586209,42,0.43723608445297507,44]
[1045,"TW Blake Park","Preston","Darebin Creek - Middle",350,0.3032331456154902,"Bioretention",350,12.5,7010,11.46,67,"TW Blake Park",14.985780931456659,11.87,0.79139999999999999,"Below ground",1120,1770000,11300,null,763130,530000,2013000,0.64238946845504219,27,0.4339047619047619,45]
[1046,"W Ruthven Vc Reserve","Preston","Darebin Creek - Middle",310,0.19172701904334358,"Bioretention",310,4.3000000000000043,5800,9,47.099999999999994,"W Ruthvewn Res",4.5,3.66,0.8126000000000001,"Below ground",250,992000,8700,null,536468.99999999988,163000,1187000,0.58927464195450707,34,0.4281960167714885,46]
[1047,"CH Sullivan Memorial Park","Reservoir","Darebin Creek - Upper",935,0.24370657750871594,"Wetland",935,11.180000000000001,2509,5.01,34,"CH Sullivan Memorial Park",17.757007968281975,10.19,0.57310000000000005,"Below ground",2130,2286000,13300,null,387260,455000,2556000,0.32952269170579029,66,0.42813475177304955,47]
[1048,"26 Kerang Ave","Reservoir","Darebin Creek - Upper",1150,0.26160431213996488,"Wetland",1150,12.5,3600,6.6999999999999993,43,"KP Hardiman Res, C T Barling Res",15.628179944317058,11.31,0.72230000000000005,"Below ground",1880,2293000,13500,null,489770,505000,2575000,0.38631844660194176,60,0.42569966629588424,48]
[1049,"McDonnell Park South (Bioretention)","Northcote","Yarra River - Lower",600,0.27317204674359075,"Bioretention",600,6,15200,22.5,118,"McDonnell Park",6,4.8600000000000003,0.81019999999999992,"Below ground",280,1115000,10300,null,1344020,217000,1365000,1.1436043956043955,7,0.42343227665706046,49]
[1050,"7 Chenies St","Reservoir","Darebin Creek - Upper",3940,0.25275839745500056,"Wetland",3940,8,10200,16.600000000000001,83,"John Hall Res",4.3906855209873017,3.6,0.81900000000000006,"Below ground",180,1158000,12500,null,945370,161000,1533000,0.72170254403131118,22,0.4178809617658652,50]
[1051,"60 Ayr St","Reservoir","Darebin Creek - Upper",820,0.29832600636503265,"Wetland",820,6.3999999999999986,2540,4.4700000000000006,26.300000000000004,"Bundoora Park",7.0640000000000001,5.59,0.79299999999999993,"Below ground",640,1178000,9100,null,299557.00000000006,250000,1372000,0.40055174927113701,56,0.41763333333333325,51]
[1052,"102 Holt Parade","Bundoora","Darebin Creek - Upper",1260,0.37418638474539379,"Wetland",1260,7,3570,6.1000000000000005,33.5,"Bundoora Park",7.0640000000000001,5.68,0.80620000000000003,"Below ground",490,1298000,11200,null,381565,254000,1546000,0.41110284605433378,53,0.41652429149797571,52]
[1053,"1 Browning St","Kingsbury","Darebin Creek - Upper",1410,0.35965334170891816,"Wetland",1410,13.299999999999997,4440,8,49,"KP Hardiman Res, C T Barling Res",15.628179944317058,11.73,0.74909999999999999,"Below ground",1560,1979000,13000,null,558110,524000,2264000,0.47796378091872793,40,0.41110284605433378,53]
[1054,"3 Campbell St","Kingsbury","Darebin Creek - Upper",250,0.41725783578589198,"Bioretention",250,3.5,4790,7.4,38.9,"CW Kirkwood Res",4.3906855209873017,3,0.80510000000000004,"Below ground",240,938000,8000,null,443071,134000,1114000,0.51801705565529621,36,0.40875791855203619,54]
[1055,"CH Sullivan Memorial Park","Reservoir","Darebin Creek - Upper",1210,0.3,"Wetland",1210,14,3800,7,47,"CH Sullivan Memorial Park",17.757007968281975,12.5,0.70299999999999996,"Below ground",2130,2531000,14300,null,535330,558000,2829000,0.38647225167903854,59,0.40497777777777777,55]
[1056,"CT Barling Reserve","Reservoir","Darebin Creek - Upper",1500,0.28154970321947936,"Wetland",1500,13.2,4210,7.669999999999999,47.6,"C T Barling Res, KP Hardiman Res",15.628179944317058,11.61,0.74159999999999993,"Below ground",1560,2240000,13500,null,542164,518000,2537000,0.4178809617658652,50,0.40055174927113701,56]
[1057,"KP Hardiman Reserve North","Kingsbury","Darebin Creek - Upper",4500,0.26160431213996488,"Wetland",4500,17.5,11150,18.399999999999999,98,"KP Hardiman Res, C T Barling Res",15.628179944317058,12.66,0.80859999999999999,"Below ground",940,2334000,17100,null,1116220,565000,2808000,0.59872507122507124,33,0.40006854009595616,57]
[1058,"La Trobe Uni Hockey Club","Kingsbury","Darebin Creek - Upper",2780,0.26160431213996488,"Wetland",2780,15.599999999999994,7930,13.399999999999999,75,"KP Hardiman Res, C T Barling Res",15.628179944317058,12.64,0.80720000000000003,"Below ground",1090,1940000,14200,null,854250,564000,2300000,0.61663043478260871,31,0.38907664453832225,58]
[1059,"60 Winter Crescent","Reservoir","Darebin Creek - Upper",1020,0.25538960938589894,"Wetland",1020,4.1000000000000014,2790,4.5999999999999996,24.1,"CW Kirkwood Res",4.3906855209873017,3.01,0.80709999999999993,"Below ground",240,769000,8100,null,274499,134000,954000,0.4281960167714885,46,0.38647225167903854,59]
[1060,"68 Winter Crescent","Reservoir","Darebin Creek - Upper",190,0.25538960938589894,"Bioretention",190,3.4000000000000021,3650,5.6999999999999993,30.200000000000003,"CW Kirkwood Res",4.3906855209873017,3.02,0.81150000000000011,"Below ground",260,819000,5800,null,343978.00000000006,135000,951000,0.5036572029442693,37,0.38631844660194176,60]
[1061,"Breavington Park","Fairfield","Yarra River - Lower",650,0.41102593358367168,"Wetland",650,0.69999999999998863,1800,3.1000000000000014,14,"-",0,0,0,"-",0,341000,5700,null,159460,0,470000,0.33927659574468083,65,0.37814799999999987,61]
[1062,"209 Wingrove St","Fairfield","Yarra River - Lower",130,0.32653139329010894,"Bioretention",130,0,3600,5.3999999999999986,26,"-",0,0,0,"-",0,295000,3700,null,296140,0,383000,0.77321148825065278,19,0.3653781362007168,62]
[1063,"2 Broomfield Ave","Alphington","Yarra River - Lower",120,0.35178248068171875,"Bioretention",120,0,3300,5,25,"-",0,0,0,"-",0,271000,3500,null,284750,0,355000,0.80211267605633807,18,0.35789027431421455,63]
[1064,"22 McComas St","Reservoir","Darebin Creek - Middle",310,0.29271224937584045,"Bioretention",310,0.60000000000000853,6430,9.8000000000000007,50,"-",0,0,0,"-",0,472000,5700,null,569500,0,616000,0.92451298701298701,12,0.34705263157894739,64]
[1065,"Progress Park","Reservoir","Darebin Creek - Middle",80,0.23211697771387008,"Bioretention",80,9.9999999999997868E-2,1650,2.5,12.899999999999999,"-",0,0,0,"-",0,271000,3400,null,146930.99999999997,0,347000,0.42343227665706046,{"$f":"_xlfn.IFNA(VLOOKUP(Y70,AA$1:AB$1228,2,FALSE),\"\")","v":49},{"$f":"IF(Y70=\"\",\"\",LARGE(Y$1:Y$1228,AB70))","v":0.33927659574468083},65]
[1066,"Ruthven Linear Reserve","Reservoir","Merri Creek - Upper",320,0.27874786912768379,"Bioretention",320,1,8800,13,60,"-",0,0,0,"-",0,458000,5500,null,683400,0,600000,1.139,8,0.32952269170579029,{"$f":"IF(Y71=\"\",\"\",AB70+1)","v":66}]
[1067,"LE Cotchin Reserve","Reservoir","Merri Creek - Upper",200,0.33337534553955661,"Bioretention",200,3.0999999999999979,3780,5.8699999999999992,30.9,"L E Cotchin Res",3.5,2.74,0.78500000000000003,"Below ground",180,919000,7600,null,351951,122000,1083000,0.43762788550323178,43,0.30471948051948056,67]
[1068,"Mayer Park","Thornbury","Merri Creek - Middle",190,0.33268327599504743,"Bioretention",190,10,6000,9,50,"Mayer Park",9.0640000000000001,7.31,0.80810000000000004,"Below ground",590,1150000,7600,null,569500,326000,1311000,0.68306636155606404,24,0.21486742756804214,68]
[null,null,null,null,null,null,null,null,null,null,null,null,null,null,null,null,null,null,null,null,null,null,null,null,null,"","",""]
[null,null,null,null,null,null,null,null,null,null,null,null,null,null,null,null,null,null,null,null,null,null,null,null,null,"","",""]
[null,null,null,null,null,null,null,null,null,null,null,null,null,null,null,null,null,null,null,null,null,null,null,null,null,"","",""]
[null,null,null,null,null,null,null,null,null,null,null,null,null,null,null,null,null,null,null,null,null,null,null,null,null,"","",""]
[null,null,null,null,null,null,null,null,null,null,null,null,null,null,null,null,null,null,null,null,null,null,null,null,null,"","",""]
[null,null,null,null,null,null,null,null,null,null,null,null,null,null,null,null,null,null,null,null,null,null,null,null,null,"","",""]
[null,null,null,null,null,null,null,null,null,null,null,null,null,null,null,null,null,null,null,null,null,null,null,null,null,"","",""]
[null,null,null,null,null,null,null,null,null,null,null,null,null,null,null,null,null,null,null,null,null,null,null,null,null,"","",""]
[null,null,null,null,null,null,null,null,null,null,null,null,null,null,null,null,null,null,null,null,null,null,null,null,null,"","",""]
[null,null,null,null,null,null,null,null,null,null,null,null,null,null,null,null,null,null,null,null,null,null,null,null,null,"","",""]
[null,null,null,null,null,null,null,null,null,null,null,null,null,null,null,null,null,null,null,null,null,null,null,null,null,"","",""]
[null,null,null,null,null,null,null,null,null,null,null,null,null,null,null,null,null,null,null,null,null,null,null,null,null,"","",""]
[null,null,null,null,null,null,null,null,null,null,null,null,null,null,null,null,null,null,null,null,null,null,null,null,null,"","",""]
[null,null,null,null,null,null,null,null,null,null,null,null,null,null,null,null,null,null,null,null,null,null,null,null,null,"","",""]
[null,null,null,null,null,null,null,null,null,null,null,null,null,null,null,null,null,null,null,null,null,null,null,null,null,"","",""]
[null,null,null,null,null,null,null,null,null,null,null,null,null,null,null,null,null,null,null,null,null,null,null,null,null,"","",""]
[null,null,null,null,null,null,null,null,null,null,null,null,null,null,null,null,null,null,null,null,null,null,null,null,null,"","",""]
[null,null,null,null,null,null,null,null,null,null,null,null,null,null,null,null,null,null,null,null,null,null,null,null,null,"","",""]
[null,null,null,null,null,null,null,null,null,null,null,null,null,null,null,null,null,null,null,null,null,null,null,null,null,"","",""]
[null,null,null,null,null,null,null,null,null,null,null,null,null,null,null,null,null,null,null,null,null,null,null,null,null,"","",""]
[null,null,null,null,null,null,null,null,null,null,null,null,null,null,null,null,null,null,null,null,null,null,null,null,null,"","",""]
[null,null,null,null,null,null,null,null,null,null,null,null,null,null,null,null,null,null,null,null,null,null,null,null,null,"","",""]
[null,null,null,null,null,null,null,null,null,null,null,null,null,null,null,null,null,null,null,null,null,null,null,null,null,"","",""]
[null,null,null,null,null,null,null,null,null,null,null,null,null,null,null,null,null,null,null,null,null,null,null,null,null,"","",""]
[null,null,null,null,null,null,null,null,null,null,null,null,null,null,null,null,null,null,null,null,null,null,null,null,null,"","",""]
[null,null,null,null,null,null,null,null,null,null,null,null,null,null,null,null,null,null,null,null,null,null,null,null,null,"","",""]
[null,null,null,null,null,null,null,null,null,null,null,null,null,null,null,null,null,null,null,null,null,null,null,null,null,"","",""]
[null,null,null,null,null,null,null,null,null,null,null,null,null,null,null,null,null,null,null,null,null,null,null,null,null,"","",""]
[null,null,null,null,null,null,null,null,null,null,null,null,null,null,null,null,null,null,null,null,null,null,null,null,null,"","",""]
[null,null,null,null,null,null,null,null,null,null,null,null,null,null,null,null,null,null,null,null,null,null,null,null,null,"","",""]
[null,null,null,null,null,null,null,null,null,null,null,null,null,null,null,null,null,null,null,null,null,null,null,null,null,"","",""]
[null,null,null,null,null,null,null,null,null,null,null,null,null,null,null,null,null,null,null,null,null,null,null,null,null,"","",""]
[null,null,null,null,null,null,null,null,null,null,null,null,null,null,null,null,null,null,null,null,null,null,null,null,null,"","",""]
[null,null,null,null,null,null,null,null,null,null,null,null,null,null,null,null,null,null,null,null,null,null,null,null,null,"","",""]
[null,null,null,null,null,null,null,null,null,null,null,null,null,null,null,null,null,null,null,null,null,null,null,null,null,"","",""]
[null,null,null,null,null,null,null,null,null,null,null,null,null,null,null,null,null,null,null,null,null,null,null,null,null,"","",""]
[null,null,null,null,null,null,null,null,null,null,null,null,null,null,null,null,null,null,null,null,null,null,null,null,null,"","",""]
[null,null,null,null,null,null,null,null,null,null,null,null,null,null,null,null,null,null,null,null,null,null,null,null,null,"","",""]
[null,null,null,null,null,null,null,null,null,null,null,null,null,null,null,null,null,null,null,null,null,null,null,null,null,"","",""]
[null,null,null,null,null,null,null,null,null,null,null,null,null,null,null,null,null,null,null,null,null,null,null,null,null,"","",""]
[null,null,null,null,null,null,null,null,null,null,null,null,null,null,null,null,null,null,null,null,null,null,null,null,null,"","",""]
[null,null,null,null,null,null,null,null,null,null,null,null,null,null,null,null,null,null,null,null,null,null,null,null,null,"","",""]
[null,null,null,null,null,null,null,null,null,null,null,null,null,null,null,null,null,null,null,null,null,null,null,null,null,"","",""]
[null,null,null,null,null,null,null,null,null,null,null,null,null,null,null,null,null,null,null,null,null,null,null,null,null,"","",""]
[null,null,null,null,null,null,null,null,null,null,null,null,null,null,null,null,null,null,null,null,null,null,null,null,null,"","",""]
[null,null,null,null,null,null,null,null,null,null,null,null,null,null,null,null,null,null,null,null,null,null,null,null,null,"","",""]
[null,null,null,null,null,null,null,null,null,null,null,null,null,null,null,null,null,null,null,null,null,null,null,null,null,"","",""]
[null,null,null,null,null,null,null,null,null,null,null,null,null,null,null,null,null,null,null,null,null,null,null,null,null,"","",""]
[null,null,null,null,null,null,null,null,null,null,null,null,null,null,null,null,null,null,null,null,null,null,null,null,null,"","",""]
[null,null,null,null,null,null,null,null,null,null,null,null,null,null,null,null,null,null,null,null,null,null,null,null,null,"","",""]
[null,null,null,null,null,null,null,null,null,null,null,null,null,null,null,null,null,null,null,null,null,null,null,null,null,"","",""]
[null,null,null,null,null,null,null,null,null,null,null,null,null,null,null,null,null,null,null,null,null,null,null,null,null,"","",""]
[null,null,null,null,null,null,null,null,null,null,null,null,null,null,null,null,null,null,null,null,null,null,null,null,null,"","",""]
[null,null,null,null,null,null,null,null,null,null,null,null,null,null,null,null,null,null,null,null,null,null,null,null,null,"","",""]
[null,null,null,null,null,null,null,null,null,null,null,null,null,null,null,null,null,null,null,null,null,null,null,null,null,"","",""]
[null,null,null,null,null,null,null,null,null,null,null,null,null,null,null,null,null,null,null,null,null,null,null,null,null,"","",""]
[null,null,null,null,null,null,null,null,null,null,null,null,null,null,null,null,null,null,null,null,null,null,null,null,null,"","",""]
[null,null,null,null,null,null,null,null,null,null,null,null,null,null,null,null,null,null,null,null,null,null,null,null,null,"","",""]
[null,null,null,null,null,null,null,null,null,null,null,null,null,null,null,null,null,null,null,null,null,null,null,null,null,"","",""]
[null,null,null,null,null,null,null,null,null,null,null,null,null,null,null,null,null,null,null,null,null,null,null,null,null,"","",""]
[null,null,null,null,null,null,null,null,null,null,null,null,null,null,null,null,null,null,null,null,null,null,null,null,null,{"$f":"_xlfn.IFNA(VLOOKUP(Y134,AA$1:AB$1228,2,FALSE),\"\")","v":""},{"$f":"IF(Y134=\"\",\"\",LARGE(Y$1:Y$1228,AB134))","v":""},""]
[null,null,null,null,null,null,null,null,null,null,null,null,null,null,null,null,null,null,null,null,null,null,null,null,null,"","",{"$f":"IF(Y135=\"\",\"\",AB134+1)","v":""}]
[null,null,null,null,null,null,null,null,null,null,null,null,null,null,null,null,null,null,null,null,null,null,null,null,null,"","",""]
[null,null,null,null,null,null,null,null,null,null,null,null,null,null,null,null,null,null,null,null,null,null,null,null,null,"","",""]
[null,null,null,null,null,null,null,null,null,null,null,null,null,null,null,null,null,null,null,null,null,null,null,null,null,"","",""]
[null,null,null,null,null,null,null,null,null,null,null,null,null,null,null,null,null,null,null,null,null,null,null,null,null,"","",""]
[null,null,null,null,null,null,null,null,null,null,null,null,null,null,null,null,null,null,null,null,null,null,null,null,null,"","",""]
[null,null,null,null,null,null,null,null,null,null,null,null,null,null,null,null,null,null,null,null,null,null,null,null,null,"","",""]
[null,null,null,null,null,null,null,null,null,null,null,null,null,null,null,null,null,null,null,null,null,null,null,null,null,"","",""]
[null,null,null,null,null,null,null,null,null,null,null,null,null,null,null,null,null,null,null,null,null,null,null,null,null,"","",""]
[null,null,null,null,null,null,null,null,null,null,null,null,null,null,null,null,null,null,null,null,null,null,null,null,null,"","",""]
[null,null,null,null,null,null,null,null,null,null,null,null,null,null,null,null,null,null,null,null,null,null,null,null,null,"","",""]
[null,null,null,null,null,null,null,null,null,null,null,null,null,null,null,null,null,null,null,null,null,null,null,null,null,"","",""]
[null,null,null,null,null,null,null,null,null,null,null,null,null,null,null,null,null,null,null,null,null,null,null,null,null,"","",""]
[null,null,null,null,null,null,null,null,null,null,null,null,null,null,null,null,null,null,null,null,null,null,null,null,null,"","",""]
[null,null,null,null,null,null,null,null,null,null,null,null,null,null,null,null,null,null,null,null,null,null,null,null,null,"","",""]
[null,null,null,null,null,null,null,null,null,null,null,null,null,null,null,null,null,null,null,null,null,null,null,null,null,"","",""]
[null,null,null,null,null,null,null,null,null,null,null,null,null,null,null,null,null,null,null,null,null,null,null,null,null,"","",""]
[null,null,null,null,null,null,null,null,null,null,null,null,null,null,null,null,null,null,null,null,null,null,null,null,null,"","",""]
[null,null,null,null,null,null,null,null,null,null,null,null,null,null,null,null,null,null,null,null,null,null,null,null,null,"","",""]
[null,null,null,null,null,null,null,null,null,null,null,null,null,null,null,null,null,null,null,null,null,null,null,null,null,"","",""]
[null,null,null,null,null,null,null,null,null,null,null,null,null,null,null,null,null,null,null,null,null,null,null,null,null,"","",""]
[null,null,null,null,null,null,null,null,null,null,null,null,null,null,null,null,null,null,null,null,null,null,null,null,null,"","",""]
[null,null,null,null,null,null,null,null,null,null,null,null,null,null,null,null,null,null,null,null,null,null,null,null,null,"","",""]
[null,null,null,null,null,null,null,null,null,null,null,null,null,null,null,null,null,null,null,null,null,null,null,null,null,"","",""]
[null,null,null,null,null,null,null,null,null,null,null,null,null,null,null,null,null,null,null,null,null,null,null,null,null,"","",""]
[null,null,null,null,null,null,null,null,null,null,null,null,null,null,null,null,null,null,null,null,null,null,null,null,null,"","",""]
[null,null,null,null,null,null,null,null,null,null,null,null,null,null,null,null,null,null,null,null,null,null,null,null,null,"","",""]
[null,null,null,null,null,null,null,null,null,null,null,null,null,null,null,null,null,null,null,null,null,null,null,null,null,"","",""]
[null,null,null,null,null,null,null,null,null,null,null,null,null,null,null,null,null,null,null,null,null,null,null,null,null,"","",""]
[null,null,null,null,null,null,null,null,null,null,null,null,null,null,null,null,null,null,null,null,null,null,null,null,null,"","",""]
[null,null,null,null,null,null,null,null,null,null,null,null,null,null,null,null,null,null,null,null,null,null,null,null,null,"","",""]
[null,null,null,null,null,null,null,null,null,null,null,null,null,null,null,null,null,null,null,null,null,null,null,null,null,"","",""]
[null,null,null,null,null,null,null,null,null,null,null,null,null,null,null,null,null,null,null,null,null,null,null,null,null,"","",""]
[null,null,null,null,null,null,null,null,null,null,null,null,null,null,null,null,null,null,null,null,null,null,null,null,null,"","",""]
[null,null,null,null,null,null,null,null,null,null,null,null,null,null,null,null,null,null,null,null,null,null,null,null,null,"","",""]
[null,null,null,null,null,null,null,null,null,null,null,null,null,null,null,null,null,null,null,null,null,null,null,null,null,"","",""]
[null,null,null,null,null,null,null,null,null,null,null,null,null,null,null,null,null,null,null,null,null,null,null,null,null,"","",""]
[null,null,null,null,null,null,null,null,null,null,null,null,null,null,null,null,null,null,null,null,null,null,null,null,null,"","",""]
[null,null,null,null,null,null,null,null,null,null,null,null,null,null,null,null,null,null,null,null,null,null,null,null,null,"","",""]
[null,null,null,null,null,null,null,null,null,null,null,null,null,null,null,null,null,null,null,null,null,null,null,null,null,"","",""]
[null,null,null,null,null,null,null,null,null,null,null,null,null,null,null,null,null,null,null,null,null,null,null,null,null,"","",""]
[null,null,null,null,null,null,null,null,null,null,null,null,null,null,null,null,null,null,null,null,null,null,null,null,null,"","",""]
[null,null,null,null,null,null,null,null,null,null,null,null,null,null,null,null,null,null,null,null,null,null,null,null,null,"","",""]
[null,null,null,null,null,null,null,null,null,null,null,null,null,null,null,null,null,null,null,null,null,null,null,null,null,"","",""]
[null,null,null,null,null,null,null,null,null,null,null,null,null,null,null,null,null,null,null,null,null,null,null,null,null,"","",""]
[null,null,null,null,null,null,null,null,null,null,null,null,null,null,null,null,null,null,null,null,null,null,null,null,null,"","",""]
[null,null,null,null,null,null,null,null,null,null,null,null,null,null,null,null,null,null,null,null,null,null,null,null,null,"","",""]
[null,null,null,null,null,null,null,null,null,null,null,null,null,null,null,null,null,null,null,null,null,null,null,null,null,"","",""]
[null,null,null,null,null,null,null,null,null,null,null,null,null,null,null,null,null,null,null,null,null,null,null,null,null,"","",""]
[null,null,null,null,null,null,null,null,null,null,null,null,null,null,null,null,null,null,null,null,null,null,null,null,null,"","",""]
[null,null,null,null,null,null,null,null,null,null,null,null,null,null,null,null,null,null,null,null,null,null,null,null,null,"","",""]
[null,null,null,null,null,null,null,null,null,null,null,null,null,null,null,null,null,null,null,null,null,null,null,null,null,"","",""]
[null,null,null,null,null,null,null,null,null,null,null,null,null,null,null,null,null,null,null,null,null,null,null,null,null,"","",""]
[null,null,null,null,null,null,null,null,null,null,null,null,null,null,null,null,null,null,null,null,null,null,null,null,null,"","",""]
[null,null,null,null,null,null,null,null,null,null,null,null,null,null,null,null,null,null,null,null,null,null,null,null,null,"","",""]
[null,null,null,null,null,null,null,null,null,null,null,null,null,null,null,null,null,null,null,null,null,null,null,null,null,"","",""]
[null,null,null,null,null,null,null,null,null,null,null,null,null,null,null,null,null,null,null,null,null,null,null,null,null,"","",""]
[null,null,null,null,null,null,null,null,null,null,null,null,null,null,null,null,null,null,null,null,null,null,null,null,null,"","",""]
[null,null,null,null,null,null,null,null,null,null,null,null,null,null,null,null,null,null,null,null,null,null,null,null,null,"","",""]
[null,null,null,null,null,null,null,null,null,null,null,null,null,null,null,null,null,null,null,null,null,null,null,null,null,"","",""]
[null,null,null,null,null,null,null,null,null,null,null,null,null,null,null,null,null,null,null,null,null,null,null,null,null,"","",""]
[null,null,null,null,null,null,null,null,null,null,null,null,null,null,null,null,null,null,null,null,null,null,null,null,null,"","",""]
[null,null,null,null,null,null,null,null,null,null,null,null,null,null,null,null,null,null,null,null,null,null,null,null,null,"","",""]
[null,null,null,null,null,null,null,null,null,null,null,null,null,null,null,null,null,null,null,null,null,null,null,null,null,{"$f":"_xlfn.IFNA(VLOOKUP(Y198,AA$1:AB$1228,2,FALSE),\"\")","v":""},{"$f":"IF(Y198=\"\",\"\",LARGE(Y$1:Y$1228,AB198))","v":""},""]
[null,null,null,null,null,null,null,null,null,null,null,null,null,null,null,null,null,null,null,null,null,null,null,null,null,"","",{"$f":"IF(Y199=\"\",\"\",AB198+1)","v":""}]
[null,null,null,null,null,null,null,null,null,null,null,null,null,null,null,null,null,null,null,null,null,null,null,null,null,"","",""]
[null,null,null,null,null,null,null,null,null,null,null,null,null,null,null,null,null,null,null,null,null,null,null,null,null,"","",""]
[null,null,null,null,null,null,null,null,null,null,null,null,null,null,null,null,null,null,null,null,null,null,null,null,null,"","",""]
[null,null,null,null,null,null,null,null,null,null,null,null,null,null,null,null,null,null,null,null,null,null,null,null,null,"","",""]
[null,null,null,null,null,null,null,null,null,null,null,null,null,null,null,null,null,null,null,null,null,null,null,null,null,"","",""]
[null,null,null,null,null,null,null,null,null,null,null,null,null,null,null,null,null,null,null,null,null,null,null,null,null,"","",""]
[null,null,null,null,null,null,null,null,null,null,null,null,null,null,null,null,null,null,null,null,null,null,null,null,null,"","",""]
[null,null,null,null,null,null,null,null,null,null,null,null,null,null,null,null,null,null,null,null,null,null,null,null,null,"","",""]
[null,null,null,null,null,null,null,null,null,null,null,null,null,null,null,null,null,null,null,null,null,null,null,null,null,"","",""]
[null,null,null,null,null,null,null,null,null,null,null,null,null,null,null,null,null,null,null,null,null,null,null,null,null,"","",""]
[null,null,null,null,null,null,null,null,null,null,null,null,null,null,null,null,null,null,null,null,null,null,null,null,null,"","",""]
[null,null,null,null,null,null,null,null,null,null,null,null,null,null,null,null,null,null,null,null,null,null,null,null,null,"","",""]
[null,null,null,null,null,null,null,null,null,null,null,null,null,null,null,null,null,null,null,null,null,null,null,null,null,"","",""]
[null,null,null,null,null,null,null,null,null,null,null,null,null,null,null,null,null,null,null,null,null,null,null,null,null,"","",""]
[null,null,null,null,null,null,null,null,null,null,null,null,null,null,null,null,null,null,null,null,null,null,null,null,null,"","",""]
[null,null,null,null,null,null,null,null,null,null,null,null,null,null,null,null,null,null,null,null,null,null,null,null,null,"","",""]
[null,null,null,null,null,null,null,null,null,null,null,null,null,null,null,null,null,null,null,null,null,null,null,null,null,"","",""]
[null,null,null,null,null,null,null,null,null,null,null,null,null,null,null,null,null,null,null,null,null,null,null,null,null,"","",""]
[null,null,null,null,null,null,null,null,null,null,null,null,null,null,null,null,null,null,null,null,null,null,null,null,null,"","",""]
[null,null,null,null,null,null,null,null,null,null,null,null,null,null,null,null,null,null,null,null,null,null,null,null,null,"","",""]
[null,null,null,null,null,null,null,null,null,null,null,null,null,null,null,null,null,null,null,null,null,null,null,null,null,"","",""]
[null,null,null,null,null,null,null,null,null,null,null,null,null,null,null,null,null,null,null,null,null,null,null,null,null,"","",""]
[null,null,null,null,null,null,null,null,null,null,null,null,null,null,null,null,null,null,null,null,null,null,null,null,null,"","",""]
[null,null,null,null,null,null,null,null,null,null,null,null,null,null,null,null,null,null,null,null,null,null,null,null,null,"","",""]
[null,null,null,null,null,null,null,null,null,null,null,null,null,null,null,null,null,null,null,null,null,null,null,null,null,"","",""]
[null,null,null,null,null,null,null,null,null,null,null,null,null,null,null,null,null,null,null,null,null,null,null,null,null,"","",""]
[null,null,null,null,null,null,null,null,null,null,null,null,null,null,null,null,null,null,null,null,null,null,null,null,null,"","",""]
[null,null,null,null,null,null,null,null,null,null,null,null,null,null,null,null,null,null,null,null,null,null,null,null,null,"","",""]
[null,null,null,null,null,null,null,null,null,null,null,null,null,null,null,null,null,null,null,null,null,null,null,null,null,"","",""]
[null,null,null,null,null,null,null,null,null,null,null,null,null,null,null,null,null,null,null,null,null,null,null,null,null,"","",""]
[null,null,null,null,null,null,null,null,null,null,null,null,null,null,null,null,null,null,null,null,null,null,null,null,null,"","",""]
[null,null,null,null,null,null,null,null,null,null,null,null,null,null,null,null,null,null,null,null,null,null,null,null,null,"","",""]
[null,null,null,null,null,null,null,null,null,null,null,null,null,null,null,null,null,null,null,null,null,null,null,null,null,"","",""]
[null,null,null,null,null,null,null,null,null,null,null,null,null,null,null,null,null,null,null,null,null,null,null,null,null,"","",""]
[null,null,null,null,null,null,null,null,null,null,null,null,null,null,null,null,null,null,null,null,null,null,null,null,null,"","",""]
[null,null,null,null,null,null,null,null,null,null,null,null,null,null,null,null,null,null,null,null,null,null,null,null,null,"","",""]
[null,null,null,null,null,null,null,null,null,null,null,null,null,null,null,null,null,null,null,null,null,null,null,null,null,"","",""]
[null,null,null,null,null,null,null,null,null,null,null,null,null,null,null,null,null,null,null,null,null,null,null,null,null,"","",""]
[null,null,null,null,null,null,null,null,null,null,null,null,null,null,null,null,null,null,null,null,null,null,null,null,null,"","",""]
[null,null,null,null,null,null,null,null,null,null,null,null,null,null,null,null,null,null,null,null,null,null,null,null,null,"","",""]
[null,null,null,null,null,null,null,null,null,null,null,null,null,null,null,null,null,null,null,null,null,null,null,null,null,"","",""]
[null,null,null,null,null,null,null,null,null,null,null,null,null,null,null,null,null,null,null,null,null,null,null,null,null,"","",""]
[null,null,null,null,null,null,null,null,null,null,null,null,null,null,null,null,null,null,null,null,null,null,null,null,null,"","",""]
[null,null,null,null,null,null,null,null,null,null,null,null,null,null,null,null,null,null,null,null,null,null,null,null,null,"","",""]
[null,null,null,null,null,null,null,null,null,null,null,null,null,null,null,null,null,null,null,null,null,null,null,null,null,"","",""]
[null,null,null,null,null,null,null,null,null,null,null,null,null,null,null,null,null,null,null,null,null,null,null,null,null,"","",""]
[null,null,null,null,null,null,null,null,null,null,null,null,null,null,null,null,null,null,null,null,null,null,null,null,null,"","",""]
[null,null,null,null,null,null,null,null,null,null,null,null,null,null,null,null,null,null,null,null,null,null,null,null,null,"","",""]
[null,null,null,null,null,null,null,null,null,null,null,null,null,null,null,null,null,null,null,null,null,null,null,null,null,"","",""]
[null,null,null,null,null,null,null,null,null,null,null,null,null,null,null,null,null,null,null,null,null,null,null,null,null,"","",""]
[null,null,null,null,null,null,null,null,null,null,null,null,null,null,null,null,null,null,null,null,null,null,null,null,null,"","",""]
[null,null,null,null,null,null,null,null,null,null,null,null,null,null,null,null,null,null,null,null,null,null,null,null,null,"","",""]
[null,null,null,null,null,null,null,null,null,null,null,null,null,null,null,null,null,null,null,null,null,null,null,null,null,"","",""]
[null,null,null,null,null,null,null,null,null,null,null,null,null,null,null,null,null,null,null,null,null,null,null,null,null,"","",""]
[null,null,null,null,null,null,null,null,null,null,null,null,null,null,null,null,null,null,null,null,null,null,null,null,null,"","",""]
[null,null,null,null,null,null,null,null,null,null,null,null,null,null,null,null,null,null,null,null,null,null,null,null,null,"","",""]
[null,null,null,null,null,null,null,null,null,null,null,null,null,null,null,null,null,null,null,null,null,null,null,null,null,"","",""]
[null,null,null,null,null,null,null,null,null,null,null,null,null,null,null,null,null,null,null,null,null,null,null,null,null,"","",""]
[null,null,null,null,null,null,null,null,null,null,null,null,null,null,null,null,null,null,null,null,null,null,null,null,null,"","",""]
[null,null,null,null,null,null,null,null,null,null,null,null,null,null,null,null,null,null,null,null,null,null,null,null,null,"","",""]
[null,null,null,null,null,null,null,null,null,null,null,null,null,null,null,null,null,null,null,null,null,null,null,null,null,"","",""]
[null,null,null,null,null,null,null,null,null,null,null,null,null,null,null,null,null,null,null,null,null,null,null,null,null,"","",""]
[null,null,null,null,null,null,null,null,null,null,null,null,null,null,null,null,null,null,null,null,null,null,null,null,null,{"$f":"_xlfn.IFNA(VLOOKUP(Y262,AA$1:AB$1228,2,FALSE),\"\")","v":""},{"$f":"IF(Y262=\"\",\"\",LARGE(Y$1:Y$1228,AB262))","v":""},""]
[null,null,null,null,null,null,null,null,null,null,null,null,null,null,null,null,null,null,null,null,null,null,null,null,null,"","",{"$f":"IF(Y263=\"\",\"\",AB262+1)","v":""}]
[null,null,null,null,null,null,null,null,null,null,null,null,null,null,null,null,null,null,null,null,null,null,null,null,null,"","",""]
[null,null,null,null,null,null,null,null,null,null,null,null,null,null,null,null,null,null,null,null,null,null,null,null,null,"","",""]
[null,null,null,null,null,null,null,null,null,null,null,null,null,null,null,null,null,null,null,null,null,null,null,null,null,"","",""]
[null,null,null,null,null,null,null,null,null,null,null,null,null,null,null,null,null,null,null,null,null,null,null,null,null,"","",""]
[null,null,null,null,null,null,null,null,null,null,null,null,null,null,null,null,null,null,null,null,null,null,null,null,null,"","",""]
[null,null,null,null,null,null,null,null,null,null,null,null,null,null,null,null,null,null,null,null,null,null,null,null,null,"","",""]
[null,null,null,null,null,null,null,null,null,null,null,null,null,null,null,null,null,null,null,null,null,null,null,null,null,"","",""]
[null,null,null,null,null,null,null,null,null,null,null,null,null,null,null,null,null,null,null,null,null,null,null,null,null,"","",""]
[null,null,null,null,null,null,null,null,null,null,null,null,null,null,null,null,null,null,null,null,null,null,null,null,null,"","",""]
[null,null,null,null,null,null,null,null,null,null,null,null,null,null,null,null,null,null,null,null,null,null,null,null,null,"","",""]
[null,null,null,null,null,null,null,null,null,null,null,null,null,null,null,null,null,null,null,null,null,null,null,null,null,"","",""]
[null,null,null,null,null,null,null,null,null,null,null,null,null,null,null,null,null,null,null,null,null,null,null,null,null,"","",""]
[null,null,null,null,null,null,null,null,null,null,null,null,null,null,null,null,null,null,null,null,null,null,null,null,null,"","",""]
[null,null,null,null,null,null,null,null,null,null,null,null,null,null,null,null,null,null,null,null,null,null,null,null,null,"","",""]
[null,null,null,null,null,null,null,null,null,null,null,null,null,null,null,null,null,null,null,null,null,null,null,null,null,"","",""]
[null,null,null,null,null,null,null,null,null,null,null,null,null,null,null,null,null,null,null,null,null,null,null,null,null,"","",""]
[null,null,null,null,null,null,null,null,null,null,null,null,null,null,null,null,null,null,null,null,null,null,null,null,null,"","",""]
[null,null,null,null,null,null,null,null,null,null,null,null,null,null,null,null,null,null,null,null,null,null,null,null,null,"","",""]
[null,null,null,null,null,null,null,null,null,null,null,null,null,null,null,null,null,null,null,null,null,null,null,null,null,"","",""]
[null,null,null,null,null,null,null,null,null,null,null,null,null,null,null,null,null,null,null,null,null,null,null,null,null,"","",""]
[null,null,null,null,null,null,null,null,null,null,null,null,null,null,null,null,null,null,null,null,null,null,null,null,null,"","",""]
[null,null,null,null,null,null,null,null,null,null,null,null,null,null,null,null,null,null,null,null,null,null,null,null,null,"","",""]
[null,null,null,null,null,null,null,null,null,null,null,null,null,null,null,null,null,null,null,null,null,null,null,null,null,"","",""]
[null,null,null,null,null,null,null,null,null,null,null,null,null,null,null,null,null,null,null,null,null,null,null,null,null,"","",""]
[null,null,null,null,null,null,null,null,null,null,null,null,null,null,null,null,null,null,null,null,null,null,null,null,null,"","",""]
[null,null,null,null,null,null,null,null,null,null,null,null,null,null,null,null,null,null,null,null,null,null,null,null,null,"","",""]
[null,null,null,null,null,null,null,null,null,null,null,null,null,null,null,null,null,null,null,null,null,null,null,null,null,"","",""]
[null,null,null,null,null,null,null,null,null,null,null,null,null,null,null,null,null,null,null,null,null,null,null,null,null,"","",""]
[null,null,null,null,null,null,null,null,null,null,null,null,null,null,null,null,null,null,null,null,null,null,null,null,null,"","",""]
[null,null,null,null,null,null,null,null,null,null,null,null,null,null,null,null,null,null,null,null,null,null,null,null,null,"","",""]
[null,null,null,null,null,null,null,null,null,null,null,null,null,null,null,null,null,null,null,null,null,null,null,null,null,"","",""]
[null,null,null,null,null,null,null,null,null,null,null,null,null,null,null,null,null,null,null,null,null,null,null,null,null,"","",""]
[null,null,null,null,null,null,null,null,null,null,null,null,null,null,null,null,null,null,null,null,null,null,null,null,null,"","",""]
[null,null,null,null,null,null,null,null,null,null,null,null,null,null,null,null,null,null,null,null,null,null,null,null,null,"","",""]
[null,null,null,null,null,null,null,null,null,null,null,null,null,null,null,null,null,null,null,null,null,null,null,null,null,"","",""]
[null,null,null,null,null,null,null,null,null,null,null,null,null,null,null,null,null,null,null,null,null,null,null,null,null,"","",""]
[null,null,null,null,null,null,null,null,null,null,null,null,null,null,null,null,null,null,null,null,null,null,null,null,null,"","",""]
[null,null,null,null,null,null,null,null,null,null,null,null,null,null,null,null,null,null,null,null,null,null,null,null,null,"","",""]
[null,null,null,null,null,null,null,null,null,null,null,null,null,null,null,null,null,null,null,null,null,null,null,null,null,"","",""]
[null,null,null,null,null,null,null,null,null,null,null,null,null,null,null,null,null,null,null,null,null,null,null,null,null,"","",""]
[null,null,null,null,null,null,null,null,null,null,null,null,null,null,null,null,null,null,null,null,null,null,null,null,null,"","",""]
[null,null,null,null,null,null,null,null,null,null,null,null,null,null,null,null,null,null,null,null,null,null,null,null,null,"","",""]
[null,null,null,null,null,null,null,null,null,null,null,null,null,null,null,null,null,null,null,null,null,null,null,null,null,"","",""]
[null,null,null,null,null,null,null,null,null,null,null,null,null,null,null,null,null,null,null,null,null,null,null,null,null,"","",""]
[null,null,null,null,null,null,null,null,null,null,null,null,null,null,null,null,null,null,null,null,null,null,null,null,null,"","",""]
[null,null,null,null,null,null,null,null,null,null,null,null,null,null,null,null,null,null,null,null,null,null,null,null,null,"","",""]
[null,null,null,null,null,null,null,null,null,null,null,null,null,null,null,null,null,null,null,null,null,null,null,null,null,"","",""]
[null,null,null,null,null,null,null,null,null,null,null,null,null,null,null,null,null,null,null,null,null,null,null,null,null,"","",""]
[null,null,null,null,null,null,null,null,null,null,null,null,null,null,null,null,null,null,null,null,null,null,null,null,null,"","",""]
[null,null,null,null,null,null,null,null,null,null,null,null,null,null,null,null,null,null,null,null,null,null,null,null,null,"","",""]
[null,null,null,null,null,null,null,null,null,null,null,null,null,null,null,null,null,null,null,null,null,null,null,null,null,"","",""]
[null,null,null,null,null,null,null,null,null,null,null,null,null,null,null,null,null,null,null,null,null,null,null,null,null,"","",""]
[null,null,null,null,null,null,null,null,null,null,null,null,null,null,null,null,null,null,null,null,null,null,null,null,null,"","",""]
[null,null,null,null,null,null,null,null,null,null,null,null,null,null,null,null,null,null,null,null,null,null,null,null,null,"","",""]
[null,null,null,null,null,null,null,null,null,null,null,null,null,null,null,null,null,null,null,null,null,null,null,null,null,"","",""]
[null,null,null,null,null,null,null,null,null,null,null,null,null,null,null,null,null,null,null,null,null,null,null,null,null,"","",""]
[null,null,null,null,null,null,null,null,null,null,null,null,null,null,null,null,null,null,null,null,null,null,null,null,null,"","",""]
[null,null,null,null,null,null,null,null,null,null,null,null,null,null,null,null,null,null,null,null,null,null,null,null,null,"","",""]
[null,null,null,null,null,null,null,null,null,null,null,null,null,null,null,null,null,null,null,null,null,null,null,null,null,"","",""]
[null,null,null,null,null,null,null,null,null,null,null,null,null,null,null,null,null,null,null,null,null,null,null,null,null,"","",""]
[null,null,null,null,null,null,null,null,null,null,null,null,null,null,null,null,null,null,null,null,null,null,null,null,null,"","",""]
[null,null,null,null,null,null,null,null,null,null,null,null,null,null,null,null,null,null,null,null,null,null,null,null,null,"","",""]
[null,null,null,null,null,null,null,null,null,null,null,null,null,null,null,null,null,null,null,null,null,null,null,null,null,{"$f":"_xlfn.IFNA(VLOOKUP(Y326,AA$1:AB$1228,2,FALSE),\"\")","v":""},{"$f":"IF(Y326=\"\",\"\",LARGE(Y$1:Y$1228,AB326))","v":""},""]
[null,null,null,null,null,null,null,null,null,null,null,null,null,null,null,null,null,null,null,null,null,null,null,null,null,"","",{"$f":"IF(Y327=\"\",\"\",AB326+1)","v":""}]
[null,null,null,null,null,null,null,null,null,null,null,null,null,null,null,null,null,null,null,null,null,null,null,null,null,"","",""]
[null,null,null,null,null,null,null,null,null,null,null,null,null,null,null,null,null,null,null,null,null,null,null,null,null,"","",""]
[null,null,null,null,null,null,null,null,null,null,null,null,null,null,null,null,null,null,null,null,null,null,null,null,null,"","",""]
[null,null,null,null,null,null,null,null,null,null,null,null,null,null,null,null,null,null,null,null,null,null,null,null,null,"","",""]
[null,null,null,null,null,null,null,null,null,null,null,null,null,null,null,null,null,null,null,null,null,null,null,null,null,"","",""]
[null,null,null,null,null,null,null,null,null,null,null,null,null,null,null,null,null,null,null,null,null,null,null,null,null,"","",""]
[null,null,null,null,null,null,null,null,null,null,null,null,null,null,null,null,null,null,null,null,null,null,null,null,null,"","",""]
[null,null,null,null,null,null,null,null,null,null,null,null,null,null,null,null,null,null,null,null,null,null,null,null,null,"","",""]
[null,null,null,null,null,null,null,null,null,null,null,null,null,null,null,null,null,null,null,null,null,null,null,null,null,"","",""]
[null,null,null,null,null,null,null,null,null,null,null,null,null,null,null,null,null,null,null,null,null,null,null,null,null,"","",""]
[null,null,null,null,null,null,null,null,null,null,null,null,null,null,null,null,null,null,null,null,null,null,null,null,null,"","",""]
[null,null,null,null,null,null,null,null,null,null,null,null,null,null,null,null,null,null,null,null,null,null,null,null,null,"","",""]
[null,null,null,null,null,null,null,null,null,null,null,null,null,null,null,null,null,null,null,null,null,null,null,null,null,"","",""]
[null,null,null,null,null,null,null,null,null,null,null,null,null,null,null,null,null,null,null,null,null,null,null,null,null,"","",""]
[null,null,null,null,null,null,null,null,null,null,null,null,null,null,null,null,null,null,null,null,null,null,null,null,null,"","",""]
[null,null,null,null,null,null,null,null,null,null,null,null,null,null,null,null,null,null,null,null,null,null,null,null,null,"","",""]
[null,null,null,null,null,null,null,null,null,null,null,null,null,null,null,null,null,null,null,null,null,null,null,null,null,"","",""]
[null,null,null,null,null,null,null,null,null,null,null,null,null,null,null,null,null,null,null,null,null,null,null,null,null,"","",""]
[null,null,null,null,null,null,null,null,null,null,null,null,null,null,null,null,null,null,null,null,null,null,null,null,null,"","",""]
[null,null,null,null,null,null,null,null,null,null,null,null,null,null,null,null,null,null,null,null,null,null,null,null,null,"","",""]
[null,null,null,null,null,null,null,null,null,null,null,null,null,null,null,null,null,null,null,null,null,null,null,null,null,"","",""]
[null,null,null,null,null,null,null,null,null,null,null,null,null,null,null,null,null,null,null,null,null,null,null,null,null,"","",""]
[null,null,null,null,null,null,null,null,null,null,null,null,null,null,null,null,null,null,null,null,null,null,null,null,null,"","",""]
[null,null,null,null,null,null,null,null,null,null,null,null,null,null,null,null,null,null,null,null,null,null,null,null,null,"","",""]
[null,null,null,null,null,null,null,null,null,null,null,null,null,null,null,null,null,null,null,null,null,null,null,null,null,"","",""]
[null,null,null,null,null,null,null,null,null,null,null,null,null,null,null,null,null,null,null,null,null,null,null,null,null,"","",""]
[null,null,null,null,null,null,null,null,null,null,null,null,null,null,null,null,null,null,null,null,null,null,null,null,null,"","",""]
[null,null,null,null,null,null,null,null,null,null,null,null,null,null,null,null,null,null,null,null,null,null,null,null,null,"","",""]
[null,null,null,null,null,null,null,null,null,null,null,null,null,null,null,null,null,null,null,null,null,null,null,null,null,"","",""]
[null,null,null,null,null,null,null,null,null,null,null,null,null,null,null,null,null,null,null,null,null,null,null,null,null,"","",""]
[null,null,null,null,null,null,null,null,null,null,null,null,null,null,null,null,null,null,null,null,null,null,null,null,null,"","",""]
[null,null,null,null,null,null,null,null,null,null,null,null,null,null,null,null,null,null,null,null,null,null,null,null,null,"","",""]
[null,null,null,null,null,null,null,null,null,null,null,null,null,null,null,null,null,null,null,null,null,null,null,null,null,"","",""]
[null,null,null,null,null,null,null,null,null,null,null,null,null,null,null,null,null,null,null,null,null,null,null,null,null,"","",""]
[null,null,null,null,null,null,null,null,null,null,null,null,null,null,null,null,null,null,null,null,null,null,null,null,null,"","",""]
[null,null,null,null,null,null,null,null,null,null,null,null,null,null,null,null,null,null,null,null,null,null,null,null,null,"","",""]
[null,null,null,null,null,null,null,null,null,null,null,null,null,null,null,null,null,null,null,null,null,null,null,null,null,"","",""]
[null,null,null,null,null,null,null,null,null,null,null,null,null,null,null,null,null,null,null,null,null,null,null,null,null,"","",""]
[null,null,null,null,null,null,null,null,null,null,null,null,null,null,null,null,null,null,null,null,null,null,null,null,null,"","",""]
[null,null,null,null,null,null,null,null,null,null,null,null,null,null,null,null,null,null,null,null,null,null,null,null,null,"","",""]
[null,null,null,null,null,null,null,null,null,null,null,null,null,null,null,null,null,null,null,null,null,null,null,null,null,"","",""]
[null,null,null,null,null,null,null,null,null,null,null,null,null,null,null,null,null,null,null,null,null,null,null,null,null,"","",""]
[null,null,null,null,null,null,null,null,null,null,null,null,null,null,null,null,null,null,null,null,null,null,null,null,null,"","",""]
[null,null,null,null,null,null,null,null,null,null,null,null,null,null,null,null,null,null,null,null,null,null,null,null,null,"","",""]
[null,null,null,null,null,null,null,null,null,null,null,null,null,null,null,null,null,null,null,null,null,null,null,null,null,"","",""]
[null,null,null,null,null,null,null,null,null,null,null,null,null,null,null,null,null,null,null,null,null,null,null,null,null,"","",""]
[null,null,null,null,null,null,null,null,null,null,null,null,null,null,null,null,null,null,null,null,null,null,null,null,null,"","",""]
[null,null,null,null,null,null,null,null,null,null,null,null,null,null,null,null,null,null,null,null,null,null,null,null,null,"","",""]
[null,null,null,null,null,null,null,null,null,null,null,null,null,null,null,null,null,null,null,null,null,null,null,null,null,"","",""]
[null,null,null,null,null,null,null,null,null,null,null,null,null,null,null,null,null,null,null,null,null,null,null,null,null,"","",""]
[null,null,null,null,null,null,null,null,null,null,null,null,null,null,null,null,null,null,null,null,null,null,null,null,null,"","",""]
[null,null,null,null,null,null,null,null,null,null,null,null,null,null,null,null,null,null,null,null,null,null,null,null,null,"","",""]
[null,null,null,null,null,null,null,null,null,null,null,null,null,null,null,null,null,null,null,null,null,null,null,null,null,"","",""]
[null,null,null,null,null,null,null,null,null,null,null,null,null,null,null,null,null,null,null,null,null,null,null,null,null,"","",""]
[null,null,null,null,null,null,null,null,null,null,null,null,null,null,null,null,null,null,null,null,null,null,null,null,null,"","",""]
[null,null,null,null,null,null,null,null,null,null,null,null,null,null,null,null,null,null,null,null,null,null,null,null,null,"","",""]
[null,null,null,null,null,null,null,null,null,null,null,null,null,null,null,null,null,null,null,null,null,null,null,null,null,"","",""]
[null,null,null,null,null,null,null,null,null,null,null,null,null,null,null,null,null,null,null,null,null,null,null,null,null,"","",""]
[null,null,null,null,null,null,null,null,null,null,null,null,null,null,null,null,null,null,null,null,null,null,null,null,null,"","",""]
[null,null,null,null,null,null,null,null,null,null,null,null,null,null,null,null,null,null,null,null,null,null,null,null,null,"","",""]
[null,null,null,null,null,null,null,null,null,null,null,null,null,null,null,null,null,null,null,null,null,null,null,null,null,"","",""]
[null,null,null,null,null,null,null,null,null,null,null,null,null,null,null,null,null,null,null,null,null,null,null,null,null,"","",""]
[null,null,null,null,null,null,null,null,null,null,null,null,null,null,null,null,null,null,null,null,null,null,null,null,null,{"$f":"_xlfn.IFNA(VLOOKUP(Y390,AA$1:AB$1228,2,FALSE),\"\")","v":""},{"$f":"IF(Y390=\"\",\"\",LARGE(Y$1:Y$1228,AB390))","v":""},""]
[null,null,null,null,null,null,null,null,null,null,null,null,null,null,null,null,null,null,null,null,null,null,null,null,null,"","",{"$f":"IF(Y391=\"\",\"\",AB390+1)","v":""}]
[null,null,null,null,null,null,null,null,null,null,null,null,null,null,null,null,null,null,null,null,null,null,null,null,null,"","",""]
[null,null,null,null,null,null,null,null,null,null,null,null,null,null,null,null,null,null,null,null,null,null,null,null,null,"","",""]
[null,null,null,null,null,null,null,null,null,null,null,null,null,null,null,null,null,null,null,null,null,null,null,null,null,"","",""]
[null,null,null,null,null,null,null,null,null,null,null,null,null,null,null,null,null,null,null,null,null,null,null,null,null,"","",""]
[null,null,null,null,null,null,null,null,null,null,null,null,null,null,null,null,null,null,null,null,null,null,null,null,null,"","",""]
[null,null,null,null,null,null,null,null,null,null,null,null,null,null,null,null,null,null,null,null,null,null,null,null,null,"","",""]
[null,null,null,null,null,null,null,null,null,null,null,null,null,null,null,null,null,null,null,null,null,null,null,null,null,"","",""]
[null,null,null,null,null,null,null,null,null,null,null,null,null,null,null,null,null,null,null,null,null,null,null,null,null,"","",""]
[null,null,null,null,null,null,null,null,null,null,null,null,null,null,null,null,null,null,null,null,null,null,null,null,null,"","",""]
[null,null,null,null,null,null,null,null,null,null,null,null,null,null,null,null,null,null,null,null,null,null,null,null,null,"","",""]
[null,null,null,null,null,null,null,null,null,null,null,null,null,null,null,null,null,null,null,null,null,null,null,null,null,"","",""]
[null,null,null,null,null,null,null,null,null,null,null,null,null,null,null,null,null,null,null,null,null,null,null,null,null,"","",""]
[null,null,null,null,null,null,null,null,null,null,null,null,null,null,null,null,null,null,null,null,null,null,null,null,null,"","",""]
[null,null,null,null,null,null,null,null,null,null,null,null,null,null,null,null,null,null,null,null,null,null,null,null,null,"","",""]
[null,null,null,null,null,null,null,null,null,null,null,null,null,null,null,null,null,null,null,null,null,null,null,null,null,"","",""]
[null,null,null,null,null,null,null,null,null,null,null,null,null,null,null,null,null,null,null,null,null,null,null,null,null,"","",""]
[null,null,null,null,null,null,null,null,null,null,null,null,null,null,null,null,null,null,null,null,null,null,null,null,null,"","",""]
[null,null,null,null,null,null,null,null,null,null,null,null,null,null,null,null,null,null,null,null,null,null,null,null,null,"","",""]
[null,null,null,null,null,null,null,null,null,null,null,null,null,null,null,null,null,null,null,null,null,null,null,null,null,"","",""]
[null,null,null,null,null,null,null,null,null,null,null,null,null,null,null,null,null,null,null,null,null,null,null,null,null,"","",""]
[null,null,null,null,null,null,null,null,null,null,null,null,null,null,null,null,null,null,null,null,null,null,null,null,null,"","",""]
[null,null,null,null,null,null,null,null,null,null,null,null,null,null,null,null,null,null,null,null,null,null,null,null,null,"","",""]
[null,null,null,null,null,null,null,null,null,null,null,null,null,null,null,null,null,null,null,null,null,null,null,null,null,"","",""]
[null,null,null,null,null,null,null,null,null,null,null,null,null,null,null,null,null,null,null,null,null,null,null,null,null,"","",""]
[null,null,null,null,null,null,null,null,null,null,null,null,null,null,null,null,null,null,null,null,null,null,null,null,null,"","",""]
[null,null,null,null,null,null,null,null,null,null,null,null,null,null,null,null,null,null,null,null,null,null,null,null,null,"","",""]
[null,null,null,null,null,null,null,null,null,null,null,null,null,null,null,null,null,null,null,null,null,null,null,null,null,"","",""]
[null,null,null,null,null,null,null,null,null,null,null,null,null,null,null,null,null,null,null,null,null,null,null,null,null,"","",""]
[null,null,null,null,null,null,null,null,null,null,null,null,null,null,null,null,null,null,null,null,null,null,null,null,null,"","",""]
[null,null,null,null,null,null,null,null,null,null,null,null,null,null,null,null,null,null,null,null,null,null,null,null,null,"","",""]
[null,null,null,null,null,null,null,null,null,null,null,null,null,null,null,null,null,null,null,null,null,null,null,null,null,"","",""]
[null,null,null,null,null,null,null,null,null,null,null,null,null,null,null,null,null,null,null,null,null,null,null,null,null,"","",""]
[null,null,null,null,null,null,null,null,null,null,null,null,null,null,null,null,null,null,null,null,null,null,null,null,null,"","",""]
[null,null,null,null,null,null,null,null,null,null,null,null,null,null,null,null,null,null,null,null,null,null,null,null,null,"","",""]
[null,null,null,null,null,null,null,null,null,null,null,null,null,null,null,null,null,null,null,null,null,null,null,null,null,"","",""]
[null,null,null,null,null,null,null,null,null,null,null,null,null,null,null,null,null,null,null,null,null,null,null,null,null,"","",""]
[null,null,null,null,null,null,null,null,null,null,null,null,null,null,null,null,null,null,null,null,null,null,null,null,null,"","",""]
[null,null,null,null,null,null,null,null,null,null,null,null,null,null,null,null,null,null,null,null,null,null,null,null,null,"","",""]
[null,null,null,null,null,null,null,null,null,null,null,null,null,null,null,null,null,null,null,null,null,null,null,null,null,"","",""]
[null,null,null,null,null,null,null,null,null,null,null,null,null,null,null,null,null,null,null,null,null,null,null,null,null,"","",""]
[null,null,null,null,null,null,null,null,null,null,null,null,null,null,null,null,null,null,null,null,null,null,null,null,null,"","",""]
[null,null,null,null,null,null,null,null,null,null,null,null,null,null,null,null,null,null,null,null,null,null,null,null,null,"","",""]
[null,null,null,null,null,null,null,null,null,null,null,null,null,null,null,null,null,null,null,null,null,null,null,null,null,"","",""]
[null,null,null,null,null,null,null,null,null,null,null,null,null,null,null,null,null,null,null,null,null,null,null,null,null,"","",""]
[null,null,null,null,null,null,null,null,null,null,null,null,null,null,null,null,null,null,null,null,null,null,null,null,null,"","",""]
[null,null,null,null,null,null,null,null,null,null,null,null,null,null,null,null,null,null,null,null,null,null,null,null,null,"","",""]
[null,null,null,null,null,null,null,null,null,null,null,null,null,null,null,null,null,null,null,null,null,null,null,null,null,"","",""]
[null,null,null,null,null,null,null,null,null,null,null,null,null,null,null,null,null,null,null,null,null,null,null,null,null,"","",""]
[null,null,null,null,null,null,null,null,null,null,null,null,null,null,null,null,null,null,null,null,null,null,null,null,null,"","",""]
[null,null,null,null,null,null,null,null,null,null,null,null,null,null,null,null,null,null,null,null,null,null,null,null,null,"","",""]
[null,null,null,null,null,null,null,null,null,null,null,null,null,null,null,null,null,null,null,null,null,null,null,null,null,"","",""]
[null,null,null,null,null,null,null,null,null,null,null,null,null,null,null,null,null,null,null,null,null,null,null,null,null,"","",""]
[null,null,null,null,null,null,null,null,null,null,null,null,null,null,null,null,null,null,null,null,null,null,null,null,null,"","",""]
[null,null,null,null,null,null,null,null,null,null,null,null,null,null,null,null,null,null,null,null,null,null,null,null,null,"","",""]
[null,null,null,null,null,null,null,null,null,null,null,null,null,null,null,null,null,null,null,null,null,null,null,null,null,"","",""]
[null,null,null,null,null,null,null,null,null,null,null,null,null,null,null,null,null,null,null,null,null,null,null,null,null,"","",""]
[null,null,null,null,null,null,null,null,null,null,null,null,null,null,null,null,null,null,null,null,null,null,null,null,null,"","",""]
[null,null,null,null,null,null,null,null,null,null,null,null,null,null,null,null,null,null,null,null,null,null,null,null,null,"","",""]
[null,null,null,null,null,null,null,null,null,null,null,null,null,null,null,null,null,null,null,null,null,null,null,null,null,"","",""]
[null,null,null,null,null,null,null,null,null,null,null,null,null,null,null,null,null,null,null,null,null,null,null,null,null,"","",""]
[null,null,null,null,null,null,null,null,null,null,null,null,null,null,null,null,null,null,null,null,null,null,null,null,null,"","",""]
[null,null,null,null,null,null,null,null,null,null,null,null,null,null,null,null,null,null,null,null,null,null,null,null,null,"","",""]
[null,null,null,null,null,null,null,null,null,null,null,null,null,null,null,null,null,null,null,null,null,null,null,null,null,{"$f":"_xlfn.IFNA(VLOOKUP(Y454,AA$1:AB$1228,2,FALSE),\"\")","v":""},{"$f":"IF(Y454=\"\",\"\",LARGE(Y$1:Y$1228,AB454))","v":""},""]
[null,null,null,null,null,null,null,null,null,null,null,null,null,null,null,null,null,null,null,null,null,null,null,null,null,"","",{"$f":"IF(Y455=\"\",\"\",AB454+1)","v":""}]
[null,null,null,null,null,null,null,null,null,null,null,null,null,null,null,null,null,null,null,null,null,null,null,null,null,"","",""]
[null,null,null,null,null,null,null,null,null,null,null,null,null,null,null,null,null,null,null,null,null,null,null,null,null,"","",""]
[null,null,null,null,null,null,null,null,null,null,null,null,null,null,null,null,null,null,null,null,null,null,null,null,null,"","",""]
[null,null,null,null,null,null,null,null,null,null,null,null,null,null,null,null,null,null,null,null,null,null,null,null,null,"","",""]
[null,null,null,null,null,null,null,null,null,null,null,null,null,null,null,null,null,null,null,null,null,null,null,null,null,"","",""]
[null,null,null,null,null,null,null,null,null,null,null,null,null,null,null,null,null,null,null,null,null,null,null,null,null,"","",""]
[null,null,null,null,null,null,null,null,null,null,null,null,null,null,null,null,null,null,null,null,null,null,null,null,null,"","",""]
[null,null,null,null,null,null,null,null,null,null,null,null,null,null,null,null,null,null,null,null,null,null,null,null,null,"","",""]
[null,null,null,null,null,null,null,null,null,null,null,null,null,null,null,null,null,null,null,null,null,null,null,null,null,"","",""]
[null,null,null,null,null,null,null,null,null,null,null,null,null,null,null,null,null,null,null,null,null,null,null,null,null,"","",""]
[null,null,null,null,null,null,null,null,null,null,null,null,null,null,null,null,null,null,null,null,null,null,null,null,null,"","",""]
[null,null,null,null,null,null,null,null,null,null,null,null,null,null,null,null,null,null,null,null,null,null,null,null,null,"","",""]
[null,null,null,null,null,null,null,null,null,null,null,null,null,null,null,null,null,null,null,null,null,null,null,null,null,"","",""]
[null,null,null,null,null,null,null,null,null,null,null,null,null,null,null,null,null,null,null,null,null,null,null,null,null,"","",""]
[null,null,null,null,null,null,null,null,null,null,null,null,null,null,null,null,null,null,null,null,null,null,null,null,null,"","",""]
[null,null,null,null,null,null,null,null,null,null,null,null,null,null,null,null,null,null,null,null,null,null,null,null,null,"","",""]
[null,null,null,null,null,null,null,null,null,null,null,null,null,null,null,null,null,null,null,null,null,null,null,null,null,"","",""]
[null,null,null,null,null,null,null,null,null,null,null,null,null,null,null,null,null,null,null,null,null,null,null,null,null,"","",""]
[null,null,null,null,null,null,null,null,null,null,null,null,null,null,null,null,null,null,null,null,null,null,null,null,null,"","",""]
[null,null,null,null,null,null,null,null,null,null,null,null,null,null,null,null,null,null,null,null,null,null,null,null,null,"","",""]
[null,null,null,null,null,null,null,null,null,null,null,null,null,null,null,null,null,null,null,null,null,null,null,null,null,"","",""]
[null,null,null,null,null,null,null,null,null,null,null,null,null,null,null,null,null,null,null,null,null,null,null,null,null,"","",""]
[null,null,null,null,null,null,null,null,null,null,null,null,null,null,null,null,null,null,null,null,null,null,null,null,null,"","",""]
[null,null,null,null,null,null,null,null,null,null,null,null,null,null,null,null,null,null,null,null,null,null,null,null,null,"","",""]
[null,null,null,null,null,null,null,null,null,null,null,null,null,null,null,null,null,null,null,null,null,null,null,null,null,"","",""]
[null,null,null,null,null,null,null,null,null,null,null,null,null,null,null,null,null,null,null,null,null,null,null,null,null,"","",""]
[null,null,null,null,null,null,null,null,null,null,null,null,null,null,null,null,null,null,null,null,null,null,null,null,null,"","",""]
[null,null,null,null,null,null,null,null,null,null,null,null,null,null,null,null,null,null,null,null,null,null,null,null,null,"","",""]
[null,null,null,null,null,null,null,null,null,null,null,null,null,null,null,null,null,null,null,null,null,null,null,null,null,"","",""]
[null,null,null,null,null,null,null,null,null,null,null,null,null,null,null,null,null,null,null,null,null,null,null,null,null,"","",""]
[null,null,null,null,null,null,null,null,null,null,null,null,null,null,null,null,null,null,null,null,null,null,null,null,null,"","",""]
[null,null,null,null,null,null,null,null,null,null,null,null,null,null,null,null,null,null,null,null,null,null,null,null,null,"","",""]
[null,null,null,null,null,null,null,null,null,null,null,null,null,null,null,null,null,null,null,null,null,null,null,null,null,"","",""]
[null,null,null,null,null,null,null,null,null,null,null,null,null,null,null,null,null,null,null,null,null,null,null,null,null,"","",""]
[null,null,null,null,null,null,null,null,null,null,null,null,null,null,null,null,null,null,null,null,null,null,null,null,null,"","",""]
[null,null,null,null,null,null,null,null,null,null,null,null,null,null,null,null,null,null,null,null,null,null,null,null,null,"","",""]
[null,null,null,null,null,null,null,null,null,null,null,null,null,null,null,null,null,null,null,null,null,null,null,null,null,"","",""]
[null,null,null,null,null,null,null,null,null,null,null,null,null,null,null,null,null,null,null,null,null,null,null,null,null,"","",""]
[null,null,null,null,null,null,null,null,null,null,null,null,null,null,null,null,null,null,null,null,null,null,null,null,null,"","",""]
[null,null,null,null,null,null,null,null,null,null,null,null,null,null,null,null,null,null,null,null,null,null,null,null,null,"","",""]
[null,null,null,null,null,null,null,null,null,null,null,null,null,null,null,null,null,null,null,null,null,null,null,null,null,"","",""]
[null,null,null,null,null,null,null,null,null,null,null,null,null,null,null,null,null,null,null,null,null,null,null,null,null,"","",""]
[null,null,null,null,null,null,null,null,null,null,null,null,null,null,null,null,null,null,null,null,null,null,null,null,null,"","",""]
[null,null,null,null,null,null,null,null,null,null,null,null,null,null,null,null,null,null,null,null,null,null,null,null,null,"","",""]
[null,null,null,null,null,null,null,null,null,null,null,null,null,null,null,null,null,null,null,null,null,null,null,null,null,"","",""]
[null,null,null,null,null,null,null,null,null,null,null,null,null,null,null,null,null,null,null,null,null,null,null,null,null,"","",""]
[null,null,null,null,null,null,null,null,null,null,null,null,null,null,null,null,null,null,null,null,null,null,null,null,null,"","",""]
[null,null,null,null,null,null,null,null,null,null,null,null,null,null,null,null,null,null,null,null,null,null,null,null,null,"","",""]
[null,null,null,null,null,null,null,null,null,null,null,null,null,null,null,null,null,null,null,null,null,null,null,null,null,"","",""]
[null,null,null,null,null,null,null,null,null,null,null,null,null,null,null,null,null,null,null,null,null,null,null,null,null,"","",""]
[null,null,null,null,null,null,null,null,null,null,null,null,null,null,null,null,null,null,null,null,null,null,null,null,null,"","",""]
[null,null,null,null,null,null,null,null,null,null,null,null,null,null,null,null,null,null,null,null,null,null,null,null,null,"","",""]
[null,null,null,null,null,null,null,null,null,null,null,null,null,null,null,null,null,null,null,null,null,null,null,null,null,"","",""]
[null,null,null,null,null,null,null,null,null,null,null,null,null,null,null,null,null,null,null,null,null,null,null,null,null,"","",""]
[null,null,null,null,null,null,null,null,null,null,null,null,null,null,null,null,null,null,null,null,null,null,null,null,null,"","",""]
[null,null,null,null,null,null,null,null,null,null,null,null,null,null,null,null,null,null,null,null,null,null,null,null,null,"","",""]
[null,null,null,null,null,null,null,null,null,null,null,null,null,null,null,null,null,null,null,null,null,null,null,null,null,"","",""]
[null,null,null,null,null,null,null,null,null,null,null,null,null,null,null,null,null,null,null,null,null,null,null,null,null,"","",""]
[null,null,null,null,null,null,null,null,null,null,null,null,null,null,null,null,null,null,null,null,null,null,null,null,null,"","",""]
[null,null,null,null,null,null,null,null,null,null,null,null,null,null,null,null,null,null,null,null,null,null,null,null,null,"","",""]
[null,null,null,null,null,null,null,null,null,null,null,null,null,null,null,null,null,null,null,null,null,null,null,null,null,"","",""]
[null,null,null,null,null,null,null,null,null,null,null,null,null,null,null,null,null,null,null,null,null,null,null,null,null,"","",""]
[null,null,null,null,null,null,null,null,null,null,null,null,null,null,null,null,null,null,null,null,null,null,null,null,null,{"$f":"_xlfn.IFNA(VLOOKUP(Y518,AA$1:AB$1228,2,FALSE),\"\")","v":""},{"$f":"IF(Y518=\"\",\"\",LARGE(Y$1:Y$1228,AB518))","v":""},""]
[null,null,null,null,null,null,null,null,null,null,null,null,null,null,null,null,null,null,null,null,null,null,null,null,null,"","",{"$f":"IF(Y519=\"\",\"\",AB518+1)","v":""}]
[null,null,null,null,null,null,null,null,null,null,null,null,null,null,null,null,null,null,null,null,null,null,null,null,null,"","",""]
[null,null,null,null,null,null,null,null,null,null,null,null,null,null,null,null,null,null,null,null,null,null,null,null,null,"","",""]
[null,null,null,null,null,null,null,null,null,null,null,null,null,null,null,null,null,null,null,null,null,null,null,null,null,"","",""]
[null,null,null,null,null,null,null,null,null,null,null,null,null,null,null,null,null,null,null,null,null,null,null,null,null,"","",""]
[null,null,null,null,null,null,null,null,null,null,null,null,null,null,null,null,null,null,null,null,null,null,null,null,null,"","",""]
[null,null,null,null,null,null,null,null,null,null,null,null,null,null,null,null,null,null,null,null,null,null,null,null,null,"","",""]
[null,null,null,null,null,null,null,null,null,null,null,null,null,null,null,null,null,null,null,null,null,null,null,null,null,"","",""]
[null,null,null,null,null,null,null,null,null,null,null,null,null,null,null,null,null,null,null,null,null,null,null,null,null,"","",""]
[null,null,null,null,null,null,null,null,null,null,null,null,null,null,null,null,null,null,null,null,null,null,null,null,null,"","",""]
[null,null,null,null,null,null,null,null,null,null,null,null,null,null,null,null,null,null,null,null,null,null,null,null,null,"","",""]
[null,null,null,null,null,null,null,null,null,null,null,null,null,null,null,null,null,null,null,null,null,null,null,null,null,"","",""]
[null,null,null,null,null,null,null,null,null,null,null,null,null,null,null,null,null,null,null,null,null,null,null,null,null,"","",""]
[null,null,null,null,null,null,null,null,null,null,null,null,null,null,null,null,null,null,null,null,null,null,null,null,null,"","",""]
[null,null,null,null,null,null,null,null,null,null,null,null,null,null,null,null,null,null,null,null,null,null,null,null,null,"","",""]
[null,null,null,null,null,null,null,null,null,null,null,null,null,null,null,null,null,null,null,null,null,null,null,null,null,"","",""]
[null,null,null,null,null,null,null,null,null,null,null,null,null,null,null,null,null,null,null,null,null,null,null,null,null,"","",""]
[null,null,null,null,null,null,null,null,null,null,null,null,null,null,null,null,null,null,null,null,null,null,null,null,null,"","",""]
[null,null,null,null,null,null,null,null,null,null,null,null,null,null,null,null,null,null,null,null,null,null,null,null,null,"","",""]
[null,null,null,null,null,null,null,null,null,null,null,null,null,null,null,null,null,null,null,null,null,null,null,null,null,"","",""]
[null,null,null,null,null,null,null,null,null,null,null,null,null,null,null,null,null,null,null,null,null,null,null,null,null,"","",""]
[null,null,null,null,null,null,null,null,null,null,null,null,null,null,null,null,null,null,null,null,null,null,null,null,null,"","",""]
[null,null,null,null,null,null,null,null,null,null,null,null,null,null,null,null,null,null,null,null,null,null,null,null,null,"","",""]
[null,null,null,null,null,null,null,null,null,null,null,null,null,null,null,null,null,null,null,null,null,null,null,null,null,"","",""]
[null,null,null,null,null,null,null,null,null,null,null,null,null,null,null,null,null,null,null,null,null,null,null,null,null,"","",""]
[null,null,null,null,null,null,null,null,null,null,null,null,null,null,null,null,null,null,null,null,null,null,null,null,null,"","",""]
[null,null,null,null,null,null,null,null,null,null,null,null,null,null,null,null,null,null,null,null,null,null,null,null,null,"","",""]
[null,null,null,null,null,null,null,null,null,null,null,null,null,null,null,null,null,null,null,null,null,null,null,null,null,"","",""]
[null,null,null,null,null,null,null,null,null,null,null,null,null,null,null,null,null,null,null,null,null,null,null,null,null,"","",""]
[null,null,null,null,null,null,null,null,null,null,null,null,null,null,null,null,null,null,null,null,null,null,null,null,null,"","",""]
[null,null,null,null,null,null,null,null,null,null,null,null,null,null,null,null,null,null,null,null,null,null,null,null,null,"","",""]
[null,null,null,null,null,null,null,null,null,null,null,null,null,null,null,null,null,null,null,null,null,null,null,null,null,"","",""]
[null,null,null,null,null,null,null,null,null,null,null,null,null,null,null,null,null,null,null,null,null,null,null,null,null,"","",""]
[null,null,null,null,null,null,null,null,null,null,null,null,null,null,null,null,null,null,null,null,null,null,null,null,null,"","",""]
[null,null,null,null,null,null,null,null,null,null,null,null,null,null,null,null,null,null,null,null,null,null,null,null,null,"","",""]
[null,null,null,null,null,null,null,null,null,null,null,null,null,null,null,null,null,null,null,null,null,null,null,null,null,"","",""]
[null,null,null,null,null,null,null,null,null,null,null,null,null,null,null,null,null,null,null,null,null,null,null,null,null,"","",""]
[null,null,null,null,null,null,null,null,null,null,null,null,null,null,null,null,null,null,null,null,null,null,null,null,null,"","",""]
[null,null,null,null,null,null,null,null,null,null,null,null,null,null,null,null,null,null,null,null,null,null,null,null,null,"","",""]
[null,null,null,null,null,null,null,null,null,null,null,null,null,null,null,null,null,null,null,null,null,null,null,null,null,"","",""]
[null,null,null,null,null,null,null,null,null,null,null,null,null,null,null,null,null,null,null,null,null,null,null,null,null,"","",""]
[null,null,null,null,null,null,null,null,null,null,null,null,null,null,null,null,null,null,null,null,null,null,null,null,null,"","",""]
[null,null,null,null,null,null,null,null,null,null,null,null,null,null,null,null,null,null,null,null,null,null,null,null,null,"","",""]
[null,null,null,null,null,null,null,null,null,null,null,null,null,null,null,null,null,null,null,null,null,null,null,null,null,"","",""]
[null,null,null,null,null,null,null,null,null,null,null,null,null,null,null,null,null,null,null,null,null,null,null,null,null,"","",""]
[null,null,null,null,null,null,null,null,null,null,null,null,null,null,null,null,null,null,null,null,null,null,null,null,null,"","",""]
[null,null,null,null,null,null,null,null,null,null,null,null,null,null,null,null,null,null,null,null,null,null,null,null,null,"","",""]
[null,null,null,null,null,null,null,null,null,null,null,null,null,null,null,null,null,null,null,null,null,null,null,null,null,"","",""]
[null,null,null,null,null,null,null,null,null,null,null,null,null,null,null,null,null,null,null,null,null,null,null,null,null,"","",""]
[null,null,null,null,null,null,null,null,null,null,null,null,null,null,null,null,null,null,null,null,null,null,null,null,null,"","",""]
[null,null,null,null,null,null,null,null,null,null,null,null,null,null,null,null,null,null,null,null,null,null,null,null,null,"","",""]
[null,null,null,null,null,null,null,null,null,null,null,null,null,null,null,null,null,null,null,null,null,null,null,null,null,"","",""]
[null,null,null,null,null,null,null,null,null,null,null,null,null,null,null,null,null,null,null,null,null,null,null,null,null,"","",""]
[null,null,null,null,null,null,null,null,null,null,null,null,null,null,null,null,null,null,null,null,null,null,null,null,null,"","",""]
[null,null,null,null,null,null,null,null,null,null,null,null,null,null,null,null,null,null,null,null,null,null,null,null,null,"","",""]
[null,null,null,null,null,null,null,null,null,null,null,null,null,null,null,null,null,null,null,null,null,null,null,null,null,"","",""]
[null,null,null,null,null,null,null,null,null,null,null,null,null,null,null,null,null,null,null,null,null,null,null,null,null,"","",""]
[null,null,null,null,null,null,null,null,null,null,null,null,null,null,null,null,null,null,null,null,null,null,null,null,null,"","",""]
[null,null,null,null,null,null,null,null,null,null,null,null,null,null,null,null,null,null,null,null,null,null,null,null,null,"","",""]
[null,null,null,null,null,null,null,null,null,null,null,null,null,null,null,null,null,null,null,null,null,null,null,null,null,"","",""]
[null,null,null,null,null,null,null,null,null,null,null,null,null,null,null,null,null,null,null,null,null,null,null,null,null,"","",""]
[null,null,null,null,null,null,null,null,null,null,null,null,null,null,null,null,null,null,null,null,null,null,null,null,null,"","",""]
[null,null,null,null,null,null,null,null,null,null,null,null,null,null,null,null,null,null,null,null,null,null,null,null,null,"","",""]
[null,null,null,null,null,null,null,null,null,null,null,null,null,null,null,null,null,null,null,null,null,null,null,null,null,{"$f":"_xlfn.IFNA(VLOOKUP(Y582,AA$1:AB$1228,2,FALSE),\"\")","v":""},{"$f":"IF(Y582=\"\",\"\",LARGE(Y$1:Y$1228,AB582))","v":""},""]
[null,null,null,null,null,null,null,null,null,null,null,null,null,null,null,null,null,null,null,null,null,null,null,null,null,"","",{"$f":"IF(Y583=\"\",\"\",AB582+1)","v":""}]
[null,null,null,null,null,null,null,null,null,null,null,null,null,null,null,null,null,null,null,null,null,null,null,null,null,"","",""]
[null,null,null,null,null,null,null,null,null,null,null,null,null,null,null,null,null,null,null,null,null,null,null,null,null,"","",""]
[null,null,null,null,null,null,null,null,null,null,null,null,null,null,null,null,null,null,null,null,null,null,null,null,null,"","",""]
[null,null,null,null,null,null,null,null,null,null,null,null,null,null,null,null,null,null,null,null,null,null,null,null,null,"","",""]
[null,null,null,null,null,null,null,null,null,null,null,null,null,null,null,null,null,null,null,null,null,null,null,null,null,"","",""]
[null,null,null,null,null,null,null,null,null,null,null,null,null,null,null,null,null,null,null,null,null,null,null,null,null,"","",""]
[null,null,null,null,null,null,null,null,null,null,null,null,null,null,null,null,null,null,null,null,null,null,null,null,null,"","",""]
[null,null,null,null,null,null,null,null,null,null,null,null,null,null,null,null,null,null,null,null,null,null,null,null,null,"","",""]
[null,null,null,null,null,null,null,null,null,null,null,null,null,null,null,null,null,null,null,null,null,null,null,null,null,"","",""]
[null,null,null,null,null,null,null,null,null,null,null,null,null,null,null,null,null,null,null,null,null,null,null,null,null,"","",""]
[null,null,null,null,null,null,null,null,null,null,null,null,null,null,null,null,null,null,null,null,null,null,null,null,null,"","",""]
[null,null,null,null,null,null,null,null,null,null,null,null,null,null,null,null,null,null,null,null,null,null,null,null,null,"","",""]
[null,null,null,null,null,null,null,null,null,null,null,null,null,null,null,null,null,null,null,null,null,null,null,null,null,"","",""]
[null,null,null,null,null,null,null,null,null,null,null,null,null,null,null,null,null,null,null,null,null,null,null,null,null,"","",""]
[null,null,null,null,null,null,null,null,null,null,null,null,null,null,null,null,null,null,null,null,null,null,null,null,null,"","",""]
[null,null,null,null,null,null,null,null,null,null,null,null,null,null,null,null,null,null,null,null,null,null,null,null,null,"","",""]
[null,null,null,null,null,null,null,null,null,null,null,null,null,null,null,null,null,null,null,null,null,null,null,null,null,"","",""]
[null,null,null,null,null,null,null,null,null,null,null,null,null,null,null,null,null,null,null,null,null,null,null,null,null,"","",""]
[null,null,null,null,null,null,null,null,null,null,null,null,null,null,null,null,null,null,null,null,null,null,null,null,null,"","",""]
[null,null,null,null,null,null,null,null,null,null,null,null,null,null,null,null,null,null,null,null,null,null,null,null,null,"","",""]
[null,null,null,null,null,null,null,null,null,null,null,null,null,null,null,null,null,null,null,null,null,null,null,null,null,"","",""]
[null,null,null,null,null,null,null,null,null,null,null,null,null,null,null,null,null,null,null,null,null,null,null,null,null,"","",""]
[null,null,null,null,null,null,null,null,null,null,null,null,null,null,null,null,null,null,null,null,null,null,null,null,null,"","",""]
[null,null,null,null,null,null,null,null,null,null,null,null,null,null,null,null,null,null,null,null,null,null,null,null,null,"","",""]
[null,null,null,null,null,null,null,null,null,null,null,null,null,null,null,null,null,null,null,null,null,null,null,null,null,"","",""]
[null,null,null,null,null,null,null,null,null,null,null,null,null,null,null,null,null,null,null,null,null,null,null,null,null,"","",""]
[null,null,null,null,null,null,null,null,null,null,null,null,null,null,null,null,null,null,null,null,null,null,null,null,null,"","",""]
[null,null,null,null,null,null,null,null,null,null,null,null,null,null,null,null,null,null,null,null,null,null,null,null,null,"","",""]
[null,null,null,null,null,null,null,null,null,null,null,null,null,null,null,null,null,null,null,null,null,null,null,null,null,"","",""]
[null,null,null,null,null,null,null,null,null,null,null,null,null,null,null,null,null,null,null,null,null,null,null,null,null,"","",""]
[null,null,null,null,null,null,null,null,null,null,null,null,null,null,null,null,null,null,null,null,null,null,null,null,null,"","",""]
[null,null,null,null,null,null,null,null,null,null,null,null,null,null,null,null,null,null,null,null,null,null,null,null,null,"","",""]
[null,null,null,null,null,null,null,null,null,null,null,null,null,null,null,null,null,null,null,null,null,null,null,null,null,"","",""]
[null,null,null,null,null,null,null,null,null,null,null,null,null,null,null,null,null,null,null,null,null,null,null,null,null,"","",""]
[null,null,null,null,null,null,null,null,null,null,null,null,null,null,null,null,null,null,null,null,null,null,null,null,null,"","",""]
[null,null,null,null,null,null,null,null,null,null,null,null,null,null,null,null,null,null,null,null,null,null,null,null,null,"","",""]
[null,null,null,null,null,null,null,null,null,null,null,null,null,null,null,null,null,null,null,null,null,null,null,null,null,"","",""]
[null,null,null,null,null,null,null,null,null,null,null,null,null,null,null,null,null,null,null,null,null,null,null,null,null,"","",""]
[null,null,null,null,null,null,null,null,null,null,null,null,null,null,null,null,null,null,null,null,null,null,null,null,null,"","",""]
[null,null,null,null,null,null,null,null,null,null,null,null,null,null,null,null,null,null,null,null,null,null,null,null,null,"","",""]
[null,null,null,null,null,null,null,null,null,null,null,null,null,null,null,null,null,null,null,null,null,null,null,null,null,"","",""]
[null,null,null,null,null,null,null,null,null,null,null,null,null,null,null,null,null,null,null,null,null,null,null,null,null,"","",""]
[null,null,null,null,null,null,null,null,null,null,null,null,null,null,null,null,null,null,null,null,null,null,null,null,null,"","",""]
[null,null,null,null,null,null,null,null,null,null,null,null,null,null,null,null,null,null,null,null,null,null,null,null,null,"","",""]
[null,null,null,null,null,null,null,null,null,null,null,null,null,null,null,null,null,null,null,null,null,null,null,null,null,"","",""]
[null,null,null,null,null,null,null,null,null,null,null,null,null,null,null,null,null,null,null,null,null,null,null,null,null,"","",""]
[null,null,null,null,null,null,null,null,null,null,null,null,null,null,null,null,null,null,null,null,null,null,null,null,null,"","",""]
[null,null,null,null,null,null,null,null,null,null,null,null,null,null,null,null,null,null,null,null,null,null,null,null,null,"","",""]
[null,null,null,null,null,null,null,null,null,null,null,null,null,null,null,null,null,null,null,null,null,null,null,null,null,"","",""]
[null,null,null,null,null,null,null,null,null,null,null,null,null,null,null,null,null,null,null,null,null,null,null,null,null,"","",""]
[null,null,null,null,null,null,null,null,null,null,null,null,null,null,null,null,null,null,null,null,null,null,null,null,null,"","",""]
[null,null,null,null,null,null,null,null,null,null,null,null,null,null,null,null,null,null,null,null,null,null,null,null,null,"","",""]
[null,null,null,null,null,null,null,null,null,null,null,null,null,null,null,null,null,null,null,null,null,null,null,null,null,"","",""]
[null,null,null,null,null,null,null,null,null,null,null,null,null,null,null,null,null,null,null,null,null,null,null,null,null,"","",""]
[null,null,null,null,null,null,null,null,null,null,null,null,null,null,null,null,null,null,null,null,null,null,null,null,null,"","",""]
[null,null,null,null,null,null,null,null,null,null,null,null,null,null,null,null,null,null,null,null,null,null,null,null,null,"","",""]
[null,null,null,null,null,null,null,null,null,null,null,null,null,null,null,null,null,null,null,null,null,null,null,null,null,"","",""]
[null,null,null,null,null,null,null,null,null,null,null,null,null,null,null,null,null,null,null,null,null,null,null,null,null,"","",""]
[null,null,null,null,null,null,null,null,null,null,null,null,null,null,null,null,null,null,null,null,null,null,null,null,null,"","",""]
[null,null,null,null,null,null,null,null,null,null,null,null,null,null,null,null,null,null,null,null,null,null,null,null,null,"","",""]
[null,null,null,null,null,null,null,null,null,null,null,null,null,null,null,null,null,null,null,null,null,null,null,null,null,"","",""]
[null,null,null,null,null,null,null,null,null,null,null,null,null,null,null,null,null,null,null,null,null,null,null,null,null,"","",""]
[null,null,null,null,null,null,null,null,null,null,null,null,null,null,null,null,null,null,null,null,null,null,null,null,null,{"$f":"_xlfn.IFNA(VLOOKUP(Y646,AA$1:AB$1228,2,FALSE),\"\")","v":""},{"$f":"IF(Y646=\"\",\"\",LARGE(Y$1:Y$1228,AB646))","v":""},""]
[null,null,null,null,null,null,null,null,null,null,null,null,null,null,null,null,null,null,null,null,null,null,null,null,null,"","",{"$f":"IF(Y647=\"\",\"\",AB646+1)","v":""}]
[null,null,null,null,null,null,null,null,null,null,null,null,null,null,null,null,null,null,null,null,null,null,null,null,null,"","",""]
[null,null,null,null,null,null,null,null,null,null,null,null,null,null,null,null,null,null,null,null,null,null,null,null,null,"","",""]
[null,null,null,null,null,null,null,null,null,null,null,null,null,null,null,null,null,null,null,null,null,null,null,null,null,"","",""]
[null,null,null,null,null,null,null,null,null,null,null,null,null,null,null,null,null,null,null,null,null,null,null,null,null,"","",""]
[null,null,null,null,null,null,null,null,null,null,null,null,null,null,null,null,null,null,null,null,null,null,null,null,null,"","",""]
[null,null,null,null,null,null,null,null,null,null,null,null,null,null,null,null,null,null,null,null,null,null,null,null,null,"","",""]
[null,null,null,null,null,null,null,null,null,null,null,null,null,null,null,null,null,null,null,null,null,null,null,null,null,"","",""]
[null,null,null,null,null,null,null,null,null,null,null,null,null,null,null,null,null,null,null,null,null,null,null,null,null,"","",""]
[null,null,null,null,null,null,null,null,null,null,null,null,null,null,null,null,null,null,null,null,null,null,null,null,null,"","",""]
[null,null,null,null,null,null,null,null,null,null,null,null,null,null,null,null,null,null,null,null,null,null,null,null,null,"","",""]
[null,null,null,null,null,null,null,null,null,null,null,null,null,null,null,null,null,null,null,null,null,null,null,null,null,"","",""]
[null,null,null,null,null,null,null,null,null,null,null,null,null,null,null,null,null,null,null,null,null,null,null,null,null,"","",""]
[null,null,null,null,null,null,null,null,null,null,null,null,null,null,null,null,null,null,null,null,null,null,null,null,null,"","",""]
[null,null,null,null,null,null,null,null,null,null,null,null,null,null,null,null,null,null,null,null,null,null,null,null,null,"","",""]
[null,null,null,null,null,null,null,null,null,null,null,null,null,null,null,null,null,null,null,null,null,null,null,null,null,"","",""]
[null,null,null,null,null,null,null,null,null,null,null,null,null,null,null,null,null,null,null,null,null,null,null,null,null,"","",""]
[null,null,null,null,null,null,null,null,null,null,null,null,null,null,null,null,null,null,null,null,null,null,null,null,null,"","",""]
[null,null,null,null,null,null,null,null,null,null,null,null,null,null,null,null,null,null,null,null,null,null,null,null,null,"","",""]
[null,null,null,null,null,null,null,null,null,null,null,null,null,null,null,null,null,null,null,null,null,null,null,null,null,"","",""]
[null,null,null,null,null,null,null,null,null,null,null,null,null,null,null,null,null,null,null,null,null,null,null,null,null,"","",""]
[null,null,null,null,null,null,null,null,null,null,null,null,null,null,null,null,null,null,null,null,null,null,null,null,null,"","",""]
[null,null,null,null,null,null,null,null,null,null,null,null,null,null,null,null,null,null,null,null,null,null,null,null,null,"","",""]
[null,null,null,null,null,null,null,null,null,null,null,null,null,null,null,null,null,null,null,null,null,null,null,null,null,"","",""]
[null,null,null,null,null,null,null,null,null,null,null,null,null,null,null,null,null,null,null,null,null,null,null,null,null,"","",""]
[null,null,null,null,null,null,null,null,null,null,null,null,null,null,null,null,null,null,null,null,null,null,null,null,null,"","",""]
[null,null,null,null,null,null,null,null,null,null,null,null,null,null,null,null,null,null,null,null,null,null,null,null,null,"","",""]
[null,null,null,null,null,null,null,null,null,null,null,null,null,null,null,null,null,null,null,null,null,null,null,null,null,"","",""]
[null,null,null,null,null,null,null,null,null,null,null,null,null,null,null,null,null,null,null,null,null,null,null,null,null,"","",""]
[null,null,null,null,null,null,null,null,null,null,null,null,null,null,null,null,null,null,null,null,null,null,null,null,null,"","",""]
[null,null,null,null,null,null,null,null,null,null,null,null,null,null,null,null,null,null,null,null,null,null,null,null,null,"","",""]
[null,null,null,null,null,null,null,null,null,null,null,null,null,null,null,null,null,null,null,null,null,null,null,null,null,"","",""]
[null,null,null,null,null,null,null,null,null,null,null,null,null,null,null,null,null,null,null,null,null,null,null,null,null,"","",""]
[null,null,null,null,null,null,null,null,null,null,null,null,null,null,null,null,null,null,null,null,null,null,null,null,null,"","",""]
[null,null,null,null,null,null,null,null,null,null,null,null,null,null,null,null,null,null,null,null,null,null,null,null,null,"","",""]
[null,null,null,null,null,null,null,null,null,null,null,null,null,null,null,null,null,null,null,null,null,null,null,null,null,"","",""]
[null,null,null,null,null,null,null,null,null,null,null,null,null,null,null,null,null,null,null,null,null,null,null,null,null,"","",""]
[null,null,null,null,null,null,null,null,null,null,null,null,null,null,null,null,null,null,null,null,null,null,null,null,null,"","",""]
[null,null,null,null,null,null,null,null,null,null,null,null,null,null,null,null,null,null,null,null,null,null,null,null,null,"","",""]
[null,null,null,null,null,null,null,null,null,null,null,null,null,null,null,null,null,null,null,null,null,null,null,null,null,"","",""]
[null,null,null,null,null,null,null,null,null,null,null,null,null,null,null,null,null,null,null,null,null,null,null,null,null,"","",""]
[null,null,null,null,null,null,null,null,null,null,null,null,null,null,null,null,null,null,null,null,null,null,null,null,null,"","",""]
[null,null,null,null,null,null,null,null,null,null,null,null,null,null,null,null,null,null,null,null,null,null,null,null,null,"","",""]
[null,null,null,null,null,null,null,null,null,null,null,null,null,null,null,null,null,null,null,null,null,null,null,null,null,"","",""]
[null,null,null,null,null,null,null,null,null,null,null,null,null,null,null,null,null,null,null,null,null,null,null,null,null,"","",""]
[null,null,null,null,null,null,null,null,null,null,null,null,null,null,null,null,null,null,null,null,null,null,null,null,null,"","",""]
[null,null,null,null,null,null,null,null,null,null,null,null,null,null,null,null,null,null,null,null,null,null,null,null,null,"","",""]
[null,null,null,null,null,null,null,null,null,null,null,null,null,null,null,null,null,null,null,null,null,null,null,null,null,"","",""]
[null,null,null,null,null,null,null,null,null,null,null,null,null,null,null,null,null,null,null,null,null,null,null,null,null,"","",""]
[null,null,null,null,null,null,null,null,null,null,null,null,null,null,null,null,null,null,null,null,null,null,null,null,null,"","",""]
[null,null,null,null,null,null,null,null,null,null,null,null,null,null,null,null,null,null,null,null,null,null,null,null,null,"","",""]
[null,null,null,null,null,null,null,null,null,null,null,null,null,null,null,null,null,null,null,null,null,null,null,null,null,"","",""]
[null,null,null,null,null,null,null,null,null,null,null,null,null,null,null,null,null,null,null,null,null,null,null,null,null,"","",""]
[null,null,null,null,null,null,null,null,null,null,null,null,null,null,null,null,null,null,null,null,null,null,null,null,null,"","",""]
[null,null,null,null,null,null,null,null,null,null,null,null,null,null,null,null,null,null,null,null,null,null,null,null,null,"","",""]
[null,null,null,null,null,null,null,null,null,null,null,null,null,null,null,null,null,null,null,null,null,null,null,null,null,"","",""]
[null,null,null,null,null,null,null,null,null,null,null,null,null,null,null,null,null,null,null,null,null,null,null,null,null,"","",""]
[null,null,null,null,null,null,null,null,null,null,null,null,null,null,null,null,null,null,null,null,null,null,null,null,null,"","",""]
[null,null,null,null,null,null,null,null,null,null,null,null,null,null,null,null,null,null,null,null,null,null,null,null,null,"","",""]
[null,null,null,null,null,null,null,null,null,null,null,null,null,null,null,null,null,null,null,null,null,null,null,null,null,"","",""]
[null,null,null,null,null,null,null,null,null,null,null,null,null,null,null,null,null,null,null,null,null,null,null,null,null,"","",""]
[null,null,null,null,null,null,null,null,null,null,null,null,null,null,null,null,null,null,null,null,null,null,null,null,null,"","",""]
[null,null,null,null,null,null,null,null,null,null,null,null,null,null,null,null,null,null,null,null,null,null,null,null,null,"","",""]
[null,null,null,null,null,null,null,null,null,null,null,null,null,null,null,null,null,null,null,null,null,null,null,null,null,{"$f":"_xlfn.IFNA(VLOOKUP(Y710,AA$1:AB$1228,2,FALSE),\"\")","v":""},{"$f":"IF(Y710=\"\",\"\",LARGE(Y$1:Y$1228,AB710))","v":""},""]
[null,null,null,null,null,null,null,null,null,null,null,null,null,null,null,null,null,null,null,null,null,null,null,null,null,"","",{"$f":"IF(Y711=\"\",\"\",AB710+1)","v":""}]
[null,null,null,null,null,null,null,null,null,null,null,null,null,null,null,null,null,null,null,null,null,null,null,null,null,"","",""]
[null,null,null,null,null,null,null,null,null,null,null,null,null,null,null,null,null,null,null,null,null,null,null,null,null,"","",""]
[null,null,null,null,null,null,null,null,null,null,null,null,null,null,null,null,null,null,null,null,null,null,null,null,null,"","",""]
[null,null,null,null,null,null,null,null,null,null,null,null,null,null,null,null,null,null,null,null,null,null,null,null,null,"","",""]
[null,null,null,null,null,null,null,null,null,null,null,null,null,null,null,null,null,null,null,null,null,null,null,null,null,"","",""]
[null,null,null,null,null,null,null,null,null,null,null,null,null,null,null,null,null,null,null,null,null,null,null,null,null,"","",""]
[null,null,null,null,null,null,null,null,null,null,null,null,null,null,null,null,null,null,null,null,null,null,null,null,null,"","",""]
[null,null,null,null,null,null,null,null,null,null,null,null,null,null,null,null,null,null,null,null,null,null,null,null,null,"","",""]
[null,null,null,null,null,null,null,null,null,null,null,null,null,null,null,null,null,null,null,null,null,null,null,null,null,"","",""]
[null,null,null,null,null,null,null,null,null,null,null,null,null,null,null,null,null,null,null,null,null,null,null,null,null,"","",""]
[null,null,null,null,null,null,null,null,null,null,null,null,null,null,null,null,null,null,null,null,null,null,null,null,null,"","",""]
[null,null,null,null,null,null,null,null,null,null,null,null,null,null,null,null,null,null,null,null,null,null,null,null,null,"","",""]
[null,null,null,null,null,null,null,null,null,null,null,null,null,null,null,null,null,null,null,null,null,null,null,null,null,"","",""]
[null,null,null,null,null,null,null,null,null,null,null,null,null,null,null,null,null,null,null,null,null,null,null,null,null,"","",""]
[null,null,null,null,null,null,null,null,null,null,null,null,null,null,null,null,null,null,null,null,null,null,null,null,null,"","",""]
[null,null,null,null,null,null,null,null,null,null,null,null,null,null,null,null,null,null,null,null,null,null,null,null,null,"","",""]
[null,null,null,null,null,null,null,null,null,null,null,null,null,null,null,null,null,null,null,null,null,null,null,null,null,"","",""]
[null,null,null,null,null,null,null,null,null,null,null,null,null,null,null,null,null,null,null,null,null,null,null,null,null,"","",""]
[null,null,null,null,null,null,null,null,null,null,null,null,null,null,null,null,null,null,null,null,null,null,null,null,null,"","",""]
[null,null,null,null,null,null,null,null,null,null,null,null,null,null,null,null,null,null,null,null,null,null,null,null,null,"","",""]
[null,null,null,null,null,null,null,null,null,null,null,null,null,null,null,null,null,null,null,null,null,null,null,null,null,"","",""]
[null,null,null,null,null,null,null,null,null,null,null,null,null,null,null,null,null,null,null,null,null,null,null,null,null,"","",""]
[null,null,null,null,null,null,null,null,null,null,null,null,null,null,null,null,null,null,null,null,null,null,null,null,null,"","",""]
[null,null,null,null,null,null,null,null,null,null,null,null,null,null,null,null,null,null,null,null,null,null,null,null,null,"","",""]
[null,null,null,null,null,null,null,null,null,null,null,null,null,null,null,null,null,null,null,null,null,null,null,null,null,"","",""]
[null,null,null,null,null,null,null,null,null,null,null,null,null,null,null,null,null,null,null,null,null,null,null,null,null,"","",""]
[null,null,null,null,null,null,null,null,null,null,null,null,null,null,null,null,null,null,null,null,null,null,null,null,null,"","",""]
[null,null,null,null,null,null,null,null,null,null,null,null,null,null,null,null,null,null,null,null,null,null,null,null,null,"","",""]
[null,null,null,null,null,null,null,null,null,null,null,null,null,null,null,null,null,null,null,null,null,null,null,null,null,"","",""]
[null,null,null,null,null,null,null,null,null,null,null,null,null,null,null,null,null,null,null,null,null,null,null,null,null,"","",""]
[null,null,null,null,null,null,null,null,null,null,null,null,null,null,null,null,null,null,null,null,null,null,null,null,null,"","",""]
[null,null,null,null,null,null,null,null,null,null,null,null,null,null,null,null,null,null,null,null,null,null,null,null,null,"","",""]
[null,null,null,null,null,null,null,null,null,null,null,null,null,null,null,null,null,null,null,null,null,null,null,null,null,"","",""]
[null,null,null,null,null,null,null,null,null,null,null,null,null,null,null,null,null,null,null,null,null,null,null,null,null,"","",""]
[null,null,null,null,null,null,null,null,null,null,null,null,null,null,null,null,null,null,null,null,null,null,null,null,null,"","",""]
[null,null,null,null,null,null,null,null,null,null,null,null,null,null,null,null,null,null,null,null,null,null,null,null,null,"","",""]
[null,null,null,null,null,null,null,null,null,null,null,null,null,null,null,null,null,null,null,null,null,null,null,null,null,"","",""]
[null,null,null,null,null,null,null,null,null,null,null,null,null,null,null,null,null,null,null,null,null,null,null,null,null,"","",""]
[null,null,null,null,null,null,null,null,null,null,null,null,null,null,null,null,null,null,null,null,null,null,null,null,null,"","",""]
[null,null,null,null,null,null,null,null,null,null,null,null,null,null,null,null,null,null,null,null,null,null,null,null,null,"","",""]
[null,null,null,null,null,null,null,null,null,null,null,null,null,null,null,null,null,null,null,null,null,null,null,null,null,"","",""]
[null,null,null,null,null,null,null,null,null,null,null,null,null,null,null,null,null,null,null,null,null,null,null,null,null,"","",""]
[null,null,null,null,null,null,null,null,null,null,null,null,null,null,null,null,null,null,null,null,null,null,null,null,null,"","",""]
[null,null,null,null,null,null,null,null,null,null,null,null,null,null,null,null,null,null,null,null,null,null,null,null,null,"","",""]
[null,null,null,null,null,null,null,null,null,null,null,null,null,null,null,null,null,null,null,null,null,null,null,null,null,"","",""]
[null,null,null,null,null,null,null,null,null,null,null,null,null,null,null,null,null,null,null,null,null,null,null,null,null,"","",""]
[null,null,null,null,null,null,null,null,null,null,null,null,null,null,null,null,null,null,null,null,null,null,null,null,null,"","",""]
[null,null,null,null,null,null,null,null,null,null,null,null,null,null,null,null,null,null,null,null,null,null,null,null,null,"","",""]
[null,null,null,null,null,null,null,null,null,null,null,null,null,null,null,null,null,null,null,null,null,null,null,null,null,"","",""]
[null,null,null,null,null,null,null,null,null,null,null,null,null,null,null,null,null,null,null,null,null,null,null,null,null,"","",""]
[null,null,null,null,null,null,null,null,null,null,null,null,null,null,null,null,null,null,null,null,null,null,null,null,null,"","",""]
[null,null,null,null,null,null,null,null,null,null,null,null,null,null,null,null,null,null,null,null,null,null,null,null,null,"","",""]
[null,null,null,null,null,null,null,null,null,null,null,null,null,null,null,null,null,null,null,null,null,null,null,null,null,"","",""]
[null,null,null,null,null,null,null,null,null,null,null,null,null,null,null,null,null,null,null,null,null,null,null,null,null,"","",""]
[null,null,null,null,null,null,null,null,null,null,null,null,null,null,null,null,null,null,null,null,null,null,null,null,null,"","",""]
[null,null,null,null,null,null,null,null,null,null,null,null,null,null,null,null,null,null,null,null,null,null,null,null,null,"","",""]
[null,null,null,null,null,null,null,null,null,null,null,null,null,null,null,null,null,null,null,null,null,null,null,null,null,"","",""]
[null,null,null,null,null,null,null,null,null,null,null,null,null,null,null,null,null,null,null,null,null,null,null,null,null,"","",""]
[null,null,null,null,null,null,null,null,null,null,null,null,null,null,null,null,null,null,null,null,null,null,null,null,null,"","",""]
[null,null,null,null,null,null,null,null,null,null,null,null,null,null,null,null,null,null,null,null,null,null,null,null,null,"","",""]
[null,null,null,null,null,null,null,null,null,null,null,null,null,null,null,null,null,null,null,null,null,null,null,null,null,"","",""]
[null,null,null,null,null,null,null,null,null,null,null,null,null,null,null,null,null,null,null,null,null,null,null,null,null,"","",""]
[null,null,null,null,null,null,null,null,null,null,null,null,null,null,null,null,null,null,null,null,null,null,null,null,null,{"$f":"_xlfn.IFNA(VLOOKUP(Y774,AA$1:AB$1228,2,FALSE),\"\")","v":""},{"$f":"IF(Y774=\"\",\"\",LARGE(Y$1:Y$1228,AB774))","v":""},""]
[null,null,null,null,null,null,null,null,null,null,null,null,null,null,null,null,null,null,null,null,null,null,null,null,null,"","",{"$f":"IF(Y775=\"\",\"\",AB774+1)","v":""}]
[null,null,null,null,null,null,null,null,null,null,null,null,null,null,null,null,null,null,null,null,null,null,null,null,null,"","",""]
[null,null,null,null,null,null,null,null,null,null,null,null,null,null,null,null,null,null,null,null,null,null,null,null,null,"","",""]
[null,null,null,null,null,null,null,null,null,null,null,null,null,null,null,null,null,null,null,null,null,null,null,null,null,"","",""]
[null,null,null,null,null,null,null,null,null,null,null,null,null,null,null,null,null,null,null,null,null,null,null,null,null,"","",""]
[null,null,null,null,null,null,null,null,null,null,null,null,null,null,null,null,null,null,null,null,null,null,null,null,null,"","",""]
[null,null,null,null,null,null,null,null,null,null,null,null,null,null,null,null,null,null,null,null,null,null,null,null,null,"","",""]
[null,null,null,null,null,null,null,null,null,null,null,null,null,null,null,null,null,null,null,null,null,null,null,null,null,"","",""]
[null,null,null,null,null,null,null,null,null,null,null,null,null,null,null,null,null,null,null,null,null,null,null,null,null,"","",""]
[null,null,null,null,null,null,null,null,null,null,null,null,null,null,null,null,null,null,null,null,null,null,null,null,null,"","",""]
[null,null,null,null,null,null,null,null,null,null,null,null,null,null,null,null,null,null,null,null,null,null,null,null,null,"","",""]
[null,null,null,null,null,null,null,null,null,null,null,null,null,null,null,null,null,null,null,null,null,null,null,null,null,"","",""]
[null,null,null,null,null,null,null,null,null,null,null,null,null,null,null,null,null,null,null,null,null,null,null,null,null,"","",""]
[null,null,null,null,null,null,null,null,null,null,null,null,null,null,null,null,null,null,null,null,null,null,null,null,null,"","",""]
[null,null,null,null,null,null,null,null,null,null,null,null,null,null,null,null,null,null,null,null,null,null,null,null,null,"","",""]
[null,null,null,null,null,null,null,null,null,null,null,null,null,null,null,null,null,null,null,null,null,null,null,null,null,"","",""]
[null,null,null,null,null,null,null,null,null,null,null,null,null,null,null,null,null,null,null,null,null,null,null,null,null,"","",""]
[null,null,null,null,null,null,null,null,null,null,null,null,null,null,null,null,null,null,null,null,null,null,null,null,null,"","",""]
[null,null,null,null,null,null,null,null,null,null,null,null,null,null,null,null,null,null,null,null,null,null,null,null,null,"","",""]
[null,null,null,null,null,null,null,null,null,null,null,null,null,null,null,null,null,null,null,null,null,null,null,null,null,"","",""]
[null,null,null,null,null,null,null,null,null,null,null,null,null,null,null,null,null,null,null,null,null,null,null,null,null,"","",""]
[null,null,null,null,null,null,null,null,null,null,null,null,null,null,null,null,null,null,null,null,null,null,null,null,null,"","",""]
[null,null,null,null,null,null,null,null,null,null,null,null,null,null,null,null,null,null,null,null,null,null,null,null,null,"","",""]
[null,null,null,null,null,null,null,null,null,null,null,null,null,null,null,null,null,null,null,null,null,null,null,null,null,"","",""]
[null,null,null,null,null,null,null,null,null,null,null,null,null,null,null,null,null,null,null,null,null,null,null,null,null,"","",""]
[null,null,null,null,null,null,null,null,null,null,null,null,null,null,null,null,null,null,null,null,null,null,null,null,null,"","",""]
[null,null,null,null,null,null,null,null,null,null,null,null,null,null,null,null,null,null,null,null,null,null,null,null,null,"","",""]
[null,null,null,null,null,null,null,null,null,null,null,null,null,null,null,null,null,null,null,null,null,null,null,null,null,"","",""]
[null,null,null,null,null,null,null,null,null,null,null,null,null,null,null,null,null,null,null,null,null,null,null,null,null,"","",""]
[null,null,null,null,null,null,null,null,null,null,null,null,null,null,null,null,null,null,null,null,null,null,null,null,null,"","",""]
[null,null,null,null,null,null,null,null,null,null,null,null,null,null,null,null,null,null,null,null,null,null,null,null,null,"","",""]
[null,null,null,null,null,null,null,null,null,null,null,null,null,null,null,null,null,null,null,null,null,null,null,null,null,"","",""]
[null,null,null,null,null,null,null,null,null,null,null,null,null,null,null,null,null,null,null,null,null,null,null,null,null,"","",""]
[null,null,null,null,null,null,null,null,null,null,null,null,null,null,null,null,null,null,null,null,null,null,null,null,null,"","",""]
[null,null,null,null,null,null,null,null,null,null,null,null,null,null,null,null,null,null,null,null,null,null,null,null,null,"","",""]
[null,null,null,null,null,null,null,null,null,null,null,null,null,null,null,null,null,null,null,null,null,null,null,null,null,"","",""]
[null,null,null,null,null,null,null,null,null,null,null,null,null,null,null,null,null,null,null,null,null,null,null,null,null,"","",""]
[null,null,null,null,null,null,null,null,null,null,null,null,null,null,null,null,null,null,null,null,null,null,null,null,null,"","",""]
[null,null,null,null,null,null,null,null,null,null,null,null,null,null,null,null,null,null,null,null,null,null,null,null,null,"","",""]
[null,null,null,null,null,null,null,null,null,null,null,null,null,null,null,null,null,null,null,null,null,null,null,null,null,"","",""]
[null,null,null,null,null,null,null,null,null,null,null,null,null,null,null,null,null,null,null,null,null,null,null,null,null,"","",""]
[null,null,null,null,null,null,null,null,null,null,null,null,null,null,null,null,null,null,null,null,null,null,null,null,null,"","",""]
[null,null,null,null,null,null,null,null,null,null,null,null,null,null,null,null,null,null,null,null,null,null,null,null,null,"","",""]
[null,null,null,null,null,null,null,null,null,null,null,null,null,null,null,null,null,null,null,null,null,null,null,null,null,"","",""]
[null,null,null,null,null,null,null,null,null,null,null,null,null,null,null,null,null,null,null,null,null,null,null,null,null,"","",""]
[null,null,null,null,null,null,null,null,null,null,null,null,null,null,null,null,null,null,null,null,null,null,null,null,null,"","",""]
[null,null,null,null,null,null,null,null,null,null,null,null,null,null,null,null,null,null,null,null,null,null,null,null,null,"","",""]
[null,null,null,null,null,null,null,null,null,null,null,null,null,null,null,null,null,null,null,null,null,null,null,null,null,"","",""]
[null,null,null,null,null,null,null,null,null,null,null,null,null,null,null,null,null,null,null,null,null,null,null,null,null,"","",""]
[null,null,null,null,null,null,null,null,null,null,null,null,null,null,null,null,null,null,null,null,null,null,null,null,null,"","",""]
[null,null,null,null,null,null,null,null,null,null,null,null,null,null,null,null,null,null,null,null,null,null,null,null,null,"","",""]
[null,null,null,null,null,null,null,null,null,null,null,null,null,null,null,null,null,null,null,null,null,null,null,null,null,"","",""]
[null,null,null,null,null,null,null,null,null,null,null,null,null,null,null,null,null,null,null,null,null,null,null,null,null,"","",""]
[null,null,null,null,null,null,null,null,null,null,null,null,null,null,null,null,null,null,null,null,null,null,null,null,null,"","",""]
[null,null,null,null,null,null,null,null,null,null,null,null,null,null,null,null,null,null,null,null,null,null,null,null,null,"","",""]
[null,null,null,null,null,null,null,null,null,null,null,null,null,null,null,null,null,null,null,null,null,null,null,null,null,"","",""]
[null,null,null,null,null,null,null,null,null,null,null,null,null,null,null,null,null,null,null,null,null,null,null,null,null,"","",""]
[null,null,null,null,null,null,null,null,null,null,null,null,null,null,null,null,null,null,null,null,null,null,null,null,null,"","",""]
[null,null,null,null,null,null,null,null,null,null,null,null,null,null,null,null,null,null,null,null,null,null,null,null,null,"","",""]
[null,null,null,null,null,null,null,null,null,null,null,null,null,null,null,null,null,null,null,null,null,null,null,null,null,"","",""]
[null,null,null,null,null,null,null,null,null,null,null,null,null,null,null,null,null,null,null,null,null,null,null,null,null,"","",""]
[null,null,null,null,null,null,null,null,null,null,null,null,null,null,null,null,null,null,null,null,null,null,null,null,null,"","",""]
[null,null,null,null,null,null,null,null,null,null,null,null,null,null,null,null,null,null,null,null,null,null,null,null,null,"","",""]
[null,null,null,null,null,null,null,null,null,null,null,null,null,null,null,null,null,null,null,null,null,null,null,null,null,{"$f":"_xlfn.IFNA(VLOOKUP(Y838,AA$1:AB$1228,2,FALSE),\"\")","v":""},{"$f":"IF(Y838=\"\",\"\",LARGE(Y$1:Y$1228,AB838))","v":""},""]
[null,null,null,null,null,null,null,null,null,null,null,null,null,null,null,null,null,null,null,null,null,null,null,null,null,"","",{"$f":"IF(Y839=\"\",\"\",AB838+1)","v":""}]
[null,null,null,null,null,null,null,null,null,null,null,null,null,null,null,null,null,null,null,null,null,null,null,null,null,"","",""]
[null,null,null,null,null,null,null,null,null,null,null,null,null,null,null,null,null,null,null,null,null,null,null,null,null,"","",""]
[null,null,null,null,null,null,null,null,null,null,null,null,null,null,null,null,null,null,null,null,null,null,null,null,null,"","",""]
[null,null,null,null,null,null,null,null,null,null,null,null,null,null,null,null,null,null,null,null,null,null,null,null,null,"","",""]
[null,null,null,null,null,null,null,null,null,null,null,null,null,null,null,null,null,null,null,null,null,null,null,null,null,"","",""]
[null,null,null,null,null,null,null,null,null,null,null,null,null,null,null,null,null,null,null,null,null,null,null,null,null,"","",""]
[null,null,null,null,null,null,null,null,null,null,null,null,null,null,null,null,null,null,null,null,null,null,null,null,null,"","",""]
[null,null,null,null,null,null,null,null,null,null,null,null,null,null,null,null,null,null,null,null,null,null,null,null,null,"","",""]
[null,null,null,null,null,null,null,null,null,null,null,null,null,null,null,null,null,null,null,null,null,null,null,null,null,"","",""]
[null,null,null,null,null,null,null,null,null,null,null,null,null,null,null,null,null,null,null,null,null,null,null,null,null,"","",""]
[null,null,null,null,null,null,null,null,null,null,null,null,null,null,null,null,null,null,null,null,null,null,null,null,null,"","",""]
[null,null,null,null,null,null,null,null,null,null,null,null,null,null,null,null,null,null,null,null,null,null,null,null,null,"","",""]
[null,null,null,null,null,null,null,null,null,null,null,null,null,null,null,null,null,null,null,null,null,null,null,null,null,"","",""]
[null,null,null,null,null,null,null,null,null,null,null,null,null,null,null,null,null,null,null,null,null,null,null,null,null,"","",""]
[null,null,null,null,null,null,null,null,null,null,null,null,null,null,null,null,null,null,null,null,null,null,null,null,null,"","",""]
[null,null,null,null,null,null,null,null,null,null,null,null,null,null,null,null,null,null,null,null,null,null,null,null,null,"","",""]
[null,null,null,null,null,null,null,null,null,null,null,null,null,null,null,null,null,null,null,null,null,null,null,null,null,"","",""]
[null,null,null,null,null,null,null,null,null,null,null,null,null,null,null,null,null,null,null,null,null,null,null,null,null,"","",""]
[null,null,null,null,null,null,null,null,null,null,null,null,null,null,null,null,null,null,null,null,null,null,null,null,null,"","",""]
[null,null,null,null,null,null,null,null,null,null,null,null,null,null,null,null,null,null,null,null,null,null,null,null,null,"","",""]
[null,null,null,null,null,null,null,null,null,null,null,null,null,null,null,null,null,null,null,null,null,null,null,null,null,"","",""]
[null,null,null,null,null,null,null,null,null,null,null,null,null,null,null,null,null,null,null,null,null,null,null,null,null,"","",""]
[null,null,null,null,null,null,null,null,null,null,null,null,null,null,null,null,null,null,null,null,null,null,null,null,null,"","",""]
[null,null,null,null,null,null,null,null,null,null,null,null,null,null,null,null,null,null,null,null,null,null,null,null,null,"","",""]
[null,null,null,null,null,null,null,null,null,null,null,null,null,null,null,null,null,null,null,null,null,null,null,null,null,"","",""]
[null,null,null,null,null,null,null,null,null,null,null,null,null,null,null,null,null,null,null,null,null,null,null,null,null,"","",""]
[null,null,null,null,null,null,null,null,null,null,null,null,null,null,null,null,null,null,null,null,null,null,null,null,null,"","",""]
[null,null,null,null,null,null,null,null,null,null,null,null,null,null,null,null,null,null,null,null,null,null,null,null,null,"","",""]
[null,null,null,null,null,null,null,null,null,null,null,null,null,null,null,null,null,null,null,null,null,null,null,null,null,"","",""]
[null,null,null,null,null,null,null,null,null,null,null,null,null,null,null,null,null,null,null,null,null,null,null,null,null,"","",""]
[null,null,null,null,null,null,null,null,null,null,null,null,null,null,null,null,null,null,null,null,null,null,null,null,null,"","",""]
[null,null,null,null,null,null,null,null,null,null,null,null,null,null,null,null,null,null,null,null,null,null,null,null,null,"","",""]
[null,null,null,null,null,null,null,null,null,null,null,null,null,null,null,null,null,null,null,null,null,null,null,null,null,"","",""]
[null,null,null,null,null,null,null,null,null,null,null,null,null,null,null,null,null,null,null,null,null,null,null,null,null,"","",""]
[null,null,null,null,null,null,null,null,null,null,null,null,null,null,null,null,null,null,null,null,null,null,null,null,null,"","",""]
[null,null,null,null,null,null,null,null,null,null,null,null,null,null,null,null,null,null,null,null,null,null,null,null,null,"","",""]
[null,null,null,null,null,null,null,null,null,null,null,null,null,null,null,null,null,null,null,null,null,null,null,null,null,"","",""]
[null,null,null,null,null,null,null,null,null,null,null,null,null,null,null,null,null,null,null,null,null,null,null,null,null,"","",""]
[null,null,null,null,null,null,null,null,null,null,null,null,null,null,null,null,null,null,null,null,null,null,null,null,null,"","",""]
[null,null,null,null,null,null,null,null,null,null,null,null,null,null,null,null,null,null,null,null,null,null,null,null,null,"","",""]
[null,null,null,null,null,null,null,null,null,null,null,null,null,null,null,null,null,null,null,null,null,null,null,null,null,"","",""]
[null,null,null,null,null,null,null,null,null,null,null,null,null,null,null,null,null,null,null,null,null,null,null,null,null,"","",""]
[null,null,null,null,null,null,null,null,null,null,null,null,null,null,null,null,null,null,null,null,null,null,null,null,null,"","",""]
[null,null,null,null,null,null,null,null,null,null,null,null,null,null,null,null,null,null,null,null,null,null,null,null,null,"","",""]
[null,null,null,null,null,null,null,null,null,null,null,null,null,null,null,null,null,null,null,null,null,null,null,null,null,"","",""]
[null,null,null,null,null,null,null,null,null,null,null,null,null,null,null,null,null,null,null,null,null,null,null,null,null,"","",""]
[null,null,null,null,null,null,null,null,null,null,null,null,null,null,null,null,null,null,null,null,null,null,null,null,null,"","",""]
[null,null,null,null,null,null,null,null,null,null,null,null,null,null,null,null,null,null,null,null,null,null,null,null,null,"","",""]
[null,null,null,null,null,null,null,null,null,null,null,null,null,null,null,null,null,null,null,null,null,null,null,null,null,"","",""]
[null,null,null,null,null,null,null,null,null,null,null,null,null,null,null,null,null,null,null,null,null,null,null,null,null,"","",""]
[null,null,null,null,null,null,null,null,null,null,null,null,null,null,null,null,null,null,null,null,null,null,null,null,null,"","",""]
[null,null,null,null,null,null,null,null,null,null,null,null,null,null,null,null,null,null,null,null,null,null,null,null,null,"","",""]
[null,null,null,null,null,null,null,null,null,null,null,null,null,null,null,null,null,null,null,null,null,null,null,null,null,"","",""]
[null,null,null,null,null,null,null,null,null,null,null,null,null,null,null,null,null,null,null,null,null,null,null,null,null,"","",""]
[null,null,null,null,null,null,null,null,null,null,null,null,null,null,null,null,null,null,null,null,null,null,null,null,null,"","",""]
[null,null,null,null,null,null,null,null,null,null,null,null,null,null,null,null,null,null,null,null,null,null,null,null,null,"","",""]
[null,null,null,null,null,null,null,null,null,null,null,null,null,null,null,null,null,null,null,null,null,null,null,null,null,"","",""]
[null,null,null,null,null,null,null,null,null,null,null,null,null,null,null,null,null,null,null,null,null,null,null,null,null,"","",""]
[null,null,null,null,null,null,null,null,null,null,null,null,null,null,null,null,null,null,null,null,null,null,null,null,null,"","",""]
[null,null,null,null,null,null,null,null,null,null,null,null,null,null,null,null,null,null,null,null,null,null,null,null,null,"","",""]
[null,null,null,null,null,null,null,null,null,null,null,null,null,null,null,null,null,null,null,null,null,null,null,null,null,"","",""]
[null,null,null,null,null,null,null,null,null,null,null,null,null,null,null,null,null,null,null,null,null,null,null,null,null,"","",""]
[null,null,null,null,null,null,null,null,null,null,null,null,null,null,null,null,null,null,null,null,null,null,null,null,null,{"$f":"_xlfn.IFNA(VLOOKUP(Y902,AA$1:AB$1228,2,FALSE),\"\")","v":""},{"$f":"IF(Y902=\"\",\"\",LARGE(Y$1:Y$1228,AB902))","v":""},""]
[null,null,null,null,null,null,null,null,null,null,null,null,null,null,null,null,null,null,null,null,null,null,null,null,null,"","",{"$f":"IF(Y903=\"\",\"\",AB902+1)","v":""}]
[null,null,null,null,null,null,null,null,null,null,null,null,null,null,null,null,null,null,null,null,null,null,null,null,null,"","",""]
[null,null,null,null,null,null,null,null,null,null,null,null,null,null,null,null,null,null,null,null,null,null,null,null,null,"","",""]
[null,null,null,null,null,null,null,null,null,null,null,null,null,null,null,null,null,null,null,null,null,null,null,null,null,"","",""]
[null,null,null,null,null,null,null,null,null,null,null,null,null,null,null,null,null,null,null,null,null,null,null,null,null,"","",""]
[null,null,null,null,null,null,null,null,null,null,null,null,null,null,null,null,null,null,null,null,null,null,null,null,null,"","",""]
[null,null,null,null,null,null,null,null,null,null,null,null,null,null,null,null,null,null,null,null,null,null,null,null,null,"","",""]
[null,null,null,null,null,null,null,null,null,null,null,null,null,null,null,null,null,null,null,null,null,null,null,null,null,"","",""]
[null,null,null,null,null,null,null,null,null,null,null,null,null,null,null,null,null,null,null,null,null,null,null,null,null,"","",""]
[null,null,null,null,null,null,null,null,null,null,null,null,null,null,null,null,null,null,null,null,null,null,null,null,null,"","",""]
[null,null,null,null,null,null,null,null,null,null,null,null,null,null,null,null,null,null,null,null,null,null,null,null,null,"","",""]
[null,null,null,null,null,null,null,null,null,null,null,null,null,null,null,null,null,null,null,null,null,null,null,null,null,"","",""]
[null,null,null,null,null,null,null,null,null,null,null,null,null,null,null,null,null,null,null,null,null,null,null,null,null,"","",""]
[null,null,null,null,null,null,null,null,null,null,null,null,null,null,null,null,null,null,null,null,null,null,null,null,null,"","",""]
[null,null,null,null,null,null,null,null,null,null,null,null,null,null,null,null,null,null,null,null,null,null,null,null,null,"","",""]
[null,null,null,null,null,null,null,null,null,null,null,null,null,null,null,null,null,null,null,null,null,null,null,null,null,"","",""]
[null,null,null,null,null,null,null,null,null,null,null,null,null,null,null,null,null,null,null,null,null,null,null,null,null,"","",""]
[null,null,null,null,null,null,null,null,null,null,null,null,null,null,null,null,null,null,null,null,null,null,null,null,null,"","",""]
[null,null,null,null,null,null,null,null,null,null,null,null,null,null,null,null,null,null,null,null,null,null,null,null,null,"","",""]
[null,null,null,null,null,null,null,null,null,null,null,null,null,null,null,null,null,null,null,null,null,null,null,null,null,"","",""]
[null,null,null,null,null,null,null,null,null,null,null,null,null,null,null,null,null,null,null,null,null,null,null,null,null,"","",""]
[null,null,null,null,null,null,null,null,null,null,null,null,null,null,null,null,null,null,null,null,null,null,null,null,null,"","",""]
[null,null,null,null,null,null,null,null,null,null,null,null,null,null,null,null,null,null,null,null,null,null,null,null,null,"","",""]
[null,null,null,null,null,null,null,null,null,null,null,null,null,null,null,null,null,null,null,null,null,null,null,null,null,"","",""]
[null,null,null,null,null,null,null,null,null,null,null,null,null,null,null,null,null,null,null,null,null,null,null,null,null,"","",""]
[null,null,null,null,null,null,null,null,null,null,null,null,null,null,null,null,null,null,null,null,null,null,null,null,null,"","",""]
[null,null,null,null,null,null,null,null,null,null,null,null,null,null,null,null,null,null,null,null,null,null,null,null,null,"","",""]
[null,null,null,null,null,null,null,null,null,null,null,null,null,null,null,null,null,null,null,null,null,null,null,null,null,"","",""]
[null,null,null,null,null,null,null,null,null,null,null,null,null,null,null,null,null,null,null,null,null,null,null,null,null,"","",""]
[null,null,null,null,null,null,null,null,null,null,null,null,null,null,null,null,null,null,null,null,null,null,null,null,null,"","",""]
[null,null,null,null,null,null,null,null,null,null,null,null,null,null,null,null,null,null,null,null,null,null,null,null,null,"","",""]
[null,null,null,null,null,null,null,null,null,null,null,null,null,null,null,null,null,null,null,null,null,null,null,null,null,"","",""]
[null,null,null,null,null,null,null,null,null,null,null,null,null,null,null,null,null,null,null,null,null,null,null,null,null,"","",""]
[null,null,null,null,null,null,null,null,null,null,null,null,null,null,null,null,null,null,null,null,null,null,null,null,null,"","",""]
[null,null,null,null,null,null,null,null,null,null,null,null,null,null,null,null,null,null,null,null,null,null,null,null,null,"","",""]
[null,null,null,null,null,null,null,null,null,null,null,null,null,null,null,null,null,null,null,null,null,null,null,null,null,"","",""]
[null,null,null,null,null,null,null,null,null,null,null,null,null,null,null,null,null,null,null,null,null,null,null,null,null,"","",""]
[null,null,null,null,null,null,null,null,null,null,null,null,null,null,null,null,null,null,null,null,null,null,null,null,null,"","",""]
[null,null,null,null,null,null,null,null,null,null,null,null,null,null,null,null,null,null,null,null,null,null,null,null,null,"","",""]
[null,null,null,null,null,null,null,null,null,null,null,null,null,null,null,null,null,null,null,null,null,null,null,null,null,"","",""]
[null,null,null,null,null,null,null,null,null,null,null,null,null,null,null,null,null,null,null,null,null,null,null,null,null,"","",""]
[null,null,null,null,null,null,null,null,null,null,null,null,null,null,null,null,null,null,null,null,null,null,null,null,null,"","",""]
[null,null,null,null,null,null,null,null,null,null,null,null,null,null,null,null,null,null,null,null,null,null,null,null,null,"","",""]
[null,null,null,null,null,null,null,null,null,null,null,null,null,null,null,null,null,null,null,null,null,null,null,null,null,"","",""]
[null,null,null,null,null,null,null,null,null,null,null,null,null,null,null,null,null,null,null,null,null,null,null,null,null,"","",""]
[null,null,null,null,null,null,null,null,null,null,null,null,null,null,null,null,null,null,null,null,null,null,null,null,null,"","",""]
[null,null,null,null,null,null,null,null,null,null,null,null,null,null,null,null,null,null,null,null,null,null,null,null,null,"","",""]
[null,null,null,null,null,null,null,null,null,null,null,null,null,null,null,null,null,null,null,null,null,null,null,null,null,"","",""]
[null,null,null,null,null,null,null,null,null,null,null,null,null,null,null,null,null,null,null,null,null,null,null,null,null,"","",""]
[null,null,null,null,null,null,null,null,null,null,null,null,null,null,null,null,null,null,null,null,null,null,null,null,null,"","",""]
[null,null,null,null,null,null,null,null,null,null,null,null,null,null,null,null,null,null,null,null,null,null,null,null,null,"","",""]
[null,null,null,null,null,null,null,null,null,null,null,null,null,null,null,null,null,null,null,null,null,null,null,null,null,"","",""]
[null,null,null,null,null,null,null,null,null,null,null,null,null,null,null,null,null,null,null,null,null,null,null,null,null,"","",""]
[null,null,null,null,null,null,null,null,null,null,null,null,null,null,null,null,null,null,null,null,null,null,null,null,null,"","",""]
[null,null,null,null,null,null,null,null,null,null,null,null,null,null,null,null,null,null,null,null,null,null,null,null,null,"","",""]
[null,null,null,null,null,null,null,null,null,null,null,null,null,null,null,null,null,null,null,null,null,null,null,null,null,"","",""]
[null,null,null,null,null,null,null,null,null,null,null,null,null,null,null,null,null,null,null,null,null,null,null,null,null,"","",""]
[null,null,null,null,null,null,null,null,null,null,null,null,null,null,null,null,null,null,null,null,null,null,null,null,null,"","",""]
[null,null,null,null,null,null,null,null,null,null,null,null,null,null,null,null,null,null,null,null,null,null,null,null,null,"","",""]
[null,null,null,null,null,null,null,null,null,null,null,null,null,null,null,null,null,null,null,null,null,null,null,null,null,"","",""]
[null,null,null,null,null,null,null,null,null,null,null,null,null,null,null,null,null,null,null,null,null,null,null,null,null,"","",""]
[null,null,null,null,null,null,null,null,null,null,null,null,null,null,null,null,null,null,null,null,null,null,null,null,null,"","",""]
[null,null,null,null,null,null,null,null,null,null,null,null,null,null,null,null,null,null,null,null,null,null,null,null,null,"","",""]
[null,null,null,null,null,null,null,null,null,null,null,null,null,null,null,null,null,null,null,null,null,null,null,null,null,{"$f":"_xlfn.IFNA(VLOOKUP(Y966,AA$1:AB$1228,2,FALSE),\"\")","v":""},{"$f":"IF(Y966=\"\",\"\",LARGE(Y$1:Y$1228,AB966))","v":""},""]
[null,null,null,null,null,null,null,null,null,null,null,null,null,null,null,null,null,null,null,null,null,null,null,null,null,"","",{"$f":"IF(Y967=\"\",\"\",AB966+1)","v":""}]
[null,null,null,null,null,null,null,null,null,null,null,null,null,null,null,null,null,null,null,null,null,null,null,null,null,"","",""]
[null,null,null,null,null,null,null,null,null,null,null,null,null,null,null,null,null,null,null,null,null,null,null,null,null,"","",""]
[null,null,null,null,null,null,null,null,null,null,null,null,null,null,null,null,null,null,null,null,null,null,null,null,null,"","",""]
[null,null,null,null,null,null,null,null,null,null,null,null,null,null,null,null,null,null,null,null,null,null,null,null,null,"","",""]
[null,null,null,null,null,null,null,null,null,null,null,null,null,null,null,null,null,null,null,null,null,null,null,null,null,"","",""]
[null,null,null,null,null,null,null,null,null,null,null,null,null,null,null,null,null,null,null,null,null,null,null,null,null,"","",""]
[null,null,null,null,null,null,null,null,null,null,null,null,null,null,null,null,null,null,null,null,null,null,null,null,null,"","",""]
[null,null,null,null,null,null,null,null,null,null,null,null,null,null,null,null,null,null,null,null,null,null,null,null,null,"","",""]
[null,null,null,null,null,null,null,null,null,null,null,null,null,null,null,null,null,null,null,null,null,null,null,null,null,"","",""]
[null,null,null,null,null,null,null,null,null,null,null,null,null,null,null,null,null,null,null,null,null,null,null,null,null,"","",""]
[null,null,null,null,null,null,null,null,null,null,null,null,null,null,null,null,null,null,null,null,null,null,null,null,null,"","",""]
[null,null,null,null,null,null,null,null,null,null,null,null,null,null,null,null,null,null,null,null,null,null,null,null,null,"","",""]
[null,null,null,null,null,null,null,null,null,null,null,null,null,null,null,null,null,null,null,null,null,null,null,null,null,"","",""]
[null,null,null,null,null,null,null,null,null,null,null,null,null,null,null,null,null,null,null,null,null,null,null,null,null,"","",""]
[null,null,null,null,null,null,null,null,null,null,null,null,null,null,null,null,null,null,null,null,null,null,null,null,null,"","",""]
[null,null,null,null,null,null,null,null,null,null,null,null,null,null,null,null,null,null,null,null,null,null,null,null,null,"","",""]
[null,null,null,null,null,null,null,null,null,null,null,null,null,null,null,null,null,null,null,null,null,null,null,null,null,"","",""]
[null,null,null,null,null,null,null,null,null,null,null,null,null,null,null,null,null,null,null,null,null,null,null,null,null,"","",""]
[null,null,null,null,null,null,null,null,null,null,null,null,null,null,null,null,null,null,null,null,null,null,null,null,null,"","",""]
[null,null,null,null,null,null,null,null,null,null,null,null,null,null,null,null,null,null,null,null,null,null,null,null,null,"","",""]
[null,null,null,null,null,null,null,null,null,null,null,null,null,null,null,null,null,null,null,null,null,null,null,null,null,"","",""]
[null,null,null,null,null,null,null,null,null,null,null,null,null,null,null,null,null,null,null,null,null,null,null,null,null,"","",""]
[null,null,null,null,null,null,null,null,null,null,null,null,null,null,null,null,null,null,null,null,null,null,null,null,null,"","",""]
[null,null,null,null,null,null,null,null,null,null,null,null,null,null,null,null,null,null,null,null,null,null,null,null,null,"","",""]
[null,null,null,null,null,null,null,null,null,null,null,null,null,null,null,null,null,null,null,null,null,null,null,null,null,"","",""]
[null,null,null,null,null,null,null,null,null,null,null,null,null,null,null,null,null,null,null,null,null,null,null,null,null,"","",""]
[null,null,null,null,null,null,null,null,null,null,null,null,null,null,null,null,null,null,null,null,null,null,null,null,null,"","",""]
[null,null,null,null,null,null,null,null,null,null,null,null,null,null,null,null,null,null,null,null,null,null,null,null,null,"","",""]
[null,null,null,null,null,null,null,null,null,null,null,null,null,null,null,null,null,null,null,null,null,null,null,null,null,"","",""]
[null,null,null,null,null,null,null,null,null,null,null,null,null,null,null,null,null,null,null,null,null,null,null,null,null,"","",""]
[null,null,null,null,null,null,null,null,null,null,null,null,null,null,null,null,null,null,null,null,null,null,null,null,null,"","",""]
[null,null,null,null,null,null,null,null,null,null,null,null,null,null,null,null,null,null,null,null,null,null,null,null,null,"","",""]
[null,null,null,null,null,null,null,null,null,null,null,null,null,null,null,null,null,null,null,null,null,null,null,null,null,"","",""]
[null,null,null,null,null,null,null,null,null,null,null,null,null,null,null,null,null,null,null,null,null,null,null,null,null,"","",""]
[null,null,null,null,null,null,null,null,null,null,null,null,null,null,null,null,null,null,null,null,null,null,null,null,null,"","",""]
[null,null,null,null,null,null,null,null,null,null,null,null,null,null,null,null,null,null,null,null,null,null,null,null,null,"","",""]
[null,null,null,null,null,null,null,null,null,null,null,null,null,null,null,null,null,null,null,null,null,null,null,null,null,"","",""]
[null,null,null,null,null,null,null,null,null,null,null,null,null,null,null,null,null,null,null,null,null,null,null,null,null,"","",""]
[null,null,null,null,null,null,null,null,null,null,null,null,null,null,null,null,null,null,null,null,null,null,null,null,null,"","",""]
[null,null,null,null,null,null,null,null,null,null,null,null,null,null,null,null,null,null,null,null,null,null,null,null,null,"","",""]
[null,null,null,null,null,null,null,null,null,null,null,null,null,null,null,null,null,null,null,null,null,null,null,null,null,"","",""]
[null,null,null,null,null,null,null,null,null,null,null,null,null,null,null,null,null,null,null,null,null,null,null,null,null,"","",""]
[null,null,null,null,null,null,null,null,null,null,null,null,null,null,null,null,null,null,null,null,null,null,null,null,null,"","",""]
[null,null,null,null,null,null,null,null,null,null,null,null,null,null,null,null,null,null,null,null,null,null,null,null,null,"","",""]
[null,null,null,null,null,null,null,null,null,null,null,null,null,null,null,null,null,null,null,null,null,null,null,null,null,"","",""]
[null,null,null,null,null,null,null,null,null,null,null,null,null,null,null,null,null,null,null,null,null,null,null,null,null,"","",""]
[null,null,null,null,null,null,null,null,null,null,null,null,null,null,null,null,null,null,null,null,null,null,null,null,null,"","",""]
[null,null,null,null,null,null,null,null,null,null,null,null,null,null,null,null,null,null,null,null,null,null,null,null,null,"","",""]
[null,null,null,null,null,null,null,null,null,null,null,null,null,null,null,null,null,null,null,null,null,null,null,null,null,"","",""]
[null,null,null,null,null,null,null,null,null,null,null,null,null,null,null,null,null,null,null,null,null,null,null,null,null,"","",""]
[null,null,null,null,null,null,null,null,null,null,null,null,null,null,null,null,null,null,null,null,null,null,null,null,null,"","",""]
[null,null,null,null,null,null,null,null,null,null,null,null,null,null,null,null,null,null,null,null,null,null,null,null,null,"","",""]
[null,null,null,null,null,null,null,null,null,null,null,null,null,null,null,null,null,null,null,null,null,null,null,null,null,"","",""]
[null,null,null,null,null,null,null,null,null,null,null,null,null,null,null,null,null,null,null,null,null,null,null,null,null,"","",""]
[null,null,null,null,null,null,null,null,null,null,null,null,null,null,null,null,null,null,null,null,null,null,null,null,null,"","",""]
[null,null,null,null,null,null,null,null,null,null,null,null,null,null,null,null,null,null,null,null,null,null,null,null,null,"","",""]
[null,null,null,null,null,null,null,null,null,null,null,null,null,null,null,null,null,null,null,null,null,null,null,null,null,"","",""]
[null,null,null,null,null,null,null,null,null,null,null,null,null,null,null,null,null,null,null,null,null,null,null,null,null,"","",""]
[null,null,null,null,null,null,null,null,null,null,null,null,null,null,null,null,null,null,null,null,null,null,null,null,null,"","",""]
[null,null,null,null,null,null,null,null,null,null,null,null,null,null,null,null,null,null,null,null,null,null,null,null,null,"","",""]
[null,null,null,null,null,null,null,null,null,null,null,null,null,null,null,null,null,null,null,null,null,null,null,null,null,"","",""]
[null,null,null,null,null,null,null,null,null,null,null,null,null,null,null,null,null,null,null,null,null,null,null,null,null,"","",""]
[null,null,null,null,null,null,null,null,null,null,null,null,null,null,null,null,null,null,null,null,null,null,null,null,null,{"$f":"_xlfn.IFNA(VLOOKUP(Y1030,AA$1:AB$1228,2,FALSE),\"\")","v":""},{"$f":"IF(Y1030=\"\",\"\",LARGE(Y$1:Y$1228,AB1030))","v":""},""]
[null,null,null,null,null,null,null,null,null,null,null,null,null,null,null,null,null,null,null,null,null,null,null,null,null,"","",{"$f":"IF(Y1031=\"\",\"\",AB1030+1)","v":""}]
[null,null,null,null,null,null,null,null,null,null,null,null,null,null,null,null,null,null,null,null,null,null,null,null,null,"","",""]
[null,null,null,null,null,null,null,null,null,null,null,null,null,null,null,null,null,null,null,null,null,null,null,null,null,"","",""]
[null,null,null,null,null,null,null,null,null,null,null,null,null,null,null,null,null,null,null,null,null,null,null,null,null,"","",""]
[null,null,null,null,null,null,null,null,null,null,null,null,null,null,null,null,null,null,null,null,null,null,null,null,null,"","",""]
[null,null,null,null,null,null,null,null,null,null,null,null,null,null,null,null,null,null,null,null,null,null,null,null,null,"","",""]
[null,null,null,null,null,null,null,null,null,null,null,null,null,null,null,null,null,null,null,null,null,null,null,null,null,"","",""]
[null,null,null,null,null,null,null,null,null,null,null,null,null,null,null,null,null,null,null,null,null,null,null,null,null,"","",""]
[null,null,null,null,null,null,null,null,null,null,null,null,null,null,null,null,null,null,null,null,null,null,null,null,null,"","",""]
[null,null,null,null,null,null,null,null,null,null,null,null,null,null,null,null,null,null,null,null,null,null,null,null,null,"","",""]
[null,null,null,null,null,null,null,null,null,null,null,null,null,null,null,null,null,null,null,null,null,null,null,null,null,"","",""]
[null,null,null,null,null,null,null,null,null,null,null,null,null,null,null,null,null,null,null,null,null,null,null,null,null,"","",""]
[null,null,null,null,null,null,null,null,null,null,null,null,null,null,null,null,null,null,null,null,null,null,null,null,null,"","",""]
[null,null,null,null,null,null,null,null,null,null,null,null,null,null,null,null,null,null,null,null,null,null,null,null,null,"","",""]
[null,null,null,null,null,null,null,null,null,null,null,null,null,null,null,null,null,null,null,null,null,null,null,null,null,"","",""]
[null,null,null,null,null,null,null,null,null,null,null,null,null,null,null,null,null,null,null,null,null,null,null,null,null,"","",""]
[null,null,null,null,null,null,null,null,null,null,null,null,null,null,null,null,null,null,null,null,null,null,null,null,null,"","",""]
[null,null,null,null,null,null,null,null,null,null,null,null,null,null,null,null,null,null,null,null,null,null,null,null,null,"","",""]
[null,null,null,null,null,null,null,null,null,null,null,null,null,null,null,null,null,null,null,null,null,null,null,null,null,"","",""]
[null,null,null,null,null,null,null,null,null,null,null,null,null,null,null,null,null,null,null,null,null,null,null,null,null,"","",""]
[null,null,null,null,null,null,null,null,null,null,null,null,null,null,null,null,null,null,null,null,null,null,null,null,null,"","",""]
[null,null,null,null,null,null,null,null,null,null,null,null,null,null,null,null,null,null,null,null,null,null,null,null,null,"","",""]
[null,null,null,null,null,null,null,null,null,null,null,null,null,null,null,null,null,null,null,null,null,null,null,null,null,"","",""]
[null,null,null,null,null,null,null,null,null,null,null,null,null,null,null,null,null,null,null,null,null,null,null,null,null,"","",""]
[null,null,null,null,null,null,null,null,null,null,null,null,null,null,null,null,null,null,null,null,null,null,null,null,null,"","",""]
[null,null,null,null,null,null,null,null,null,null,null,null,null,null,null,null,null,null,null,null,null,null,null,null,null,"","",""]
[null,null,null,null,null,null,null,null,null,null,null,null,null,null,null,null,null,null,null,null,null,null,null,null,null,"","",""]
[null,null,null,null,null,null,null,null,null,null,null,null,null,null,null,null,null,null,null,null,null,null,null,null,null,"","",""]
[null,null,null,null,null,null,null,null,null,null,null,null,null,null,null,null,null,null,null,null,null,null,null,null,null,"","",""]
[null,null,null,null,null,null,null,null,null,null,null,null,null,null,null,null,null,null,null,null,null,null,null,null,null,"","",""]
[null,null,null,null,null,null,null,null,null,null,null,null,null,null,null,null,null,null,null,null,null,null,null,null,null,"","",""]
[null,null,null,null,null,null,null,null,null,null,null,null,null,null,null,null,null,null,null,null,null,null,null,null,null,"","",""]
[null,null,null,null,null,null,null,null,null,null,null,null,null,null,null,null,null,null,null,null,null,null,null,null,null,"","",""]
[null,null,null,null,null,null,null,null,null,null,null,null,null,null,null,null,null,null,null,null,null,null,null,null,null,"","",""]
[null,null,null,null,null,null,null,null,null,null,null,null,null,null,null,null,null,null,null,null,null,null,null,null,null,"","",""]
[null,null,null,null,null,null,null,null,null,null,null,null,null,null,null,null,null,null,null,null,null,null,null,null,null,"","",""]
[null,null,null,null,null,null,null,null,null,null,null,null,null,null,null,null,null,null,null,null,null,null,null,null,null,"","",""]
[null,null,null,null,null,null,null,null,null,null,null,null,null,null,null,null,null,null,null,null,null,null,null,null,null,"","",""]
[null,null,null,null,null,null,null,null,null,null,null,null,null,null,null,null,null,null,null,null,null,null,null,null,null,"","",""]
[null,null,null,null,null,null,null,null,null,null,null,null,null,null,null,null,null,null,null,null,null,null,null,null,null,"","",""]
[null,null,null,null,null,null,null,null,null,null,null,null,null,null,null,null,null,null,null,null,null,null,null,null,null,"","",""]
[null,null,null,null,null,null,null,null,null,null,null,null,null,null,null,null,null,null,null,null,null,null,null,null,null,"","",""]
[null,null,null,null,null,null,null,null,null,null,null,null,null,null,null,null,null,null,null,null,null,null,null,null,null,"","",""]
[null,null,null,null,null,null,null,null,null,null,null,null,null,null,null,null,null,null,null,null,null,null,null,null,null,"","",""]
[null,null,null,null,null,null,null,null,null,null,null,null,null,null,null,null,null,null,null,null,null,null,null,null,null,"","",""]
[null,null,null,null,null,null,null,null,null,null,null,null,null,null,null,null,null,null,null,null,null,null,null,null,null,"","",""]
[null,null,null,null,null,null,null,null,null,null,null,null,null,null,null,null,null,null,null,null,null,null,null,null,null,"","",""]
[null,null,null,null,null,null,null,null,null,null,null,null,null,null,null,null,null,null,null,null,null,null,null,null,null,"","",""]
[null,null,null,null,null,null,null,null,null,null,null,null,null,null,null,null,null,null,null,null,null,null,null,null,null,"","",""]
[null,null,null,null,null,null,null,null,null,null,null,null,null,null,null,null,null,null,null,null,null,null,null,null,null,"","",""]
[null,null,null,null,null,null,null,null,null,null,null,null,null,null,null,null,null,null,null,null,null,null,null,null,null,"","",""]
[null,null,null,null,null,null,null,null,null,null,null,null,null,null,null,null,null,null,null,null,null,null,null,null,null,"","",""]
[null,null,null,null,null,null,null,null,null,null,null,null,null,null,null,null,null,null,null,null,null,null,null,null,null,"","",""]
[null,null,null,null,null,null,null,null,null,null,null,null,null,null,null,null,null,null,null,null,null,null,null,null,null,"","",""]
[null,null,null,null,null,null,null,null,null,null,null,null,null,null,null,null,null,null,null,null,null,null,null,null,null,"","",""]
[null,null,null,null,null,null,null,null,null,null,null,null,null,null,null,null,null,null,null,null,null,null,null,null,null,"","",""]
[null,null,null,null,null,null,null,null,null,null,null,null,null,null,null,null,null,null,null,null,null,null,null,null,null,"","",""]
[null,null,null,null,null,null,null,null,null,null,null,null,null,null,null,null,null,null,null,null,null,null,null,null,null,"","",""]
[null,null,null,null,null,null,null,null,null,null,null,null,null,null,null,null,null,null,null,null,null,null,null,null,null,"","",""]
[null,null,null,null,null,null,null,null,null,null,null,null,null,null,null,null,null,null,null,null,null,null,null,null,null,"","",""]
[null,null,null,null,null,null,null,null,null,null,null,null,null,null,null,null,null,null,null,null,null,null,null,null,null,"","",""]
[null,null,null,null,null,null,null,null,null,null,null,null,null,null,null,null,null,null,null,null,null,null,null,null,null,"","",""]
[null,null,null,null,null,null,null,null,null,null,null,null,null,null,null,null,null,null,null,null,null,null,null,null,null,"","",""]
[null,null,null,null,null,null,null,null,null,null,null,null,null,null,null,null,null,null,null,null,null,null,null,null,null,{"$f":"_xlfn.IFNA(VLOOKUP(Y1094,AA$1:AB$1228,2,FALSE),\"\")","v":""},{"$f":"IF(Y1094=\"\",\"\",LARGE(Y$1:Y$1228,AB1094))","v":""},""]
[null,null,null,null,null,null,null,null,null,null,null,null,null,null,null,null,null,null,null,null,null,null,null,null,null,"","",{"$f":"IF(Y1095=\"\",\"\",AB1094+1)","v":""}]
[null,null,null,null,null,null,null,null,null,null,null,null,null,null,null,null,null,null,null,null,null,null,null,null,null,"","",""]
[null,null,null,null,null,null,null,null,null,null,null,null,null,null,null,null,null,null,null,null,null,null,null,null,null,"","",""]
[null,null,null,null,null,null,null,null,null,null,null,null,null,null,null,null,null,null,null,null,null,null,null,null,null,"","",""]
[null,null,null,null,null,null,null,null,null,null,null,null,null,null,null,null,null,null,null,null,null,null,null,null,null,"","",""]
[null,null,null,null,null,null,null,null,null,null,null,null,null,null,null,null,null,null,null,null,null,null,null,null,null,"","",""]
[null,null,null,null,null,null,null,null,null,null,null,null,null,null,null,null,null,null,null,null,null,null,null,null,null,"","",""]
[null,null,null,null,null,null,null,null,null,null,null,null,null,null,null,null,null,null,null,null,null,null,null,null,null,"","",""]
[null,null,null,null,null,null,null,null,null,null,null,null,null,null,null,null,null,null,null,null,null,null,null,null,null,"","",""]
[null,null,null,null,null,null,null,null,null,null,null,null,null,null,null,null,null,null,null,null,null,null,null,null,null,"","",""]
[null,null,null,null,null,null,null,null,null,null,null,null,null,null,null,null,null,null,null,null,null,null,null,null,null,"","",""]
[null,null,null,null,null,null,null,null,null,null,null,null,null,null,null,null,null,null,null,null,null,null,null,null,null,"","",""]
[null,null,null,null,null,null,null,null,null,null,null,null,null,null,null,null,null,null,null,null,null,null,null,null,null,"","",""]
[null,null,null,null,null,null,null,null,null,null,null,null,null,null,null,null,null,null,null,null,null,null,null,null,null,"","",""]
[null,null,null,null,null,null,null,null,null,null,null,null,null,null,null,null,null,null,null,null,null,null,null,null,null,"","",""]
[null,null,null,null,null,null,null,null,null,null,null,null,null,null,null,null,null,null,null,null,null,null,null,null,null,"","",""]
[null,null,null,null,null,null,null,null,null,null,null,null,null,null,null,null,null,null,null,null,null,null,null,null,null,"","",""]
[null,null,null,null,null,null,null,null,null,null,null,null,null,null,null,null,null,null,null,null,null,null,null,null,null,"","",""]
[null,null,null,null,null,null,null,null,null,null,null,null,null,null,null,null,null,null,null,null,null,null,null,null,null,"","",""]
[null,null,null,null,null,null,null,null,null,null,null,null,null,null,null,null,null,null,null,null,null,null,null,null,null,"","",""]
[null,null,null,null,null,null,null,null,null,null,null,null,null,null,null,null,null,null,null,null,null,null,null,null,null,"","",""]
[null,null,null,null,null,null,null,null,null,null,null,null,null,null,null,null,null,null,null,null,null,null,null,null,null,"","",""]
[null,null,null,null,null,null,null,null,null,null,null,null,null,null,null,null,null,null,null,null,null,null,null,null,null,"","",""]
[null,null,null,null,null,null,null,null,null,null,null,null,null,null,null,null,null,null,null,null,null,null,null,null,null,"","",""]
[null,null,null,null,null,null,null,null,null,null,null,null,null,null,null,null,null,null,null,null,null,null,null,null,null,"","",""]
[null,null,null,null,null,null,null,null,null,null,null,null,null,null,null,null,null,null,null,null,null,null,null,null,null,"","",""]
[null,null,null,null,null,null,null,null,null,null,null,null,null,null,null,null,null,null,null,null,null,null,null,null,null,"","",""]
[null,null,null,null,null,null,null,null,null,null,null,null,null,null,null,null,null,null,null,null,null,null,null,null,null,"","",""]
[null,null,null,null,null,null,null,null,null,null,null,null,null,null,null,null,null,null,null,null,null,null,null,null,null,"","",""]
[null,null,null,null,null,null,null,null,null,null,null,null,null,null,null,null,null,null,null,null,null,null,null,null,null,"","",""]
[null,null,null,null,null,null,null,null,null,null,null,null,null,null,null,null,null,null,null,null,null,null,null,null,null,"","",""]
[null,null,null,null,null,null,null,null,null,null,null,null,null,null,null,null,null,null,null,null,null,null,null,null,null,"","",""]
[null,null,null,null,null,null,null,null,null,null,null,null,null,null,null,null,null,null,null,null,null,null,null,null,null,"","",""]
[null,null,null,null,null,null,null,null,null,null,null,null,null,null,null,null,null,null,null,null,null,null,null,null,null,"","",""]
[null,null,null,null,null,null,null,null,null,null,null,null,null,null,null,null,null,null,null,null,null,null,null,null,null,"","",""]
[null,null,null,null,null,null,null,null,null,null,null,null,null,null,null,null,null,null,null,null,null,null,null,null,null,"","",""]
[null,null,null,null,null,null,null,null,null,null,null,null,null,null,null,null,null,null,null,null,null,null,null,null,null,"","",""]
[null,null,null,null,null,null,null,null,null,null,null,null,null,null,null,null,null,null,null,null,null,null,null,null,null,"","",""]
[null,null,null,null,null,null,null,null,null,null,null,null,null,null,null,null,null,null,null,null,null,null,null,null,null,"","",""]
[null,null,null,null,null,null,null,null,null,null,null,null,null,null,null,null,null,null,null,null,null,null,null,null,null,"","",""]
[null,null,null,null,null,null,null,null,null,null,null,null,null,null,null,null,null,null,null,null,null,null,null,null,null,"","",""]
[null,null,null,null,null,null,null,null,null,null,null,null,null,null,null,null,null,null,null,null,null,null,null,null,null,"","",""]
[null,null,null,null,null,null,null,null,null,null,null,null,null,null,null,null,null,null,null,null,null,null,null,null,null,"","",""]
[null,null,null,null,null,null,null,null,null,null,null,null,null,null,null,null,null,null,null,null,null,null,null,null,null,"","",""]
[null,null,null,null,null,null,null,null,null,null,null,null,null,null,null,null,null,null,null,null,null,null,null,null,null,"","",""]
[null,null,null,null,null,null,null,null,null,null,null,null,null,null,null,null,null,null,null,null,null,null,null,null,null,"","",""]
[null,null,null,null,null,null,null,null,null,null,null,null,null,null,null,null,null,null,null,null,null,null,null,null,null,"","",""]
[null,null,null,null,null,null,null,null,null,null,null,null,null,null,null,null,null,null,null,null,null,null,null,null,null,"","",""]
[null,null,null,null,null,null,null,null,null,null,null,null,null,null,null,null,null,null,null,null,null,null,null,null,null,"","",""]
[null,null,null,null,null,null,null,null,null,null,null,null,null,null,null,null,null,null,null,null,null,null,null,null,null,"","",""]
[null,null,null,null,null,null,null,null,null,null,null,null,null,null,null,null,null,null,null,null,null,null,null,null,null,"","",""]
[null,null,null,null,null,null,null,null,null,null,null,null,null,null,null,null,null,null,null,null,null,null,null,null,null,"","",""]
[null,null,null,null,null,null,null,null,null,null,null,null,null,null,null,null,null,null,null,null,null,null,null,null,null,"","",""]
[null,null,null,null,null,null,null,null,null,null,null,null,null,null,null,null,null,null,null,null,null,null,null,null,null,"","",""]
[null,null,null,null,null,null,null,null,null,null,null,null,null,null,null,null,null,null,null,null,null,null,null,null,null,"","",""]
[null,null,null,null,null,null,null,null,null,null,null,null,null,null,null,null,null,null,null,null,null,null,null,null,null,"","",""]
[null,null,null,null,null,null,null,null,null,null,null,null,null,null,null,null,null,null,null,null,null,null,null,null,null,"","",""]
[null,null,null,null,null,null,null,null,null,null,null,null,null,null,null,null,null,null,null,null,null,null,null,null,null,"","",""]
[null,null,null,null,null,null,null,null,null,null,null,null,null,null,null,null,null,null,null,null,null,null,null,null,null,"","",""]
[null,null,null,null,null,null,null,null,null,null,null,null,null,null,null,null,null,null,null,null,null,null,null,null,null,"","",""]
[null,null,null,null,null,null,null,null,null,null,null,null,null,null,null,null,null,null,null,null,null,null,null,null,null,"","",""]
[null,null,null,null,null,null,null,null,null,null,null,null,null,null,null,null,null,null,null,null,null,null,null,null,null,"","",""]
[null,null,null,null,null,null,null,null,null,null,null,null,null,null,null,null,null,null,null,null,null,null,null,null,null,"","",""]
[null,null,null,null,null,null,null,null,null,null,null,null,null,null,null,null,null,null,null,null,null,null,null,null,null,{"$f":"_xlfn.IFNA(VLOOKUP(Y1158,AA$1:AB$1228,2,FALSE),\"\")","v":""},{"$f":"IF(Y1158=\"\",\"\",LARGE(Y$1:Y$1228,AB1158))","v":""},""]
[null,null,null,null,null,null,null,null,null,null,null,null,null,null,null,null,null,null,null,null,null,null,null,null,null,"","",{"$f":"IF(Y1159=\"\",\"\",AB1158+1)","v":""}]
[null,null,null,null,null,null,null,null,null,null,null,null,null,null,null,null,null,null,null,null,null,null,null,null,null,"","",""]
[null,null,null,null,null,null,null,null,null,null,null,null,null,null,null,null,null,null,null,null,null,null,null,null,null,"","",""]
[null,null,null,null,null,null,null,null,null,null,null,null,null,null,null,null,null,null,null,null,null,null,null,null,null,"","",""]
[null,null,null,null,null,null,null,null,null,null,null,null,null,null,null,null,null,null,null,null,null,null,null,null,null,"","",""]
[null,null,null,null,null,null,null,null,null,null,null,null,null,null,null,null,null,null,null,null,null,null,null,null,null,"","",""]
[null,null,null,null,null,null,null,null,null,null,null,null,null,null,null,null,null,null,null,null,null,null,null,null,null,"","",""]
[null,null,null,null,null,null,null,null,null,null,null,null,null,null,null,null,null,null,null,null,null,null,null,null,null,"","",""]
[null,null,null,null,null,null,null,null,null,null,null,null,null,null,null,null,null,null,null,null,null,null,null,null,null,"","",""]
[null,null,null,null,null,null,null,null,null,null,null,null,null,null,null,null,null,null,null,null,null,null,null,null,null,"","",""]
[null,null,null,null,null,null,null,null,null,null,null,null,null,null,null,null,null,null,null,null,null,null,null,null,null,"","",""]
[null,null,null,null,null,null,null,null,null,null,null,null,null,null,null,null,null,null,null,null,null,null,null,null,null,"","",""]
[null,null,null,null,null,null,null,null,null,null,null,null,null,null,null,null,null,null,null,null,null,null,null,null,null,"","",""]
[null,null,null,null,null,null,null,null,null,null,null,null,null,null,null,null,null,null,null,null,null,null,null,null,null,"","",""]
[null,null,null,null,null,null,null,null,null,null,null,null,null,null,null,null,null,null,null,null,null,null,null,null,null,"","",""]
[null,null,null,null,null,null,null,null,null,null,null,null,null,null,null,null,null,null,null,null,null,null,null,null,null,"","",""]
[null,null,null,null,null,null,null,null,null,null,null,null,null,null,null,null,null,null,null,null,null,null,null,null,null,"","",""]
[null,null,null,null,null,null,null,null,null,null,null,null,null,null,null,null,null,null,null,null,null,null,null,null,null,"","",""]
[null,null,null,null,null,null,null,null,null,null,null,null,null,null,null,null,null,null,null,null,null,null,null,null,null,"","",""]
[null,null,null,null,null,null,null,null,null,null,null,null,null,null,null,null,null,null,null,null,null,null,null,null,null,"","",""]
[null,null,null,null,null,null,null,null,null,null,null,null,null,null,null,null,null,null,null,null,null,null,null,null,null,"","",""]
[null,null,null,null,null,null,null,null,null,null,null,null,null,null,null,null,null,null,null,null,null,null,null,null,null,"","",""]
[null,null,null,null,null,null,null,null,null,null,null,null,null,null,null,null,null,null,null,null,null,null,null,null,null,"","",""]
[null,null,null,null,null,null,null,null,null,null,null,null,null,null,null,null,null,null,null,null,null,null,null,null,null,"","",""]
[null,null,null,null,null,null,null,null,null,null,null,null,null,null,null,null,null,null,null,null,null,null,null,null,null,"","",""]
[null,null,null,null,null,null,null,null,null,null,null,null,null,null,null,null,null,null,null,null,null,null,null,null,null,"","",""]
[null,null,null,null,null,null,null,null,null,null,null,null,null,null,null,null,null,null,null,null,null,null,null,null,null,"","",""]
[null,null,null,null,null,null,null,null,null,null,null,null,null,null,null,null,null,null,null,null,null,null,null,null,null,"","",""]
[null,null,null,null,null,null,null,null,null,null,null,null,null,null,null,null,null,null,null,null,null,null,null,null,null,"","",""]
[null,null,null,null,null,null,null,null,null,null,null,null,null,null,null,null,null,null,null,null,null,null,null,null,null,"","",""]
[null,null,null,null,null,null,null,null,null,null,null,null,null,null,null,null,null,null,null,null,null,null,null,null,null,"","",""]
[null,null,null,null,null,null,null,null,null,null,null,null,null,null,null,null,null,null,null,null,null,null,null,null,null,"","",""]
[null,null,null,null,null,null,null,null,null,null,null,null,null,null,null,null,null,null,null,null,null,null,null,null,null,"","",""]
[null,null,null,null,null,null,null,null,null,null,null,null,null,null,null,null,null,null,null,null,null,null,null,null,null,"","",""]
[null,null,null,null,null,null,null,null,null,null,null,null,null,null,null,null,null,null,null,null,null,null,null,null,null,"","",""]
[null,null,null,null,null,null,null,null,null,null,null,null,null,null,null,null,null,null,null,null,null,null,null,null,null,"","",""]
[null,null,null,null,null,null,null,null,null,null,null,null,null,null,null,null,null,null,null,null,null,null,null,null,null,"","",""]
[null,null,null,null,null,null,null,null,null,null,null,null,null,null,null,null,null,null,null,null,null,null,null,null,null,"","",""]
[null,null,null,null,null,null,null,null,null,null,null,null,null,null,null,null,null,null,null,null,null,null,null,null,null,"","",""]
[null,null,null,null,null,null,null,null,null,null,null,null,null,null,null,null,null,null,null,null,null,null,null,null,null,"","",""]
[null,null,null,null,null,null,null,null,null,null,null,null,null,null,null,null,null,null,null,null,null,null,null,null,null,"","",""]
[null,null,null,null,null,null,null,null,null,null,null,null,null,null,null,null,null,null,null,null,null,null,null,null,null,"","",""]
[null,null,null,null,null,null,null,null,null,null,null,null,null,null,null,null,null,null,null,null,null,null,null,null,null,"","",""]
[null,null,null,null,null,null,null,null,null,null,null,null,null,null,null,null,null,null,null,null,null,null,null,null,null,"","",""]
[null,null,null,null,null,null,null,null,null,null,null,null,null,null,null,null,null,null,null,null,null,null,null,null,null,"","",""]
[null,null,null,null,null,null,null,null,null,null,null,null,null,null,null,null,null,null,null,null,null,null,null,null,null,"","",""]
[null,null,null,null,null,null,null,null,null,null,null,null,null,null,null,null,null,null,null,null,null,null,null,null,null,"","",""]
[null,null,null,null,null,null,null,null,null,null,null,null,null,null,null,null,null,null,null,null,null,null,null,null,null,"","",""]
[null,null,null,null,null,null,null,null,null,null,null,null,null,null,null,null,null,null,null,null,null,null,null,null,null,"","",""]
[null,null,null,null,null,null,null,null,null,null,null,null,null,null,null,null,null,null,null,null,null,null,null,null,null,"","",""]
[null,null,null,null,null,null,null,null,null,null,null,null,null,null,null,null,null,null,null,null,null,null,null,null,null,"","",""]
[null,null,null,null,null,null,null,null,null,null,null,null,null,null,null,null,null,null,null,null,null,null,null,null,null,"","",""]
[null,null,null,null,null,null,null,null,null,null,null,null,null,null,null,null,null,null,null,null,null,null,null,null,null,"","",""]
[null,null,null,null,null,null,null,null,null,null,null,null,null,null,null,null,null,null,null,null,null,null,null,null,null,"","",""]
[null,null,null,null,null,null,null,null,null,null,null,null,null,null,null,null,null,null,null,null,null,null,null,null,null,"","",""]
[null,null,null,null,null,null,null,null,null,null,null,null,null,null,null,null,null,null,null,null,null,null,null,null,null,"","",""]
[null,null,null,null,null,null,null,null,null,null,null,null,null,null,null,null,null,null,null,null,null,null,null,null,null,"","",""]
[null,null,null,null,null,null,null,null,null,null,null,null,null,null,null,null,null,null,null,null,null,null,null,null,null,"","",""]
[null,null,null,null,null,null,null,null,null,null,null,null,null,null,null,null,null,null,null,null,null,null,null,null,null,"","",""]
[null,null,null,null,null,null,null,null,null,null,null,null,null,null,null,null,null,null,null,null,null,null,null,null,null,"","",""]
[null,null,null,null,null,null,null,null,null,null,null,null,null,null,null,null,null,null,null,null,null,null,null,null,null,"","",""]
[null,null,null,null,null,null,null,null,null,null,null,null,null,null,null,null,null,null,null,null,null,null,null,null,null,"","",""]
[null,null,null,null,null,null,null,null,null,null,null,null,null,null,null,null,null,null,null,null,null,null,null,null,null,"","",""]
[null,null,null,null,null,null,null,null,null,null,null,null,null,null,null,null,null,null,null,null,null,null,null,null,null,{"$f":"_xlfn.IFNA(VLOOKUP(Y1222,AA$1:AB$1228,2,FALSE),\"\")","v":""},{"$f":"IF(Y1222=\"\",\"\",LARGE(Y$1:Y$1228,AB1222))","v":""},""]
[null,null,null,null,null,null,null,null,null,null,null,null,null,null,null,null,null,null,null,null,null,null,null,null,null,"","",{"$f":"IF(Y1223=\"\",\"\",AB1222+1)","v":""}]
[null,null,null,null,null,null,null,null,null,null,null,null,null,null,null,null,null,null,null,null,null,null,null,null,null,"","",""]
[null,null,null,null,null,null,null,null,null,null,null,null,null,null,null,null,null,null,null,null,null,null,null,null,null,"","",""]
[null,null,null,null,null,null,null,null,null,null,null,null,null,null,null,null,null,null,null,null,null,null,null,null,null,"","",""]
[null,null,null,null,null,null,null,null,null,null,null,null,null,null,null,null,null,null,null,null,null,null,null,null,null,"","",""]
[null,null,null,null,null,null,null,null,null,null,null,null,null,null,null,null,null,null,null,null,null,null,null,null,null,"","",""]

{"sheet":"Step 10","index":10,"n_rows":12,"n_cols":70,"rows_kept":12,"cut":false,"hidden":false,"merged":[[2,0,2,1],[3,0,3,1],[4,0,10,0],[11,0,11,1],[0,0,1,1]]}
["STEP 10: Results for all sites \n(risks and opportunities)"]
[]
["Site #",null,1001,1002,1003,1004,1005,1006,1007,1008,1009,1010,1011,1012,1013,1014,1015,1016,1017,1018,1019,1020,1021,1022,1023,1024,1025,1026,1027,1028,1029,1030,1031,1032,1033,1034,1035,1036,1037,1038,1039,1040,1041,1042,1043,1044,1045,1046,1047,1048,1049,1050,1051,1052,1053,1054,1055,1056,1057,1058,1059,1060,1061,1062,1063,1064,1065,1066,1067,1068]
["Site Name",null,"40 Orchard Ave","35 Radford Rd","Keon Park Childrens Hub","J C Donath Reserve","3A Carson St","2 Ovay St","Wilsons Blvd Reserve","102 Broadhurst Ave","Edwardes Lake Park","J E Moore Park","Fyfe St Reserve","T W Andrews Reserve (small)","T W Andrews Reserve (large)","Bundoora Park Golf Course","Arch Gibson Reserve","HP Zwar Park","McDonnell Park West","Northcote Golf Course","58 Chifley Drive","Penders Park","Preston City Oval","Ray Bramham Gardens","3 Newman St","NARC Option East","LW Williams Reserve","29 Cygna Street","Larkins Reserve","Roberts Reserve","Batman Park","Johnson Park","AH Capp Reserve","Egans Reserve","Bill Lawry Oval","NARC Option West","Merri Park","McDonnell Park South (Wetland)","26 Linaker Drive","Rubie Thomson Reserve","HLT Oulton Park","T H Westfield Reserve","8 Grand Ave","Darebin Parklands","Beenak Wetland Expansion","John Cain Park East","TW Blake Park","W Ruthven Vc Reserve","CH Sullivan Memorial Park","26 Kerang Ave","McDonnell Park South (Bioretention)","7 Chenies St","60 Ayr St","102 Holt Parade","1 Browning St","3 Campbell St","CH Sullivan Memorial Park","CT Barling Reserve","KP Hardiman Reserve North","La Trobe Uni Hockey Club","60 Winter Crescent","68 Winter Crescent","Breavington Park","209 Wingrove St","2 Broomfield Ave","22 McComas St","Progress Park","Ruthven Linear Reserve","LE Cotchin Reserve","Mayer Park"]
["Risks","Landfill","-","-","-","-","-","-","-","-","-","-","-","-","-","-","-","-","-","-","-","-","-","Ray Bramham Gardens (Waste type: Likely Putrescible)","-","-","-","-","-","-","-","-","-","Strettle St Reserve (Waste type: Unknown)","-","-","-","-","-","Rubie Thompson Reserve (Waste type: Unknown)","-","T H Westfield Reserve (Waste type: Unknown)","-","-","-","-","-","-","-","-","-","-","-","-","-","-","-","-","-","-","-","-","-","-","-","-","-","-","-","-"]
[null,"Cultural heritage","Watercourse","Watercourse","-","-","-","-","Watercourse","Watercourse","Watercourse and Waterbody","Waterbody","-","-","-","-","Watercourse","-","-","Watercourse","Watercourse","-","-","-","-","-","-","-","-","-","-","-","Watercourse","Watercourse","Watercourse","-","Watercourse","-","-","-","-","Watercourse","-","Watercourse","Watercourse","Watercourse","-","-","Watercourse","Watercourse","-","Watercourse","Watercourse","Watercourse","Watercourse","Watercourse","Watercourse","Watercourse","Registered site","Watercourse","Watercourse","Watercourse","-","-","-","-","-","-","-","-"]
[null,"Natural heritage","-","Level: National","Level: Local","Level: Local","-","-","-","Level: Local","Level: State","Level: Local","-","Level: Local","Level: Local","Level: National","Level: State","-","-","Level: Regional","Level: Regional","Level: Local","-","-","-","-","-","-","-","-","-","-","Level: Regional","Level: Regional","Level: Local","-","Level: State","-","Level: State","-","-","-","Level: Regional","Level: State","Level: State","Level: Local","-","-","Level: National","Level: State","-","Level: State","Level: National","Level: National","Level: Regional","Level: Regional","Level: National","Level: State","Level: State","Level: State","Level: State","Level: State","-","-","-","-","-","-","Level: National","-"]
[null,"Biodiversity","Rank: 6. Highest Significance, Fauna: Warty Bell Frog (EPBC, TWV); Striped Legless Lizard (FFG, TWV);Fat-tailed Dunnart (TWW); Nankeen Night Herron (TWW), Flora: Dianella amoena (EPBC, VROTS); Callitriche brachycarpa (EPBC, FFG, VROTS); Tripogon loliiformis (VROTS), Threats: Public Use 1; Public Use 2; Weeds","Rank: 3. Medium Significance, Fauna: None recorded, Flora: None recorded, Threats: Unknown","-","-","-","-","-","-","Rank: 6. Highest Significance, Fauna: Brown Goshawk (EPBC); Hardhead (EPBC,TWV); Great Egret (EPBC,FFG, TWV); Warty Bell Frog (EPBC,FFG,TWV); Grey Goshawk (EPBC); Australian Pelican (EPBC); Black Swan (EPBC); Nankeen Night Herron (EPBC,TWV); Clamorous Reed-Warblers (EPBC), Flora: None recorded, Threats: Connectivity","-","-","-","-","Rank: 6. Highest Significance, Fauna: Swift Parrot (EPBC, FFG, VROTS); Nankeen Night Heron (TWV); Royal Spoonbill (TWV); Great Egret (FFG, TWV); Warty Bell Frog (EPBC, TWV)., Flora: Dianella amoena (EPBC, VROTS), Threats: Weeds; Connectivity; Public Use 1; Dieback.","-","-","-","Rank: 2. Moderate Significance, Fauna: None recorded, Flora: None recorded, Threats: Management; Weeds; Public Use 2","-","Rank: 1. Low Significance, Fauna: None recorded, Flora: None recorded, Threats: Unknown","-","-","-","-","-","-","-","-","-","-","Rank: 4. High Significance, Fauna: None recorded, Flora: None recorded, Threats: Erosion; Weeds","Rank: 3. Medium Significance, Fauna: None recorded, Flora: None recorded, Threats: Weeds","Rank: 5. Very High Significance, Fauna: Large-footed Myotis (TWV); Swift Parrot (EPBC,FFG,TWV), Flora: None recorded, Threats: Weeds","-","Rank: 5. Very High Significance, Fauna: None recorded, Flora: None recorded, Threats: Erosion; Weeds","-","-","-","-","-","-","Rank: 6. Highest Significance, Fauna: Nankeen Night Heron (EPBC,TWV); Royal Spoonbill (TWV); Cattle Egret (EPBC); Pacific Black Duck (EPBC); Warty Bell Frog (EPBC,FFG,TWV), Flora: None recorded, Threats: Weeds","-","-","-","-","Rank: 6. Highest Significance, Fauna: Brown Goshawk (EPBC); Little Egret (EPBC, FFG, TWV); Great Egret (EPBC, FFG, TWV); Warty Bell Frog (EPBC, FFG, TWV), Flora: None recorded, Threats: Weeds, Management","Rank: 2. Moderate Significance, Fauna: None recorded, Flora: None recorded, Threats: Unknown","-","-","-","-","-","Rank: 3. Medium Significance, Fauna: None recorded, Flora: None recorded, Threats: Weeds","Rank: 6. Highest Significance, Fauna: Brown Goshawk (EPBC); Little Egret (EPBC, FFG, TWV); Great Egret (EPBC, FFG, TWV); Warty Bell Frog (EPBC, FFG, TWV), Flora: None recorded, Threats: Weeds, Management","-","Rank: 2. Moderate Significance, Fauna: None recorded, Flora: None recorded, Threats: Unknown","Rank: 2. Moderate Significance, Fauna: None recorded, Flora: None recorded, Threats: Unknown","-","-","-","-","-","-","-","-","-","-"]
[null,"Geological","-","-","-","-","-","-","-","-","-","-","-","-","-","-","-","-","-","-","-","-","-","-","-","-","-","-","-","-","-","-","-","-","-","-","-","-","-","-","-","-","-","-","-","-","-","-","-","-","-","-","-","-","-","-","-","-","-","-","-","-","-","-","-","-","-","-","-","-"]
[null,"Flooding","Within the 1 in 100yr Underground Drain flood extent","-","Adjacent to (but not within) the 1 in 100yr Underground Drain flood extent","Within the 1 in 100yr Underground Drain flood extent","-","-","-","Within the 1 in 100yr Natural Drain flood extent","Within the 1 in 100yr Natural Drain flood extent","-","Within the 1 in 100yr Underground Drain flood extent","-","-","-","Within the 1 in 100yr Underground Drain flood extent","-","Within the 1 in 100yr Underground Drain flood extent","Within the 1 in 100yr Natural Drain flood extent","-","-","-","Within the 1 in 100yr Underground Drain flood extent","Within the 1 in 100yr Underground Drain flood extent","Within the 1 in 100yr Underground Drain flood extent","-","Within the 1 in 100yr Underground Drain flood extent","-","-","-","-","Within the 1 in 100yr Natural Drain flood extent","Within the 1 in 100yr Natural Drain flood extent","-","-","-","Within the 1 in 100yr Underground Drain flood extent","-","-","Within the 1 in 100yr Underground Drain flood extent","Within the 1 in 100yr Underground Drain flood extent","-","-","Within the 1 in 100yr Underground Drain flood extent","-","-","-","-","-","Within the 1 in 100yr Underground Drain flood extent","Within the 1 in 100yr Underground and Natural Drain flood extent","Within the 1 in 100yr Natural Drain flood extent","Within the 1 in 100yr Natural Drain flood extent","Within the 1 in 100yr Natural Drain flood extent","-","-","Within the 1 in 100yr Natural Drain flood extent","Within the 1 in 100yr Natural Drain flood extent","Within the 1 in 100yr Natural Drain flood extent","Within the 1 in 100yr Natural Drain flood extent","Within the 1 in 100yr Natural Drain flood extent","-","-","Within the 1 in 100yr Underground Drain flood extent","-","-","-","-","-"]
[null,"Other","-","-","-","Active community group. ","-","-","-","-","This site is one of the most frequently used area of Edwardes Lake park and would not be an appropriate treatment site. There are small pavillions and bbq’s there and it adjoins the playground (which has recently been refurbished).","Adjacent to sports ground. ","Adjacent to playground.","Adjacent to playground.","Adjacent to playground.","More detailed data and modelling required.","Would require the removal of existing trees. ","Adjacent to sports ground. ","Adjacent to sports ground. ","-","-","-","Adjacent to sports ground, constrained site.","-","Adjacent to playground, congested site.","-","Adjacent to playground, congested site.","-","-","-","-","-","Adjacent to sports ground. ","-","-","-","There are competing uses at this site (e.g. sport, leisure and recreation). Baseball would likely want to retain this site. ","Adjacent to sports ground. ","-","High use area, active community group. ","-","-","Adjacent to sports ground. ","Leachate management system in operation at Darebin Parklands. ","-","-","Adjacent to sports ground. ","Adjacent to sports ground. ","-","Would require lengthy transfer main. ","Adjacent to sports ground. ","Would require the removal of recently planted trees. ","-","-","-","Would require lengthy transfer main. Adjacent to playground.","Would require lengthy transfer main. ","-","Would require lengthy transfer main. ","-","Would require lengthy transfer main. ","Would require lengthy transfer main. ","-","-","Adjacent to playground. ","Adjacent to playground. ","-","-","-","Adjacent to sports ground. "]
["Opportunities and Consultation Comments",null,"-","-","A wetland is included in the Masterplan for this site. The proposed design would include a larger wetland and underground storage for reuse. Preference to keep approach in keeping with masterplan but modify to expand wetland and reuse. Masterplan shows wetland adjacent oval. It is important that any design include an appropriate buffer and potentially a fence to seperate asset from the sports ground (probably larger buffer than what is inlcuded on the existing Masterplan is required). MW have a water supply pipe adjacent road, wanted to install an electrolysis system in park at one stage. The demand at this site may be higher with irrigaton of additional ovals planned in the near future. Site 1003 preferred over site 1004.","Site 1003 preferred over site 1004.","-","-","-","-","Treatment only site. Reuse for adjacent open space could potentially be supplied direclty from Edwardes Lake park (not considered / costed as part of this ranking). ","Treatment only site. Reuse for adjacent open space could potentially be supplied direclty from Edwardes Lake park (not considered / costed as part of this ranking). ","Site 1066 preferred over site 1011. Preference is to pursue stormwater harvesting opportunities over treatment only opportunities."," Site 1015 preferred over site 1012 and 1013 as it includes stormwater harvesting."," Site 1015 preferred over site 1012 and 1013 as it includes stormwater harvesting.","High uncertainty. The existing system is complex and more information is required to model it accurately. Based on Workshop 1 this site was not selected to progress to the concept design stage there currently isn't a large driver to supply extra water to Bundoora Park (partly due to recent period of higher rainfall). "," Site 1015 preferred over site 1012 and 1013 as it includes stormwater harvesting. Sites 1015, 1043 and 1050 have all been designed as stormwater harvesting systems that supply water for irrigation of John Hall Reserve. ","Site 1016 preferred over site 1021 as there is more space at site 1046 and an asset would provide greater community benefit. Currently used as overflow parking for TAFE but this shouldn't prevent using as wetland. Revised site area is on Council owned land. It would be good to have a water feature here as it would add to the amenity of the park and improve open space facilities for uni students. Overall considered a good site with potentially beneficial amenity outcomes as well as irrigation. ","Site 1036 preferred over sites 1017, 1024, 1034 and 1038. Limited site, active community and potential landfill.","Not selected for concept design as the future use of this site is uncertain. ","Not a preferred site, too small.","-","Site 1016 preferred over site 1021 as there is more space at site 1046 and an asset would provide greater community benefit.  This is an average site, not preferred given limited space. Could potentially bury tank in mound (banks) on south side of oval. Anecdotal evidence that mound could contain contaminated soil. Could expand treatment to the west (first tree has already been replaced, new tree easier to replace than established). Trees are heritage - elms and oaks, need to be replaced like for like. Subsurface drainage installed in oval so underground tank below oval not preferred.","Site 1022 preferred over site 1023. Potential to incoporate treatment and flood retarding function at the site. Engineering has considered potential for surface flood detention at this site. There is a flood issue at railway crossing and potential for an integrated treatment and detention response. Existing wetland on site treats local catchment and dries out. Wetland is lined and could be expanded. Site is a landfill with clay cap so depends on depth of cap as to whether works viable, need geotechnical to confirm. This site generally considered a good opportunity subject to positive geotechnical testing. ","Site 1022 preferred over site 1023 but site 1022 could be eliminated by geotechnical investigation. ","Site 1036 preferred over sites 1017, 1024, 1034 and 1038. Redevelopment of NARC proposed with masterplan to be prepared, scope currenlty unclear but expected to occupy most of site with potential to build a new centre while keeping existing centre operational for construction.  This will likely eliminate 1024 as an option with the site being built on. Site is a former landfill. Leaky pipes between pool and treatment plant to south mean ground is saturated in vicinty.","-","-","No active use, potential but treatment only.","-","-","-","-","-","There are plans for redevelopment of this site in the future, it may be a good contender for an undergound reuse scheme. A lot of rock in area. Main drains are close to surface in this area.","Site 1036 preferred over sites 1017, 1024, 1034 and 1038. Considered unappealing to put a wetland/bioretention into limited space in front of aquatic centre. Not ideally suited for a treatment system.","-","Site 1036 (wetland) and site 1049 (bioretention) are exactly the same but use different treatment types and therefore have different treatment footprints. Site 1036 preferred over sites 1017, 1024, 1034 and 1038. This is a large area that is not really used and presents as a good option. The nets are fairly new but could be relocated. Trees could also be removed. A minimum buffer of 20m between the edge of the sports oval and start of batter has been provided. ","-","Site 1036 preferred over sites 1017, 1024, 1034 and 1038.","Works already going ahead at this site. Possibility for treatment in south-east corner where there is some unused and redundant land that is flat and currently used as detention. Could be converted to provide bioretention and underground storage.","Yarra are looking at doing something in this area. Darebin could irrigated one site with harvested stormwater from this site, Yarra could irrigate multiple sites. Could look at a shared project led by Yarra but likely a more difficult project.","-","Complex site that needs to consider the leachate management system in operation at Darebin Parklands. Sub-surface irrigation present at the site. ","Sites 1015, 1043 and 1050 have all been designed as stormwater harvesting systems that supply water for irrigation of John Hall Reserve. Site 1015 has been selected for concept design.","-","-","Potential to incoporate treatment and flood retarding function at the site.  Engineering has been looking at potential for surface flood detention at this site. Frequent flooding occurs downstream. The site area has been expanded to include the vacant grassed area adjacent to the cricket nets. The old pavillion is being demolished.","-","-","Site 1036 (wetland) and site 1049 (bioretention) are exactly the same but use different treatment types and therefore have different treatment footprints. Site 1036 preferred over sites 1017, 1024, 1034 and 1038. This is a large area that is not really used and presents as a good option. The nets are fairly new but could be relocated. Trees could also be removed. A minimum buffer of 20m between the edge of the sports oval and start of batter has been provided. ","Sites 1015, 1043 and 1050 have all been designed as stormwater harvesting systems that supply water for irrigation of John Hall Reserve. Site 1015 has been selected for concept design.","-","High uncertainty. The existing system is complex and more information is required to model it accurately. Based on Workshop 1 this site was not selected to progress to the concept design stage there currently isn't a large driver to supply extra water to Bundoora Park (partly due to recent period of higher rainfall). ","-","-","-","-","-","-","-","-","-","There may be additional land available here following grade seperation. During the grade separation this area is likely going to be used as a construction site. Engineering has reviewed previously for flood detention potential. Council owned site was too small to be feasible, purchasing land for sale adjacent was not cost effective. Major flooding issue exists downstream. Opportunity at Grange Rd & Ravenscourt Pl also investigated but no significant catchment in that location. ","Constrained space.","Small site, not preferred.","-","Need to confirm before proceeding to concept design. Site 1066 preferred over site 1011. Preference is to pursue stormwater harvesting opportunities over treatment only opportunities.","May be conflict in use at the site as already very space constrained. ","-"]

{"sheet":"Step 11","index":11,"n_rows":35,"n_cols":7,"rows_kept":35,"cut":false,"hidden":false,"merged":[[1,6,1,8],[34,5,34,14],[33,5,33,14],[32,5,32,14],[31,5,31,14],[30,5,30,14],[29,5,29,14],[28,5,28,14],[27,5,27,14],[1,3,1,4],[2,3,2,4],[3,3,3,4],[4,3,4,4],[21,1,24,1],[22,2,23,2],[13,3,14,3],[15,3,16,3],[19,3,19,4],[20,3,20,4],[5,3,5,4],[6,3,6,4],[7,3,7,4],[34,1,34,4],[27,1,33,3],[25,1,25,4],[26,1,26,4],[0,0,0,5],[19,1,20,2],[13,1,16,2],[7,1,12,2],[5,1,6,2],[1,1,4,2],[17,1,18,2],[17,3,17,4],[18,3,18,4],[8,3,8,4],[9,3,9,4],[10,3,12,3]]}
["STEP 11: Individual site summary"]
[{"$f":"1","v":1},"Site",null,"#",null,null,"Enter site number here. "]
[{"$f":"A2+1","v":2},null,null,"Name",null,{"$f":"_xlfn.IFNA(VLOOKUP($F$2,'Step 9'!$6:$1048576,'Step 11'!$A3,FALSE),\"\")","v":""}]
[{"$f":"A3+1","v":3},null,null,"Suburb",null,{"$f":"_xlfn.IFNA(VLOOKUP($F$2,'Step 9'!$6:$1048576,'Step 11'!$A4,FALSE),\"\")","v":""}]
[4,null,null,"Catchment Location",null,{"$f":"_xlfn.IFNA(VLOOKUP($F$2,'Step 9'!$6:$1048576,'Step 11'!$A5,FALSE),\"\")","v":""}]
[5,"Catchment ",null,"Total Area (ha)",null,{"$f":"_xlfn.IFNA(VLOOKUP($F$2,'Step 9'!$6:$1048576,'Step 11'!$A6,FALSE),\"\")","v":""}]
[6,null,null,"Directly Connected Imperviousness (DCI)",null,{"$f":"_xlfn.IFNA(VLOOKUP($F$2,'Step 9'!$6:$1048576,'Step 11'!$A7,FALSE),\"\")","v":""}]
[7,"Treatment Performance ",null,"Type",null,{"$f":"_xlfn.IFNA(VLOOKUP($F$2,'Step 9'!$6:$1048576,'Step 11'!$A8,FALSE),\"\")","v":""}]
[8,null,null,"Area (m2)",null,{"$f":"_xlfn.IFNA(VLOOKUP($F$2,'Step 9'!$6:$1048576,'Step 11'!$A9,FALSE),\"\")","v":""}]
[9,null,null,"Runoff Reduction (ML/yr)",null,{"$f":"_xlfn.IFNA(VLOOKUP($F$2,'Step 9'!$6:$1048576,'Step 11'!$A10,FALSE),\"\")","v":""}]
[10,null,null,"Pollutant Load Reductions (kg/yr)","TSS",{"$f":"_xlfn.IFNA(VLOOKUP($F$2,'Step 9'!$6:$1048576,'Step 11'!$A11,FALSE),\"\")","v":""}]
[11,null,null,null,"TP",{"$f":"_xlfn.IFNA(VLOOKUP($F$2,'Step 9'!$6:$1048576,'Step 11'!$A12,FALSE),\"\")","v":""}]
[12,null,null,null,"TN",{"$f":"_xlfn.IFNA(VLOOKUP($F$2,'Step 9'!$6:$1048576,'Step 11'!$A13,FALSE),\"\")","v":""}]
[13,"Stormwater Reuse",null,"Demand","Name",{"$f":"_xlfn.IFNA(VLOOKUP($F$2,'Step 9'!$6:$1048576,'Step 11'!$A14,FALSE),\"\")","v":""}]
[14,null,null,null,"Volume (ML/yr)",{"$f":"_xlfn.IFNA(VLOOKUP($F$2,'Step 9'!$6:$1048576,'Step 11'!$A15,FALSE),\"\")","v":""}]
[15,null,null,"Supply","Volume (ML/yr)",{"$f":"_xlfn.IFNA(VLOOKUP($F$2,'Step 9'!$6:$1048576,'Step 11'!$A16,FALSE),\"\")","v":""}]
[16,null,null,null,"Reliability",{"$f":"_xlfn.IFNA(VLOOKUP($F$2,'Step 9'!$6:$1048576,'Step 11'!$A17,FALSE),\"\")","v":""}]
[17,"Storage",null,"Tank Type",null,{"$f":"_xlfn.IFNA(VLOOKUP($F$2,'Step 9'!$6:$1048576,'Step 11'!$A18,FALSE),\"\")","v":""}]
[18,null,null,"Volume (kL)",null,{"$f":"_xlfn.IFNA(VLOOKUP($F$2,'Step 9'!$6:$1048576,'Step 11'!$A19,FALSE),\"\")","v":""}]
[19,"Costs",null,"Capital ($)",null,{"$f":"_xlfn.IFNA(VLOOKUP($F$2,'Step 9'!$6:$1048576,'Step 11'!$A20,FALSE),\"\")","v":""}]
[20,null,null,"Annual Maintenance ($)",null,{"$f":"_xlfn.IFNA(VLOOKUP($F$2,'Step 9'!$6:$1048576,'Step 11'!$A21,FALSE),\"\")","v":""}]
[21,"Economic Assessment","CLASS","OBJECTIVE","MEASURE"]
[22,null,"BENEFIT","Improved stormwater quality ","Value of nitrogen abatement ",{"$f":"_xlfn.IFNA(VLOOKUP($F$2,'Step 9'!$6:$1048576,'Step 11'!$A23,FALSE),\"\")","v":""}]
[23,null,null,"Increased alternative water use","Value of potable saving  ",{"$f":"_xlfn.IFNA(VLOOKUP($F$2,'Step 9'!$6:$1048576,'Step 11'!$A24,FALSE),\"\")","v":""}]
[24,null,"COST","Cost effective investment","Life cycle cost ",{"$f":"_xlfn.IFNA(VLOOKUP($F$2,'Step 9'!$6:$1048576,'Step 11'!$A25,FALSE),\"\")","v":""}]
[25,"Benefit Cost Ratio (BCR)",null,null,null,{"$f":"_xlfn.IFNA(VLOOKUP($F$2,'Step 9'!$6:$1048576,'Step 11'!$A26,FALSE),\"\")","v":""}]
[26,{"$f":"CONCATENATE('Step 9'!Z3,\" \",'Step 9'!Z4)","v":"Rank (1st = best of the total 68 sites assessed)"},null,null,null,{"$f":"_xlfn.IFNA(VLOOKUP($F$2,'Step 9'!$6:$1048576,'Step 11'!$A27,FALSE),\"\")","v":""}]
[3,"Risks",null,null,"Landfill",{"$f":"_xlfn.IFNA(HLOOKUP($F$2,'Step 10'!$3:$12,'Step 11'!$A28,FALSE),\"\")","v":""}]
[{"$f":"A28+1","v":4},null,null,null,"Cultural heritage",{"$f":"_xlfn.IFNA(HLOOKUP($F$2,'Step 10'!$3:$12,'Step 11'!A29,FALSE),\"\")","v":""}]
[{"$f":"A29+1","v":5},null,null,null,"Natural heritage",{"$f":"_xlfn.IFNA(HLOOKUP($F$2,'Step 10'!$3:$12,'Step 11'!A30,FALSE),\"\")","v":""}]
[6,null,null,null,"Biodiversity",{"$f":"_xlfn.IFNA(HLOOKUP($F$2,'Step 10'!$3:$12,'Step 11'!A31,FALSE),\"\")","v":""}]
[7,null,null,null,"Geological",{"$f":"_xlfn.IFNA(HLOOKUP($F$2,'Step 10'!$3:$12,'Step 11'!A32,FALSE),\"\")","v":""}]
[8,null,null,null,"Flooding",{"$f":"_xlfn.IFNA(HLOOKUP($F$2,'Step 10'!$3:$12,'Step 11'!A33,FALSE),\"\")","v":""}]
[9,null,null,null,"Other",{"$f":"_xlfn.IFNA(HLOOKUP($F$2,'Step 10'!$3:$12,'Step 11'!A34,FALSE),\"\")","v":""}]
[10,"Opportunities",null,null,null,{"$f":"_xlfn.IFNA(HLOOKUP($F$2,'Step 10'!$3:$12,'Step 11'!A35,FALSE),\"\")","v":""}]

{"sheet":"Calculations","index":12,"n_rows":134,"n_cols":7,"rows_kept":134,"cut":false,"hidden":true,"merged":[[10,2,10,4],[11,2,11,4],[12,2,12,4],[13,2,16,2],[13,3,13,4],[14,3,14,4],[15,3,16,3],[24,2,35,2],[24,3,24,4],[25,3,27,3],[28,3,30,3],[31,3,34,3],[35,3,35,4],[17,2,18,2],[17,3,17,4],[18,3,18,4],[19,2,23,2],[19,3,19,4],[20,3,20,4],[21,3,21,4],[22,3,22,4],[23,3,23,4],[36,2,36,4],[37,2,55,2],[37,3,37,4],[38,3,40,3],[41,3,43,3],[44,3,44,4],[45,3,45,4],[46,3,46,4],[47,3,47,4],[48,3,48,4],[58,2,81,2],[58,3,63,3],[64,3,69,3],[70,3,75,3],[76,3,81,3],[82,3,82,4],[49,3,49,4],[50,3,50,4],[51,3,51,4],[52,3,53,3],[54,3,55,3],[56,2,57,2],[56,3,56,4],[57,3,57,4],[97,2,103,2],[97,3,97,4],[98,3,98,4],[99,3,99,4],[100,3,101,3],[102,3,102,4],[103,3,103,4],[83,2,96,2],[83,3,84,3],[85,3,88,3],[89,3,89,4],[90,3,90,4],[91,3,91,4],[92,3,92,4],[93,3,94,3],[95,3,95,4],[96,3,96,4],[109,2,113,2],[109,3,109,4],[110,3,110,4],[111,3,111,4],[112,3,112,4],[113,3,113,4],[104,2,107,2],[104,3,104,4],[105,3,105,4],[106,3,106,4],[107,3,107,4],[108,3,108,4],[114,2,117,2],[114,3,114,4],[115,3,115,4],[116,3,116,4],[117,3,117,4],[118,2,121,2],[118,3,118,4],[119,3,119,4],[120,3,120,4],[121,3,121,4],[122,2,127,2],[122,3,127,3],[128,2,133,2],[128,3,128,4],[129,3,129,4],[130,3,130,4],[131,3,131,4],[132,3,132,4],[133,3,133,4]]}
[]
[]
[]
[]
[]
[]
[]
[]
[]
["Contingency Type","Column #"]
[null,1,"Site #",null,null,{"$f":"MAX('Step 9'!A:A)+1","v":1069}]
[null,{"$f":"B11+1","v":2},"Site Name",null,null,{"$f":"'Step 1'!D2","v":"IW Dole"}]
[null,{"$f":"B12+1","v":3},"Suburb",null,null,{"$f":"'Step 1'!D4","v":"Reservoir"}]
[null,4,"Catchment","Area (ha)",null,{"$f":"'Step 1'!D6","v":100}]
[null,5,null,"Catchment Type",null,"-"]
[null,6,null,"Directly Connected Imperviousness (DCI)","Area (ha)",{"$f":"F14*F17","v":30}]
[null,7,null,null,"%",0.3,"Average of sites assessed = 30%"]
[null,8,"Treatment Type","Suggested",null,{"$f":"IF(F20=0,\"Input total site area\",IF(F16=0,\"\",IF((F22/(F16*10000))>=Lists!$G$84,\"Wetland\",IF(F22<=600,\"Bioretention\",\"Wetland or Bioretention\"))))","v":"Wetland or Bioretention"}]
[null,9,null,"Adopted",null,{"$f":"IF('Step 2'!D8=\"-\",F18,'Step 2'!D8)","v":"Wetland"}]
[null,10,"Treatment Site","Total Area (m2)",null,{"$f":"'Step 2'!D2","v":5800}]
[null,11,null,"Area Reduction Factor",null,{"$f":"IF(OR('Step 2'!D4<0,'Step 2'!D4>1),'Step 2'!D3,(IF('Step 2'!D4>0,'Step 2'!D4,'Step 2'!D3)))","v":0.3}]
[null,12,null,"Available Area (m2)",null,{"$f":"ROUNDUP((1-F21)*F20,-1)","v":4060}]
[null,13,null,"Area required to treat to best practice based on adopted treatment (m2)",null,{"$f":"IF(F20=0,\"Input total site area\",IFERROR(IF(OR(NOT('Step 1'!$D$8='Step 1'!$D$7),'Step 3'!$E$2=\"Yes\"),\"MUSIC modelling is required\",ROUNDUP(VLOOKUP(F19,Lists!$B$84:$G$86,6,FALSE)*F16*10000,-1)),\"Input user defined treatment type\"))","v":"MUSIC modelling is required"}]
[null,14,null,"Utilised Area (m2)",null,{"$f":"IF(F23=\"Input user defined treatment type\",\"Input user defined treatment type\",MIN(F22:F23))","v":4060},"Modiifed to allow bioretention systems >600m2"]
[null,15,"Treatment Performance","Runoff Reduction (ML/yr)",null,{"$f":"IFERROR(IF(OR(NOT('Step 1'!$D$8='Step 1'!$D$7),'Step 3'!$E$2=\"Yes\",AND('Step 2'!$D$6>600,'Step 2'!$D$8=\"Bioretention\"),AND('Step 2'!$D$6>6000,'Step 2'!$D$8=\"Wetland\")),\"MUSIC modelling is required\",IF(LEFT($F$19,3)=LEFT(Treatment!BF74,3),Treatment!BH74*Calculations!$F$24^Treatment!BI74,IF(LEFT($F$19,3)=LEFT(Treatment!BF78,3),Treatment!BH78*Calculations!$F$24^Treatment!BI78,\"Error\"))),\"Input user defined treatment type\")","v":"MUSIC modelling is required"},"Based on design curves"]
[null,16,null,"Pollutant Load Reductions (kg/yr)","TSS",{"$f":"IFERROR(IF(OR(NOT('Step 1'!$D$8='Step 1'!$D$7),'Step 3'!$E$2=\"Yes\",AND('Step 2'!$D$6>600,'Step 2'!$D$8=\"Bioretention\"),AND('Step 2'!$D$6>6000,'Step 2'!$D$8=\"Wetland\")),\"MUSIC modelling is required\",IF(LEFT($F$19,3)=LEFT(Treatment!BF75,3),Treatment!BH75*Calculations!$F$24^Treatment!BI75,IF(LEFT($F$19,3)=LEFT(Treatment!BF79,3),Treatment!BH79*Calculations!$F$24^Treatment!BI79,\"Error\"))),\"Input user defined treatment type\")","v":"MUSIC modelling is required"},"Based on design curves"]
[null,17,null,null,"TP",{"$f":"IFERROR(IF(OR(NOT('Step 1'!$D$8='Step 1'!$D$7),'Step 3'!$E$2=\"Yes\",AND('Step 2'!$D$6>600,'Step 2'!$D$8=\"Bioretention\"),AND('Step 2'!$D$6>6000,'Step 2'!$D$8=\"Wetland\")),\"MUSIC modelling is required\",IF(LEFT($F$19,3)=LEFT(Treatment!BF76,3),Treatment!BH76*Calculations!$F$24^Treatment!BI76,IF(LEFT($F$19,3)=LEFT(Treatment!BF80,3),Treatment!BH80*Calculations!$F$24^Treatment!BI80,\"Error\"))),\"Input user defined treatment type\")","v":"MUSIC modelling is required"},"Based on design curves"]
[null,18,null,null,"TN",{"$f":"IFERROR(IF(OR(NOT('Step 1'!$D$8='Step 1'!$D$7),'Step 3'!$E$2=\"Yes\",AND('Step 2'!$D$6>600,'Step 2'!$D$8=\"Bioretention\"),AND('Step 2'!$D$6>6000,'Step 2'!$D$8=\"Wetland\")),\"MUSIC modelling is required\",IF(LEFT($F$19,3)=LEFT(Treatment!BF77,3),Treatment!BH77*Calculations!$F$24^Treatment!BI77,IF(LEFT($F$19,3)=LEFT(Treatment!BF81,3),Treatment!BH81*Calculations!$F$24^Treatment!BI81,\"Error\"))),\"Input user defined treatment type\")","v":"MUSIC modelling is required"},"Based on design curves"]
[null,19,null,"Pollutant Load Reductions (%)","TSS"]
[null,20,null,null,"TP"]
[null,21,null,null,"TN"]
[null,22,null,"Proportion of catchment treated to best practice","TSS"]
[null,23,null,null,"TP"]
[null,24,null,null,"TN"]
[null,25,null,null,"Limiting pollutant"]
[null,26,null,"PV of nitrogen abatement ($)",null,{"$f":"IFERROR(IF('Step 2'!D6<=0,0,'Step 6'!$C$14*'WSUD Maintenance Constants'!$B$15),\"MUSIC modelling is required\")","v":"MUSIC modelling is required"}]
[null,27,"Treatment to DCI Catchment Ratio"]
[null,28,"Stormwater Reuse","Potential Stormwater Supply (ML/yr)"]
[null,29,null,"Seasonal Demand: Passive Irrigation","Area (ha)",{"$f":"'Step 4'!D3","v":0}]
[null,30,null,null,"Irrigation rate (ML/ha)",3.5]
[null,31,null,null,"Volume (ML/yr) ",{"$f":"F39*F40","v":0}]
[null,32,null,"Seasonal Demand: Passive Irrigation","Area (ha)",{"$f":"'Step 4'!D6","v":0}]
[null,33,null,null,"Irrigation rate (ML/ha)",1.7]
[null,34,null,null,"Volume (ML/yr)",{"$f":"F42*F43","v":0}]
[null,35,null,"Seasonal Demand: Other (ML/yr)",null,{"$f":"'Step 4'!D9","v":0}]
[null,36,null,"Seasonal Demand: Subtotal(ML/yr)"]
[null,37,null,"Constant Demand (ML/yr)",null,{"$f":"'Step 4'!D10","v":0}]
[null,38,null,"Total Demand (ML/yr)",null,{"$f":"SUM(F41,F44,F45,F47)","v":0}]
[null,39,null,"Demand Name(s)",null,{"$f":"'Step 4'!D2","v":"JC Donath Res and IW Dole"}]
[null,40,null,"Reuse Volume (ML/yr)",null,{"$f":"'Step 4'!D14","v":17.5}]
[null,41,null,"Reuse Reliability (% of annual demand)",null,{"$f":"'Step 4'!D15","v":0.7}]
[null,42,null,"PV of Reuse Volume ($)",null,{"$f":"(-PV(DiscountRate,LengthOfAnalysis,F50)-F50)*PotableWaterPrice","v":781313.50088681595}]
[null,43,null,"Allowing for irrigation \n(3 days per week, 8 hours per day)","Flow Rate (L/s)"]
[null,44,null,null,"Flow Rate (kL/d)"]
[null,45,null,"Allowing for seasonal demands only","Flow Rate (L/s)"]
[null,46,null,null,"Flow Rate (kL/d)"]
[null,47,"Storage","Tank Type",null,{"$f":"'Step 4'!D12","v":"Below ground"}]
[null,48,null,"Volume (kL)",null,{"$f":"'Step 4'!D13","v":2500}]
[null,49,"Pipes","Source to Treatment","Peak Flow Rate (L/s)","n/a"]
[null,50,null,null,"Length (m)",{"$f":"'Step 5'!D2","v":0}]
[null,51,null,null,"Pipe Diameter (mm)",{"$f":"'Step 5'!D3","v":300}]
[null,52,null,null,{"$f":"Lists!$B$35","v":"Landuse Along Pipe Route"},"Medium density urban"]
[null,53,null,null,"Pipe Type",{"$f":"'Step 5'!D4","v":"Pressured"}]
[null,54,null,null,"Capex",{"$f":"IF(OR(F59=0,F60=0),0,IF(F63=\"Gravity\",F60*Costs!$AC$9,F60*VLOOKUP(F61,Pipes!$E$12:$K$27,Pipes!$J$28,FALSE)))","v":0}]
[null,55,null,"Treatment to Outlet","Peak Flow Rate (L/s)","n/a"]
[null,56,null,null,"Length (m)",{"$f":"'Step 5'!D5","v":0}]
[null,57,null,null,"Pipe Diameter (mm)",{"$f":"'Step 5'!D6","v":300}]
[null,58,null,null,{"$f":"Lists!$B$35","v":"Landuse Along Pipe Route"},"Medium density urban"]
[null,59,null,null,"Pipe Type",{"$f":"'Step 5'!D7","v":"Gravity"}]
[null,60,null,null,"Capex",{"$f":"IF(OR(F65=0,F66=0),0,IF(F69=\"Gravity\",F66*Costs!$AC$9,F66*VLOOKUP(F67,Pipes!$E$12:$K$27,VLOOKUP(#REF!,Lists!$B$36:$C$38,2,FALSE),FALSE)))","v":0}]
[null,61,null,"Treatment to Storage","Peak Flow Rate (L/s)","n/a"]
[null,62,null,null,"Length (m)",{"$f":"'Step 5'!D8","v":0}]
[null,63,null,null,"Pipe Diameter (mm)",{"$f":"'Step 5'!D9","v":300}]
[null,64,null,null,{"$f":"Lists!$B$35","v":"Landuse Along Pipe Route"},"Medium density urban"]
[null,65,null,null,"Pipe Type",{"$f":"'Step 5'!D10","v":"Gravity"}]
[null,66,null,null,"Capex",{"$f":"IF(OR(F71=0,F72=0),0,IF(F75=\"Gravity\",F72*Costs!$AC$9,F72*VLOOKUP(F73,Pipes!$E$12:$K$27,VLOOKUP(#REF!,Lists!$B$36:$C$38,2,FALSE),FALSE)))","v":0}]
[null,{"$f":"B76+1","v":67},null,"Other","Peak Flow Rate (L/s)"]
[null,68,null,null,"Length (m)"]
[null,69,null,null,"Pipe Diameter (mm)"]
[null,70,null,null,{"$f":"Lists!$B$35","v":"Landuse Along Pipe Route"}]
[null,71,null,null,"Pipe Type"]
[null,72,null,null,"Capex"]
["Pipes",73,"Capex Pipes","Sub-total",null,{"$f":"IF('Step 2'!D6<=0,0,SUM(F64,F70,F76,F82))","v":0}]
[null,74,"Capex \nTreatment","Diversion works","Diversion Type","Pumped diversion from pit with pipe diameter < 1000mm"]
["Generic",75,null,null,"Diversion Cost",{"$f":"_xlfn.IFNA(VLOOKUP(F84,Costs!$AQ$4:$AR$11,2,FALSE),0)","v":5000}]
[null,76,null,"Pump ","Is pumping needed?",{"$f":"IF('Step 5'!$D$4=\"Gravity\",\"No\",\"Yes\")","v":"Yes"}]
[null,77,null,null,"Peak Flow Rate (L/s)",{"$f":"IFERROR(IF(F86=\"No\",0,IF(LEFT(F19,3)=LEFT('Pump Rate'!$AF$2,3),($F$24/'Pump Rate'!$AF$3)^(1/'Pump Rate'!$AF$4),IF(LEFT(F19,3)=LEFT('Pump Rate'!$AF$35,3),($F$24/'Pump Rate'!$AF$36)^(1/'Pump Rate'!$AF$37),\"Error\"))),\"Insufficient data\")","v":197.42811661026656},"Based on design curves"]
[null,78,null,null,"Pump Power (kW)",{"$f":"IFERROR(((9.81*F87)/1000)*(PumpingHead/PumpEfficiency),0)","v":13.834070171047966}]
["Pumps",79,null,null,"Pump Cost",{"$f":"IF(F86=\"No\",0,((Costs!$AF$79*(F88^Costs!$AG$79))/Costs!$AH$79)*10^6)","v":165232.89589862354}]
["Generic",80,null,"Electrics and power",null,35000]
["Generic",81,null,"GPT",null,{"$f":"IFERROR(MIN((Costs!$BF$21*(F87^2))+(Costs!$BG$21*F87)+Costs!$BH$21,250000),0)","v":51692.374421320419}]
["Generic",82,null,"WSUD Treatment",null,{"$f":"IFERROR(HLOOKUP(F19,CapitalCostConstantsTable,2,FALSE)*F24^HLOOKUP(F19,CapitalCostConstantsTable,3,FALSE),0)","v":423994.90499178239}]
["Generic",83,null,"Establishment (3.5 x annual maintenance)",null,{"$f":"IFERROR(3.5*F112,0)","v":25147.286803777497}]
[null,84,null,"Outlet works","Outlet Type","Standard outlet pit / end wall"]
["Generic",85,null,null,"Outlet Cost",{"$f":"_xlfn.IFNA(VLOOKUP(F94,Costs!$AQ$4:$AR$11,2,FALSE),0)","v":4000}]
["Generic",86,null,"Other",null,0]
[null,87,null,"Sub-total",null,{"$f":"IF('Step 2'!D6<=0,0,SUM(F85,F89:F93,F95:F96))","v":710067.46211550373}]
["Generic",88,"Capex \nStormwater Harvesting","Tank",null,{"$f":"IF(F58=0,0,IF(F57=\"Above ground\",VLOOKUP(F58,Costs!$N:$O,2,TRUE),IF(F57=\"Below ground\",VLOOKUP(F58,Costs!$Q:$R,2,TRUE),0)))","v":1413020.7629497382}]
["Pumps",89,null,"Pump ",null,{"$f":"0","v":0}]
["Generic",90,null,"Electrics and power",null,{"$f":"IF(F90>0,0,35000)","v":0}]
[null,91,null,"Pit works","Pit Type",{"$f":"IF(F48=0,\"-\",Lists!$B$64)","v":"-"}]
["Generic",92,null,null,"Pit Cost",{"$f":"_xlfn.IFNA(VLOOKUP(F101,Costs!$AQ$4:$AR$11,2,FALSE),0)","v":0}]
["Generic",93,null,"UV Treatment",null,{"$f":"IF('Step 4'!D11>0,25000,0)","v":0}]
[null,94,null,"Sub-total",null,{"$f":"SUM(F98:F100,F102:F103)","v":1413020.7629497382}]
[null,95,"Total Capex","Total Capex (exc contingencies)",null,{"$f":"F83+F97+F104","v":2123088.225065242}]
["Generic",96,null,"Contingency A: Contingency, investigations, design, supervision",null,{"$f":"(VLOOKUP($A83,Costs!$AT$6:$AY$8,3,FALSE)*F83)+(VLOOKUP($A85,Costs!$AT$6:$AY$8,3,FALSE)*F85)+(VLOOKUP($A89,Costs!$AT$6:$AY$8,3,FALSE)*F89)+(VLOOKUP($A90,Costs!$AT$6:$AY$8,3,FALSE)*F90)+(VLOOKUP($A91,Costs!$AT$6:$AY$8,3,FALSE)*F91)+(VLOOKUP($A92,Costs!$AT$6:$AY$8,3,FALSE)*F92)+(VLOOKUP($A93,Costs!$AT$6:$AY$8,3,FALSE)*F93)+(VLOOKUP($A95,Costs!$AT$6:$AY$8,3,FALSE)*F95)+(VLOOKUP($A96,Costs!$AT$6:$AY$8,3,FALSE)*F96)+(VLOOKUP($A98,Costs!$AT$6:$AY$8,3,FALSE)*F98)+(VLOOKUP($A99,Costs!$AT$6:$AY$8,3,FALSE)*F99)+(VLOOKUP($A100,Costs!$AT$6:$AY$8,3,FALSE)*F100)+(VLOOKUP($A102,Costs!$AT$6:$AY$8,3,FALSE)*F102)+(VLOOKUP($A103,Costs!$AT$6:$AY$8,3,FALSE)*F103)","v":842625.97419015178}]
[null,97,null,"Contingency B: Capital cost insurance, administration and procurement",null,{"$f":"(VLOOKUP($A83,Costs!$AT$6:$AY$8,4,FALSE)*F83)+(VLOOKUP($A85,Costs!$AT$6:$AY$8,4,FALSE)*F85)+(VLOOKUP($A89,Costs!$AT$6:$AY$8,4,FALSE)*F89)+(VLOOKUP($A90,Costs!$AT$6:$AY$8,4,FALSE)*F90)+(VLOOKUP($A91,Costs!$AT$6:$AY$8,4,FALSE)*F91)+(VLOOKUP($A92,Costs!$AT$6:$AY$8,4,FALSE)*F92)+(VLOOKUP($A93,Costs!$AT$6:$AY$8,4,FALSE)*F93)+(VLOOKUP($A95,Costs!$AT$6:$AY$8,4,FALSE)*F95)+(VLOOKUP($A96,Costs!$AT$6:$AY$8,4,FALSE)*F96)+(VLOOKUP($A98,Costs!$AT$6:$AY$8,4,FALSE)*F98)+(VLOOKUP($A99,Costs!$AT$6:$AY$8,4,FALSE)*F99)+(VLOOKUP($A100,Costs!$AT$6:$AY$8,4,FALSE)*F100)+(VLOOKUP($A102,Costs!$AT$6:$AY$8,4,FALSE)*F102)+(VLOOKUP($A103,Costs!$AT$6:$AY$8,4,FALSE)*F103)+(VLOOKUP($A106,Costs!$AT$6:$AY$8,4,FALSE)*F106)","v":136422.85316574812}]
[null,98,null,"Total Capex",null,{"$f":"IF('Step 2'!D6<=0,0,ROUND(SUM(F105:F107),-3))","v":3102000}]
["Pipes",99,"Opex (annual) Pipes","Sub-total",null,{"$f":"VLOOKUP($A109,Costs!$AT$6:$AY$8,2,FALSE)*F83","v":0}]
["Pumps",100,"Opex (annual)\nTreatment\n","Pump",null,{"$f":"VLOOKUP($A110,Costs!$AT$6:$AY$8,2,FALSE)*F89","v":2478.4934384793528}]
["Generic",101,null,"GPT",null,{"$f":"Costs!$BE$20","v":1650}]
["Generic",102,null,"WSUD Treatment",null,{"$f":"IFERROR(HLOOKUP(F19,MaintenanceCostConstantsTable,2,FALSE)*F24^HLOOKUP(F19,MaintenanceCostConstantsTable,3,FALSE),0)","v":7184.9390867935708}]
["Generic",103,null,"Other",null,0]
[null,104,null,"Sub-total",null,{"$f":"SUM(F110:F113)","v":11313.432525272923}]
["Generic",105,"Opex (annual) \nStormwater Harvesting\n","Tank",null,{"$f":"IF(F48=\"-\",0,Costs!$W$8*((F58/2)^Costs!$X$8))","v":5603.1560258212094}]
["Pumps",106,null,"Pump",null,{"$f":"VLOOKUP($A116,Costs!$AT$6:$AY$8,2,FALSE)*F99","v":0}]
["Generic",107,null,"Other",null,0]
[null,108,null,"Sub-total",null,{"$f":"SUM(F115:F117)","v":5603.1560258212094}]
[null,109,"Total Opex (annual)","Total Opex (annual) (exc contingencies)",null,{"$f":"SUM(F109,F114,F118)","v":16916.588551094133}]
["Generic",110,null,"Contingency A: Maintenance design, supervision",null,{"$f":"(VLOOKUP($A109,Costs!$AT$6:$AY$8,5,FALSE)*F109)+(VLOOKUP($A110,Costs!$AT$6:$AY$8,5,FALSE)*F110)+(VLOOKUP($A111,Costs!$AT$6:$AY$8,5,FALSE)*F111)+(VLOOKUP($A112,Costs!$AT$6:$AY$8,5,FALSE)*F112)+(VLOOKUP($A113,Costs!$AT$6:$AY$8,5,FALSE)*F113)+(VLOOKUP($A115,Costs!$AT$6:$AY$8,5,FALSE)*F115)+(VLOOKUP($A116,Costs!$AT$6:$AY$8,5,FALSE)*F116)+(VLOOKUP($A117,Costs!$AT$6:$AY$8,5,FALSE)*F117)","v":2029.9906261312958}]
[null,111,null,"Contingency B: Maintenance administration, procurement",null,{"$f":"(VLOOKUP($A109,Costs!$AT$6:$AY$8,6,FALSE)*F109)+(VLOOKUP($A110,Costs!$AT$6:$AY$8,6,FALSE)*F110)+(VLOOKUP($A111,Costs!$AT$6:$AY$8,6,FALSE)*F111)+(VLOOKUP($A112,Costs!$AT$6:$AY$8,6,FALSE)*F112)+(VLOOKUP($A113,Costs!$AT$6:$AY$8,6,FALSE)*F113)+(VLOOKUP($A115,Costs!$AT$6:$AY$8,6,FALSE)*F115)+(VLOOKUP($A116,Costs!$AT$6:$AY$8,6,FALSE)*F116)+(VLOOKUP($A117,Costs!$AT$6:$AY$8,6,FALSE)*F117)+(VLOOKUP($A120,Costs!$AT$6:$AY$8,6,FALSE)*F120)","v":1515.7263341780344}]
[null,112,null,"Total Opex (annual)",null,{"$f":"IF('Step 2'!D6<=0,0,ROUND(SUM(F119:F121),-2))","v":20500}]
[null,113,"Renewal","WSUD Treatment","Year Constructed",2017]
[null,114,null,null,"Lifespan (with maintenance)",{"$f":"IFERROR(VLOOKUP(F19,LifespanTable,3,FALSE),0)","v":25}]
[null,115,null,null,"Renewal Cost",{"$f":"IFERROR(ROUND(VLOOKUP(F19,RenewalCostPercentages,2,FALSE)*F92,-3),0)","v":509000}]
[null,116,null,null,"Replacement 1",{"$f":"IF(F$123+F$124<=(StartYear+LengthOfAnalysis),F$123+F$124,0)","v":2042}]
[null,117,null,null,"Replacement 2",{"$f":"IF(F$126+F$124<=(StartYear+LengthOfAnalysis),F$126+F$124,0)","v":2067}]
[null,118,null,null,"Replacement 3",{"$f":"IF(F$127+F$124<=(StartYear+LengthOfAnalysis),F$127+F$124,0)","v":0}]
[null,119,"Present Value (PV)","Time period of analysis (years)",null,{"$f":"LengthOfAnalysis","v":50}]
[null,120,null,"Discount rate (%)",null,{"$f":"DiscountRate","v":5.5E-2}]
[null,121,null,"PV Opex",null,{"$f":"-PV(F$130,F$129,F122)","v":347096.11696463701}]
[null,122,null,"PV Renewal Cost",null,{"$f":"IF(F126>0,(F125/(1+DiscountRate)^(F126-StartYear)),0)+IF(F127>0,(F125/(1+DiscountRate)^(F127-StartYear)),0)+IF(F128>0,(F125/(1+DiscountRate)^(F128-StartYear)))","v":168479.11165423988}]
[null,123,null,"PV Renewal Cost (annual)",null,{"$f":"-PMT(DiscountRate,LengthOfAnalysis,F132)","v":9950.6206497372059}]
[null,124,null,"Total PV costs",null,{"$f":"ROUND(F108+SUM(F131:F132),-3)","v":3618000}]

{"sheet":"Lists","index":13,"n_rows":104,"n_cols":7,"rows_kept":104,"cut":false,"hidden":true,"merged":[[80,1,80,6],[88,1,88,3],[81,4,81,5],[81,3,82,3],[85,1,85,2],[83,1,84,1],[81,6,82,6],[83,6,84,6],[83,4,84,4],[83,5,84,5],[81,1,82,2]]}
[]
[null,"Treatment type"]
[null,"-"]
[null,"Wetland"]
[null,"Bioretention"]
[null,"Swale"]
[null,"Tree pit"]
[null,"Other"]
[]
[]
[null,"Imperviousness"]
[null,"-"]
[null,"Residential"]
[null,"Industrial"]
[null,"???"]
[null,"???"]
[null,"???"]
[]
[]
[null,"Demand type"]
[null,"-"]
[null,"Active irrigation"]
[null,"Passive irrigation"]
[null,"Active and passive irrigation"]
[null,"Toilet flushing"]
[null,"Other"]
[]
[]
[null,"Tank Type"]
[null,"Select"]
[null,"Above ground"]
[null,"Below ground"]
[]
[]
[null,"Landuse Along Pipe Route","Ref #"]
[null,"Medium density urban",{"$f":"Pipes!$J$28","v":6}]
[null,"High density urban (e.g. CBD)",{"$f":"Pipes!$K$28","v":0}]
[null,"Greenfield / Open Space",{"$f":"Pipes!$I$28","v":"Vlookup"}]
[]
[]
[null,"Pipe Type"]
[null,"-"]
[null,"Gravity"]
[null,"Pressured"]
[]
[]
[null,"Inlet Pit Works"]
[null,"-"]
[null,"Gravity diversion from standard pit"]
[null,"Pumped diversion from pit with pipe diameter < 1000mm"]
[null,"Pumped diversion from pit with pipe diameter > 1000mm"]
[null,"Gravity / pumped diversion from multi-chamber pit"]
[]
[]
[null,"Outlet Pit Works"]
[null,"-"]
[null,"Standard outlet pit / end wall"]
[null,"Non standard outlet pit / end wall"]
[]
[]
[null,"SW Harvesting Pit Works"]
[null,"-"]
[null,"Standard pit"]
[null,"Multi-chamber pit"]
[]
[]
[null,"Catchment Type"]
[null,"-"]
[null,"Residential"]
[null,"Mixed Residential and Commercial"]
[null,"Commercial"]
[null,"Industrial"]
[]
[]
[null,"Pumping Required?"]
[null,"-"]
[null,"Yes"]
[null,"No"]
[]
[]
[null,"Rules of Thumb for Preliminary Sizing"]
[null,null,null,"Treatment Area (m2)","Catchment",null,"Treatment to DCI Catchment Ratio"]
[null,null,null,null,"Total Area (ha)","DCI Area (ha)"]
[null,"Wetland","Sediment pond",1680,100,30,{"$f":"SUM(D84:D85)/(F84*10000)","v":3.3599999999999998E-2}]
[null,null,"Wetland",8400]
[null,"Bioretention",null,1500,100,30,{"$f":"D86/(F86*10000)","v":5.0000000000000001E-3}]
[]
[]
[null,"Bypass Curves"]
[null,null,"m","c"]
[null,"Lo-flow bypass rate (cum/sec)",2.6800000000000001E-2,4.4000000000000003E-3]
[null,"Hi-flow bypass rate (cum/sec)",1.9495,2.8999999999999998E-3]
[]
[]
[null,"Catchments"]
[null,"-"]
[null,"Merri Creek - Upper"]
[null,"Merri Creek - Middle"]
[null,"Merri Creek - Lower"]
[null,"Darebin Creek - Upper"]
[null,"Darebin Creek - Middle"]
[null,"Darebin Creek - Lower"]
[null,"Yarra River - Lower"]
[null,"Yarra River - Upper"]

{"sheet":"Pump Rate","index":14,"n_rows":69,"n_cols":33,"rows_kept":69,"cut":false,"hidden":true,"merged":[[2,28,3,28]]}
["Site #","Treatment type","Treatment type","Catchment area (ha)","Catchment impervious fraction (%)","Impervious catchment area (ha)","Surface area (m2)","Lo-flow bypass rate (cum/sec)","High Flow By-pass (cubic metres per sec)","Diversion Pump Rate (L/s)",null,null,null,null,null,null,null,null,null,null,null,null,null,null,null,null,null,null,null,null,null,"Adopted"]
[1,"Bioretention",{"$f":"IF(LEFT(B2,1)=\"B\",\"Bioretention\",\"Wetland\")","v":"Bioretention"},24.12368,38.040769162922935,{"$f":"(E2/100)*D2","v":9.1768334224022077},360,3.5208332772037917E-3,0.15,{"$f":"(I2-H2)*1000","v":146.47916672279621},null,null,null,null,null,null,null,null,null,null,null,null,null,null,null,null,null,null,null,null,null,"Bioretention"]
[2,"Bioretention","Bioretention",19.518270000000001,50.294923891617373,9.816699041460387,420,3.4896792231113838E-3,0.2,196.51032077688862,null,null,null,null,null,null,null,null,null,null,null,null,null,null,null,null,null,null,"Coefficients",null,8.4573999999999998,12.648999999999999,8.7126000000000001]
[6,"Bioretention","Bioretention",8.248330000000001,36.154716888557282,2.9821603595339372,120,1.1621454963550953E-3,0.06,58.837854503644905,null,null,null,null,null,null,null,null,null,null,null,null,null,null,null,null,null,null,null,null,0.77500000000000002,0.7077,0.77729999999999999]
[7,"Bioretention","Bioretention",9.9442899999999987,27.193430922312796,2.7041936318644586,110,1.1622726533396749E-3,5.5E-2,53.83772734666033,null,null,null,null,null,null,null,null,null,null,null,null,null,null,null,null,null,null,null,"X","Y-B","Y-BwSW","B-All"]
[8,"Bioretention","Bioretention",11.472439999999999,24.066307352279857,2.7609926712058948,110,1.2447333958831798E-3,5.5E-2,53.755266604116819,null,null,null,null,null,null,null,null,null,null,null,null,null,null,null,null,null,null,null,0,{"$f":"AE$3*($AD6^AE$4)","v":0},0,0]
[9,"Bioretention","Bioretention",35.077069999999999,33.822773477190502,11.864037928535547,460,4.722953244847527E-3,0.17499999999999999,170.27704675515247,null,null,null,null,null,null,null,null,null,null,null,null,null,null,null,null,null,null,null,10,50.377530126822535,64.529186864499536,52.173236181083077]
[10,"Bioretention","Bioretention",34.935040000000001,33.907504982053084,11.845600428482237,450,4.7117626748332392E-3,0.2,195.28823732516676,null,null,null,null,null,null,null,null,null,null,null,null,null,null,null,null,null,null,null,20,86.205528365369574,105.38896040799622,89.420767156275119]
[11,"Bioretention","Bioretention",48.698360000000001,24.9801070448659,12.164902457094158,250,5.4029216985012349E-3,7.0000000000000007E-2,64.597078301498769,null,null,null,null,null,null,null,null,null,null,null,null,null,null,null,null,null,null,null,30,118.0336518014164,140.41545272338803,122.55022899401663]
[12,"Bioretention","Bioretention",8.9845699999999997,24.462629577351368,2.1978620782178377,90,9.8434811696238066E-4,4.4999999999999998E-2,44.01565188303762,null,null,null,null,null,null,null,null,null,null,null,null,null,null,null,null,null,null,null,40,147.51404251150132,172.12107444032551,153.26006558351054]
[13,"Bioretention","Bioretention",137.68993,24.662591130288263,33.957904463480119,560,1.5159075316212672E-2,0.15,134.84092468378734,null,null,null,null,null,null,null,null,null,null,null,null,null,null,null,null,null,null,null,50,175.36326579914217,201.56599403898494,182.28761390460821]
[19,"Bioretention","Bioretention",310.74722000000003,39.377048958102051,122.36308495534109,290,4.6466184448031418E-2,0.1,53.533815551968587,null,null,null,null,null,null,null,null,null,null,null,null,null,null,null,null,null,null,null,60,201.97801068888836,229.32628329580265,210.04132183380827]
[23,"Bioretention","Bioretention",494.21910000000003,32.757673143116797,161.89467738885355,370,6.5133413940212742E-2,0.13,64.866586059787267,null,null,null,null,null,null,null,null,null,null,null,null,null,null,null,null,null,null,null,70,227.6081728334571,255.75967741322296,236.77861849788098]
[25,"Bioretention","Bioretention",73.382390000000001,27.582104868145951,20.240407764551847,510,8.6532544408998956E-3,0.13800000000000001,129.3467455591001,null,null,null,null,null,null,null,null,null,null,null,null,null,null,null,null,null,null,null,80,252.42456198234487,281.10785182623613,262.6755333200428]
[28,"Bioretention","Bioretention",33.116030000000002,26.456789498883943,8.7614383474872568,60,3.8051707971265853E-3,1.6E-2,12.194829202873414,null,null,null,null,null,null,null,null,null,null,null,null,null,null,null,null,null,null,null,90,276.55073447438059,305.54389914931608,287.85944146457479]
[29,"Bioretention","Bioretention",23.790229999999998,25.621614366020911,6.0954409873894164,260,2.6803483046203636E-3,0.12,117.31965169537962,null,null,null,null,null,null,null,null,null,null,null,null,null,null,null,null,null,null,null,100,300.07987581040419,329.19724542600204,312.42643683941373]
[62,"Bioretention","Bioretention",68.251040000000003,32.653139329010891,22.286107184698952,130,8.9757224854993198E-3,3.5000000000000003E-2,26.024277514500685,null,null,null,null,null,null,null,null,null,null,null,null,null,null,null,null,null,null,null,120,345.62276248536074,374.53530355998419,359.99407948758227]
[63,"Bioretention","Bioretention",156.28623999999999,35.178248068171875,54.978761203618454,120,2.1610902562569749E-2,4.2999999999999997E-2,21.389097437430248,null,null,null,null,null,null,null,null,null,null,null,null,null,null,null,null,null,null,null,140,389.48084096202359,417.70627876442063,405.8196742635713]
[64,"Bioretention","Bioretention",37.653079999999996,29.271224937584044,11.02151774272847,310,4.610502275051229E-3,0.09,85.389497724948768,null,null,null,null,null,null,null,null,null,null,null,null,null,null,null,null,null,null,null,160,431.94639918440805,459.10487495683151,450.20492156433323]
[65,"Bioretention","Bioretention",11.93942,23.211697771387009,2.7713420860565345,80,1.2680541590631513E-3,2.4E-2,22.731945840936849,null,null,null,null,null,null,null,null,null,null,null,null,null,null,null,null,null,null,null,180,473.23086553030043,499.01378670660563,493.36813226610167]
[66,"Bioretention","Bioretention",231.27843999999999,27.874786912768378,64.468372325174869,320,2.7453775143146866E-2,0.09,62.546224856853129,null,null,null,null,null,null,null,null,null,null,null,null,null,null,null,null,null,null,null,200,513.49369810166968,537.64439241228001,535.47400366572265]
[17,"Bioretention with SW harvesting","Bioretention",176.57686999999999,27.317204674359076,48.235864985476944,450,2.0696594096107818E-2,0.11,89.303405903892184,null,null,null,null,null,null,null,null,null,null,null,null,null,null,null,null,null,null,null,250,610.43633767521931,629.61974150143715,636.89310104715321]
[21,"Bioretention with SW harvesting","Bioretention",52.304769999999998,37.640265542303815,19.687654319291262,150,7.5777012375700583E-3,3.7199999999999997E-2,29.622298762429939,null,null,null,null,null,null,null,null,null,null,null,null,null,null,null,null,null,null,null,300,703.08178040588518,716.3329107005145,733.86153861656032]
[31,"Bioretention with SW harvesting","Bioretention",10.202689999999999,31.572736439644007,3.2212684234539144,140,1.3122182974856492E-3,6.5000000000000002E-2,63.68778170251435,null,null,null,null,null,null,null,null,null,null,null,null,null,null,null,null,null,null,null,350,792.29990851415562,798.90133624553312,827.27874575006365]
[33,"Bioretention with SW harvesting","Bioretention",75.306919999999991,26.435333012242101,19.907635083262747,540,8.6487506823144152E-3,0.155,146.35124931768559,null,null,null,null,null,null,null,null,null,null,null,null,null,null,null,null,null,null,null,400,878.68530763030469,878.07992535996516,917.75975011096227]
[34,"Bioretention with SW harvesting","Bioretention",149.50008,28.382067396069317,42.431213462777542,510,1.7949568728024379E-2,0.13200000000000001,114.05043127197563,null,null,null,null,null,null,null,null,null,null,null,null,null,null,null,null,null,null,null,450,962.66807512180151,954.40935717820525,1005.7495866724926]
[35,"Bioretention with SW harvesting","Bioretention",239.56592000000001,33.167835918672445,79.458831262658094,600,3.1835867258392367E-2,0.15,118.16413274160763,null,null,null,null,null,null,null,null,null,null,null,null,null,null,null,null,null,null,null,500,1044.5725880216467,1028.2939121567128,1091.5839970997406]
[39,"Bioretention with SW harvesting","Bioretention",74.872969999999995,25.601798144380481,19.168826644102555,510,8.4316562206194837E-3,0.14499999999999999,136.56834377938051]
[45,"Bioretention with SW harvesting","Bioretention",28.587709999999998,30.323314561549019,8.6687412292434054,350,3.5810818894372329E-3,0.15,146.41891811056277]
[46,"Bioretention with SW harvesting","Bioretention",39.429920000000003,19.172701904334357,7.5597810227175142,310,3.760937794088294E-3,0.15,146.23906220591169]
[49,"Bioretention with SW harvesting","Bioretention",176.57686999999999,27.317204674359076,48.235864985476944,600,2.0696594096107818E-2,0.14399999999999999,123.30340590389217]
[54,"Bioretention with SW harvesting","Bioretention",14.514989999999999,41.725783578589201,6.0564933138538644,250,2.261799768112836E-3,0.12,117.73820023188716]
[60,"Bioretention with SW harvesting","Bioretention",17.800799999999999,25.538960938589895,4.54613935875651,190,2.0016005481467447E-3,0.09,87.99839945185326]
[67,"Bioretention with SW harvesting",{"$f":"IF(LEFT(B34,1)=\"B\",\"Bioretention\",\"Wetland\")","v":"Bioretention"},14.349179999999999,33.337534553955663,{"$f":"(E34/100)*D34","v":4.7836628407092947},200,1.9133855613100909E-3,0.10299999999999999,{"$f":"(I34-H34)*1000","v":101.08661443868991},null,null,null,null,null,null,null,null,null,null,null,null,null,null,null,null,null,null,null,null,null,"Adopted"]
[68,"Bioretention with SW harvesting","Bioretention",706.97392000000002,33.268327599504744,235.19839974866059,190,9.4140023612641024E-2,0.127,32.859976387358977,null,null,null,null,null,null,null,null,null,null,null,null,null,null,null,null,null,null,null,null,null,"Wetland"]
[5,"Wetland","Wetland",7.65625,44.229275230108286,3.3863038848051654,791.66666666666674,1.2444044411277844E-3,0.04,38.755595558872216,null,null,null,null,null,null,null,null,null,null,null,null,null,null,null,null,null,null,null,null,93.292000000000002,79.947999999999993,88.694000000000003]
[20,"Wetland","Wetland",18.480629999999998,26.4666699422039,4.8912073453399163,675,2.1239912885510975E-3,2.4E-2,21.876008711448904,null,null,null,null,null,null,null,null,null,null,null,null,null,null,null,null,null,null,null,null,0.62270000000000003,0.74309999999999998,0.70340000000000003]
[22,"Wetland","Wetland",455.77445999999998,32.64993011219515,148.81004265923485,791.66666666666674,5.9935167672674934E-2,7.4999999999999997E-2,15.064832327325064,null,null,null,null,null,null,null,null,null,null,null,null,null,null,null,null,null,null,null,"X","Y-W","Y-WwSW","Y-All"]
[26,"Wetland","Wetland",68.175069999999991,27.293471164949189,18.607343072133922,641.66666666666674,7.9864710233318904E-3,2.1999999999999999E-2,14.013528976668109,null,null,null,null,null,null,null,null,null,null,null,null,null,null,null,null,null,null,null,0,{"$f":"AE$36*($AD39^AE$37)","v":0},0,0]
[27,"Wetland","Wetland",24.993010000000002,31.120609627378641,7.7779770762317071,958.33333333333337,3.1841902964300983E-3,3.3000000000000002E-2,29.815809703569901,null,null,null,null,null,null,null,null,null,null,null,null,null,null,null,null,null,null,null,10,391.33113598544401,442.49422164625099,448.01673995893088]
[30,"Wetland","Wetland",21.832660000000001,26.540399720392344,5.7944752335942109,1500,2.513556402603249E-3,0.115,112.48644359739676,null,null,null,null,null,null,null,null,null,null,null,null,null,null,null,null,null,null,null,20,602.55373373479688,740.63288879940251,729.52258314523965]
[32,"Wetland","Wetland",9.9707600000000003,16.809215111835389,1.6760064966848383,475,8.878831811115368E-4,3.5999999999999997E-2,35.11211681888846,null,null,null,null,null,null,null,null,null,null,null,null,null,null,null,null,null,null,null,30,775.61787426522028,1001.0514710718193,970.28950093976596]
[37,"Wetland","Wetland",64.342880000000008,31.122632686253045,20.025198202156574,2458.3333333333335,8.197839838177963E-3,8.5000000000000006E-2,76.80216016182203,null,null,null,null,null,null,null,null,null,null,null,null,null,null,null,null,null,null,null,40,927.78460145642316,1239.6479979570729,1187.9091825178]
[40,"Wetland","Wetland",75.306919999999991,26.435333012242101,19.907635083262747,5158.3333333333339,8.6487506823144152E-3,0.38,371.35124931768559,null,null,null,null,null,null,null,null,null,null,null,null,null,null,null,null,null,null,null,50,1066.0879273299674,1463.2287105911284,1389.7917924527228]
[44,"Wetland","Wetland",70.763599999999997,36.655890526935949,25.939027748918846,675,1.0065257836710251E-2,2.5000000000000001E-2,14.934742163289751,null,null,null,null,null,null,null,null,null,null,null,null,null,null,null,null,null,null,null,60,1194.2608269926629,1675.5284172942934,1579.9590506130887]
[61,"Wetland","Wetland",31.764600000000002,41.102593358367166,13.056074369911897,541.66666666666674,4.8966703311363897E-3,1.7999999999999999E-2,13.103329668863609,null,null,null,null,null,null,null,null,null,null,null,null,null,null,null,null,null,null,null,70,1314.5797956245256,1878.8839533225041,1760.906120151403]
[3,"Wetland with SW harvesting","Wetland",100.01904999999999,32.943864269429724,32.950140075573046,3383.3333333333335,1.3231475740253577E-2,0.11,96.768524259746428,null,null,null,null,null,null,null,null,null,null,null,null,null,null,null,null,null,null,null,80,1428.5601739852673,2074.8837677598667,1934.3173995055993]
[4,"Wetland with SW harvesting","Wetland",100.01904999999999,32.943864269429724,32.950140075573046,3141.666666666667,1.3231475740253577E-2,0.1,86.768524259746428,null,null,null,null,null,null,null,null,null,null,null,null,null,null,null,null,null,null,null,90,1537.2737601489378,2264.6714888317324,2101.3985230110879]
[14,"Wetland with SW harvesting","Wetland",23.25534,44.503184325147053,10.349366825639652,1116.6666666666667,3.7968652692714272E-3,3.6999999999999998E-2,33.203134730728571,null,null,null,null,null,null,null,null,null,null,null,null,null,null,null,null,null,null,null,100,1641.5132915111485,2449.1061213579014,2263.0504801162233]
[15,"Wetland with SW harvesting","Wetland",169.36033999999998,25.05234109630609,42.428730058663717,3758.3333333333335,1.8822754615721877E-2,0.13,111.17724538427814,null,null,null,null,null,null,null,null,null,null,null,null,null,null,null,null,null,null,null,120,1838.8680434168211,2804.4466826015055,2572.7070108420949]
[16,"Wetland with SW harvesting","Wetland",323.07571000000002,30.242634064029968,97.706604725066668,1058.3333333333335,4.0400701306317871E-2,6.2E-2,21.59929869368213,null,null,null,null,null,null,null,null,null,null,null,null,null,null,null,null,null,null,null,140,2024.1296725628979,3144.8167727274054,2867.3499601083481]
[18,"Wetland with SW harvesting","Wetland",706.97392000000002,33.268327599504744,235.19839974866059,8908.3333333333339,9.4140023612641024E-2,0.3,205.85997638735898,null,null,null,null,null,null,null,null,null,null,null,null,null,null,null,null,null,null,null,160,2199.6314311460042,3472.8750877734751,3149.7220975257837]
[24,"Wetland with SW harvesting","Wetland",149.50008,28.382067396069317,42.431213462777542,608.33333333333337,1.7949568728024379E-2,0.03,12.050431271975619,null,null,null,null,null,null,null,null,null,null,null,null,null,null,null,null,null,null,null,180,2367.0236246796571,3790.5357966368856,3421.7866030299897]
[36,"Wetland with SW harvesting","Wetland",176.57686999999999,27.317204674359076,48.235864985476944,1191.6666666666667,2.0696594096107818E-2,4.4999999999999998E-2,24.30340590389218,null,null,null,null,null,null,null,null,null,null,null,null,null,null,null,null,null,null,null,200,2527.5268738445816,4099.2366745247646,3685.0105917778924]
[38,"Wetland with SW harvesting","Wetland",216.69905,27.898902544862615,60.456656775143109,666.66666666666674,2.5737142215738352E-2,3.7999999999999999E-2,12.262857784261648,null,null,null,null,null,null,null,null,null,null,null,null,null,null,null,null,null,null,null,250,2904.3011513425322,4838.5677253200702,4311.270214023727]
[41,"Wetland with SW harvesting","Wetland",8.9296299999999995,11.355883316951429,1.0140383634354899,291.66666666666669,6.6466600140071132E-4,2.1000000000000001E-2,20.335333998599289,null,null,null,null,null,null,null,null,null,null,null,null,null,null,null,null,null,null,null,300,3253.4775096130843,5540.5950307669855,4901.1876680205169]
[42,"Wetland with SW harvesting","Wetland",22.144600000000001,25.772068066377361,5.7071213850270013,1600,2.5038709311872363E-3,0.11700000000000001,114.49612906881278,null,null,null,null,null,null,null,null,null,null,null,null,null,null,null,null,null,null,null,350,3581.2577143857302,6213.0459786394858,5462.5031941675397]
[43,"Wetland with SW harvesting","Wetland",82.59778,25.624484641619127,21.165255450418357,1700,9.30659078071212E-3,5.5E-2,45.693409219287886,null,null,null,null,null,null,null,null,null,null,null,null,null,null,null,null,null,null,null,400,3891.7699485244652,6861.173212229799,6000.4419613378941]
[47,"Wetland with SW harvesting","Wetland",11.678000000000001,24.370657750871594,2.846005412146785,779.16666666666674,1.2765614504553382E-3,5.8999999999999997E-2,57.72343854954466,null,null,null,null,null,null,null,null,null,null,null,null,null,null,null,null,null,null,null,450,4187.934069107363,7488.7584524547492,6518.7439652830935]
[48,"Wetland with SW harvesting","Wetland",54.699119999999994,26.160431213996489,14.309525662261393,958.33333333333337,6.2417141574860535E-3,0.03,23.758285842513946,null,null,null,null,null,null,null,null,null,null,null,null,null,null,null,null,null,null,null,500,4471.9096992497061,8098.6422347459402,7020.2041634873576]
[50,"Wetland with SW harvesting","Wetland",91.792959999999994,25.275839745500058,23.201441467250966,3283.3333333333335,1.0256876553223259E-2,0.115,104.74312344677675]
[51,"Wetland with SW harvesting","Wetland",16.915229999999998,29.832600636503265,5.0462530126459901,683.33333333333337,2.0966659273891253E-3,2.5000000000000001E-2,22.903334072610878]
[52,"Wetland with SW harvesting","Wetland",15.468129999999999,37.418638474539378,5.7879636434717678,1050,2.231771976450434E-3,4.4999999999999998E-2,42.768228023549561]
[53,"Wetland with SW harvesting","Wetland",34.567040000000006,35.965334170891815,12.432151448985845,1175,4.8527663483282071E-3,3.6999999999999998E-2,32.14723365167179]
[55,"Wetland with SW harvesting","Wetland",176.19636,30,52.858908,1008.3333333333334,2.1918827184000001E-2,4.3999999999999997E-2,22.081172815999995]
[56,"Wetland with SW harvesting",{"$f":"IF(LEFT(B66,1)=\"B\",\"Bioretention\",\"Wetland\")","v":"Wetland"},17.44331,28.154970321947935,{"$f":"(E66/100)*D66","v":4.9111587536653767},1250,2.083696185982321E-3,0.1,{"$f":"(I66-H66)*1000","v":97.916303814017681}]
[57,"Wetland with SW harvesting","Wetland",54.699119999999994,26.160431213996489,14.309525662261393,3750,6.2417141574860535E-3,0.3,293.75828584251394]
[58,"Wetland with SW harvesting","Wetland",54.699119999999994,26.160431213996489,14.309525662261393,2316.666666666667,6.2417141574860535E-3,0.09,83.758285842513956]
[59,"Wetland with SW harvesting","Wetland",17.800799999999999,25.538960938589895,4.54613935875651,850,2.0016005481467447E-3,3.7999999999999999E-2,35.99839945185326]

{"sheet":"Treatment","index":15,"n_rows":81,"n_cols":68,"rows_kept":81,"cut":false,"hidden":true,"merged":[[0,0,2,0],[0,1,2,1],[0,2,2,2],[0,3,0,6],[0,7,0,8],[1,21,1,24],[0,9,0,13],[0,14,0,25],[1,3,2,3],[1,4,2,4],[1,5,1,6],[1,7,2,7],[1,8,2,8],[1,9,2,9],[1,10,2,10],[1,11,2,11],[1,12,2,12],[1,13,2,13],[1,14,2,14],[1,15,1,17],[1,18,1,20],[1,25,2,25],[0,26,0,27],[1,26,2,26],[1,27,2,27],[1,31,2,31],[0,29,0,34],[1,29,2,29],[1,30,2,30],[1,32,1,34],[0,36,0,41],[0,43,0,48],[0,50,0,55],[1,37,2,37],[1,36,2,36],[1,43,2,43],[1,44,2,44],[1,45,2,45],[1,38,2,38],[1,39,1,41],[1,50,2,50],[1,51,2,51],[1,52,2,52],[1,48,2,48],[1,47,2,47],[1,46,2,46],[1,53,2,53],[1,54,2,54],[1,55,2,55],[71,59,71,60],[70,57,70,60]]}
["Site #","Site Name","Suburb","Catchment",null,null,null,"Treatment Type",null,"Treatment Site",null,null,null,null,"Treatment Performance",null,null,null,null,null,null,null,null,null,null,null,"Storage",null,null,"Bio - NO HARVESTING",null,null,null,null,null,null,"Wetland - NO HARVESTING",null,null,null,null,null,null,"PASTE SPECIAL - Bio - NO HARVESTING",null,null,null,null,null,null,"PASTE SPECIAL - Wetland - NO HARVESTING"]
[null,null,null,"Area (ha)","Catchment Type","Directly Connected Imperviousness (DCI)",null,"Suggested","Adopted","Total Area (m2)","Area Reduction Factor","Available Area (m2)","Area required to treat to best practice based on adopted treatment (m2)","Utilised Area (m2)","Runoff Reduction (ML/yr)","Pollutant Load Reductions (kg/yr)",null,null,"Pollutant Load Reductions (%)",null,null,"Proportion of catchment treated to best practice",null,null,null,"PV of nitrogen abatement ($)","Tank Type","Volume (kL)",null,"Utilised Area (m2)","DCI %","Runoff Reduction (ML/yr)","Pollutant Load Reductions (kg/yr)",null,null,null,"Utilised Area (m2)","DCI %","Runoff Reduction (ML/yr)","Pollutant Load Reductions (kg/yr)",null,null,null,"Utilised Area (m2)","DCI %","Runoff Reduction (ML/yr)","TSS","TP","TN",null,"Utilised Area (m2)","DCI %","Runoff Reduction (ML/yr)","TSS","TP","TN"]
[null,null,null,null,null,"Area (ha)","%",null,null,null,null,null,null,null,null,"TSS","TP","TN","TSS","TP","TN","TSS","TP","TN","Limiting pollutant",null,null,null,null,null,null,null,"TSS","TP","TN",null,null,null,null,"TSS","TP","TN"]
[1001,"40 Orchard Ave","Reservoir",24.12368,"-",9.1768334224022077,0.38040769162922933,"Bioretention","Bioretention",506.1,0.3,360,460,360,0.70000000000000284,6710,9.9999999999999982,52,0.65,0.45700000000000002,0.33600000000000002,0.8125,1.0155555555555555,0.7466666666666667,0.7466666666666667,592280,"-",0,null,{"$f":"IF(AND($I4=\"Bioretention\",$AB4<=0),N4,\"\")","v":360},{"$f":"IF(AND($I4=\"Bioretention\",$AB4<=0),F4,\"\")","v":9.1768334224022077},{"$f":"IF(AND($I4=\"Bioretention\",$AB4<=0),O4,\"\")","v":0.70000000000000284},{"$f":"IF(AND($I4=\"Bioretention\",$AB4<=0),P4,\"\")","v":6710},{"$f":"IF(AND($I4=\"Bioretention\",$AB4<=0),Q4,\"\")","v":9.9999999999999982},{"$f":"IF(AND($I4=\"Bioretention\",$AB4<=0),R4,\"\")","v":52},null,{"$f":"IF(AND($I4=\"Wetland\",$AB4<=0),N4,\"\")","v":""},{"$f":"IF(AND($I4=\"Wetland\",$AB4<=0),F4,\"\")","v":""},{"$f":"IF(AND($I4=\"Wetland\",$AB4<=0),O4,\"\")","v":""},{"$f":"IF(AND($I4=\"Wetland\",$AB4<=0),P4,\"\")","v":""},{"$f":"IF(AND($I4=\"Wetland\",$AB4<=0),Q4,\"\")","v":""},{"$f":"IF(AND($I4=\"Wetland\",$AB4<=0),R4,\"\")","v":""},null,360,9.1768334224022077,0.70000000000000284,6710,9.9999999999999982,52]
[1002,"35 Radford Rd","Reservoir",19.518270000000001,"-",9.816699041460387,0.50294923891617371,"Bioretention","Bioretention",598,0.3,420,500,420,0.79999999999999716,7460,11.200000000000001,59,0.68400000000000005,0.49200000000000005,0.36799999999999999,0.85499999999999998,1.0933333333333335,0.81777777777777771,0.81777777777777771,672010,"-",0,null,420,9.816699041460387,0.79999999999999716,7460,11.200000000000001,59,null,"","","","","","",null,420,9.816699041460387,0.79999999999999716,7460,11.200000000000001,59]
[1003,"Keon Park Childrens Hub","Reservoir",100.01904999999999,"-",32.950140075573046,0.32943864269429723,"Wetland","Wetland",5798.8,0.3,4060,11080,4060,32,12500,22.000000000000007,131,0.33100000000000002,0.27500000000000002,0.22800000000000001,0.41375000000000001,0.61111111111111116,0.50666666666666671,0.41375000000000001,1492090,"Below ground",3400,null,"","","","","","",null,"","","","","",""]
[1004,"J C Donath Reserve","Reservoir",100.01904999999999,"-",32.950140075573046,0.32943864269429723,"Wetland","Wetland",5375,0.3,3770,11080,3770,32,11600,20.400000000000006,124,0.307,0.25600000000000001,0.21600000000000003,0.38374999999999998,0.56888888888888889,0.48000000000000004,0.38374999999999998,1412360,"Below ground",3400,null,"","","","","","",null,"","","","","",""]
[1005,"3A Carson St","Reservoir",7.65625,"-",3.3863038848051654,0.44229275230108284,"Wetland","Wetland",1356.3,0.3,950,1140,950,1,2220,3.83,17.899999999999999,0.58299999999999996,0.48100000000000004,0.318,0.7287499999999999,1.068888888888889,0.70666666666666667,0.70666666666666667,203880.99999999997,"-",0,null,"","","","","","",null,950,3.3863038848051654,1,2220,3.83,17.899999999999999,null,null,null,null,null,null,null,null,950,3.3863038848051654,1,2220,3.83,17.899999999999999]
[1006,"2 Ovay St","Reservoir",8.248330000000001,"-",2.9821603595339372,0.36154716888557281,"Bioretention","Bioretention",749.8,0.3,530,150,120,0.19999999999999929,2240,3.3400000000000003,17.200000000000003,0.66400000000000003,0.46399999999999997,0.33700000000000002,0.83,1.0311111111111111,0.74888888888888894,0.74888888888888894,195908.00000000003,"-",0,null,120,2.9821603595339372,0.19999999999999929,2240,3.3400000000000003,17.200000000000003,null,"","","","","","",null,120,2.9821603595339372,0.19999999999999929,2240,3.3400000000000003,17.200000000000003]
[1007,"Wilsons Blvd Reserve","Reservoir",9.9442899999999987,"-",2.7041936318644586,0.27193430922312795,"Bioretention","Bioretention",444.2,0.3,320,140,110,0.19999999999999929,2030,2.9799999999999995,15.399999999999999,0.64900000000000002,0.44500000000000001,0.32299999999999995,0.81125000000000003,0.98888888888888893,0.71777777777777763,0.71777777777777763,175405.99999999997,"-",0,null,110,2.7041936318644586,0.19999999999999929,2030,2.9799999999999995,15.399999999999999,null,"","","","","","",null,110,2.7041936318644586,0.19999999999999929,2030,2.9799999999999995,15.399999999999999]
[1008,"102 Broadhurst Ave","Reservoir",11.472439999999999,"-",2.7609926712058952,0.24066307352279859,"Bioretention","Bioretention",188.3,0.3,140,140,110,0.19999999999999929,2040,3.0600000000000005,15.899999999999999,0.63700000000000001,0.433,0.31,0.79625000000000001,0.9622222222222222,0.68888888888888888,0.68888888888888888,181100.99999999997,"-",0,null,110,2.7609926712058952,0.19999999999999929,2040,3.0600000000000005,15.899999999999999,null,"","","","","","",null,110,2.7609926712058952,0.19999999999999929,2040,3.0600000000000005,15.899999999999999]
[1009,"Edwardes Lake Park","Reservoir",35.077069999999999,"-",11.864037928535545,0.33822773477190499,"Bioretention","Bioretention",646.20000000000005,0.3,460,600,460,0.89999999999999147,8580,12.8,67,0.627,0.44600000000000001,0.32500000000000001,0.78374999999999995,0.99111111111111105,0.72222222222222221,0.72222222222222221,763130,"-",0,null,460,11.864037928535545,0.89999999999999147,8580,12.8,67,null,"","","","","","",null,460,11.864037928535545,0.89999999999999147,8580,12.8,67]
[1010,"J E Moore Park","Reservoir",34.935040000000001,"-",11.845600428482237,0.33907504982053083,"Wetland","Bioretention",1221.4000000000001,0.3,860,600,450,0.79999999999999716,8580,13,67,0.64,0.44700000000000001,0.32299999999999995,0.79999999999999993,0.99333333333333329,0.71777777777777763,0.71777777777777763,763130,"-",0,null,450,11.845600428482237,0.79999999999999716,8580,13,67,null,"","","","","","",null,450,11.845600428482237,0.79999999999999716,8580,13,67]
[1011,"Fyfe St Reserve","Reservoir",48.698360000000001,"-",12.164902457094158,0.24980107044865901,"Bioretention","Bioretention",351.6,0.3,250,610,250,0.5,5860,8.7999999999999972,44,0.41399999999999998,0.28499999999999998,0.19899999999999998,0.51749999999999996,0.6333333333333333,0.44222222222222218,0.44222222222222218,501160,"-",0,null,250,12.164902457094158,0.5,5860,8.7999999999999972,44,null,"","","","","","",null,250,12.164902457094158,0.5,5860,8.7999999999999972,44]
[1012,"T W Andrews Reserve (small)","Reservoir",8.9845699999999997,"-",2.1978620782178377,0.24462629577351369,"Bioretention","Bioretention",771,0.3,540,110,90,0.20000000000000107,1607,2.4499999999999997,12.600000000000001,0.64599999999999991,0.442,0.31900000000000001,0.80749999999999988,0.98222222222222222,0.7088888888888889,0.7088888888888889,143514.00000000003,"-",0,null,90,2.1978620782178377,0.20000000000000107,1607,2.4499999999999997,12.600000000000001,null,"","","","","","",null,90,2.1978620782178377,0.20000000000000107,1607,2.4499999999999997,12.600000000000001]
[1013,"T W Andrews Reserve (large)","Reservoir",137.68993,"-",33.957904463480119,0.24662591130288261,"Bioretention","Bioretention",786.4,0.3,560,1700,560,1,14000,21,104,0.34799999999999998,0.24199999999999999,0.16600000000000001,0.43499999999999994,0.5377777777777778,0.36888888888888888,0.36888888888888888,1184560,"-",0,null,560,33.957904463480119,1,14000,21,104,null,"","","","","","",null,560,33.957904463480119,1,14000,21,104]
[1014,"Bundoora Park Golf Course","Bundoora",23.25534,"-",10.349366825639652,0.44503184325147055,"Wetland","Wetland",1906.8,0.3,1340,3480,1340,7.1000000000000014,4000,6.8000000000000007,36,0.34200000000000003,0.27399999999999997,0.20800000000000002,0.42749999999999999,0.60888888888888881,0.46222222222222226,0.42749999999999999,410040,"Below ground",420,null,"","","","","","",null,"","","","","",""]
[1015,"Arch Gibson Reserve","Reservoir",169.36033999999998,"-",42.428730058663717,0.25052341096306091,"Wetland","Wetland",6432.3,0.3,4510,14260,4510,8,12700,21.299999999999997,100,0.26,0.19399999999999998,0.129,0.32500000000000001,0.43111111111111106,0.28666666666666668,0.28666666666666668,1139000,"Below ground",130,null,"","","","","","",null,"","","","","",""]
[1016,"HP Zwar Park","Preston",323.07571000000002,"-",97.706604725066668,0.30242634064029966,"Wetland","Wetland",1803.6,0.3,1270,32830,1270,8,3000,7,30,3.3000000000000002E-2,2.7000000000000003E-2,2.1000000000000001E-2,4.1250000000000002E-2,6.0000000000000005E-2,4.6666666666666669E-2,4.1250000000000002E-2,341700,"Below ground",610,null,"","","","","","",null,"","","","","",""]
[1017,"McDonnell Park West","Northcote",176.57686999999999,"-",48.235864985476944,0.27317204674359075,"Bioretention","Bioretention",640.20000000000005,0.3,450,2420,450,5,13000,20.200000000000003,97,0.23800000000000002,0.16699999999999998,0.113,0.29749999999999999,0.37111111111111106,0.25111111111111112,0.25111111111111112,1104830,"Below ground",290,null,"","","","","","",null,"","","","","",""]
[1018,"Northcote Golf Course","Thornbury",706.97392000000002,"-",235.19839974866059,0.33268327599504743,"Wetland","Wetland",15267.5,0.3,10690,79030,10690,20,29000,48,230,0.11,8.4000000000000005E-2,5.7000000000000002E-2,0.13749999999999998,0.18666666666666668,0.12666666666666668,0.12666666666666668,2619700,"Below ground",250,null,"","","","","","",null,"","","","","",""]
[1019,"58 Chifley Drive","Preston",310.74722000000003,"-",122.36308495534109,0.39377048958102051,"Bioretention","Bioretention",406.1,0.3,290,6120,290,1,8000,13,60,0.06,4.2999999999999997E-2,2.8999999999999998E-2,7.4999999999999997E-2,9.5555555555555546E-2,6.4444444444444443E-2,6.4444444444444443E-2,683400,"-",0,null,290,122.36308495534109,1,8000,13,60,null,"","","","","","",null,290,122.36308495534109,1,8000,13,60]
[1020,"Penders Park","Thornbury",18.480629999999998,"-",4.8912073453399163,0.26466669942203902,"Wetland","Wetland",1144.5999999999999,0.3,810,1650,810,0.90000000000000213,2090,3.5700000000000003,16.599999999999994,0.375,0.29600000000000004,0.18899999999999997,0.46875,0.65777777777777791,0.41999999999999993,0.41999999999999993,189073.99999999994,"-",0,null,"","","","","","",null,810,4.8912073453399163,0.90000000000000213,2090,3.5700000000000003,16.599999999999994,null,null,null,null,null,null,null,null,810,4.8912073453399163,0.90000000000000213,2090,3.5700000000000003,16.599999999999994]
[1021,"Preston City Oval","Preston",52.304769999999998,"-",19.687654319291262,0.37640265542303813,"Bioretention","Bioretention",210.7,0.3,150,990,150,5,4400,6.8999999999999986,37,0.191,0.14599999999999999,0.109,0.23874999999999999,0.32444444444444442,0.24222222222222223,0.23874999999999999,421430,"Below ground",370,null,"","","","","","",null,"","","","","",""]
[1022,"Ray Bramham Gardens","Preston",455.77445999999998,"-",148.81004265923482,0.32649930112195147,"Wetland","Wetland",1516.9,0.3,1070,50010,950,1,2000,4,20,1.3999999999999999E-2,1.1000000000000001E-2,6.9999999999999993E-3,1.7499999999999998E-2,2.4444444444444446E-2,1.5555555555555553E-2,1.5555555555555553E-2,227800,"-",0,null,"","","","","","",null,950,148.81004265923482,1,2000,4,20,null,null,null,null,null,null,null,null,950,148.81004265923482,1,2000,4,20]
[1023,"3 Newman St","Preston",494.21910000000003,"-",161.89467738885358,0.327576731431168,"Bioretention","Bioretention",526.20000000000005,0.3,370,8100,370,0,10000,16,70,5.4000000000000006E-2,3.7999999999999999E-2,2.7000000000000003E-2,6.7500000000000004E-2,8.4444444444444447E-2,6.0000000000000005E-2,6.0000000000000005E-2,797300,"-",0,null,370,161.89467738885358,0,10000,16,70,null,"","","","","","",null,370,161.89467738885358,null,10000,16,70]
[1024,"NARC Option East","Northcote",149.50008,"-",42.431213462777542,0.28382067396069316,"Wetland","Wetland",1040,0.3,730,14260,730,6,2100,4,22,4.2999999999999997E-2,3.6000000000000004E-2,0.03,5.3749999999999992E-2,0.08,6.6666666666666666E-2,5.3749999999999992E-2,250580,"Below ground",600,null,"","","","","","",null,"","","","","",""]
[1025,"LW Williams Reserve","Preston",73.382390000000001,"-",20.240407764551847,0.27582104868145951,"Bioretention","Bioretention",721.4,0.3,510,1020,510,1,11100,16.699999999999996,86,0.46899999999999997,0.32500000000000001,0.23199999999999998,0.58624999999999994,0.72222222222222221,0.51555555555555554,0.51555555555555554,979540,"-",0,null,510,20.240407764551847,1,11100,16.699999999999996,86,null,"","","","","","",null,510,20.240407764551847,1,11100,16.699999999999996,86]
[1026,"29 Cygna Street","Preston",68.175069999999991,"-",18.607343072133922,0.2729347116494919,"Wetland","Wetland",1094.2,0.3,770,6260,770,1,2000,3.5,16,9.3000000000000013E-2,7.4999999999999997E-2,4.8000000000000001E-2,0.11625000000000001,0.16666666666666666,0.10666666666666666,0.10666666666666666,182240,"-",0,null,"","","","","","",null,770,18.607343072133922,1,2000,3.5,16,null,null,null,null,null,null,null,null,770,18.607343072133922,1,2000,3.5,16]
[1027,"Larkins Reserve","Preston",24.993010000000002,"-",7.7779770762317071,0.31120609627378643,"Wetland","Wetland",1634.1,0.3,1150,2620,1150,1.1999999999999957,3040,5.0999999999999979,24,0.34100000000000003,0.27399999999999997,0.17600000000000002,0.42625000000000002,0.60888888888888881,0.39111111111111113,0.39111111111111113,273360,"-",0,null,"","","","","","",null,1150,7.7779770762317071,1.1999999999999957,3040,5.0999999999999979,24,null,null,null,null,null,null,null,null,1150,7.7779770762317071,1.1999999999999957,3040,5.0999999999999979,24]
[1028,"Roberts Reserve","Thornbury",33.116030000000002,"-",8.7614383474872568,0.26456789498883942,"Bioretention","Bioretention",75.400000000000006,0.3,60,440,60,0.10000000000000142,1590,2.5,12,0.16200000000000001,0.114,7.9000000000000001E-2,0.20249999999999999,0.25333333333333335,0.17555555555555555,0.17555555555555555,136680,"-",0,null,60,8.7614383474872568,0.10000000000000142,1590,2.5,12,null,"","","","","","",null,60,8.7614383474872568,0.10000000000000142,1590,2.5,12]
[1029,"Batman Park","Northcote",23.790229999999998,"-",6.0954409873894164,0.25621614366020912,"Bioretention","Bioretention",487.9,0.3,350,310,260,0.5,4630,7.02,36.5,0.64,0.44700000000000001,0.32600000000000001,0.79999999999999993,0.99333333333333329,0.72444444444444445,0.72444444444444445,415735,"-",0,null,260,6.0954409873894164,0.5,4630,7.02,36.5,null,"","","","","","",null,260,6.0954409873894164,0.5,4630,7.02,36.5]
[1030,"Johnson Park","Northcote",21.832660000000001,"-",5.7944752335942109,0.26540399720392344,"Wetland","Wetland",2850.6,0.3,2000,1950,1800,2,4200,7.29,33.599999999999994,0.61599999999999999,0.48799999999999999,0.31900000000000001,0.76999999999999991,1.0844444444444443,0.7088888888888889,0.7088888888888889,382703.99999999994,"-",0,null,"","","","","","",null,1800,5.7944752335942109,2,4200,7.29,33.599999999999994,null,null,null,null,null,null,null,null,1800,5.7944752335942109,2,4200,7.29,33.599999999999994]
[1031,"AH Capp Reserve","Preston",10.202689999999999,"-",3.2212684234539144,0.31572736439644006,"Bioretention","Bioretention",781.2,0.3,550,170,140,3.6000000000000014,2670,4.29,23.4,0.70700000000000007,0.53700000000000003,0.41600000000000004,0.88375000000000004,1.1933333333333334,0.92444444444444451,0.88375000000000004,266526,"Below ground",280,null,"","","","","","",null,"","","","","",""]
[1032,"Egans Reserve","Thornbury",9.9707600000000003,"-",1.6760064966848383,0.16809215111835388,"Wetland","Wetland",2594.1,0.3,1820,570,570,0.69999999999999929,1243,2.1500000000000004,10.3,0.60399999999999998,0.46600000000000003,0.30399999999999999,0.75499999999999989,1.0355555555555556,0.67555555555555558,0.67555555555555558,117317.00000000001,"-",0,null,"","","","","","",null,570,1.6760064966848383,0.69999999999999929,1243,2.1500000000000004,10.3,null,null,null,null,null,null,null,null,570,1.6760064966848383,0.69999999999999929,1243,2.1500000000000004,10.3]
[1033,"Bill Lawry Oval","Northcote",75.306919999999991,"-",19.907635083262747,0.26435333012242102,"Bioretention","Bioretention",760.2,0.3,540,1000,540,6,11500,17.899999999999999,93,0.51100000000000001,0.36299999999999999,0.26200000000000001,0.63874999999999993,0.80666666666666664,0.5822222222222222,0.5822222222222222,1059270,"Below ground",320,null,{"$f":"IF(AND($I36=\"Bioretention\",$AB36<=0),N36,\"\")","v":""},{"$f":"IF(AND($I36=\"Bioretention\",$AB36<=0),F36,\"\")","v":""},{"$f":"IF(AND($I36=\"Bioretention\",$AB36<=0),O36,\"\")","v":""},{"$f":"IF(AND($I36=\"Bioretention\",$AB36<=0),P36,\"\")","v":""},{"$f":"IF(AND($I36=\"Bioretention\",$AB36<=0),Q36,\"\")","v":""},{"$f":"IF(AND($I36=\"Bioretention\",$AB36<=0),R36,\"\")","v":""},null,{"$f":"IF(AND($I36=\"Wetland\",$AB36<=0),N36,\"\")","v":""},{"$f":"IF(AND($I36=\"Wetland\",$AB36<=0),F36,\"\")","v":""},{"$f":"IF(AND($I36=\"Wetland\",$AB36<=0),O36,\"\")","v":""},{"$f":"IF(AND($I36=\"Wetland\",$AB36<=0),P36,\"\")","v":""},{"$f":"IF(AND($I36=\"Wetland\",$AB36<=0),Q36,\"\")","v":""},{"$f":"IF(AND($I36=\"Wetland\",$AB36<=0),R36,\"\")","v":""}]
[1034,"NARC Option West","Northcote",149.50008,"-",42.431213462777542,0.28382067396069316,"Bioretention","Bioretention",725.5,0.3,510,2130,510,6,13700,20.200000000000003,104,0.28100000000000003,0.19800000000000001,0.13900000000000001,0.35125000000000001,0.44,0.30888888888888894,0.30888888888888894,1184560,"Below ground",270,null,"","","","","","",null,"","","","","",""]
[1035,"Merri Park","Northcote",239.56592000000001,"-",79.458831262658094,0.33167835918672445,"Wetland","Bioretention",1976.1,0.3,1390,3980,600,6,16200,24,130,0.18,0.128,9.0999999999999998E-2,0.22499999999999998,0.28444444444444444,0.20222222222222222,0.20222222222222222,1480700,"Below ground",270,null,"","","","","","",null,"","","","","",""]
[1036,"McDonnell Park South (Wetland)","Northcote",176.57686999999999,"-",48.235864985476944,0.27317204674359075,"Wetland","Wetland",2197,0.35,1430,16210,1430,6,3800,6,34,7.0000000000000007E-2,5.4000000000000006E-2,4.0999999999999995E-2,8.7500000000000008E-2,0.12000000000000001,9.1111111111111101E-2,8.7500000000000008E-2,387260,"Below ground",310,null,"","","","","","",null,"","","","","",""]
[1037,"26 Linaker Drive","Macleod",64.342880000000008,"-",20.025198202156574,0.31122632686253043,"Wetland","Wetland",4204.8,0.3,2950,6730,2950,4,7900,13.5,61,0.34100000000000003,0.27399999999999997,0.17600000000000002,0.42625000000000002,0.60888888888888881,0.39111111111111113,0.39111111111111113,694790,"-",0,null,"","","","","","",null,2950,20.025198202156574,4,7900,13.5,61,null,null,null,null,null,null,null,null,2950,20.025198202156574,4,7900,13.5,61]
[1038,"Rubie Thomson Reserve","Fairfield",216.69905,"-",60.456656775143109,0.27898902544862614,"Wetland","Wetland",1129,0.3,800,20320,800,6,2200,4,30,3.1E-2,2.6000000000000002E-2,2.2000000000000002E-2,3.875E-2,5.7777777777777782E-2,4.8888888888888891E-2,3.875E-2,341700,"Below ground",720,null,"","","","","","",null,"","","","","",""]
[1039,"HLT Oulton Park","Preston",74.872969999999995,"-",19.168826644102555,0.25601798144380483,"Bioretention","Bioretention",716.4,0.3,510,960,510,5,11200,16.899999999999999,88,0.496,0.34499999999999997,0.247,0.62,0.76666666666666661,0.54888888888888887,0.54888888888888887,1002320,"Below ground",200,null,"","","","","","",null,"","","","","",""]
[1040,"T H Westfield Reserve","Northcote",75.306919999999991,"-",19.907635083262747,0.26435333012242102,"Wetland","Wetland",8832.1,0.3,6190,6690,6190,6,14090,24.2,114,0.61599999999999999,0.48899999999999999,0.32299999999999995,0.76999999999999991,1.0866666666666667,0.71777777777777763,0.71777777777777763,1298460,"-",0,null,"","","","","","",null,6190,19.907635083262747,6,14090,24.2,114,null,null,null,null,null,null,null,null,6190,19.907635083262747,6,14090,24.2,114]
[1041,"8 Grand Ave","Macleod",8.9296299999999995,"-",1.0140383634354899,0.11355883316951429,"Wetland","Wetland",2769.1,0.3,1940,350,350,3.169999999999999,839,1.6300000000000001,10.600000000000001,0.67,0.54,0.46200000000000002,0.83750000000000002,1.2,1.0266666666666666,0.83750000000000002,120734.00000000001,"Below ground",490,null,"","","","","","",null,"","","","","",""]
[1042,"Darebin Parklands","Alphington",22.144600000000001,"-",5.7071213850270013,0.25772068066377363,"Wetland","Wetland",2985,0.3,2090,1920,1920,4.8999999999999986,4380,7.12,36.700000000000003,0.65200000000000002,0.49,0.35499999999999998,0.81499999999999995,1.0888888888888888,0.78888888888888886,0.78888888888888886,418013.00000000006,"Below ground",160,null,"","","","","","",null,"","","","","",""]
[1043,"Beenak Wetland Expansion","Reservoir",82.59778,"-",21.165255450418357,0.25624484641619127,"Wetland","Wetland",2907.1,0.3,2040,7120,2040,6,5700,9.2999999999999972,46,0.22899999999999998,0.17300000000000001,0.12,0.28624999999999995,0.38444444444444448,0.26666666666666666,0.26666666666666666,523940,"Below ground",180,null,"","","","","","",null,"","","","","",""]
[1044,"John Cain Park East","Thornbury",70.763599999999997,"-",25.939027748918846,0.36655890526935947,"Wetland","Wetland",1145.8,0.3,810,8720,810,1,2200,3.7999999999999972,18,7.400000000000001E-2,5.9000000000000004E-2,3.7999999999999999E-2,9.2500000000000013E-2,0.13111111111111112,8.4444444444444447E-2,8.4444444444444447E-2,205020,"-",0,null,"","","","","","",null,810,25.939027748918846,1,2200,3.7999999999999972,18,null,null,null,null,null,null,null,null,810,25.939027748918846,1,2200,3.7999999999999972,18]
[1045,"TW Blake Park","Preston",28.587709999999998,"-",8.6687412292434054,0.3032331456154902,"Wetland","Bioretention",1098.3,0.3,770,440,350,12.5,7010,11.46,67,0.70400000000000007,0.54600000000000004,0.439,0.88,1.2133333333333334,0.97555555555555551,0.88,763130,"Below ground",1120,null,"","","","","","",null,"","","","","",""]
[1046,"W Ruthven Vc Reserve","Preston",39.429920000000003,"-",7.5597810227175142,0.19172701904334358,"Wetland","Bioretention",1494.5,0.3,1050,380,310,4.3000000000000043,5800,9,47.099999999999994,0.64500000000000002,0.45100000000000001,0.32899999999999996,0.80625000000000002,1.0022222222222221,0.73111111111111104,0.73111111111111104,536468.99999999988,"Below ground",250,null,"","","","","","",null,"","","","","",""]
[1047,"CH Sullivan Memorial Park","Reservoir",11.678000000000001,"-",2.846005412146785,0.24370657750871594,"Wetland","Wetland",1721.6,0.3,1210,960,935,11.180000000000001,2509,5.01,34,0.77700000000000002,0.7,0.65599999999999992,0.97124999999999995,1.5555555555555554,1.4577777777777776,0.97124999999999995,387260,"Below ground",2130,null,"","","","","","",null,"","","","","",""]
[1048,"26 Kerang Ave","Reservoir",54.699119999999994,"-",14.309525662261393,0.26160431213996488,"Wetland","Wetland",1633.6,0.3,1150,4810,1150,12.5,3600,6.6999999999999993,43,0.218,0.187,0.16699999999999998,0.27249999999999996,0.41555555555555557,0.37111111111111106,0.27249999999999996,489770,"Below ground",1880,null,"","","","","","",null,"","","","","",""]
[1049,"McDonnell Park South (Bioretention)","Northcote",176.57686999999999,"-",48.235864985476944,0.27317204674359075,"Wetland","Bioretention",2197,0.3,1540,2420,600,6,15200,22.5,118,0.27500000000000002,0.193,0.13800000000000001,0.34375,0.42888888888888888,0.3066666666666667,0.3066666666666667,1344020,"Below ground",280,null,"","","","","","",null,"","","","","",""]
[1050,"7 Chenies St","Reservoir",91.792959999999994,"-",23.201441467250966,0.25275839745500056,"Wetland","Wetland",5616.5,0.3,3940,7800,3940,8,10200,16.600000000000001,83,0.38100000000000001,0.28499999999999998,0.19600000000000001,0.47625000000000001,0.6333333333333333,0.43555555555555558,0.43555555555555558,945370,"Below ground",180,null,"","","","","","",null,"","","","","",""]
[1051,"60 Ayr St","Reservoir",16.915229999999998,"-",5.0462530126459901,0.29832600636503265,"Wetland","Wetland",1161.2,0.3,820,1700,820,6.3999999999999986,2540,4.4700000000000006,26.300000000000004,0.43099999999999999,0.35600000000000004,0.29399999999999998,0.53874999999999995,0.79111111111111121,0.65333333333333332,0.53874999999999995,299557.00000000006,"Below ground",640,null,"","","","","","",null,"","","","","",""]
[1052,"102 Holt Parade","Bundoora",15.468129999999999,"-",5.7879636434717678,0.37418638474539379,"Wetland","Wetland",1796,0.3,1260,1950,1260,7,3570,6.1000000000000005,33.5,0.55200000000000005,0.44,0.34299999999999997,0.69000000000000006,0.97777777777777775,0.76222222222222213,0.69000000000000006,381565,"Below ground",490,null,"","","","","","",null,"","","","","",""]
[1053,"1 Browning St","Kingsbury",34.567040000000006,"-",12.432151448985845,0.35965334170891816,"Wetland","Wetland",2009.3,0.3,1410,4180,1410,13.299999999999997,4440,8,49,0.309,0.26500000000000001,0.22899999999999998,0.38624999999999998,0.58888888888888891,0.50888888888888884,0.38624999999999998,558110,"Below ground",1560,null,"","","","","","",null,"","","","","",""]
[1054,"3 Campbell St","Kingsbury",14.514989999999999,"-",6.0564933138538644,0.41725783578589198,"Bioretention","Bioretention",822.7,0.3,580,310,250,3.5,4790,7.4,38.9,0.69200000000000006,0.50900000000000001,0.379,0.86499999999999999,1.1311111111111112,0.84222222222222221,0.84222222222222221,443071,"Below ground",200,null,"","","","","","",null,"","","","","",""]
[1055,"CH Sullivan Memorial Park","Reservoir",176.19636,"-",52.858908,0.3,"Wetland","Wetland",1721.6,0.3,1210,17770,1210,14,3800,7,47,6.3E-2,5.5999999999999994E-2,5.0999999999999997E-2,7.8750000000000001E-2,0.12444444444444443,0.11333333333333333,7.8750000000000001E-2,535330,"Below ground",2130,null,"","","","","","",null,"","","","","",""]
[1056,"CT Barling Reserve","Reservoir",17.44331,"-",4.9111587536653767,0.28154970321947936,"Wetland","Wetland",4255.5,0.3,2980,1660,1500,13.2,4210,7.669999999999999,47.6,0.745,0.628,0.54400000000000004,0.93124999999999991,1.3955555555555554,1.2088888888888889,0.93124999999999991,542164,"Below ground",1560,null,"","","","","","",null,"","","","","",""]
[1057,"KP Hardiman Reserve North","Kingsbury",54.699119999999994,"-",14.309525662261393,0.26160431213996488,"Wetland","Wetland",12927.1,0.3,9050,4810,4500,17.5,11150,18.399999999999999,98,0.67599999999999993,0.51500000000000001,0.38100000000000001,0.84499999999999986,1.1444444444444444,0.84666666666666668,0.84499999999999986,1116220,"Below ground",940,null,"","","","","","",null,"","","","","",""]
[1058,"La Trobe Uni Hockey Club","Kingsbury",54.699119999999994,"-",14.309525662261393,0.26160431213996488,"Wetland","Wetland",3967.3,0.3,2780,4810,2780,15.599999999999994,7930,13.399999999999999,75,0.47799999999999998,0.374,0.28899999999999998,0.59749999999999992,0.83111111111111113,0.64222222222222214,0.59749999999999992,854250,"Below ground",1090,null,"","","","","","",null,"","","","","",""]
[1059,"60 Winter Crescent","Reservoir",17.800799999999999,"-",4.54613935875651,0.25538960938589894,"Wetland","Wetland",1447.2,0.3,1020,1530,1020,4.1000000000000014,2790,4.5999999999999996,24.1,0.52100000000000002,0.39100000000000001,0.28800000000000003,0.65125,0.86888888888888893,0.64,0.64,274499,"Below ground",200,null,"","","","","","",null,"","","","","",""]
[1060,"68 Winter Crescent","Reservoir",17.800799999999999,"-",4.54613935875651,0.25538960938589894,"Bioretention","Bioretention",804.1,0.3,570,230,190,3.4000000000000021,3650,5.6999999999999993,30.200000000000003,0.67599999999999993,0.48700000000000004,0.36099999999999999,0.84499999999999986,1.0822222222222222,0.80222222222222217,0.80222222222222217,343978.00000000006,"Below ground",220,null,"","","","","","",null,"","","","","",""]
[1061,"Breavington Park","Fairfield",31.764600000000002,"-",13.056074369911897,0.41102593358367168,"Wetland","Wetland",921.4,0.3,650,4390,650,0.69999999999998863,1800,3.1000000000000014,14,0.122,0.1,6.4000000000000001E-2,0.1525,0.22222222222222224,0.14222222222222222,0.14222222222222222,159460,"-",0,null,"","","","","","",null,650,13.056074369911897,0.69999999999998863,1800,3.1000000000000014,14,null,null,null,null,null,null,null,null,650,13.056074369911897,0.69999999999998863,1800,3.1000000000000014,14]
[1062,"209 Wingrove St","Fairfield",68.251040000000003,"-",22.28610718469896,0.32653139329010894,"Bioretention","Bioretention",183.7,0.3,130,1120,130,0,3600,5.3999999999999986,26,0.14099999999999999,9.8000000000000004E-2,6.8000000000000005E-2,0.17624999999999996,0.21777777777777779,0.15111111111111111,0.15111111111111111,296140,"-",0,null,130,22.28610718469896,0,3600,5.3999999999999986,26,null,"","","","","","",null,130,22.28610718469896,null,3600,5.3999999999999986,26]
[1063,"2 Broomfield Ave","Alphington",156.28623999999999,"-",54.978761203618454,0.35178248068171875,"Bioretention","Bioretention",171.2,0.3,120,2750,120,0,3300,5,25,5.2999999999999999E-2,3.7000000000000005E-2,2.6000000000000002E-2,6.6249999999999989E-2,8.2222222222222238E-2,5.7777777777777782E-2,5.7777777777777782E-2,284750,"-",0,null,120,54.978761203618454,0,3300,5,25,null,"","","","","","",null,120,54.978761203618454,null,3300,5,25]
[1064,"22 McComas St","Reservoir",37.653079999999996,"-",11.02151774272847,0.29271224937584045,"Bioretention","Bioretention",431.3,0.3,310,560,310,0.60000000000000853,6430,9.8000000000000007,50,0.51600000000000001,0.35799999999999998,0.25700000000000001,0.64500000000000002,0.79555555555555546,0.57111111111111112,0.57111111111111112,569500,"-",0,null,310,11.02151774272847,0.60000000000000853,6430,9.8000000000000007,50,null,"","","","","","",null,310,11.02151774272847,0.60000000000000853,6430,9.8000000000000007,50]
[1065,"Progress Park","Reservoir",11.93942,"-",2.7713420860565345,0.23211697771387008,"Bioretention","Bioretention",114.1,0.3,80,140,80,9.9999999999997868E-2,1650,2.5,12.899999999999999,0.51200000000000001,0.35499999999999998,0.252,0.64,0.78888888888888886,0.55999999999999994,0.55999999999999994,146930.99999999997,"-",0,null,80,2.7713420860565345,9.9999999999997868E-2,1650,2.5,12.899999999999999,null,"","","","","","",null,80,2.7713420860565345,9.9999999999997868E-2,1650,2.5,12.899999999999999]
[1066,"Ruthven Linear Reserve","Reservoir",231.27843999999999,"-",64.468372325174869,0.27874786912768379,"Bioretention","Bioretention",455.5,0.3,320,3230,320,1,8800,13,60,0.11800000000000001,8.3000000000000004E-2,5.7999999999999996E-2,0.14749999999999999,0.18444444444444444,0.12888888888888889,0.12888888888888889,683400,"-",0,null,320,64.468372325174869,1,8800,13,60,null,"","","","","","",null,320,64.468372325174869,1,8800,13,60]
[1067,"LE Cotchin Reserve","Reservoir",14.349179999999999,"-",4.7836628407092947,0.33337534553955661,"Bioretention","Bioretention",827.8,0.3,580,240,200,3.0999999999999979,3780,5.8699999999999992,30.9,0.69299999999999995,0.505,0.376,0.86624999999999985,1.1222222222222222,0.8355555555555555,0.8355555555555555,351951,"Below ground",180,null,"","","","","","",null,"","","","","",""]
[1068,"Mayer Park","Thornbury",706.97392000000002,"-",235.19839974866059,0.33268327599504743,"Bioretention","Bioretention",257.8,0.3,190,11760,190,10,6000,9,50,2.1000000000000001E-2,1.6E-2,1.3000000000000001E-2,2.6249999999999999E-2,3.5555555555555556E-2,2.8888888888888891E-2,2.6249999999999999E-2,569500,"Below ground",590,null,"","","","","","",null,"","","","","","",null,null,null,null,null,null,null,null,null,null,null,null,null,null,null,"LINED DATA"]
[null,null,null,null,null,null,null,null,null,null,null,null,null,null,null,null,null,null,null,null,null,null,null,null,null,null,null,null,null,null,null,null,null,null,null,null,null,null,null,null,null,null,null,null,null,null,null,null,null,null,null,null,null,null,null,null,null,null,null,"Coefficient "]
[null,null,null,null,null,null,null,null,null,null,null,null,null,null,null,null,null,null,null,null,null,null,null,null,null,null,null,null,null,null,null,null,null,null,null,null,null,null,null,null,null,null,null,null,null,null,null,null,null,null,null,null,null,null,null,null,null,null,null,"a","b",null,"Vlookup","Predicted #","Area (m2)","Real #","Difference"]
[null,null,null,null,null,null,null,null,null,null,null,null,null,null,null,null,null,null,null,null,null,null,null,null,null,null,null,null,null,null,null,null,null,null,null,null,null,null,null,null,null,null,null,null,null,null,null,null,null,null,null,null,null,null,null,null,null,"Bioretention ","Runoff",1.1000000000000001E-3,1.1061000000000001,null,3,{"$f":"BH74*$BM74^$BI74","v":0.58217172754168323},{"$f":"$AR$22","v":290},{"$f":"VLOOKUP(BM74,$AR$22:$AW$22,BK74,FALSE)","v":1},{"$f":"(BL74-BN74)/BN74","v":-0.41782827245831677},{"$f":"BL74=Calculations!F25","v":false}]
[null,null,null,null,null,null,null,null,null,null,null,null,null,null,null,null,null,null,null,null,null,null,null,null,null,null,null,null,null,null,null,null,null,null,null,null,null,null,null,null,null,null,null,null,null,null,null,null,null,null,null,null,null,null,null,null,null,"Bioretention ","TSS",22.167000000000002,0.99609999999999999,null,4,{"$f":"BH75*$BM75^$BI75","v":6287.8412284103433},{"$f":"$AR$22","v":290},{"$f":"VLOOKUP(BM75,$AR$22:$AW$22,BK75,FALSE)","v":8000},{"$f":"(BL75-BN75)/BN75","v":-0.21401984644870709},{"$f":"BL75=Calculations!F26","v":false}]
[null,null,null,null,null,null,null,null,null,null,null,null,null,null,null,null,null,null,null,null,null,null,null,null,null,null,null,null,null,null,null,null,null,null,null,null,null,null,null,null,null,null,null,null,null,null,null,null,null,null,null,null,null,null,null,null,null,"Bioretention ","TP",3.3799999999999997E-2,0.99490000000000001,null,5,9.5226203119248112,290,13,-0.26749074523655297,{"$f":"BL76=Calculations!F27","v":false}]
[null,null,null,null,null,null,null,null,null,null,null,null,null,null,null,null,null,null,null,null,null,null,null,null,null,null,null,null,null,null,null,null,null,null,null,null,null,null,null,null,null,null,null,null,null,null,null,null,null,null,null,null,null,null,null,null,null,"Bioretention ","TN",0.1729,0.99119999999999997,null,6,47.700605158050308,290,60,-0.20498991403249486,{"$f":"BL77=Calculations!F28","v":false}]
[null,null,null,null,null,null,null,null,null,null,null,null,null,null,null,null,null,null,null,null,null,null,null,null,null,null,null,null,null,null,null,null,null,null,null,null,null,null,null,null,null,null,null,null,null,null,null,null,null,null,null,null,null,null,null,null,null,"Wetland","Runoff",1.4E-3,0.96550000000000002,null,3,1.2625012027744342,{"$f":"$AY$30","v":1150},{"$f":"VLOOKUP(BM78,$AY$30:$BD$30,BK78,FALSE)","v":1.1999999999999957},{"$f":"(BL78-BN78)/BN78","v":5.2084335645365597E-2},{"$f":"BL78=Calculations!F25","v":false}]
[null,null,null,null,null,null,null,null,null,null,null,null,null,null,null,null,null,null,null,null,null,null,null,null,null,null,null,null,null,null,null,null,null,null,null,null,null,null,null,null,null,null,null,null,null,null,null,null,null,null,null,null,null,null,null,null,null,"Wetland","TSS",2.7902999999999998,0.98240000000000005,null,4,2834.52608157742,{"$f":"$AY$30","v":1150},{"$f":"VLOOKUP(BM79,$AY$30:$BD$30,BK79,FALSE)","v":3040},-6.7590104744269741E-2,{"$f":"BL79=Calculations!F26","v":false}]
[null,null,null,null,null,null,null,null,null,null,null,null,null,null,null,null,null,null,null,null,null,null,null,null,null,null,null,null,null,null,null,null,null,null,null,null,null,null,null,null,null,null,null,null,null,null,null,null,null,null,null,null,null,null,null,null,null,"Wetland","TP",5.1999999999999998E-3,0.97299999999999998,null,5,4.9438164961196058,1150,5.0999999999999979,-3.0624216447135706E-2,{"$f":"BL80=Calculations!F27","v":false}]
[null,null,null,null,null,null,null,null,null,null,null,null,null,null,null,null,null,null,null,null,null,null,null,null,null,null,null,null,null,null,null,null,null,null,null,null,null,null,null,null,null,null,null,null,null,null,null,null,null,null,null,null,null,null,null,null,null,"Wetland","TN",2.53E-2,0.96730000000000005,null,6,23.106466766927685,1150,24,-3.7230551378013121E-2,{"$f":"BL81=Calculations!F28","v":false}]

{"sheet":"Pipes","index":16,"n_rows":32,"n_cols":11,"rows_kept":32,"cut":false,"hidden":true,"merged":[[30,5,30,7],[31,5,31,7],[9,5,9,7],[9,8,9,10],[2,1,2,3],[28,5,28,7],[29,5,29,7]]}
[]
[]
[null,"Constants"]
[null,"Friction factor, f","f_pipe",0.02]
[null,"Pipe friction loss factor","PipeFrictionLossFactor",0.02]
[null,"Gravity","g",9.81]
[null,"Pipe conversion constant, a1","a1_pipe_cap",8]
[null,"Pipe average cost of crossings per m, b2","b2_pipe_crossing_cap",75]
[]
[null,null,null,null,null,"Base capital cost ($)",null,null,"Total capital cost ($)"]
[null,"Pipe size list A","Pipe size list B","Number of pipes","Nominal Pipe diameter","Greenfield pipe","Urban pipe","CBD pipe","Greenfield pipe","Urban pipe","CBD pipe"]
[null,0,100,1,100,{"$f":"F13","v":126.7038172410474},{"$f":"0.6286*100^1.1691","v":136.95389136777524},{"$f":"H13","v":547.96490512525418},{"$f":"F12+(D12*b2_pipe_crossing_cap)","v":201.7038172410474},{"$f":"G12+(D12*b2_pipe_crossing_cap)","v":211.95389136777524},{"$f":"H12+(D12*b2_pipe_crossing_cap)","v":622.96490512525418}]
[null,100,150,1,150,126.7038172410474,228.72764277034366,547.96490512525418,201.7038172410474,303.72764277034366,622.96490512525418]
[null,150,225,1,225,187.08915668896421,343.07755327577576,829.78301159066496,262.08915668896418,418.07755327577576,904.78301159066496]
[null,225,300,1,300,276.25333879245107,479.99999999999994,1256.5400445984546,351.25333879245107,555,1331.5400445984546]
[null,300,375,1,375,364.24923574994938,647.27272727272725,1686.7030750491738,439.24923574994938,722.27272727272725,1761.7030750491738]
[null,375,450,1,450,857.61529709428464,807.27272727272725,2119.4166607794932,932.61529709428464,882.27272727272725,2194.4166607794932]
[null,450,600,1,600,1029.1195932734579,1134.5454545454545,2554.1737147447798,1104.1195932734579,1209.5454545454545,2629.1737147447798]
[null,600,750,1,600,1029.1195932734579,1134.5454545454545,2554.1737147447798,1104.1195932734579,1209.5454545454545,2629.1737147447798]
[null,750,825,1,750,1372.1199836980911,1454.5454545454545,3428.5677383616662,1447.1199836980911,1529.5454545454545,3503.5677383616662]
[null,825,900,1,825,1715.1117075838756,1621.8181818181818,4308.1462853697158,1790.1117075838756,1696.8181818181818,4383.1462853697158]
[null,900,1150,1,900,1886.6048969913763,1781.8181818181818,4749.5418150645737,1961.6048969913763,1856.8181818181818,4824.5418150645737]
[null,1150,1272.7922061357856,1,1150,2058.0965252223305,2327.272727272727,5191.8785980099201,2133.0965252223305,2402.272727272727,5266.8785980099201]
[null,{"$f":"B22*SQRT(D24)","v":1272.7922061357856},{"$f":"B25","v":1626.3455967290595},2,{"$f":"900*2","v":1800},4115.9077475718605,4115.9077475718641,10553.551319107102,4265.9077475718605,4265.9077475718641,10703.551319107102]
[null,{"$f":"B23*SQRT(D25)","v":1626.3455967290595},{"$f":"B26","v":2300},2,{"$f":"1150*2","v":2300},5259.0865416287297,5259.0865416287297,13562.66428971622,5409.0865416287297,5409.0865416287297,13712.66428971622]
[null,{"$f":"B23*SQRT(D26)","v":2300},{"$f":"B27","v":2571.4781741247584},4,{"$f":"1150*4","v":4600},10517.444044322587,10517.444044322587,27568.879145249182,10817.444044322587,10817.444044322587,27868.879145249182]
[null,{"$f":"B23*SQRT(D27)","v":2571.4781741247584},"Warning pipe size limit exceeded",5,{"$f":"1150*5","v":5750},13146.511696199439,13146.511696199439,34641.510200456578,13521.511696199439,13521.511696199439,35016.510200456578]
[null,null,null,null,null,null,null,null,"Vlookup",6]
[null,null,null,null,null,"Base capital cost ($)"]
[null,null,null,null,null,"Assumed same as 150 mm as no data"]
[null,null,null,null,null,"Rates multiplied by 1.1 to adjust consist with new 2015 data"]
[null,null,null,null,null,"Rates from CWW 2015 Unit Rates for Water Pipeline Construction (CWW CAPEX Cost rates 2016-17 (August 2016))"]

{"sheet":"Costs","index":17,"n_rows":374,"n_cols":60,"rows_kept":374,"cut":false,"hidden":true,"merged":[[32,25,36,29],[2,20,3,20],[2,21,3,21],[2,22,2,23],[3,50,4,50],[3,49,4,49],[3,48,4,48],[3,47,4,47],[1,1,1,11],[11,39,11,40],[11,36,11,37],[7,1,7,11],[2,13,2,14],[2,16,2,17],[11,31,11,33],[1,31,1,34],[1,36,1,40],[8,19,8,23],[9,19,9,23],[4,19,6,19],[3,25,6,25],[3,26,3,29],[4,26,4,27],[4,28,4,29],[76,31,76,33],[75,31,75,33],[21,57,21,59],[16,31,16,32],[2,36,9,40],[16,39,16,40],[16,36,16,37],[7,59,12,59],[3,57,4,57],[2,47,2,50],[7,52,8,52],[11,52,12,52],[9,52,10,52],[11,53,12,53],[2,42,2,43],[3,46,4,46],[3,52,4,52],[3,53,4,53],[3,58,4,58],[3,54,4,54],[18,57,18,59],[13,59,15,59],[3,59,4,59],[3,55,4,55],[3,56,4,56],[9,53,10,53],[7,53,8,53]]}
[null,"WSUD Treatments",null,null,null,null,null,null,null,null,null,null,null,"Storage Costs",null,null,null,null,null,null,null,null,null,null,null,"Gravity Pipes",null,null,null,null,null,"PUMPS - Small - Used",null,null,null,null,"PUMPS - Large - Not used",null,null,null,null,null,"Inlet / Outlet Pits",null,null,"Opex and Contingencies",null,null,null,null,null,null,"GPTs"]
[null,"Capital cost power functions derived from Melbourne Water threshold costs (2016)",null,null,null,null,null,null,null,null,null,null,null,null,null,null,null,null,null,null,null,null,null,null,null,null,null,null,null,null,null,"Not Used",null,null,null,null,"Not Used"]
[null,null,"Bioretention","Buffer strip","Grass swale","Gross pollutant trap","Pond","Raingarden","Sediment basin","Tree pit","Vegetated swale","Wetland",null,"Above ground tanks",null,null,"Below ground tanks",null,null,null,"Type","Equation","Constants",null,null,"* RRJ, 20% FCR used for costing gravity pipes",null,null,null,null,null,"Davey Model","Capacity (L/s)","Power (kW)","Cost",null,"Two equations listed in CWW IWMS document. Appears equation 2 was adopted for use in constants sheet previously so use this. \n\nSunshine NEC Project\nSpreedsheet: Water CBA Tool - v1.21.xlsm\nTab: PumpCosts\n\n\n",null,null,null,null,null,"Capex - Inlet / Outlet Pit Works",null,null,null,"Opex","Contingencies"]
[null,"a (constant)",2368.3847391828403,16,16,146.24576390483483,184.18325430840525,3972.9854402456576,336.76156717967712,18645.78156996876,64,230.22906788550654,null,"Size (kL)","Capex",null,"Size (kL)","Capex",null,null,null,null,"a","b",null,"Nominal pipe diameter",null,null,null,null,null,"VM3",1,8.5000000000000006E-2,3500,null,null,null,null,null,null,null,"Gravity diversion from standard pit",4000,null,null,"As a proportion of CAPEX before contingencies","CAPEX A: Contingency, investigations, design, supervision","CAPEX B: Capital cost insurance, administration and procurement","OPEX A: Maintenance design, supervision","OPEX B: Maintenance administration, procurement",null,"Supplier ","Specs","Catchment (ha)","Imperviousness (%)","Estimated Design Flow\n(L/s)","Base Cost\n(ex GST)","Full Cost \n(ex GST)","Source"]
[null,"b (exponent)",0.69699505109135873,1,1,1.0991862137630091,0.9048571223452383,0.7128811788977113,0.93063152194000909,0.41501317752694739,1,0.90485712234523785,null,{"$f":"1","v":1},{"$f":"IF(N5>=5000,$W$7*N5,$W$5*(N5^$X$5))","v":3412.8},null,{"$f":"1","v":1},{"$f":"IF(Q5>=5000,$W$7*Q5,$W$6*(Q5^$X$6))","v":5800.1},null,"Capex*","Above ground tanks <5ML","3412.8 V0.702",3412.8,0.70199999999999996,null,null,"IJ/FJ",null,"RRJ",null,null,"VM5",2,0.2,3500,null,null,null,null,null,null,null,"Pumped diversion from pit with pipe diameter < 1000mm",5000,null,null,null,null,null,null,null,null,"Supplier","Base cost","Base cost","Base cost","Base cost","Base cost",null,"Supplier"]
[null,null,null,null,null,null,null,null,null,null,null,null,null,{"$f":"N5+1","v":2},5551.801054770639,null,{"$f":"Q5+1","v":2},9437.9777745192605,null,null,"Below ground tanks <5ML","5800.1 V0.7024",5800.1,0.70240000000000002,null,null,0.2,1,0.2,"100% ",null,"VM10",3,0.4,5000,null,null,null,null,null,null,null,"Pumped diversion from pit with pipe diameter > 1000mm",7000,null,"Pipes",5.0000000000000001E-3,0.36,4.5999999999999999E-2,0.12,0.08,null,"?","?","?","?",0,12000,25000,"Placeholder minimum value"]
[null,null,null,null,null,null,null,null,null,null,null,null,null,3,7379.8911957468135,null,3,12547.738251639541,null,null,"All tanks > 5ML","460 V",460,"-",null,null,"FCR","FCR","FCR","FCR",null,"VM16",5,0.8,7000,null,null,null,null,null,null,null,"Gravity / pumped diversion from multi-chamber pit",7000,null,"Pumps",1.4999999999999999E-2,0.36,4.5999999999999999E-2,0.12,0.08,null,"SPEL","ECOCEPTOR, Class 3, 1500 Series",0.8,0.8,{"$f":"ROUND((((Lists!$C$92*(BC7/100))+Lists!$D$92)*BD7)*1000,-1)","v":10},12000,{"$f":"BF7+15000","v":27000},"Sunvale Concept Design"]
[null,"Maintenance cost power functions derived from Melbourne Water threshold costs (2016)",null,null,null,null,null,null,null,null,null,null,null,4,9031.4389802368642,null,4,15357.567019934055,null,"Opex** \n(annual)","All tanks","185.4 A0.478 ",185.4,0.47799999999999998,null,"Millimetres","$/m","$/m","$/m","$/m",null,"VM32",10,1.8,14000,null,null,null,null,null,null,null,"Standard outlet pit / end wall",4000,null,"Generic","n/a",0.4,4.5999999999999999E-2,0.12,0.08,null,"Rocla","CDS1012 pre-cast concrete sized for a 10 ha catchment",10,0.3,{"$f":"ROUND((((Lists!$C$92*(BC8/100))+Lists!$D$92)*BD8)*1000,-1)","v":60},"?",{"$f":"41000","v":41000},"Simon, Email Rocla, Aug 22, 2016"]
[null,null,"Bioretention","Buffer strip","Grass swale","Gross pollutant trap","Pond","Raingarden","Sediment basin","Tree pit","Vegetated swale","Wetland",null,5,10563.01219417362,null,5,17963.543598963737,null,"*Where V = tank volume in kL ",null,null,null,null,null,300,120,150,138,172,null,"VM65",20,5,16500,null,null,null,null,null,null,null,"Non standard outlet pit / end wall",7000,null,null,null,null,null,null,null,null,null,null,10,0.4,{"$f":"ROUND((((Lists!$C$92*(BC9/100))+Lists!$D$92)*BD9)*1000,-1)","v":80},"?",{"$f":"41000","v":41000}]
[null,"a (constant)",5.0000000000000142,15.000000000000046,3.0000000000000115,1000,37.755989319331718,48.180322471019217,40.028367075524102,150,5.0000000000000142,47.19498664916469,null,6,12005.299966197756,null,6,20417.798786134572,null,"** Where A = tank area and all tanks are assumed to be 2m deep",null,null,null,null,null,375,144,180,178,223,null,"VM90",30,7,22000,null,null,null,null,null,null,null,"Standard pit",4000,null,null,null,null,null,null,null,null,"Rocla","CDS1512 pre-cast concrete sized for a 20 ha catchment",20,0.3,{"$f":"ROUND((((Lists!$C$92*(BC10/100))+Lists!$D$92)*BD10)*1000,-1)","v":120},"?",{"$f":"61000","v":61000}]
[null,"b (exponent)",0.99999999999999978,0.99999999999999978,0.99999999999999978,1,0.60482512879275174,0.7617970165274226,0.7972148712083077,1,0.99999999999999978,0.60482512879275174,null,7,13377.33682450372,null,7,22752.668778901516,null,null,null,null,null,null,null,450,184,229,228,285,null,null,null,null,null,null,null,null,null,null,null,null,"Multi-chamber pit",7000,null,null,null,"CAPEX A: Contingency, investigations, design, supervision","CAPEX B: Capital cost insurance, administration and procurement","OPEX A: Maintenance design, supervision","OPEX B: Maintenance administration, procurement",null,null,null,20,0.4,{"$f":"ROUND((((Lists!$C$92*(BC11/100))+Lists!$D$92)*BD11)*1000,-1)","v":160},"?",{"$f":"61000","v":61000}]
[null,null,null,null,null,null,null,null,null,null,null,null,null,8,14691.96919144857,null,8,24989.978828783565,null,null,null,null,null,null,null,450,184,229,228,285,null,"Davey: Power realtive to Capacity (L/s)",null,null,null,null,"Equation 1",null,null,"Equation 2",null,null,null,null,null,null,null,null,null,null,null,null,"Rocla","CDS2028 pre-cast concrete sized for a 50 ha catchment",50,0.3,{"$f":"ROUND((((Lists!$C$92*(BC12/100))+Lists!$D$92)*BD12)*1000,-1)","v":290},"?",{"$f":"130000","v":130000}]
[null,null,null,null,null,null,null,null,null,null,null,null,null,9,15958.390196044691,null,9,27145.348396003192,null,null,null,null,null,null,null,525,226,283,282,351,null,"a","b","c",null,null,"a","b",null,"a","b",null,null,null,null,null,null,null,null,null,null,null,null,null,50,0.4,{"$f":"ROUND((((Lists!$C$92*(BC13/100))+Lists!$D$92)*BD13)*1000,-1)","v":390},"?",{"$f":"130000","v":130000}]
[null,null,null,null,null,null,null,null,null,null,null,null,null,10,17183.468776713617,null,10,29230.448654096908,null,null,null,null,null,null,null,600,273,342,340,424,null,{"$f":"8*(10^-5)","v":8.0000000000000007E-5},{"$f":"0.2463","v":0.24629999999999999},-0.32969999999999999,null,null,169373,0.49120000000000003,null,49771,0.6542,null,null,null,null,null,null,null,null,null,null,null,"?","?","?","?",150,"?",50000,{"$f":"BA19","v":"Melbourne Water Life Cycle Costs"}]
[null,null,null,null,null,null,null,null,null,null,null,null,null,11,18372.510450621157,null,11,31254.294739283851,null,null,null,null,null,null,null,675,325,407,405,506,null,"y = 8E-05x2 + 0.2463x - 0.3297",null,null,null,null,"y = 169373x0.4912",null,null,"y = 49771x0.6542",null,null,null,null,null,null,null,null,null,null,null,null,"?","?","?","?",{"$f":"((2000-300)/2)+300","v":1150},"?",{"$f":"BB21","v":150000}]
[null,null,null,null,null,null,null,null,null,null,null,null,null,12,19529.722519683135,null,12,33224.035990438853,null,null,null,null,null,null,null,675,325,407,405,506,null,null,null,null,null,null,null,null,null,null,null,null,null,null,null,null,null,"Contingency A: Contingency, investigations, design, supervision",null,null,null,null,"?","?","?","?",3000,"?",{"$f":"BB22","v":250000}]
[null,null,null,null,null,null,null,null,null,null,null,null,null,13,20658.513648726032,null,13,35145.464860231434,null,null,null,null,null,null,null,750,379,474,471,589,null,"Davey: Cost realtive to Capacity (L/s)",null,null,null,null,"Series 1",null,null,"Series 2",null,null,null,null,null,null,null,"Contingency B: Capital cost insurance, administration and procurement"]
[null,null,null,null,null,null,null,null,null,null,null,null,null,14,21761.694998916391,null,14,37023.358605243149,null,null,null,null,null,null,null,825,435,543,582,728,null,"a","b",null,null,null,"x","y",null,"x","y",null,null,null,null,null,null,"Contingency A: Maintenance design, supervision"]
[null,null,null,null,null,null,null,null,null,null,null,null,null,15,22841.619987209368,null,15,38861.716720696524,null,null,null,null,null,null,null,900,497,622,670,838,null,{"$f":"2848.3","v":2848.3},0.60060000000000002,null,null,null,100,{"$f":"AK$14*AK19^AL$14","v":1626462.9697173059},null,100,{"$f":"AN$14*AN19^AO$14","v":1012456.4854939093},null,null,null,null,null,null,"Contingency B: Maintenance administration, procurement",null,null,null,null,"Melbourne Water Life Cycle Costs","Construciton","Inspection ","Cleanout","Adopted Opex","Adopted Capex Eqn"]
[null,null,null,null,null,null,null,null,null,null,null,null,null,16,23900.284239844674,null,16,40663.930754946668,null,null,null,null,null,null,null,900,497,622,670,838,null,"y = 2848.3x0.6006",null,null,null,null,200,2286178.3824874605,null,200,1593346.3500787192,null,null,null,null,null,null,null,null,null,null,null,"< 300 L/s",50000,100,1000,{"$f":"1.5*(SUM(BC20:BD20))","v":1650},"a","b","c"]
[null,null,null,null,null,null,null,null,null,null,null,null,null,17,24939.398853747465,null,17,42432.908779471443,null,null,null,null,null,null,null,1050,637,797,854,1068,null,null,null,null,null,null,300,2790012.4439352038,null,300,2077347.2123166183,null,null,null,null,null,null,null,null,null,null,null,"300 - 2000 L/s",150000,100,1000,null,{"$f":"-0.018","v":-1.7999999999999999E-2},128.32,27060]
[null,null,null,null,null,null,null,null,null,null,null,null,null,18,25960.445242276808,null,18,44171.168573483221,null,null,null,null,null,null,null,1050,637,797,854,1068,null,null,null,null,null,null,400,3213483.3032573867,null,400,2507517.7330418201,null,null,null,null,null,null,null,null,null,null,null,">2000",250000,100,1000,null,"y=-0.018x2 + 128.32x + 27060"]
[null,null,null,null,null,null,null,null,null,null,null,null,null,19,26964.716958525467,null,19,45880.908684805836,null,null,null,null,null,null,null,1200,803,1004,1078,1349,null,null,null,null,null,null,500,3585735.4605907109,null,500,2901633.4124438884]
[null,null,null,null,null,null,null,null,null,null,null,null,null,20,27953.352109463482,null,20,47564.06350521421,null,null,null,null,null,null,null,1350,974,1218,1306,1633,null,null,null,null,null,null,600,3921679.2850219705,null,600,3269210.7226476935]
[null,null,null,null,null,null,null,null,null,null,null,null,null,21,28927.358841331057,null,21,49222.34657400861,null,null,null,null,null,null,null,1500,1184,1480,1588,1986,null,null,null,null,null,null,700,4230155.5483317571,null,700,3616092.2770392131]
[null,null,null,null,null,null,null,null,null,null,null,null,null,22,29887.635636000679,null,22,50857.285065367025,null,null,null,null,null,null,null,1650,1416,1771,1900,2375,null,null,null,null,null,null,800,4516915.66126977,null,800,3946188.5868119956]
[null,null,null,null,null,null,null,null,null,null,null,null,null,23,30834.987662109732,null,23,52470.247572569526,null,null,null,null,null,null,null,1800,1679,2100,2254,2817,null,null,null,null,null,null,900,4785949.3774188105,null,900,4262278.4310719762]
[null,null,null,null,null,null,null,null,null,null,null,null,null,24,31770.140085605577,null,24,54062.466726020211,null,null,null,null,null,null,null,1950,1958,2447,2637,3296]
[null,null,null,null,null,null,null,null,null,null,null,null,null,25,32693.749007929149,null,25,55635.057780360861,null,null,null,null,null,null,null,2100,2285,2857,3062,3828]
[null,null,null,null,null,null,null,null,null,null,null,null,null,26,33606.410532404727,null,26,57189.034021139611,null,null,null,null,null,null,null,2250,2623,3279,3525,4407]
[null,null,null,null,null,null,null,null,null,null,null,null,null,27,34508.66833863176,null,27,58725.319636318534,null,null,null,null,null,null,null,2400,2969,3712,3979,4974]
[null,null,null,null,null,null,null,null,null,null,null,null,null,28,35401.020056429006,null,28,60244.760547980419]
[null,null,null,null,null,null,null,null,null,null,null,null,null,29,36283.922665553328,null,29,61748.133588605517,null,null,null,null,null,null,null,"http://www.melbournewater.com.au/planning-and-building/land-development-process/policy/reimbursements1.8/pages/reimbursements.aspx"]
[null,null,null,null,null,null,null,null,null,null,null,null,null,30,37157.797098470182,null,30,63236.154323131879]
[null,null,null,null,null,null,null,null,null,null,null,null,null,31,38023.032186373181,null,31,64709.483755013374]
[null,null,null,null,null,null,null,null,null,null,null,null,null,32,38879.988060269483,null,32,66168.734106270058]
[null,null,null,null,null,null,null,null,null,null,null,null,null,33,39728.999097018685,null,33,67614.473824266533]
[null,null,null,null,null,null,null,null,null,null,null,null,null,{"$f":"N37+1","v":34},40570.37648311675,null,{"$f":"Q37+1","v":34},69047.231938907033]
[null,null,null,null,null,null,null,null,null,null,null,null,null,35,41404.410455579171,null,35,70467.501871101951]
[null,null,null,null,null,null,null,null,null,null,null,null,null,36,42231.372268632156,null,36,71875.744775276005]
[null,null,null,null,null,null,null,null,null,null,null,null,null,37,43051.515926427077,null,37,73272.392484253505]
[null,null,null,null,null,null,null,null,null,null,null,null,null,38,43865.079715170374,null,38,74657.850113264445]
[null,null,null,null,null,null,null,null,null,null,null,null,null,39,44672.287562543555,null,39,76032.498370438305]
[null,null,null,null,null,null,null,null,null,null,null,null,null,40,45473.350247800758,null,40,77396.695613529853]
[null,null,null,null,null,null,null,null,null,null,null,null,null,41,46268.466482259952,null,41,78750.779686380047]
[null,null,null,null,null,null,null,null,null,null,null,null,null,42,47057.823876884228,null,42,80095.069563486395]
[null,null,null,null,null,null,null,null,null,null,null,null,null,43,47841.599811153195,null,43,81429.866826813668]
[null,null,null,null,null,null,null,null,null,null,null,null,null,44,48619.962215350752,null,44,82755.456995452492]
[null,null,null,null,null,null,null,null,null,null,null,null,null,45,49393.070276664555,null,45,84072.110725791557]
[null,null,null,null,null,null,null,null,null,null,null,null,null,46,50161.075078041627,null,46,85380.084897404246]
[null,null,null,null,null,null,null,null,null,null,null,null,null,47,50924.120177523226,null,47,86679.623597774786]
[null,null,null,null,null,null,null,null,null,null,null,null,null,48,51682.342134750361,null,48,87970.959017235218]
[null,null,null,null,null,null,null,null,null,null,null,null,null,49,52435.870990454539,null,49,89254.312263995409]
[null,null,null,null,null,null,null,null,null,null,null,null,null,50,53184.830704004802,null,50,90529.89410788448]
[null,null,null,null,null,null,null,null,null,null,null,null,null,51,53929.339553442645,null,51,91797.90566033432]
[null,null,null,null,null,null,null,null,null,null,null,null,null,52,54669.510501892764,null,52,93058.538997214127]
[null,null,null,null,null,null,null,null,null,null,null,null,null,53,55405.451533766078,null,53,94311.977730321072]
[null,null,null,null,null,null,null,null,null,null,null,null,null,54,56137.265963767546,null,54,95558.397532648392]
[null,null,null,null,null,null,null,null,null,null,null,null,null,55,56865.052721370601,null,55,96797.966621952815]
[null,null,null,null,null,null,null,null,null,null,null,null,null,56,57588.906613115083,null,56,98030.846206629896]
[null,null,null,null,null,null,null,null,null,null,null,null,null,57,58308.918564822699,null,57,99257.190897453285]
[null,null,null,null,null,null,null,null,null,null,null,null,null,58,59025.17584559165,null,58,100477.14908834413]
[null,null,null,null,null,null,null,null,null,null,null,null,null,59,59737.762275231224,null,59,101690.86330899218]
[null,null,null,null,null,null,null,null,null,null,null,null,null,60,60446.758416619799,null,60,102898.47055185059]
[null,null,null,null,null,null,null,null,null,null,null,null,null,61,61152.241754315335,null,61,104100.10257576252]
[null,null,null,null,null,null,null,null,null,null,null,null,null,62,61854.286860608452,null,62,105295.88618824353]
[null,null,null,null,null,null,null,null,null,null,null,null,null,63,62552.965550090164,null,63,106485.94350824054]
[null,null,null,null,null,null,null,null,null,null,null,null,null,64,63248.347023697213,null,64,107670.39221100514]
[null,null,null,null,null,null,null,null,null,null,null,null,null,65,{"$f":"IF(N69>=5000,$W$7*N69,$W$5*(N69^$X$5))","v":63940.498003104556},null,65,{"$f":"IF(Q69>=5000,$W$7*Q69,$W$6*(Q69^$X$6))","v":108849.34575655853}]
[null,null,null,null,null,null,null,null,null,null,null,null,null,{"$f":"N69+1","v":66},64629.482856249997,null,{"$f":"Q69+1","v":66},110022.91360308303]
[null,null,null,null,null,null,null,null,null,null,null,null,null,67,65315.363714701707,null,67,111191.20140644707]
[null,null,null,null,null,null,null,null,null,null,null,null,null,68,65998.200583511934,null,68,112354.31120695866]
[null,null,null,null,null,null,null,null,null,null,null,null,null,69,66678.051444141238,null,69,113512.34160433915]
[null,null,null,null,null,null,null,null,null,null,null,null,null,70,67354.972350984797,null,70,114665.38792182115]
[null,null,null,null,null,null,null,null,null,null,null,null,null,71,68029.017521983144,null,71,115813.54236019138]
[null,null,null,null,null,null,null,null,null,null,null,null,null,72,68700.239423758656,null,72,116956.8941425275,null,null,null,null,null,null,null,null,null,null,null,null,null,"Used"]
[null,null,null,null,null,null,null,null,null,null,null,null,null,73,69368.688851679646,null,73,118095.52965031199,null,null,null,null,null,null,null,null,null,null,null,null,null,"ASR Research Report: Cost realtive to Power (kW)"]
[null,null,null,null,null,null,null,null,null,null,null,null,null,74,70034.415005219416,null,74,119229.53255154857,null,null,null,null,null,null,null,null,null,null,null,null,null,"a","b","c"]
[null,null,null,null,null,null,null,null,null,null,null,null,null,75,70697.465558946409,null,75,120358.98392145135,null,null,null,null,null,null,null,null,null,null,null,null,null,31.58,0.62990000000000002,{"$f":"10^3","v":1000}]
[null,null,null,null,null,null,null,null,null,null,null,null,null,76,71357.886729454098,null,76,121483.96235623177,null,null,null,null,null,null,null,null,null,null,null,null,null,"Cost ($m) = (31.58*Power^0.6299)/(10^3)"]
[null,null,null,null,null,null,null,null,null,null,null,null,null,77,72015.723338512034,null,77,122604.54408046239]
[null,null,null,null,null,null,null,null,null,null,null,null,null,78,72671.018872698813,null,78,123720.80304845923]
[null,null,null,null,null,null,null,null,null,null,null,null,null,79,73323.815539754971,null,79,124832.81104008878,null,null,null,null,null,null,null,null,null,null,null,null,null,"Capacity (L/s)","Power (kW)","Davey","CWW Eqn 2","SA Eqn"]
[null,null,null,null,null,null,null,null,null,null,null,null,null,80,73974.154321874928,null,80,125940.63775137096,null,null,null,null,null,null,null,null,null,null,null,null,null,{"$f":"AG4","v":1},{"$f":"AH163","v":7.0071428571428576E-2},3500,null,{"$f":"(($AF$79*(AG84^$AG$79))/$AH$79)*10^6","v":5918.5917406594135}]
[null,null,null,null,null,null,null,null,null,null,null,null,null,81,74622.075026141392,null,81,127044.350880225,null,null,null,null,null,null,null,null,null,null,null,null,null,2,{"$f":"AH164","v":0.14014285714285715},3500,null,9158.7705293143463]
[null,null,null,null,null,null,null,null,null,null,null,null,null,82,75267.616332287507,null,82,128144.01620767186,null,null,null,null,null,null,null,null,null,null,null,null,null,3,0.21021428571428574,5000,null,11823.799648491826]
[null,null,null,null,null,null,null,null,null,null,null,null,null,83,75910.815837960705,null,83,129239.69767479011,null,null,null,null,null,null,null,null,null,null,null,null,null,5,0.35035714285714292,7000,null,16311.713673447228]
[null,null,null,null,null,null,null,null,null,null,null,null,null,84,76551.710101645775,null,84,130331.45745569182,null,null,null,null,null,null,null,null,null,null,null,null,null,10,0.70071428571428584,14000,null,25241.687384630717]
[null,null,null,null,null,null,null,null,null,null,null,null,null,85,77190.334683396082,null,85,131419.35602677308,null,null,null,null,null,null,null,null,null,null,null,null,null,20,1.4014285714285717,16500,null,39060.444216881318]
[null,null,null,null,null,null,null,null,null,null,null,null,null,86,77826.724183507686,null,86,132503.45223246678,null,null,null,null,null,null,null,null,null,null,null,null,null,30,2.1021428571428573,22000,null,50426.295224155023]
[null,null,null,null,null,null,null,null,null,null,null,null,null,87,78460.9122792649,null,87,133583.80334771701,null,null,null,null,null,null,null,null,null,null,null,null,null,{"$f":"AF90+10","v":40},2.8028571428571434,null,{"$f":"AN$14*AG91^AO$14","v":97678.035545615945},60444.386271461546]
[null,null,null,null,null,null,null,null,null,null,null,null,null,88,79092.931759872517,null,88,134660.46513737095,null,null,null,null,null,null,null,null,null,null,null,null,null,{"$f":"AF91+10","v":50},3.5035714285714286,null,{"$f":"AN$14*AG92^AO$14","v":113030.44754831008},69566.409594402619]
[null,null,null,null,null,null,null,null,null,null,null,null,null,89,79722.814559685154,null,89,135733.49191267526,null,null,null,null,null,null,null,null,null,null,null,null,null,60,4.2042857142857146,null,127349.08190879152,78032.560250563925]
[null,null,null,null,null,null,null,null,null,null,null,null,null,90,80350.591789834332,null,90,136802.93658504903,null,null,null,null,null,null,null,null,null,null,null,null,null,70,4.9050000000000011,null,140861.53223107549,85989.542663083426]
[null,null,null,null,null,null,null,null,null,null,null,null,null,91,80976.293768347241,null,91,137868.85071729249,null,null,null,null,null,null,null,null,null,null,null,null,null,80,5.6057142857142868,null,153720.12886414843,93535.132663817814]
[null,null,null,null,null,null,null,null,null,null,null,null,null,92,81599.950048845712,null,92,138931.28457238126,null,null,null,null,null,null,null,null,null,null,null,null,null,90,6.3064285714285724,null,166033.11657960541,100738.56043324263]
[null,null,null,null,null,null,null,null,null,null,null,null,null,93,82221.589447905877,null,93,139990.28715998496,null,null,null,null,null,null,null,null,null,null,null,null,null,100,{"$f":"AH176","v":7.0071428571428571},null,177880.88044199446,107651.07815198599]
[null,null,null,null,null,null,null,null,null,null,null,null,null,94,82841.240071155727,null,94,141045.90628083894,null,null,null,null,null,null,null,null,null,null,null,null,null,{"$f":"AF97+50","v":150},10.510714285714286,null,231914.64372598391,138975.50724076355]
[null,null,null,null,null,null,null,null,null,null,null,null,null,95,83458.929338181217,null,95,142098.18856909077,null,null,null,null,null,null,null,null,null,null,null,null,null,{"$f":"AF98+50","v":200},14.014285714285714,null,279938.79802426923,166585.49283844943]
[null,null,null,null,null,null,null,null,null,null,null,null,null,96,84074.684006306838,null,96,143147.17953273395,null,null,null,null,null,null,null,null,null,null,null,null,null,250,17.517857142857146,null,323937.7967633513,191725.9044576743]
[null,null,null,null,null,null,null,null,null,null,null,null,null,97,84688.530193313491,null,97,144192.92359223377,null,null,null,null,null,null,null,null,null,null,null,null,null,300,21.021428571428572,null,364974.05706314277,215058.72271423222]
[null,null,null,null,null,null,null,null,null,null,null,null,null,98,85300.493399151033,null,98,145235.46411744467,null,null,null,null,null,null,null,null,null,null,null,null,null,350,24.525000000000002,null,403699.84715969203,236988.2668532595]
[null,null,null,null,null,null,null,null,null,null,null,null,null,99,85910.598526699832,null,99,146274.84346291094,null,null,null,null,null,null,null,null,null,null,null,null,null,400,28.028571428571428,null,440551.73577143979,257784.0083036561]
[null,null,null,null,null,null,null,null,null,null,null,null,null,100,86518.869901632599,null,100,147311.10300163715,null,null,null,null,null,null,null,null,null,null,null,null,null,450,31.532142857142862,null,475839.94526397111,277636.74631817668]
[null,null,null,null,null,null,null,null,null,null,null,null,null,{"$f":"N104+10","v":110},92505.701968498979,null,{"$f":"Q104+10","v":110},157510.57009304111,null,null,null,null,null,null,null,null,null,null,null,null,null,500,35.035714285714292,null,509794.85392267053,296687.73255467782]
[null,null,null,null,null,null,null,null,null,null,null,null,null,120,98332.271781193122,null,120,167437.36799372258,null,null,null,null,null,null,null,null,null,null,null,null,null,550,38.539285714285718,null,542593.44379728113,315045.18166814354]
[null,null,null,null,null,null,null,null,null,null,null,null,null,130,104015.74198786799,null,130,177120.68861250006,null,null,null,null,null,null,null,null,null,null,null,null,null,600,42.042857142857144,null,574375.38306773861,332794.28248714563]
[null,null,null,null,null,null,null,null,null,null,null,null,null,140,109570.26680211103,null,140,186584.60762965752,null,null,null,null,null,null,null,null,null,null,null,null,null,650,45.546428571428571,null,605253.33105173323,350003.59656701854]
[null,null,null,null,null,null,null,null,null,null,null,null,null,150,115007.69569261887,null,150,195849.28108383971]
[null,null,null,null,null,null,null,null,null,null,null,null,null,160,120338.07664965754,null,160,204931.80117691425]
[null,null,null,null,null,null,null,null,null,null,null,null,null,170,125570.02505666229,null,170,213846.82355861415]
[null,null,null,null,null,null,null,null,null,null,null,null,null,180,130710.9998389144,null,180,222607.03694395965]
[null,null,null,null,null,null,null,null,null,null,null,null,null,190,135767.51404411116,null,190,231223.52123489685]
[null,null,null,null,null,null,null,null,null,null,null,null,null,200,140745.2980477752,null,200,239706.02508049313]
[null,null,null,null,null,null,null,null,null,null,null,null,null,210,145649.42787236362,null,210,248063.18411160519]
[null,null,null,null,null,null,null,null,null,null,null,null,null,220,150484.42737957419,null,220,256302.69474491486]
[null,null,null,null,null,null,null,null,null,null,null,null,null,230,155254.35059839784,null,230,264431.45420557342]
[null,null,null,null,null,null,null,null,null,null,null,null,null,240,159962.84874379425,null,240,272455.67451401806]
[null,null,null,null,null,null,null,null,null,null,null,null,null,250,164613.22529051278,null,250,280380.97615843732]
[null,null,null,null,null,null,null,null,null,null,null,null,null,260,169208.48162242028,null,260,288212.46573892207]
[null,null,null,null,null,null,null,null,null,null,null,null,null,270,173751.35516960989,null,270,295954.80083530251]
[null,null,null,null,null,null,null,null,null,null,null,null,null,280,178244.35150124828,null,280,303612.24459511117]
[null,null,null,null,null,null,null,null,null,null,null,null,null,290,182689.77151319358,null,290,311188.71197876759]
[null,null,null,null,null,null,null,null,null,null,null,null,null,300,187089.7346029717,null,300,318687.80917998898]
[null,null,null,null,null,null,null,null,null,null,null,null,null,310,191446.19853800989,null,310,326112.86742194736]
[null,null,null,null,null,null,null,null,null,null,null,null,null,320,195760.97658012155,null,320,333466.97208667366]
[null,null,null,null,null,null,null,null,null,null,null,null,null,330,200035.7523188302,null,330,340752.9879474495]
[null,null,null,null,null,null,null,null,null,null,null,null,null,340,204272.09258003789,null,340,347973.58112752228]
[null,null,null,null,null,null,null,null,null,null,null,null,null,350,208471.45870888405,null,350,355131.23829342978]
[null,null,null,null,null,null,null,null,null,null,null,null,null,360,212635.21647204933,null,360,362228.28350005683]
[null,null,null,null,null,null,null,null,null,null,null,null,null,370,216764.64478198212,null,370,369266.89303181134]
[null,null,null,null,null,null,null,null,null,null,null,null,null,380,220860.94341118255,null,380,376249.10852589417]
[null,null,null,null,null,null,null,null,null,null,null,null,null,390,{"$f":"IF(N133>=5000,$W$7*N133,$W$5*(N133^$X$5))","v":224925.23983689016},null,390,{"$f":"IF(Q133>=5000,$W$7*Q133,$W$6*(Q133^$X$6))","v":383176.84861636924}]
[null,null,null,null,null,null,null,null,null,null,null,null,null,400,228958.59533393296,null,400,390051.91929933114,null,null,null,null,null,null,null,null,null,null,null,null,null,"Capacity (L/s)","Capacity (L/min)","Power (kW)","Head (m)","Specific Gravity of Water (kg/m3)","Efficiency (n)"]
[null,null,null,null,null,null,null,null,null,null,null,null,null,410,232962.01041500657,null,410,396876.023188019,null,null,null,null,null,null,null,null,null,null,null,null,null,{"$f":"AF84","v":1},{"$f":"AF135/60","v":1.6666666666666666E-2},{"$f":"(AG135*$AI$135*1000)/(4600*$AK$135)","v":2.5879917184265008E-2},{"$f":"PumpingHead","v":5},1000,{"$f":"PumpEfficiency","v":0.7}]
[null,null,null,null,null,null,null,null,null,null,null,null,null,420,236936.42970245201,null,420,403650.76780086698,null,null,null,null,null,null,null,null,null,null,null,null,null,{"$f":"AF85","v":2},{"$f":"AF136/60","v":3.3333333333333333E-2},{"$f":"(AG136*$AI$135*1000)/(4600*$AK$135)","v":5.1759834368530017E-2}]
[null,null,null,null,null,null,null,null,null,null,null,null,null,{"$f":"N136+10","v":430},240882.74630302936,null,{"$f":"Q136+10","v":430},410377.67300410796,null,null,null,null,null,null,null,null,null,null,null,null,null,3,0.05,7.7639751552795025E-2]
[null,null,null,null,null,null,null,null,null,null,null,null,null,440,244801.80574674034,null,440,417058.17771278048,null,null,null,null,null,null,null,null,null,null,null,null,null,5,8.3333333333333329E-2,0.12939958592132503,"Sustainability Vic Eqn for power"]
[null,null,null,null,null,null,null,null,null,null,null,null,null,450,248694.40954204369,null,450,423693.64593917358,null,null,null,null,null,null,null,null,null,null,null,null,null,10,0.16666666666666666,0.25879917184265006]
[null,null,null,null,null,null,null,null,null,null,null,null,null,460,252561.3183924976,null,460,430285.37226530735,null,null,null,null,null,null,null,null,null,null,null,null,null,20,0.33333333333333331,0.51759834368530011]
[null,null,null,null,null,null,null,null,null,null,null,null,null,470,256403.25511371373,null,470,436834.58680560754,null,null,null,null,null,null,null,null,null,null,null,null,null,30,0.5,0.77639751552795033]
[null,null,null,null,null,null,null,null,null,null,null,null,null,480,260220.90728431591,null,480,443342.45971706638,null,null,null,null,null,null,null,null,null,null,null,null,null,40,0.66666666666666663,1.0351966873706002]
[null,null,null,null,null,null,null,null,null,null,null,null,null,490,264014.92966017895,null,490,449810.10530671012,null,null,null,null,null,null,null,null,null,null,null,null,null,50,0.83333333333333337,1.2939958592132506]
[null,null,null,null,null,null,null,null,null,null,null,null,null,500,267785.94637748058,null,500,456238.58577978751,null,null,null,null,null,null,null,null,null,null,null,null,null,60,1,1.5527950310559007]
[null,null,null,null,null,null,null,null,null,null,null,null,null,510,271534.55296688009,null,510,462628.91466664948,null,null,null,null,null,null,null,null,null,null,null,null,null,70,1.1666666666666667,1.811594202898551]
[null,null,null,null,null,null,null,null,null,null,null,null,null,520,275261.31819839758,null,520,468982.05996161106,null,null,null,null,null,null,null,null,null,null,null,null,null,80,1.3333333333333333,2.0703933747412004]
[null,null,null,null,null,null,null,null,null,null,null,null,null,530,278966.78577419947,null,530,475298.94700306555,null,null,null,null,null,null,null,null,null,null,null,null,null,90,1.5,2.329192546583851]
[null,null,null,null,null,null,null,null,null,null,null,null,null,540,282651.47588445497,null,540,481580.46112064604,null,null,null,null,null,null,null,null,null,null,null,null,null,100,1.6666666666666667,2.5879917184265011]
[null,null,null,null,null,null,null,null,null,null,null,null,null,550,286315.88663966389,null,550,487827.45007223607,null,null,null,null,null,null,null,null,null,null,null,null,null,150,2.5,3.8819875776397517]
[null,null,null,null,null,null,null,null,null,null,null,null,null,560,289960.49539133225,null,560,494040.72629102331,null,null,null,null,null,null,null,null,null,null,null,null,null,200,3.3333333333333335,5.1759834368530022]
[null,null,null,null,null,null,null,null,null,null,null,null,null,570,293585.75995152607,null,570,500221.06896051863,null,null,null,null,null,null,null,null,null,null,null,null,null,250,4.166666666666667,6.4699792960662537]
[null,null,null,null,null,null,null,null,null,null,null,null,null,580,297192.11972068547,null,580,506369.22593349806,null,null,null,null,null,null,null,null,null,null,null,null,null,300,5,7.7639751552795033]
[null,null,null,null,null,null,null,null,null,null,null,null,null,590,300779.99673206033,null,590,512485.91550909163,null,null,null,null,null,null,null,null,null,null,null,null,null,350,5.833333333333333,9.0579710144927521]
[null,null,null,null,null,null,null,null,null,null,null,null,null,600,304349.79662023496,null,600,518571.82808071794,null,null,null,null,null,null,null,null,null,null,null,null,null,400,6.666666666666667,10.351966873706004]
[null,null,null,null,null,null,null,null,null,null,null,null,null,610,307901.90952042904,null,610,524627.62766625546,null,null,null,null,null,null,null,null,null,null,null,null,null,450,{"$f":"AF155/60","v":7.5},11.645962732919255]
[null,null,null,null,null,null,null,null,null,null,null,null,null,620,311436.71090458072,null,620,530653.9533306472,null,null,null,null,null,null,null,null,null,null,null,null,null,500,8.3333333333333339,12.939958592132507]
[null,null,null,null,null,null,null,null,null,null,null,null,null,630,314954.56235959241,null,630,536651.42051010998,null,null,null,null,null,null,null,null,null,null,null,null,null,550,9.1666666666666661,14.233954451345754]
[null,null,null,null,null,null,null,null,null,null,null,null,null,640,318455.81231260218,null,640,542620.62224621326,null,null,null,null,null,null,null,null,null,null,null,null,null,600,10,15.527950310559007]
[null,null,null,null,null,null,null,null,null,null,null,null,null,650,321940.7967076496,null,650,548562.13033725705,null,null,null,null,null,null,null,null,null,null,null,null,null,650,10.833333333333334,16.821946169772257]
[null,null,null,null,null,null,null,null,null,null,null,null,null,660,325409.83963769319,null,660,554476.49641369272]
[null,null,null,null,null,null,null,null,null,null,null,null,null,670,328863.25393555738,null,670,560364.25294365606]
[null,null,null,null,null,null,null,null,null,null,null,null,null,680,332301.34172704478,null,680,566225.91417413973,null,null,null,null,null,null,null,null,null,null,null,null,null,"Capacity (L/s)",null,"Power (kW)","Head (m)","Efficiency (n)"]
[null,null,null,null,null,null,null,null,null,null,null,null,null,690,335724.39494916343,null,690,572061.97701280005,null,null,null,null,null,null,null,null,null,null,null,null,null,{"$f":"AF135","v":1},null,{"$f":"((9.81*AF163)/1000)*($AI$163/$AJ$163)","v":7.0071428571428576E-2},{"$f":"PumpingHead","v":5},{"$f":"PumpEfficiency","v":0.7}]
[null,null,null,null,null,null,null,null,null,null,null,null,null,700,339132.69583613327,null,700,577872.92185494979,null,null,null,null,null,null,null,null,null,null,null,null,null,{"$f":"AF136","v":2},null,0.14014285714285715]
[null,null,null,null,null,null,null,null,null,null,null,null,null,710,342526.5173756156,null,710,583659.21335988177,null,null,null,null,null,null,null,null,null,null,null,null,null,3,null,0.21021428571428574]
[null,null,null,null,null,null,null,null,null,null,null,null,null,720,345906.12373737287,null,720,589421.30118028936,null,null,null,null,null,null,null,null,null,null,null,null,null,5,null,0.35035714285714292,"Dale's CWW CBA costs spreadsheet Eqn for power"]
[null,null,null,null,null,null,null,null,null,null,null,null,null,730,349271.77067639446,null,730,595159.62064823403,null,null,null,null,null,null,null,null,null,null,null,null,null,10,null,0.70071428571428584]
[null,null,null,null,null,null,null,null,null,null,null,null,null,740,352623.70591232739,null,740,600874.59342080564,null,null,null,null,null,null,null,null,null,null,null,null,null,20,null,1.4014285714285717]
[null,null,null,null,null,null,null,null,null,null,null,null,null,{"$f":"N168+10","v":750},355962.1694869147,null,{"$f":"Q168+10","v":750},606566.62808835355,null,null,null,null,null,null,null,null,null,null,null,null,null,30,null,2.1021428571428573]
[null,null,null,null,null,null,null,null,null,null,null,null,null,760,359287.39410098491,null,760,612236.12074793107,null,null,null,null,null,null,null,null,null,null,null,null,null,40,null,2.8028571428571434]
[null,null,null,null,null,null,null,null,null,null,null,null,null,770,362599.6054324212,null,770,617883.45554437244,null,null,null,null,null,null,null,null,null,null,null,null,null,50,null,3.5035714285714286]
[null,null,null,null,null,null,null,null,null,null,null,null,null,780,365899.02243641193,null,780,623509.00518122525,null,null,null,null,null,null,null,null,null,null,null,null,null,60,null,4.2042857142857146]
[null,null,null,null,null,null,null,null,null,null,null,null,null,790,369185.85762918688,null,790,629113.13140357845,null,null,null,null,null,null,null,null,null,null,null,null,null,70,null,4.9050000000000011]
[null,null,null,null,null,null,null,null,null,null,null,null,null,800,372460.31735634449,null,800,634696.18545467628,null,null,null,null,null,null,null,null,null,null,null,null,null,80,null,5.6057142857142868]
[null,null,null,null,null,null,null,null,null,null,null,null,null,810,375722.60204678884,null,810,640258.50850804045,null,null,null,null,null,null,null,null,null,null,null,null,null,90,null,6.3064285714285724]
[null,null,null,null,null,null,null,null,null,null,null,null,null,820,378972.90645321191,null,820,645800.4320767076,null,null,null,null,null,null,null,null,null,null,null,null,null,100,null,7.0071428571428571]
[null,null,null,null,null,null,null,null,null,null,null,null,null,830,382211.41987999709,null,830,651322.27840105502,null,null,null,null,null,null,null,null,null,null,null,null,null,150,null,10.510714285714286]
[null,null,null,null,null,null,null,null,null,null,null,null,null,840,385438.32639933872,null,840,656824.36081657524,null,null,null,null,null,null,null,null,null,null,null,null,null,200,null,14.014285714285714]
[null,null,null,null,null,null,null,null,null,null,null,null,null,850,388653.80505632056,null,850,662306.98410287278,null,null,null,null,null,null,null,null,null,null,null,null,null,250,null,17.517857142857146]
[null,null,null,null,null,null,null,null,null,null,null,null,null,860,391858.03006364458,null,860,667770.44481503789,null,null,null,null,null,null,null,null,null,null,null,null,null,300,null,21.021428571428572]
[null,null,null,null,null,null,null,null,null,null,null,null,null,870,395051.1709866426,null,870,673215.03159849334,null,null,null,null,null,null,null,null,null,null,null,null,null,350,null,24.525000000000002]
[null,null,null,null,null,null,null,null,null,null,null,null,null,880,398233.39291916008,null,880,678641.02548830665,null,null,null,null,null,null,null,null,null,null,null,null,null,400,null,28.028571428571428]
[null,null,null,null,null,null,null,null,null,null,null,null,null,890,401404.85665086698,null,890,684048.70019391575,null,null,null,null,null,null,null,null,null,null,null,null,null,450,null,31.532142857142862]
[null,null,null,null,null,null,null,null,null,null,null,null,null,900,404565.71882649994,null,900,689438.322370123,null,null,null,null,null,null,null,null,null,null,null,null,null,500,null,35.035714285714292]
[null,null,null,null,null,null,null,null,null,null,null,null,null,910,407716.13209751056,null,910,694810.15187516913,null,null,null,null,null,null,null,null,null,null,null,null,null,550,null,38.539285714285718]
[null,null,null,null,null,null,null,null,null,null,null,null,null,920,410856.24526656437,null,920,700164.44201664068,null,null,null,null,null,null,null,null,null,null,null,null,null,600,null,42.042857142857144]
[null,null,null,null,null,null,null,null,null,null,null,null,null,930,413986.20342529763,null,930,705501.43978590367,null,null,null,null,null,null,null,null,null,null,null,null,null,650,null,45.546428571428571]
[null,null,null,null,null,null,null,null,null,null,null,null,null,940,417106.14808571863,null,940,710821.38608172722]
[null,null,null,null,null,null,null,null,null,null,null,null,null,950,420216.21730560955,null,950,716124.515923689]
[null,null,null,null,null,null,null,null,null,null,null,null,null,960,423316.54580826219,null,960,721411.05865594908]
[null,null,null,null,null,null,null,null,null,null,null,null,null,970,426407.26509686204,null,970,726681.23814191273]
[null,null,null,null,null,null,null,null,null,null,null,null,null,980,429488.50356381189,null,980,731935.27295027662]
[null,null,null,null,null,null,null,null,null,null,null,null,null,990,432560.38659526641,null,990,737173.37653293554]
[null,null,null,null,null,null,null,null,null,null,null,null,null,1000,435623.03667113517,null,1000,742395.75739517168]
[null,null,null,null,null,null,null,null,null,null,null,null,null,{"$f":"N194+50","v":1050},450801.88780186028,null,{"$f":"Q194+50","v":1050},768278.79227713135]
[null,null,null,null,null,null,null,null,null,null,null,null,null,1100,465766.77257491677,null,1100,793797.45721318061]
[null,null,null,null,null,null,null,null,null,null,null,null,null,1150,{"$f":"IF(N197>=5000,$W$7*N197,$W$5*(N197^$X$5))","v":480530.23868066771},null,1150,{"$f":"IF(Q197>=5000,$W$7*Q197,$W$6*(Q197^$X$6))","v":818973.11366341996}]
[null,null,null,null,null,null,null,null,null,null,null,null,null,1200,495103.58705328451,null,1200,843825.00093405915]
[null,null,null,null,null,null,null,null,null,null,null,null,null,1250,509497.04233061883,null,1250,868370.52629128867]
[null,null,null,null,null,null,null,null,null,null,null,null,null,1300,523719.89414417144,null,1300,892625.50543369446]
[null,null,null,null,null,null,null,null,null,null,null,null,null,1350,537780.61515787058,null,1350,916604.36339504283]
[null,null,null,null,null,null,null,null,null,null,null,null,null,1400,551686.96039916039,null,1400,940320.30360916595]
[null,null,null,null,null,null,null,null,null,null,null,null,null,1450,565446.05140783417,null,1450,963785.45113635273]
[null,null,null,null,null,null,null,null,null,null,null,null,null,1500,579064.44796527701,null,1500,987010.97475267109]
[null,null,null,null,null,null,null,null,null,null,null,null,null,1550,592548.20958895423,null,1550,1010007.191620357]
[null,null,null,null,null,null,null,null,null,null,null,null,null,1600,605902.94853468158,null,1600,1032783.6575047655]
[null,null,null,null,null,null,null,null,null,null,null,null,null,1650,619133.87570748315,null,1650,1055349.2449218417]
[null,null,null,null,null,null,null,null,null,null,null,null,null,1700,632245.84061541897,null,1700,1077712.2111466683]
[null,null,null,null,null,null,null,null,null,null,null,null,null,1750,645243.36629134533,null,1750,1099880.2576572837]
[null,null,null,null,null,null,null,null,null,null,null,null,null,1800,658130.67994169169,null,1800,1121860.5823056616]
[null,null,null,null,null,null,null,null,null,null,null,null,null,1850,670911.73994895373,null,1850,1143659.9252824644]
[null,null,null,null,null,null,null,null,null,null,null,null,null,1900,683590.25974830415,null,1900,1165284.6097612358]
[null,null,null,null,null,null,null,null,null,null,null,null,null,1950,696169.72901268699,null,1950,1186740.5779613596]
[null,null,null,null,null,null,null,null,null,null,null,null,null,2000,708653.4325108995,null,2000,1208033.4232501208]
[null,null,null,null,null,null,null,null,null,null,null,null,null,2050,721044.46694588463,null,2050,1229168.4188068002]
[null,null,null,null,null,null,null,null,null,null,null,null,null,2100,733345.75603345118,null,2100,1250150.543291678]
[null,null,null,null,null,null,null,null,null,null,null,null,null,2150,745560.06404270127,null,2150,1270984.503896584]
[null,null,null,null,null,null,null,null,null,null,null,null,null,2200,757690.00798714801,null,2200,1291674.7570986531]
[null,null,null,null,null,null,null,null,null,null,null,null,null,2250,769738.06862852117,null,2250,1312225.5273930188]
[null,null,null,null,null,null,null,null,null,null,null,null,null,2300,781706.60043264169,null,2300,1332640.8242416847]
[null,null,null,null,null,null,null,null,null,null,null,null,null,2350,793597.84059774049,null,2350,1352924.4574434648]
[null,null,null,null,null,null,null,null,null,null,null,null,null,2400,805413.91725947917,null,2400,1373080.0511024543]
[null,null,null,null,null,null,null,null,null,null,null,null,null,2450,817156.85696330282,null,2450,1393111.0563492968]
[null,null,null,null,null,null,null,null,null,null,null,null,null,2500,828828.59148313745,null,2500,1413020.7629497382]
[null,null,null,null,null,null,null,null,null,null,null,null,null,2550,840430.96405550744,null,2550,1432812.3099180411]
[null,null,null,null,null,null,null,null,null,null,null,null,null,2600,851965.73508965655,null,2600,1452488.6952383979]
[null,null,null,null,null,null,null,null,null,null,null,null,null,{"$f":"N226+50","v":2650},863434.58740690642,null,{"$f":"Q226+50","v":2650},1472052.7847849387]
[null,null,null,null,null,null,null,null,null,null,null,null,null,2700,874839.13105622004,null,2700,1491507.3205202988]
[null,null,null,null,null,null,null,null,null,null,null,null,null,2750,886180.90774742223,null,2750,1510854.9280432952]
[null,null,null,null,null,null,null,null,null,null,null,null,null,2800,897461.39493883855,null,2800,1530098.1235483019]
[null,null,null,null,null,null,null,null,null,null,null,null,null,2850,908682.00961196015,null,2850,1549239.3202518083]
[null,null,null,null,null,null,null,null,null,null,null,null,null,2900,919844.11176216172,null,2900,1568280.8343356007]
[null,null,null,null,null,null,null,null,null,null,null,null,null,2950,930949.00763134554,null,2950,1587224.8904505805]
[null,null,null,null,null,null,null,null,null,null,null,null,null,3000,941997.9527056379,null,3000,1606073.6268206227]
[null,null,null,null,null,null,null,null,null,null,null,null,null,3050,952992.15449883766,null,3050,1624829.0999816714]
[null,null,null,null,null,null,null,null,null,null,null,null,null,3100,963932.77514018072,null,3100,1643493.289187693]
[null,null,null,null,null,null,null,null,null,null,null,null,null,3150,974820.93378310732,null,3150,1662068.1005119188]
[null,null,null,null,null,null,null,null,null,null,null,null,null,3200,985657.70885006059,null,3200,1680555.3706689011]
[null,null,null,null,null,null,null,null,null,null,null,null,null,3250,996444.14012683765,null,3250,1698956.870580463]
[null,null,null,null,null,null,null,null,null,null,null,null,null,3300,1007181.2307187754,null,3300,1717274.3087064063]
[null,null,null,null,null,null,null,null,null,null,null,null,null,3350,1017869.948879778,null,3350,1735509.3341587388]
[null,null,null,null,null,null,null,null,null,null,null,null,null,3400,1028511.2297242824,null,3400,1753663.5396166027]
[null,null,null,null,null,null,null,null,null,null,null,null,null,3450,1039105.9768312162,null,3450,1771738.4640573135]
[null,null,null,null,null,null,null,null,null,null,null,null,null,3500,1049655.0637482568,null,3500,1789735.5953176592]
[null,null,null,null,null,null,null,null,null,null,null,null,null,3550,1060159.3354039053,null,3550,1807656.3724982524]
[null,null,null,null,null,null,null,null,null,null,null,null,null,3600,1070619.6094342466,null,3600,1825502.1882226276]
[null,null,null,null,null,null,null,null,null,null,null,null,null,3650,1081036.6774306635,null,3650,1843274.3907617594]
[null,null,null,null,null,null,null,null,null,null,null,null,null,3700,1091411.3061142194,null,3700,1860974.2860337337]
[null,null,null,null,null,null,null,null,null,null,null,null,null,3750,1101744.2384419758,null,3750,1878603.1394875192]
[null,null,null,null,null,null,null,null,null,null,null,null,null,3800,1112036.1946500142,null,3800,1896162.1778789824]
[null,null,null,null,null,null,null,null,null,null,null,null,null,3850,1122287.8732375791,null,3850,1913652.5909466585]
[null,null,null,null,null,null,null,null,null,null,null,null,null,3900,1132499.9518963972,null,3900,1931075.5329941616]
[null,null,null,null,null,null,null,null,null,null,null,null,null,3950,1142673.0883888728,null,3950,1948432.1243855765]
[null,null,null,null,null,null,null,null,null,null,null,null,null,4000,1152807.9213785878,null,4000,1965723.4529596129]
[null,null,null,null,null,null,null,null,null,null,null,null,null,4050,1162905.0712162654,null,4050,1982950.5753679555]
[null,null,null,null,null,null,null,null,null,null,null,null,null,4100,1172965.1406840994,null,4100,2000114.518342712]
[null,null,null,null,null,null,null,null,null,null,null,null,null,4150,1182988.7157011323,null,4150,2017216.2798975445]
[null,null,null,null,null,null,null,null,null,null,null,null,null,4200,1192976.3659921719,null,4200,2034256.8304667224]
[null,null,null,null,null,null,null,null,null,null,null,null,null,{"$f":"N258+50","v":4250},1202928.6457225422,null,{"$f":"Q258+50","v":4250},2051237.1139859892]
[null,null,null,null,null,null,null,null,null,null,null,null,null,4300,1212846.0941007771,null,4300,2068158.0489188705]
[null,null,null,null,null,null,null,null,null,null,null,null,null,4350,{"$f":"IF(N261>=5000,$W$7*N261,$W$5*(N261^$X$5))","v":1222729.2359512644},null,4350,{"$f":"IF(Q261>=5000,$W$7*Q261,$W$6*(Q261^$X$6))","v":2085020.5292317865}]
[null,null,null,null,null,null,null,null,null,null,null,null,null,4400,1232578.5822586217,null,4400,2101825.4253210579]
[null,null,null,null,null,null,null,null,null,null,null,null,null,4450,1242394.6306855436,null,4450,2118573.5848947242]
[null,null,null,null,null,null,null,null,null,null,null,null,null,4500,1252177.8660656754,null,4500,2135265.8338118531]
[null,null,null,null,null,null,null,null,null,null,null,null,null,4550,1261928.7608729808,null,4550,2151902.9768818151]
[null,null,null,null,null,null,null,null,null,null,null,null,null,4600,1271647.775668984,null,4600,2168485.798625893]
[null,null,null,null,null,null,null,null,null,null,null,null,null,4650,1281335.3595291437,null,4650,2185015.0640033414]
[null,null,null,null,null,null,null,null,null,null,null,null,null,4700,1290991.9504495522,null,4700,2201491.5191039708]
[null,null,null,null,null,null,null,null,null,null,null,null,null,4750,1300617.9757350748,null,4750,2217915.8918091031]
[null,null,null,null,null,null,null,null,null,null,null,null,null,4800,1310213.8523699399,null,4800,2234288.8924226714]
[null,null,null,null,null,null,null,null,null,null,null,null,null,4850,1319779.9873717707,null,4850,2250611.2142740986]
[null,null,null,null,null,null,null,null,null,null,null,null,null,4900,1329316.7781299599,null,4900,2266883.534294534]
[null,null,null,null,null,null,null,null,null,null,null,null,null,4950,1338824.6127292113,null,4950,2283106.5135678174]
[null,null,null,null,null,null,null,null,null,null,null,null,null,5000,2300000,null,5000,2300000]
[null,null,null,null,null,null,null,null,null,null,null,null,null,5050,2323000,null,5050,2323000]
[null,null,null,null,null,null,null,null,null,null,null,null,null,5100,2346000,null,5100,2346000]
[null,null,null,null,null,null,null,null,null,null,null,null,null,5150,2369000,null,5150,2369000]
[null,null,null,null,null,null,null,null,null,null,null,null,null,5200,2392000,null,5200,2392000]
[null,null,null,null,null,null,null,null,null,null,null,null,null,5250,2415000,null,5250,2415000]
[null,null,null,null,null,null,null,null,null,null,null,null,null,5300,2438000,null,5300,2438000]
[null,null,null,null,null,null,null,null,null,null,null,null,null,5350,2461000,null,5350,2461000]
[null,null,null,null,null,null,null,null,null,null,null,null,null,5400,2484000,null,5400,2484000]
[null,null,null,null,null,null,null,null,null,null,null,null,null,5450,2507000,null,5450,2507000]
[null,null,null,null,null,null,null,null,null,null,null,null,null,5500,2530000,null,5500,2530000]
[null,null,null,null,null,null,null,null,null,null,null,null,null,5550,2553000,null,5550,2553000]
[null,null,null,null,null,null,null,null,null,null,null,null,null,5600,2576000,null,5600,2576000]
[null,null,null,null,null,null,null,null,null,null,null,null,null,5650,2599000,null,5650,2599000]
[null,null,null,null,null,null,null,null,null,null,null,null,null,5700,2622000,null,5700,2622000]
[null,null,null,null,null,null,null,null,null,null,null,null,null,5750,2645000,null,5750,2645000]
[null,null,null,null,null,null,null,null,null,null,null,null,null,5800,2668000,null,5800,2668000]
[null,null,null,null,null,null,null,null,null,null,null,null,null,{"$f":"N290+50","v":5850},2691000,null,{"$f":"Q290+50","v":5850},2691000]
[null,null,null,null,null,null,null,null,null,null,null,null,null,5900,2714000,null,5900,2714000]
[null,null,null,null,null,null,null,null,null,null,null,null,null,5950,2737000,null,5950,2737000]
[null,null,null,null,null,null,null,null,null,null,null,null,null,6000,2760000,null,6000,2760000]
[null,null,null,null,null,null,null,null,null,null,null,null,null,6050,2783000,null,6050,2783000]
[null,null,null,null,null,null,null,null,null,null,null,null,null,6100,2806000,null,6100,2806000]
[null,null,null,null,null,null,null,null,null,null,null,null,null,6150,2829000,null,6150,2829000]
[null,null,null,null,null,null,null,null,null,null,null,null,null,6200,2852000,null,6200,2852000]
[null,null,null,null,null,null,null,null,null,null,null,null,null,6250,2875000,null,6250,2875000]
[null,null,null,null,null,null,null,null,null,null,null,null,null,6300,2898000,null,6300,2898000]
[null,null,null,null,null,null,null,null,null,null,null,null,null,6350,2921000,null,6350,2921000]
[null,null,null,null,null,null,null,null,null,null,null,null,null,6400,2944000,null,6400,2944000]
[null,null,null,null,null,null,null,null,null,null,null,null,null,6450,2967000,null,6450,2967000]
[null,null,null,null,null,null,null,null,null,null,null,null,null,6500,2990000,null,6500,2990000]
[null,null,null,null,null,null,null,null,null,null,null,null,null,6550,3013000,null,6550,3013000]
[null,null,null,null,null,null,null,null,null,null,null,null,null,6600,3036000,null,6600,3036000]
[null,null,null,null,null,null,null,null,null,null,null,null,null,6650,3059000,null,6650,3059000]
[null,null,null,null,null,null,null,null,null,null,null,null,null,6700,3082000,null,6700,3082000]
[null,null,null,null,null,null,null,null,null,null,null,null,null,6750,3105000,null,6750,3105000]
[null,null,null,null,null,null,null,null,null,null,null,null,null,6800,3128000,null,6800,3128000]
[null,null,null,null,null,null,null,null,null,null,null,null,null,6850,3151000,null,6850,3151000]
[null,null,null,null,null,null,null,null,null,null,null,null,null,6900,3174000,null,6900,3174000]
[null,null,null,null,null,null,null,null,null,null,null,null,null,6950,3197000,null,6950,3197000]
[null,null,null,null,null,null,null,null,null,null,null,null,null,7000,3220000,null,7000,3220000]
[null,null,null,null,null,null,null,null,null,null,null,null,null,7050,3243000,null,7050,3243000]
[null,null,null,null,null,null,null,null,null,null,null,null,null,7100,3266000,null,7100,3266000]
[null,null,null,null,null,null,null,null,null,null,null,null,null,7150,3289000,null,7150,3289000]
[null,null,null,null,null,null,null,null,null,null,null,null,null,7200,3312000,null,7200,3312000]
[null,null,null,null,null,null,null,null,null,null,null,null,null,7250,3335000,null,7250,3335000]
[null,null,null,null,null,null,null,null,null,null,null,null,null,7300,3358000,null,7300,3358000]
[null,null,null,null,null,null,null,null,null,null,null,null,null,7350,3381000,null,7350,3381000]
[null,null,null,null,null,null,null,null,null,null,null,null,null,7400,3404000,null,7400,3404000]
[null,null,null,null,null,null,null,null,null,null,null,null,null,{"$f":"N322+50","v":7450},3427000,null,{"$f":"Q322+50","v":7450},3427000]
[null,null,null,null,null,null,null,null,null,null,null,null,null,7500,3450000,null,7500,3450000]
[null,null,null,null,null,null,null,null,null,null,null,null,null,7550,{"$f":"IF(N325>=5000,$W$7*N325,$W$5*(N325^$X$5))","v":3473000},null,7550,{"$f":"IF(Q325>=5000,$W$7*Q325,$W$6*(Q325^$X$6))","v":3473000}]
[null,null,null,null,null,null,null,null,null,null,null,null,null,7600,3496000,null,7600,3496000]
[null,null,null,null,null,null,null,null,null,null,null,null,null,7650,3519000,null,7650,3519000]
[null,null,null,null,null,null,null,null,null,null,null,null,null,7700,3542000,null,7700,3542000]
[null,null,null,null,null,null,null,null,null,null,null,null,null,7750,3565000,null,7750,3565000]
[null,null,null,null,null,null,null,null,null,null,null,null,null,7800,3588000,null,7800,3588000]
[null,null,null,null,null,null,null,null,null,null,null,null,null,7850,3611000,null,7850,3611000]
[null,null,null,null,null,null,null,null,null,null,null,null,null,7900,3634000,null,7900,3634000]
[null,null,null,null,null,null,null,null,null,null,null,null,null,7950,3657000,null,7950,3657000]
[null,null,null,null,null,null,null,null,null,null,null,null,null,8000,3680000,null,8000,3680000]
[null,null,null,null,null,null,null,null,null,null,null,null,null,8050,3703000,null,8050,3703000]
[null,null,null,null,null,null,null,null,null,null,null,null,null,8100,3726000,null,8100,3726000]
[null,null,null,null,null,null,null,null,null,null,null,null,null,8150,3749000,null,8150,3749000]
[null,null,null,null,null,null,null,null,null,null,null,null,null,8200,3772000,null,8200,3772000]
[null,null,null,null,null,null,null,null,null,null,null,null,null,8250,3795000,null,8250,3795000]
[null,null,null,null,null,null,null,null,null,null,null,null,null,8300,3818000,null,8300,3818000]
[null,null,null,null,null,null,null,null,null,null,null,null,null,8350,3841000,null,8350,3841000]
[null,null,null,null,null,null,null,null,null,null,null,null,null,8400,3864000,null,8400,3864000]
[null,null,null,null,null,null,null,null,null,null,null,null,null,8450,3887000,null,8450,3887000]
[null,null,null,null,null,null,null,null,null,null,null,null,null,8500,3910000,null,8500,3910000]
[null,null,null,null,null,null,null,null,null,null,null,null,null,8550,3933000,null,8550,3933000]
[null,null,null,null,null,null,null,null,null,null,null,null,null,8600,3956000,null,8600,3956000]
[null,null,null,null,null,null,null,null,null,null,null,null,null,8650,3979000,null,8650,3979000]
[null,null,null,null,null,null,null,null,null,null,null,null,null,8700,4002000,null,8700,4002000]
[null,null,null,null,null,null,null,null,null,null,null,null,null,8750,4025000,null,8750,4025000]
[null,null,null,null,null,null,null,null,null,null,null,null,null,8800,4048000,null,8800,4048000]
[null,null,null,null,null,null,null,null,null,null,null,null,null,8850,4071000,null,8850,4071000]
[null,null,null,null,null,null,null,null,null,null,null,null,null,8900,4094000,null,8900,4094000]
[null,null,null,null,null,null,null,null,null,null,null,null,null,8950,4117000,null,8950,4117000]
[null,null,null,null,null,null,null,null,null,null,null,null,null,9000,4140000,null,9000,4140000]
[null,null,null,null,null,null,null,null,null,null,null,null,null,{"$f":"N354+50","v":9050},4163000,null,{"$f":"Q354+50","v":9050},4163000]
[null,null,null,null,null,null,null,null,null,null,null,null,null,9100,4186000,null,9100,4186000]
[null,null,null,null,null,null,null,null,null,null,null,null,null,9150,4209000,null,9150,4209000]
[null,null,null,null,null,null,null,null,null,null,null,null,null,9200,4232000,null,9200,4232000]
[null,null,null,null,null,null,null,null,null,null,null,null,null,9250,4255000,null,9250,4255000]
[null,null,null,null,null,null,null,null,null,null,null,null,null,9300,4278000,null,9300,4278000]
[null,null,null,null,null,null,null,null,null,null,null,null,null,9350,4301000,null,9350,4301000]
[null,null,null,null,null,null,null,null,null,null,null,null,null,9400,4324000,null,9400,4324000]
[null,null,null,null,null,null,null,null,null,null,null,null,null,9450,4347000,null,9450,4347000]
[null,null,null,null,null,null,null,null,null,null,null,null,null,9500,4370000,null,9500,4370000]
[null,null,null,null,null,null,null,null,null,null,null,null,null,9550,4393000,null,9550,4393000]
[null,null,null,null,null,null,null,null,null,null,null,null,null,9600,4416000,null,9600,4416000]
[null,null,null,null,null,null,null,null,null,null,null,null,null,9650,4439000,null,9650,4439000]
[null,null,null,null,null,null,null,null,null,null,null,null,null,9700,4462000,null,9700,4462000]
[null,null,null,null,null,null,null,null,null,null,null,null,null,9750,4485000,null,9750,4485000]
[null,null,null,null,null,null,null,null,null,null,null,null,null,9800,4508000,null,9800,4508000]
[null,null,null,null,null,null,null,null,null,null,null,null,null,9850,4531000,null,9850,4531000]
[null,null,null,null,null,null,null,null,null,null,null,null,null,9900,4554000,null,9900,4554000]
[null,null,null,null,null,null,null,null,null,null,null,null,null,9950,4577000,null,9950,4577000]
[null,null,null,null,null,null,null,null,null,null,null,null,null,10000,4600000,null,10000,4600000]

{"sheet":"WSUD Maintenance Constants","index":18,"n_rows":52,"n_cols":10,"rows_kept":52,"cut":false,"hidden":true,"merged":[[14,5,14,11],[15,5,15,11],[19,5,19,11],[45,0,45,1],[35,0,35,1]]}
[]
["General assumptions"]
[null,null,null,null,"Discount rates","Lengths of analysis",null,null,"Value of avoided potable water ($/ML)","Cost of recycled water ($/ML)"]
["Discount rate",5.5E-2,null,null,5.5E-2,30,null,"CWW",2662.1,2305.1]
["Length of analysis (years)",50,null,null,3.5000000000000003E-2,35,null,"SEW",3144.4,2239.4]
["Start year for analysis",2017,null,null,7.4999999999999997E-2,40,null,"YVW",2802.4,2752.4]
[null,null,null,null,null,45]
["Water retailer","YVW",null,null,null,50]
["Value of avoided potable water ($/ML)",{"$f":"VLOOKUP(B$8,WaterPriceTable,2)","v":2802.4}]
["Cost of recycled water ($/ML)",{"$f":"VLOOKUP(B$8,WaterPriceTable,3)","v":2752.4},"Not used"]
[]
["Broader economic (environmental, social) assumptions"]
[]
[]
["Capital value of nitrogen abatement ($/kg/yr)",11390,"*Inc opex + renewal",null,null,"$6,645 capital value for a treatment system with capacity to remove 1 kg of TN/year indefinitely"]
["Annualised capital value of nitrogen abatement ($/kg)",{"$f":"-PMT(B4,LengthOfAnalysis,B15)","v":672.70991690117069},null,null,null,"http://www2.melbournewater.com.au/Planning-and-building/Forms-guidelines-and-standard-drawings/Documents/Stormwater%20Offset%20Rate%20FAQs.pdf"]
[]
["Constants"]
["Assumed performance of unmaintained assets",0.5]
["Inflation adjustment from 2013",{"$f":"2%*(StartYear-2013)","v":0.08},null,null,null,"Assumes 2% per year from 2013 to 2016. Used to adjust costs from Melbourne Water data (derived 2013)"]
[]
[]
["Treatment type","Renewal cost as % of construction","Average years to refurbishment","Reduction in functional life without maintenance","Reduced asset lifespan",null,"Yes No List"]
["Bioretention",0.8,20,-10,{"$f":"C24+D24","v":10},null,"Y"]
["Buffer strip",0.8,20,-8,{"$f":"C25+D25","v":12},null,"N"]
["Grass swale",0.8,20,-8,12]
["Gross pollutant trap",1,25,-5,20]
["Pond",1.2,25,-12,13]
["Raingarden",0.8,20,-10,10]
["Sediment basin",0.6,25,-12,13]
["Tree pit",0.8,20,-10,10]
["Vegetated swale",0.8,20,-8,12]
["Wetland",1.2,25,-12,{"$f":"C33+D33","v":13}]
[]
[]
["Added by Simon"]
["DailyPeakingFactor",1.6]
["IrrigationHoursPerDay",8]
["IrrigationDaysPerWeek",3]
["PumpingHoursPerDay",24]
["PumpingHead",5]
["PumpEfficiency",0.7,null,6645,"Capex only"]
["NitrogenAbatementValue_perkg",{"$f":"D43","v":11390},"$/kg incl capex and opex over 50yrs",{"$f":"11390","v":11390},"$/kg incl capex and opex over 50yrs"]
["PotableWaterValue_perkL",2.8024,"$/kL for YVW"]
[]
["Risk of Project Failure"]
["Negligible",0]
["Very Low",0.1]
["Low",0.2]
["Moderate",0.4]
["High",0.6]
["Very High",0.8]